{"text_format":"1","workbook":"xlsx","n_sheets":7,"sheets":["INFORMATIONS GENERALES","INFORMATIONS COMPETITEURS","MOUCHE N°1","MOUCHE N°2","MOUCHE N°3","MOUCHE N°4","RESULTATS"],"not_rendered":{"charts":0,"images":2,"macros":1,"external_links":0,"defined_names":72,"comments":0,"pivot_tables":0},"unopened":[],"bounds":{"document_bytes":16777216,"sheet_cells":100000,"rows_first":2000,"rows_last":500,"rows_between":2000,"halvings":0,"cell_chars":16384,"cell_head_chars":4096},"cells_cut":0,"cells_raw":0,"read":"whole","date_system":"1900"}

{"sheet":"INFORMATIONS GENERALES","index":0,"n_rows":44,"n_cols":19,"rows_kept":44,"cut":false,"hidden":false,"merged":[[38,3,39,3],[38,4,39,6],[36,4,37,6],[34,4,35,6],[32,4,33,6],[36,3,37,3],[34,3,35,3],[18,2,19,4],[21,2,22,4],[18,11,19,14],[21,11,22,14],[38,10,39,12],[36,10,37,12],[34,10,35,12],[32,10,33,12],[32,14,36,18],[31,14,31,18],[27,3,29,12],[30,3,31,3],[30,4,31,6],[30,7,31,9],[30,10,31,12],[32,3,33,3],[40,3,41,3],[40,4,41,6],[40,7,41,9],[40,10,41,12],[15,16,16,18],[18,16,19,18],[21,16,22,18],[15,6,16,8],[18,6,19,8],[21,6,22,8],[15,11,16,14],[38,7,39,9],[36,7,37,9],[34,7,35,9],[32,7,33,9],[15,2,16,4]]}
[]
[]
[]
[]
[]
[]
[]
[]
[]
[]
[]
[]
[]
[]
[]
[null,null,"CLUB ORGANISATEUR :",null,null,null,"Commission Mouche FFPS",null,null,null,null,"LIEU DE L'EPREUVE :",null,null,null,null,"28ème CNPL Clermont Ferrand"]
[]
[]
[null,null,"TYPE D'EPREUVE :",null,null,null,"Finale CDF 2016",null,null,null,null,"NOMBRE TOTAL DE COMPETITEURS :",null,null,null,null,29]
[]
[]
[null,null,"DATE :",null,null,null,"2017-01-14",null,null,null,null,"ANNEE DU PROGRAMME DE MONTAGE :",null,null,null,null,2016]
[]
[]
[]
[]
[]
[null,null,null,"JURY DE L'EPPREUVE :"]
[]
[]
[null,null,null,"N°Juge","NOM",null,null,"Prénom",null,null,"Club"]
[null,null,null,null,null,null,null,null,null,null,null,null,null,null,"ATTENTION !"]
[null,null,null,1,"CORRE",null,null,"Stéphane",null,null,"CR ARA",null,null,null,"IL EST INDISPENSABLE D'ACTIVER LES MACROS POUR UTILISER LE LOGICIEL DE CLASSEMENT"]
[]
[null,null,null,2,"OULION",null,null,"Jean",null,null,"CR ARA"]
[]
[null,null,null,3,"BONNOT",null,null,"André",null,null,"CR Bourgogne"]
[]
[null,null,null,4]
[]
[null,null,null,5]
[]
[]
[null,null,null,null,null,null,null,null,null,null,null,null,null,null,null,null,null,null,"Version 6.0 - 30/05/2014"]

{"sheet":"INFORMATIONS COMPETITEURS","index":1,"n_rows":67,"n_cols":23,"rows_kept":67,"cut":false,"hidden":false,"merged":[[5,12,7,13],[2,3,4,11],[5,11,7,11],[63,3,63,12],[8,8,8,10],[9,8,9,10],[23,4,23,5],[26,8,26,10],[19,4,19,5],[15,8,15,10],[22,4,22,5],[21,4,21,5],[17,4,17,5],[18,4,18,5],[19,6,19,7],[33,4,33,5],[32,6,32,7],[26,4,26,5],[25,4,25,5],[24,4,24,5],[18,6,18,7],[28,8,28,10],[27,8,27,10],[30,8,30,10],[27,4,27,5],[10,8,10,10],[20,8,20,10],[19,8,19,10],[12,8,12,10],[16,8,16,10],[14,8,14,10],[13,8,13,10],[18,8,18,10],[11,8,11,10],[17,8,17,10],[22,8,22,10],[21,8,21,10],[24,8,24,10],[23,8,23,10],[23,6,23,7],[22,6,22,7],[21,6,21,7],[17,6,17,7],[36,4,36,5],[34,6,34,7],[33,6,33,7],[29,8,29,10],[32,4,32,5],[31,4,31,5],[30,4,30,5],[29,4,29,5],[28,4,28,5],[57,4,57,5],[56,4,56,5],[55,4,55,5],[54,4,54,5],[53,4,53,5],[56,6,56,7],[55,6,55,7],[54,6,54,7],[42,4,42,5],[52,4,52,5],[51,4,51,5],[50,4,50,5],[49,4,49,5],[47,4,47,5],[46,4,46,5],[45,4,45,5],[48,4,48,5],[53,6,53,7],[52,6,52,7],[51,6,51,7],[57,8,57,10],[56,8,56,10],[55,8,55,10],[54,8,54,10],[52,8,52,10],[46,8,46,10],[40,8,40,10],[39,8,39,10],[25,8,25,10],[45,8,45,10],[38,8,38,10],[33,8,33,10],[36,8,36,10],[35,8,35,10],[34,8,34,10],[32,8,32,10],[31,8,31,10],[44,8,44,10],[43,8,43,10],[42,8,42,10],[41,8,41,10],[37,8,37,10],[48,8,48,10],[8,4,8,5],[9,4,9,5],[16,4,16,5],[15,4,15,5],[14,4,14,5],[13,4,13,5],[12,4,12,5],[11,4,11,5],[10,4,10,5],[9,6,9,7],[12,6,12,7],[39,6,39,7],[38,6,38,7],[37,6,37,7],[20,4,20,5],[50,6,50,7],[31,6,31,7],[30,6,30,7],[29,6,29,7],[28,6,28,7],[27,6,27,7],[26,6,26,7],[45,6,45,7],[48,6,48,7],[40,4,40,5],[44,4,44,5],[43,4,43,5],[35,4,35,5],[39,4,39,5],[38,4,38,5],[37,4,37,5],[34,4,34,5],[41,4,41,5],[66,3,66,12],[5,3,7,3],[5,4,7,5],[5,6,7,7],[5,8,7,10],[65,3,65,12],[58,3,62,12],[64,3,64,12],[47,6,47,7],[47,8,47,10],[57,6,57,7],[49,6,49,7],[46,6,46,7],[53,8,53,10],[51,8,51,10],[50,8,50,10],[49,8,49,10],[8,6,8,7],[16,6,16,7],[15,6,15,7],[14,6,14,7],[13,6,13,7],[11,6,11,7],[10,6,10,7],[40,6,40,7],[43,6,43,7],[42,6,42,7],[41,6,41,7],[24,6,24,7],[44,6,44,7],[20,6,20,7],[25,6,25,7],[35,6,35,7],[36,6,36,7]]}
[null,null,null,null,null,null,null,null,null,null,null,null,null,null,null,null,"Benjamin"]
[null,null,null,null,null,null,null,null,null,null,null,null,null,null,null,null,"Minime"]
[null,null,null,"INFORMATIONS COMPETITEURS",null,null,null,null,null,null,null,null,null,null,null,null,"Cadet"]
[null,null,null,null,null,null,null,null,null,null,null,null,null,null,null,null,"Junior"]
[null,null,null,null,null,null,null,null,null,null,null,null,null,null,null,null,"Sénior"]
[null,null,null,"N° de plaquette","NOM",null,"Prénom",null,"Club",null,null,"Catégorie","Vérification saisie lignes",null,null,null,"Découverte"]
[null,null,null,null,null,null,null,null,null,null,null,null,null,null,null,null,"Handisport"]
[null,null,null,null,null,null,null,null,null,null,null,null,null,null,null,null,"Féminine"]
[null,null,null,1,"CAMPILLO",null,"Claude",null,"CML",null,null,"Sénior","ð",{"$f":"IF(COUNTBLANK(E9:L9)=8,\"\",IF(T9=\"ERREUR\",\"û\",IF(COUNTBLANK(E9:L9)=4,\"ü\",\"û\")))","v":"ü"},null,null,null,{"$f":"CONCATENATE(E9,G9,I9,L9)","v":"CAMPILLOClaudeCMLSénior"},{"$f":"IF(R9=\"\",\"\",COUNTIF($R$9:$R$58,R9))","v":1},{"$f":"IF(S9=\"\",\"\",IF(S9>1,\"ERREUR\",\"\"))","v":""},null,{"$f":"IF(E9=\"\",\"\",1)","v":1},{"$f":"COUNTIF(N9:N58,\"ü\")","v":29}]
[null,null,null,2,"DIEGO",null,"Didier",null,"GPD Pays d'Oc",null,null,"Sénior","ð",{"$f":"IF(COUNTBLANK(E10:L10)=8,\"\",IF(T10=\"ERREUR\",\"û\",IF(COUNTBLANK(E10:L10)=4,\"ü\",\"û\")))","v":"ü"},null,null,null,{"$f":"CONCATENATE(E10,G10,I10,L10)","v":"DIEGODidierGPD Pays d'OcSénior"},{"$f":"IF(R10=\"\",\"\",COUNTIF($R$9:$R$58,R10))","v":1},{"$f":"IF(S10=\"\",\"\",IF(S10>1,\"ERREUR\",\"\"))","v":""},null,{"$f":"IF(E10=\"\",\"\",2)","v":2},{"$f":"MAX(V9:V58)","v":29}]
[null,null,null,3,"CREPILLON",null,"Samuel",null,"GPS Nièvre Morvan",null,null,"Sénior","ð","ü",null,null,null,"CREPILLONSamuelGPS Nièvre MorvanSénior",{"$f":"IF(R11=\"\",\"\",COUNTIF($R$9:$R$58,R11))","v":1},{"$f":"IF(S11=\"\",\"\",IF(S11>1,\"ERREUR\",\"\"))","v":""},null,{"$f":"IF(E11=\"\",\"\",3)","v":3}]
[null,null,null,4,"BIBENT",null,"Valentin",null,"CML",null,null,"Minime","ð","ü",null,null,null,"BIBENTValentinCMLMinime",1,{"$f":"IF(S12=\"\",\"\",IF(S12>1,\"ERREUR\",\"\"))","v":""},null,{"$f":"IF(E12=\"\",\"\",4)","v":4},{"$f":"IF(W9+W10=0,\"PB\",IF(W9=W10,1,0))","v":1}]
[null,null,null,5,"ALBERGE",null,"Nathalie",null,"CM Pays d'Oc",null,null,"Féminine","ð","ü",null,null,null,"ALBERGENathalieCM Pays d'OcFéminine",1,{"$f":"IF(S13=\"\",\"\",IF(S13>1,\"ERREUR\",\"\"))","v":""},null,{"$f":"IF(E13=\"\",\"\",5)","v":5}]
[null,null,null,6,"GAULON",null,"Jean-Luc",null,"CMCRE",null,null,"Sénior","ð","ü",null,null,null,"GAULONJean-LucCMCRESénior",1,"",null,{"$f":"IF(E14=\"\",\"\",6)","v":6}]
[null,null,null,7,"VILLE",null,"Jérôme",null,"GPS Lyon Centre",null,null,"Sénior","ð","ü",null,null,null,"VILLEJérômeGPS Lyon CentreSénior",1,"",null,{"$f":"IF(E15=\"\",\"\",7)","v":7}]
[null,null,null,8,"RICHARD",null,"Edgard",null,"Ecole de pêche Dijon",null,null,"Cadet","ð","ü",null,null,null,"RICHARDEdgardEcole de pêche DijonCadet",1,"",null,{"$f":"IF(E16=\"\",\"\",8)","v":8}]
[null,null,null,9,"Le Bourhis  Beyer",null,"Solène",null,"CM Arzano",null,null,"Féminine","ð","ü",null,null,null,"Le Bourhis  BeyerSolèneCM ArzanoFéminine",1,"",null,{"$f":"IF(E17=\"\",\"\",9)","v":9}]
[null,null,null,10,"MASSON",null,"Guy",null,"GPS Lyon Centre",null,null,"Sénior","ð","ü",null,null,null,"MASSONGuyGPS Lyon CentreSénior",1,"",null,{"$f":"IF(E18=\"\",\"\",10)","v":10}]
[null,null,null,11,"COMMARET",null,"Gerard",null,"GPS Val de Saone",null,null,"Handisport","ð","ü",null,null,null,"COMMARETGerardGPS Val de SaoneHandisport",1,"",null,{"$f":"IF(E19=\"\",\"\",11)","v":11}]
[null,null,null,12,"PONCET",null,"Stéphane",null,"GPS Bresse Remiremont",null,null,"Sénior","ð","ü",null,null,null,"PONCETStéphaneGPS Bresse RemiremontSénior",1,"",null,{"$f":"IF(E20=\"\",\"\",12)","v":12}]
[null,null,null,13,"CHETAUD",null,"Didier",null,"GPS Val de Saone",null,null,"Sénior","ð","ü",null,null,null,"CHETAUDDidierGPS Val de SaoneSénior",1,"",null,{"$f":"IF(E21=\"\",\"\",13)","v":13}]
[null,null,null,14,"GIAMPRETI",null,"Eric",null,"GPS Lyon Centre",null,null,"Sénior","ð","ü",null,null,null,"GIAMPRETIEricGPS Lyon CentreSénior",1,"",null,{"$f":"IF(E22=\"\",\"\",14)","v":14}]
[null,null,null,15,"EVENNOU",null,"Frédéric",null,"GPS Lyon Centre",null,null,"Sénior","ð","ü",null,null,null,"EVENNOUFrédéricGPS Lyon CentreSénior",1,"",null,{"$f":"IF(E23=\"\",\"\",15)","v":15}]
[null,null,null,16,"FAIVRE",null,"Bernard",null,"GPS Pays d'Oc",null,null,"Sénior","ð","ü",null,null,null,{"$f":"CONCATENATE(E24,G24,I24,L24)","v":"FAIVREBernardGPS Pays d'OcSénior"},1,"",null,{"$f":"IF(E24=\"\",\"\",16)","v":16}]
[null,null,null,17,"Rémi",null,"Bernard",null,"Ecole de pêche Dijon",null,null,"Benjamin","ð","ü",null,null,null,"RémiBernardEcole de pêche DijonBenjamin",{"$f":"IF(R25=\"\",\"\",COUNTIF($R$9:$R$58,R25))","v":1},"",null,{"$f":"IF(E25=\"\",\"\",17)","v":17}]
[null,null,null,18,"FAUVELLIERE",null,"Denis",null,"CM Plaisir",null,null,"Sénior","ð","ü",null,null,null,"FAUVELLIEREDenisCM PlaisirSénior",1,{"$f":"IF(S26=\"\",\"\",IF(S26>1,\"ERREUR\",\"\"))","v":""},null,{"$f":"IF(E26=\"\",\"\",18)","v":18}]
[null,null,null,19,"GOMINET",null,"Lionel",null,"GPS Pays d'Oc",null,null,"Sénior","ð","ü",null,null,null,"GOMINETLionelGPS Pays d'OcSénior",1,"",null,{"$f":"IF(E27=\"\",\"\",19)","v":19}]
[null,null,null,20,"MAACH",null,"HAMZA",null,"Ecole de pêche Dijon",null,null,"Benjamin","ð","ü",null,null,null,"MAACHHAMZAEcole de pêche DijonBenjamin",1,"",null,{"$f":"IF(E28=\"\",\"\",20)","v":20}]
[null,null,null,21,"DEZOTHEZ",null,"Dimitri",null,"Club Mouche du gévaudan",null,null,"Minime","ð","ü",null,null,null,"DEZOTHEZDimitriClub Mouche du gévaudanMinime",1,"",null,{"$f":"IF(E29=\"\",\"\",21)","v":21}]
[null,null,null,22,"BRULEY",null,"Dominique",null,"GPS Val de Saone",null,null,"Sénior","ð","ü",null,null,null,"BRULEYDominiqueGPS Val de SaoneSénior",1,"",null,{"$f":"IF(E30=\"\",\"\",22)","v":22}]
[null,null,null,23,"MARTIN",null,"Christophe",null,"CM Plaisir",null,null,"Sénior","ð","ü",null,null,null,"MARTINChristopheCM PlaisirSénior",1,"",null,{"$f":"IF(E31=\"\",\"\",23)","v":23}]
[null,null,null,24,"VILLA",null,"Gérard",null,"GPS Pays d'Oc",null,null,"Sénior","ð","ü",null,null,null,"VILLAGérardGPS Pays d'OcSénior",1,"",null,{"$f":"IF(E32=\"\",\"\",24)","v":24}]
[null,null,null,25,"JACQUOT",null,"patrick",null,"GPS Val de Saone",null,null,"Sénior","ð","ü",null,null,null,"JACQUOTpatrickGPS Val de SaoneSénior",1,"",null,{"$f":"IF(E33=\"\",\"\",25)","v":25}]
[null,null,null,26,"CALAVIA",null,"Henri",null,"CMCRE",null,null,"Sénior","ð","ü",null,null,null,"CALAVIAHenriCMCRESénior",1,"",null,{"$f":"IF(E34=\"\",\"\",26)","v":26}]
[null,null,null,27,"JEANIN",null,"Batiste",null,"Ecole de pêche Dijon",null,null,"Cadet","ð","ü",null,null,null,"JEANINBatisteEcole de pêche DijonCadet",1,"",null,{"$f":"IF(E35=\"\",\"\",27)","v":27}]
[null,null,null,28,"CAZARETH",null,"Règis",null,"GPS Décines",null,null,"Sénior","ð","ü",null,null,null,"CAZARETHRègisGPS DécinesSénior",1,"",null,{"$f":"IF(E36=\"\",\"\",28)","v":28}]
[null,null,null,29,"DENIL",null,"BOUAFFIA",null,"GPS",null,null,"Minime","ð","ü",null,null,null,"DENILBOUAFFIAGPSMinime",1,"",null,{"$f":"IF(E37=\"\",\"\",29)","v":29}]
[null,null,null,30,null,null,null,null,null,null,null,null,"ð","",null,null,null,"","","",null,{"$f":"IF(E38=\"\",\"\",30)","v":""}]
[null,null,null,31,null,null,null,null,null,null,null,null,"ð","",null,null,null,"","","",null,{"$f":"IF(E39=\"\",\"\",31)","v":""}]
[null,null,null,32,null,null,null,null,null,null,null,null,"ð","",null,null,null,"","","",null,{"$f":"IF(E40=\"\",\"\",32)","v":""}]
[null,null,null,33,null,null,null,null,null,null,null,null,"ð","",null,null,null,"","","",null,{"$f":"IF(E41=\"\",\"\",33)","v":""}]
[null,null,null,34,null,null,null,null,null,null,null,null,"ð","",null,null,null,"","","",null,{"$f":"IF(E42=\"\",\"\",34)","v":""}]
[null,null,null,35,null,null,null,null,null,null,null,null,"ð","",null,null,null,"","","",null,{"$f":"IF(E43=\"\",\"\",35)","v":""}]
[null,null,null,36,null,null,null,null,null,null,null,null,"ð","",null,null,null,"","","",null,{"$f":"IF(E44=\"\",\"\",36)","v":""}]
[null,null,null,37,null,null,null,null,null,null,null,null,"ð","",null,null,null,"","","",null,{"$f":"IF(E45=\"\",\"\",37)","v":""}]
[null,null,null,38,null,null,null,null,null,null,null,null,"ð","",null,null,null,"","","",null,{"$f":"IF(E46=\"\",\"\",38)","v":""}]
[null,null,null,39,null,null,null,null,null,null,null,null,"ð","",null,null,null,"","","",null,{"$f":"IF(E47=\"\",\"\",39)","v":""}]
[null,null,null,40,null,null,null,null,null,null,null,null,"ð","",null,null,null,"","","",null,{"$f":"IF(E48=\"\",\"\",40)","v":""}]
[null,null,null,41,null,null,null,null,null,null,null,null,"ð","",null,null,null,"","","",null,{"$f":"IF(E49=\"\",\"\",41)","v":""}]
[null,null,null,42,null,null,null,null,null,null,null,null,"ð","",null,null,null,"","","",null,{"$f":"IF(E50=\"\",\"\",42)","v":""}]
[null,null,null,43,null,null,null,null,null,null,null,null,"ð","",null,null,null,"","","",null,{"$f":"IF(E51=\"\",\"\",43)","v":""}]
[null,null,null,44,null,null,null,null,null,null,null,null,"ð","",null,null,null,"","","",null,{"$f":"IF(E52=\"\",\"\",44)","v":""}]
[null,null,null,45,null,null,null,null,null,null,null,null,"ð","",null,null,null,"","","",null,{"$f":"IF(E53=\"\",\"\",45)","v":""}]
[null,null,null,46,null,null,null,null,null,null,null,null,"ð","",null,null,null,"","","",null,{"$f":"IF(E54=\"\",\"\",46)","v":""}]
[null,null,null,47,null,null,null,null,null,null,null,null,"ð","",null,null,null,"","","",null,{"$f":"IF(E55=\"\",\"\",47)","v":""}]
[null,null,null,48,null,null,null,null,null,null,null,null,"ð","",null,null,null,"","","",null,{"$f":"IF(E56=\"\",\"\",48)","v":""}]
[null,null,null,49,null,null,null,null,null,null,null,null,"ð","",null,null,null,"","","",null,{"$f":"IF(E57=\"\",\"\",49)","v":""}]
[null,null,null,50,null,null,null,null,null,null,null,null,"ð","",null,null,null,"","","",null,{"$f":"IF(E58=\"\",\"\",50)","v":""}]
[null,null,null,{"$f":"IF(AND(COUNTIF(N9:N58,\"ü\")=0,COUNTIF(N9:N58,\"û\")=0,'INFORMATIONS GENERALES'!Q19=0),\"TABLEAU DE SAISIE NON CONFORME\",IF(AND(COUNTIF(N9:N58,\"ü\")='INFORMATIONS GENERALES'!Q19,COUNTIF(N9:N58,\"û\")=0,W12=1),\"TABLEAU DE SAISIE CONFORME\",\"TABLEAU DE SAISIE NON CONFORME\"))","v":"TABLEAU DE SAISIE CONFORME"}]
[]
[]
[]
[]
[null,null,null,{"$f":"IF(D59=\"TABLEAU DE SAISIE NON CONFORME\",\"AIDE :\",\"\")","v":""}]
[null,null,null,{"$f":"IF(D59=\"TABLEAU DE SAISIE NON CONFORME\",\"Vérifiez l'information relative au nombre de compétiteurs dans la feuille INFORMATIONS GENERALES.\",\"\")","v":""}]
[null,null,null,{"$f":"IF(D59=\"TABLEAU DE SAISIE NON CONFORME\",\"Vérifiez que toutes les lignes du tableau ci-dessus relatives aux compétiteurs soient complétement renseignées et uniques.\",\"\")","v":""}]
[null,null,null,{"$f":"IF(D59=\"TABLEAU DE SAISIE NON CONFORME\",\"Vérifiez qu'il n'y a pas de ligne vide entre 2 compétiteurs et que la première ligne du tableau est renseignée.\",\"\")","v":""}]

{"sheet":"MOUCHE N°1","index":2,"n_rows":59,"n_cols":16,"rows_kept":59,"cut":false,"hidden":false,"merged":[[52,7,52,9],[58,7,58,9],[57,7,57,9],[56,7,56,9],[55,7,55,9],[54,7,54,9],[53,7,53,9],[32,7,32,9],[31,7,31,9],[44,7,44,9],[43,7,43,9],[42,7,42,9],[47,7,47,9],[46,7,46,9],[45,7,45,9],[51,7,51,9],[50,7,50,9],[49,7,49,9],[48,7,48,9],[49,4,49,6],[50,4,50,6],[51,4,51,6],[16,7,16,9],[15,7,15,9],[14,7,14,9],[30,7,30,9],[29,7,29,9],[28,7,28,9],[27,7,27,9],[26,7,26,9],[25,7,25,9],[24,7,24,9],[23,7,23,9],[22,7,22,9],[41,7,41,9],[40,7,40,9],[39,7,39,9],[38,7,38,9],[37,7,37,9],[36,7,36,9],[35,7,35,9],[34,7,34,9],[33,7,33,9],[53,4,53,6],[54,4,54,6],[52,4,52,6],[44,4,44,6],[45,4,45,6],[46,4,46,6],[47,4,47,6],[58,4,58,6],[2,3,4,15],[9,4,9,6],[10,4,10,6],[11,4,11,6],[56,4,56,6],[12,4,12,6],[13,4,13,6],[14,4,14,6],[55,4,55,6],[9,7,9,9],[13,7,13,9],[12,7,12,9],[11,7,11,9],[10,7,10,9],[57,4,57,6],[48,4,48,6],[35,4,35,6],[42,4,42,6],[43,4,43,6],[36,4,36,6],[37,4,37,6],[38,4,38,6],[39,4,39,6],[40,4,40,6],[41,4,41,6],[33,4,33,6],[34,4,34,6],[24,4,24,6],[25,4,25,6],[26,4,26,6],[19,4,19,6],[20,4,20,6],[21,4,21,6],[22,4,22,6],[27,4,27,6],[28,4,28,6],[29,4,29,6],[30,4,30,6],[31,4,31,6],[32,4,32,6],[21,7,21,9],[20,7,20,9],[23,4,23,6],[15,4,15,6],[16,4,16,6],[17,4,17,6],[18,4,18,6],[19,7,19,9],[18,7,18,9],[17,7,17,9],[7,14,8,14],[5,10,6,14],[5,15,8,15],[7,13,8,13],[5,3,8,3],[7,10,8,10],[7,11,8,11],[7,12,8,12],[5,4,8,6],[5,7,8,9]]}
[]
[]
[null,null,null,"SAISIE DES RESULTATS - MOUCHE N°1"]
[]
[]
[null,null,null,"N° de plaquette","Compétiteur",null,null,"Club",null,null,"RESULTATS DES JUGES",null,null,null,null,"POINTS MOUCHES"]
[]
[null,null,null,null,null,null,null,null,null,null,"Juge N°1","Juge N°2","Juge N°3","Juge N°4","Juge N°5"]
[]
[null,null,null,{"$f":"'INFORMATIONS COMPETITEURS'!D9","v":1},{"$f":"IF('INFORMATIONS COMPETITEURS'!$D$59=\"TABLEAU DE SAISIE CONFORME\",CONCATENATE('INFORMATIONS COMPETITEURS'!G9,\" \",'INFORMATIONS COMPETITEURS'!E9),\"\")","v":"Claude CAMPILLO"},null,null,{"$f":"IF('INFORMATIONS COMPETITEURS'!$D$59=\"TABLEAU DE SAISIE CONFORME\",IF('INFORMATIONS COMPETITEURS'!I9=\"\",\"\",'INFORMATIONS COMPETITEURS'!I9),\"\")","v":"CML"},null,null,58,57,54,null,null,{"$f":"IF('INFORMATIONS COMPETITEURS'!$D$59=\"TABLEAU DE SAISIE NON CONFORME\",\"\",IF(E10=\" \",N(0),IF(SUM(K10:O10)=0,N(0),SUM(K10:O10))))","v":169}]
[null,null,null,{"$f":"'INFORMATIONS COMPETITEURS'!D10","v":2},{"$f":"IF('INFORMATIONS COMPETITEURS'!$D$59=\"TABLEAU DE SAISIE CONFORME\",CONCATENATE('INFORMATIONS COMPETITEURS'!G10,\" \",'INFORMATIONS COMPETITEURS'!E10),\"\")","v":"Didier DIEGO"},null,null,{"$f":"IF('INFORMATIONS COMPETITEURS'!$D$59=\"TABLEAU DE SAISIE CONFORME\",IF('INFORMATIONS COMPETITEURS'!I10=\"\",\"\",'INFORMATIONS COMPETITEURS'!I10),\"\")","v":"GPD Pays d'Oc"},null,null,92,80,80,null,null,{"$f":"IF('INFORMATIONS COMPETITEURS'!$D$59=\"TABLEAU DE SAISIE NON CONFORME\",\"\",IF(E11=\" \",N(0),IF(SUM(K11:O11)=0,N(0),SUM(K11:O11))))","v":252}]
[null,null,null,{"$f":"'INFORMATIONS COMPETITEURS'!D11","v":3},{"$f":"IF('INFORMATIONS COMPETITEURS'!$D$59=\"TABLEAU DE SAISIE CONFORME\",CONCATENATE('INFORMATIONS COMPETITEURS'!G11,\" \",'INFORMATIONS COMPETITEURS'!E11),\"\")","v":"Samuel CREPILLON"},null,null,{"$f":"IF('INFORMATIONS COMPETITEURS'!$D$59=\"TABLEAU DE SAISIE CONFORME\",IF('INFORMATIONS COMPETITEURS'!I11=\"\",\"\",'INFORMATIONS COMPETITEURS'!I11),\"\")","v":"GPS Nièvre Morvan"},null,null,40,40,40,null,null,{"$f":"IF('INFORMATIONS COMPETITEURS'!$D$59=\"TABLEAU DE SAISIE NON CONFORME\",\"\",IF(E12=\" \",N(0),IF(SUM(K12:O12)=0,N(0),SUM(K12:O12))))","v":120}]
[null,null,null,{"$f":"'INFORMATIONS COMPETITEURS'!D12","v":4},{"$f":"IF('INFORMATIONS COMPETITEURS'!$D$59=\"TABLEAU DE SAISIE CONFORME\",CONCATENATE('INFORMATIONS COMPETITEURS'!G12,\" \",'INFORMATIONS COMPETITEURS'!E12),\"\")","v":"Valentin BIBENT"},null,null,{"$f":"IF('INFORMATIONS COMPETITEURS'!$D$59=\"TABLEAU DE SAISIE CONFORME\",IF('INFORMATIONS COMPETITEURS'!I12=\"\",\"\",'INFORMATIONS COMPETITEURS'!I12),\"\")","v":"CML"},null,null,15,25,25,null,null,{"$f":"IF('INFORMATIONS COMPETITEURS'!$D$59=\"TABLEAU DE SAISIE NON CONFORME\",\"\",IF(E13=\" \",N(0),IF(SUM(K13:O13)=0,N(0),SUM(K13:O13))))","v":65}]
[null,null,null,{"$f":"'INFORMATIONS COMPETITEURS'!D13","v":5},{"$f":"IF('INFORMATIONS COMPETITEURS'!$D$59=\"TABLEAU DE SAISIE CONFORME\",CONCATENATE('INFORMATIONS COMPETITEURS'!G13,\" \",'INFORMATIONS COMPETITEURS'!E13),\"\")","v":"Nathalie ALBERGE"},null,null,{"$f":"IF('INFORMATIONS COMPETITEURS'!$D$59=\"TABLEAU DE SAISIE CONFORME\",IF('INFORMATIONS COMPETITEURS'!I13=\"\",\"\",'INFORMATIONS COMPETITEURS'!I13),\"\")","v":"CM Pays d'Oc"},null,null,62,60,60,null,null,{"$f":"IF('INFORMATIONS COMPETITEURS'!$D$59=\"TABLEAU DE SAISIE NON CONFORME\",\"\",IF(E14=\" \",N(0),IF(SUM(K14:O14)=0,N(0),SUM(K14:O14))))","v":182}]
[null,null,null,{"$f":"'INFORMATIONS COMPETITEURS'!D14","v":6},{"$f":"IF('INFORMATIONS COMPETITEURS'!$D$59=\"TABLEAU DE SAISIE CONFORME\",CONCATENATE('INFORMATIONS COMPETITEURS'!G14,\" \",'INFORMATIONS COMPETITEURS'!E14),\"\")","v":"Jean-Luc GAULON"},null,null,{"$f":"IF('INFORMATIONS COMPETITEURS'!$D$59=\"TABLEAU DE SAISIE CONFORME\",IF('INFORMATIONS COMPETITEURS'!I14=\"\",\"\",'INFORMATIONS COMPETITEURS'!I14),\"\")","v":"CMCRE"},null,null,34,40,38,null,null,{"$f":"IF('INFORMATIONS COMPETITEURS'!$D$59=\"TABLEAU DE SAISIE NON CONFORME\",\"\",IF(E15=\" \",N(0),IF(SUM(K15:O15)=0,N(0),SUM(K15:O15))))","v":112}]
[null,null,null,{"$f":"'INFORMATIONS COMPETITEURS'!D15","v":7},{"$f":"IF('INFORMATIONS COMPETITEURS'!$D$59=\"TABLEAU DE SAISIE CONFORME\",CONCATENATE('INFORMATIONS COMPETITEURS'!G15,\" \",'INFORMATIONS COMPETITEURS'!E15),\"\")","v":"Jérôme VILLE"},null,null,{"$f":"IF('INFORMATIONS COMPETITEURS'!$D$59=\"TABLEAU DE SAISIE CONFORME\",IF('INFORMATIONS COMPETITEURS'!I15=\"\",\"\",'INFORMATIONS COMPETITEURS'!I15),\"\")","v":"GPS Lyon Centre"},null,null,62,57,57,null,null,{"$f":"IF('INFORMATIONS COMPETITEURS'!$D$59=\"TABLEAU DE SAISIE NON CONFORME\",\"\",IF(E16=\" \",N(0),IF(SUM(K16:O16)=0,N(0),SUM(K16:O16))))","v":176}]
[null,null,null,{"$f":"'INFORMATIONS COMPETITEURS'!D16","v":8},{"$f":"IF('INFORMATIONS COMPETITEURS'!$D$59=\"TABLEAU DE SAISIE CONFORME\",CONCATENATE('INFORMATIONS COMPETITEURS'!G16,\" \",'INFORMATIONS COMPETITEURS'!E16),\"\")","v":"Edgard RICHARD"},null,null,{"$f":"IF('INFORMATIONS COMPETITEURS'!$D$59=\"TABLEAU DE SAISIE CONFORME\",IF('INFORMATIONS COMPETITEURS'!I16=\"\",\"\",'INFORMATIONS COMPETITEURS'!I16),\"\")","v":"Ecole de pêche Dijon"},null,null,30,35,30,null,null,{"$f":"IF('INFORMATIONS COMPETITEURS'!$D$59=\"TABLEAU DE SAISIE NON CONFORME\",\"\",IF(E17=\" \",N(0),IF(SUM(K17:O17)=0,N(0),SUM(K17:O17))))","v":95}]
[null,null,null,{"$f":"'INFORMATIONS COMPETITEURS'!D17","v":9},{"$f":"IF('INFORMATIONS COMPETITEURS'!$D$59=\"TABLEAU DE SAISIE CONFORME\",CONCATENATE('INFORMATIONS COMPETITEURS'!G17,\" \",'INFORMATIONS COMPETITEURS'!E17),\"\")","v":"Solène Le Bourhis  Beyer"},null,null,{"$f":"IF('INFORMATIONS COMPETITEURS'!$D$59=\"TABLEAU DE SAISIE CONFORME\",IF('INFORMATIONS COMPETITEURS'!I17=\"\",\"\",'INFORMATIONS COMPETITEURS'!I17),\"\")","v":"CM Arzano"},null,null,60,60,60,null,null,{"$f":"IF('INFORMATIONS COMPETITEURS'!$D$59=\"TABLEAU DE SAISIE NON CONFORME\",\"\",IF(E18=\" \",N(0),IF(SUM(K18:O18)=0,N(0),SUM(K18:O18))))","v":180}]
[null,null,null,{"$f":"'INFORMATIONS COMPETITEURS'!D18","v":10},{"$f":"IF('INFORMATIONS COMPETITEURS'!$D$59=\"TABLEAU DE SAISIE CONFORME\",CONCATENATE('INFORMATIONS COMPETITEURS'!G18,\" \",'INFORMATIONS COMPETITEURS'!E18),\"\")","v":"Guy MASSON"},null,null,{"$f":"IF('INFORMATIONS COMPETITEURS'!$D$59=\"TABLEAU DE SAISIE CONFORME\",IF('INFORMATIONS COMPETITEURS'!I18=\"\",\"\",'INFORMATIONS COMPETITEURS'!I18),\"\")","v":"GPS Lyon Centre"},null,null,83,85,82,null,null,{"$f":"IF('INFORMATIONS COMPETITEURS'!$D$59=\"TABLEAU DE SAISIE NON CONFORME\",\"\",IF(E19=\" \",N(0),IF(SUM(K19:O19)=0,N(0),SUM(K19:O19))))","v":250}]
[null,null,null,{"$f":"'INFORMATIONS COMPETITEURS'!D19","v":11},{"$f":"IF('INFORMATIONS COMPETITEURS'!$D$59=\"TABLEAU DE SAISIE CONFORME\",CONCATENATE('INFORMATIONS COMPETITEURS'!G19,\" \",'INFORMATIONS COMPETITEURS'!E19),\"\")","v":"Gerard COMMARET"},null,null,{"$f":"IF('INFORMATIONS COMPETITEURS'!$D$59=\"TABLEAU DE SAISIE CONFORME\",IF('INFORMATIONS COMPETITEURS'!I19=\"\",\"\",'INFORMATIONS COMPETITEURS'!I19),\"\")","v":"GPS Val de Saone"},null,null,19,32,28,null,null,{"$f":"IF('INFORMATIONS COMPETITEURS'!$D$59=\"TABLEAU DE SAISIE NON CONFORME\",\"\",IF(E20=\" \",N(0),IF(SUM(K20:O20)=0,N(0),SUM(K20:O20))))","v":79}]
[null,null,null,{"$f":"'INFORMATIONS COMPETITEURS'!D20","v":12},{"$f":"IF('INFORMATIONS COMPETITEURS'!$D$59=\"TABLEAU DE SAISIE CONFORME\",CONCATENATE('INFORMATIONS COMPETITEURS'!G20,\" \",'INFORMATIONS COMPETITEURS'!E20),\"\")","v":"Stéphane PONCET"},null,null,{"$f":"IF('INFORMATIONS COMPETITEURS'!$D$59=\"TABLEAU DE SAISIE CONFORME\",IF('INFORMATIONS COMPETITEURS'!I20=\"\",\"\",'INFORMATIONS COMPETITEURS'!I20),\"\")","v":"GPS Bresse Remiremont"},null,null,84,83,77,null,null,{"$f":"IF('INFORMATIONS COMPETITEURS'!$D$59=\"TABLEAU DE SAISIE NON CONFORME\",\"\",IF(E21=\" \",N(0),IF(SUM(K21:O21)=0,N(0),SUM(K21:O21))))","v":244}]
[null,null,null,{"$f":"'INFORMATIONS COMPETITEURS'!D21","v":13},{"$f":"IF('INFORMATIONS COMPETITEURS'!$D$59=\"TABLEAU DE SAISIE CONFORME\",CONCATENATE('INFORMATIONS COMPETITEURS'!G21,\" \",'INFORMATIONS COMPETITEURS'!E21),\"\")","v":"Didier CHETAUD"},null,null,{"$f":"IF('INFORMATIONS COMPETITEURS'!$D$59=\"TABLEAU DE SAISIE CONFORME\",IF('INFORMATIONS COMPETITEURS'!I21=\"\",\"\",'INFORMATIONS COMPETITEURS'!I21),\"\")","v":"GPS Val de Saone"},null,null,81,82,85,null,null,{"$f":"IF('INFORMATIONS COMPETITEURS'!$D$59=\"TABLEAU DE SAISIE NON CONFORME\",\"\",IF(E22=\" \",N(0),IF(SUM(K22:O22)=0,N(0),SUM(K22:O22))))","v":248}]
[null,null,null,{"$f":"'INFORMATIONS COMPETITEURS'!D22","v":14},{"$f":"IF('INFORMATIONS COMPETITEURS'!$D$59=\"TABLEAU DE SAISIE CONFORME\",CONCATENATE('INFORMATIONS COMPETITEURS'!G22,\" \",'INFORMATIONS COMPETITEURS'!E22),\"\")","v":"Eric GIAMPRETI"},null,null,{"$f":"IF('INFORMATIONS COMPETITEURS'!$D$59=\"TABLEAU DE SAISIE CONFORME\",IF('INFORMATIONS COMPETITEURS'!I22=\"\",\"\",'INFORMATIONS COMPETITEURS'!I22),\"\")","v":"GPS Lyon Centre"},null,null,71,71,70,null,null,{"$f":"IF('INFORMATIONS COMPETITEURS'!$D$59=\"TABLEAU DE SAISIE NON CONFORME\",\"\",IF(E23=\" \",N(0),IF(SUM(K23:O23)=0,N(0),SUM(K23:O23))))","v":212}]
[null,null,null,{"$f":"'INFORMATIONS COMPETITEURS'!D23","v":15},{"$f":"IF('INFORMATIONS COMPETITEURS'!$D$59=\"TABLEAU DE SAISIE CONFORME\",CONCATENATE('INFORMATIONS COMPETITEURS'!G23,\" \",'INFORMATIONS COMPETITEURS'!E23),\"\")","v":"Frédéric EVENNOU"},null,null,{"$f":"IF('INFORMATIONS COMPETITEURS'!$D$59=\"TABLEAU DE SAISIE CONFORME\",IF('INFORMATIONS COMPETITEURS'!I23=\"\",\"\",'INFORMATIONS COMPETITEURS'!I23),\"\")","v":"GPS Lyon Centre"},null,null,47,48,44,null,null,{"$f":"IF('INFORMATIONS COMPETITEURS'!$D$59=\"TABLEAU DE SAISIE NON CONFORME\",\"\",IF(E24=\" \",N(0),IF(SUM(K24:O24)=0,N(0),SUM(K24:O24))))","v":139}]
[null,null,null,{"$f":"'INFORMATIONS COMPETITEURS'!D24","v":16},{"$f":"IF('INFORMATIONS COMPETITEURS'!$D$59=\"TABLEAU DE SAISIE CONFORME\",CONCATENATE('INFORMATIONS COMPETITEURS'!G24,\" \",'INFORMATIONS COMPETITEURS'!E24),\"\")","v":"Bernard FAIVRE"},null,null,{"$f":"IF('INFORMATIONS COMPETITEURS'!$D$59=\"TABLEAU DE SAISIE CONFORME\",IF('INFORMATIONS COMPETITEURS'!I24=\"\",\"\",'INFORMATIONS COMPETITEURS'!I24),\"\")","v":"GPS Pays d'Oc"},null,null,78,75,77,null,null,{"$f":"IF('INFORMATIONS COMPETITEURS'!$D$59=\"TABLEAU DE SAISIE NON CONFORME\",\"\",IF(E25=\" \",N(0),IF(SUM(K25:O25)=0,N(0),SUM(K25:O25))))","v":230}]
[null,null,null,{"$f":"'INFORMATIONS COMPETITEURS'!D25","v":17},{"$f":"IF('INFORMATIONS COMPETITEURS'!$D$59=\"TABLEAU DE SAISIE CONFORME\",CONCATENATE('INFORMATIONS COMPETITEURS'!G25,\" \",'INFORMATIONS COMPETITEURS'!E25),\"\")","v":"Bernard Rémi"},null,null,{"$f":"IF('INFORMATIONS COMPETITEURS'!$D$59=\"TABLEAU DE SAISIE CONFORME\",IF('INFORMATIONS COMPETITEURS'!I25=\"\",\"\",'INFORMATIONS COMPETITEURS'!I25),\"\")","v":"Ecole de pêche Dijon"},null,null,0,0,0,null,null,{"$f":"IF('INFORMATIONS COMPETITEURS'!$D$59=\"TABLEAU DE SAISIE NON CONFORME\",\"\",IF(E26=\" \",N(0),IF(SUM(K26:O26)=0,N(0),SUM(K26:O26))))","v":0}]
[null,null,null,{"$f":"'INFORMATIONS COMPETITEURS'!D26","v":18},{"$f":"IF('INFORMATIONS COMPETITEURS'!$D$59=\"TABLEAU DE SAISIE CONFORME\",CONCATENATE('INFORMATIONS COMPETITEURS'!G26,\" \",'INFORMATIONS COMPETITEURS'!E26),\"\")","v":"Denis FAUVELLIERE"},null,null,{"$f":"IF('INFORMATIONS COMPETITEURS'!$D$59=\"TABLEAU DE SAISIE CONFORME\",IF('INFORMATIONS COMPETITEURS'!I26=\"\",\"\",'INFORMATIONS COMPETITEURS'!I26),\"\")","v":"CM Plaisir"},null,null,41,42,41,null,null,{"$f":"IF('INFORMATIONS COMPETITEURS'!$D$59=\"TABLEAU DE SAISIE NON CONFORME\",\"\",IF(E27=\" \",N(0),IF(SUM(K27:O27)=0,N(0),SUM(K27:O27))))","v":124}]
[null,null,null,{"$f":"'INFORMATIONS COMPETITEURS'!D27","v":19},{"$f":"IF('INFORMATIONS COMPETITEURS'!$D$59=\"TABLEAU DE SAISIE CONFORME\",CONCATENATE('INFORMATIONS COMPETITEURS'!G27,\" \",'INFORMATIONS COMPETITEURS'!E27),\"\")","v":"Lionel GOMINET"},null,null,{"$f":"IF('INFORMATIONS COMPETITEURS'!$D$59=\"TABLEAU DE SAISIE CONFORME\",IF('INFORMATIONS COMPETITEURS'!I27=\"\",\"\",'INFORMATIONS COMPETITEURS'!I27),\"\")","v":"GPS Pays d'Oc"},null,null,60,50,51,null,null,{"$f":"IF('INFORMATIONS COMPETITEURS'!$D$59=\"TABLEAU DE SAISIE NON CONFORME\",\"\",IF(E28=\" \",N(0),IF(SUM(K28:O28)=0,N(0),SUM(K28:O28))))","v":161}]
[null,null,null,{"$f":"'INFORMATIONS COMPETITEURS'!D28","v":20},{"$f":"IF('INFORMATIONS COMPETITEURS'!$D$59=\"TABLEAU DE SAISIE CONFORME\",CONCATENATE('INFORMATIONS COMPETITEURS'!G28,\" \",'INFORMATIONS COMPETITEURS'!E28),\"\")","v":"HAMZA MAACH"},null,null,{"$f":"IF('INFORMATIONS COMPETITEURS'!$D$59=\"TABLEAU DE SAISIE CONFORME\",IF('INFORMATIONS COMPETITEURS'!I28=\"\",\"\",'INFORMATIONS COMPETITEURS'!I28),\"\")","v":"Ecole de pêche Dijon"},null,null,32,30,30,null,null,{"$f":"IF('INFORMATIONS COMPETITEURS'!$D$59=\"TABLEAU DE SAISIE NON CONFORME\",\"\",IF(E29=\" \",N(0),IF(SUM(K29:O29)=0,N(0),SUM(K29:O29))))","v":92}]
[null,null,null,{"$f":"'INFORMATIONS COMPETITEURS'!D29","v":21},{"$f":"IF('INFORMATIONS COMPETITEURS'!$D$59=\"TABLEAU DE SAISIE CONFORME\",CONCATENATE('INFORMATIONS COMPETITEURS'!G29,\" \",'INFORMATIONS COMPETITEURS'!E29),\"\")","v":"Dimitri DEZOTHEZ"},null,null,{"$f":"IF('INFORMATIONS COMPETITEURS'!$D$59=\"TABLEAU DE SAISIE CONFORME\",IF('INFORMATIONS COMPETITEURS'!I29=\"\",\"\",'INFORMATIONS COMPETITEURS'!I29),\"\")","v":"Club Mouche du gévaudan"},null,null,87,87,88,null,null,{"$f":"IF('INFORMATIONS COMPETITEURS'!$D$59=\"TABLEAU DE SAISIE NON CONFORME\",\"\",IF(E30=\" \",N(0),IF(SUM(K30:O30)=0,N(0),SUM(K30:O30))))","v":262}]
[null,null,null,{"$f":"'INFORMATIONS COMPETITEURS'!D30","v":22},{"$f":"IF('INFORMATIONS COMPETITEURS'!$D$59=\"TABLEAU DE SAISIE CONFORME\",CONCATENATE('INFORMATIONS COMPETITEURS'!G30,\" \",'INFORMATIONS COMPETITEURS'!E30),\"\")","v":"Dominique BRULEY"},null,null,{"$f":"IF('INFORMATIONS COMPETITEURS'!$D$59=\"TABLEAU DE SAISIE CONFORME\",IF('INFORMATIONS COMPETITEURS'!I30=\"\",\"\",'INFORMATIONS COMPETITEURS'!I30),\"\")","v":"GPS Val de Saone"},null,null,92,90,94,null,null,{"$f":"IF('INFORMATIONS COMPETITEURS'!$D$59=\"TABLEAU DE SAISIE NON CONFORME\",\"\",IF(E31=\" \",N(0),IF(SUM(K31:O31)=0,N(0),SUM(K31:O31))))","v":276}]
[null,null,null,{"$f":"'INFORMATIONS COMPETITEURS'!D31","v":23},{"$f":"IF('INFORMATIONS COMPETITEURS'!$D$59=\"TABLEAU DE SAISIE CONFORME\",CONCATENATE('INFORMATIONS COMPETITEURS'!G31,\" \",'INFORMATIONS COMPETITEURS'!E31),\"\")","v":"Christophe MARTIN"},null,null,{"$f":"IF('INFORMATIONS COMPETITEURS'!$D$59=\"TABLEAU DE SAISIE CONFORME\",IF('INFORMATIONS COMPETITEURS'!I31=\"\",\"\",'INFORMATIONS COMPETITEURS'!I31),\"\")","v":"CM Plaisir"},null,null,52,49,48,null,null,{"$f":"IF('INFORMATIONS COMPETITEURS'!$D$59=\"TABLEAU DE SAISIE NON CONFORME\",\"\",IF(E32=\" \",N(0),IF(SUM(K32:O32)=0,N(0),SUM(K32:O32))))","v":149}]
[null,null,null,{"$f":"'INFORMATIONS COMPETITEURS'!D32","v":24},{"$f":"IF('INFORMATIONS COMPETITEURS'!$D$59=\"TABLEAU DE SAISIE CONFORME\",CONCATENATE('INFORMATIONS COMPETITEURS'!G32,\" \",'INFORMATIONS COMPETITEURS'!E32),\"\")","v":"Gérard VILLA"},null,null,{"$f":"IF('INFORMATIONS COMPETITEURS'!$D$59=\"TABLEAU DE SAISIE CONFORME\",IF('INFORMATIONS COMPETITEURS'!I32=\"\",\"\",'INFORMATIONS COMPETITEURS'!I32),\"\")","v":"GPS Pays d'Oc"},null,null,76,77,76,null,null,{"$f":"IF('INFORMATIONS COMPETITEURS'!$D$59=\"TABLEAU DE SAISIE NON CONFORME\",\"\",IF(E33=\" \",N(0),IF(SUM(K33:O33)=0,N(0),SUM(K33:O33))))","v":229}]
[null,null,null,{"$f":"'INFORMATIONS COMPETITEURS'!D33","v":25},{"$f":"IF('INFORMATIONS COMPETITEURS'!$D$59=\"TABLEAU DE SAISIE CONFORME\",CONCATENATE('INFORMATIONS COMPETITEURS'!G33,\" \",'INFORMATIONS COMPETITEURS'!E33),\"\")","v":"patrick JACQUOT"},null,null,{"$f":"IF('INFORMATIONS COMPETITEURS'!$D$59=\"TABLEAU DE SAISIE CONFORME\",IF('INFORMATIONS COMPETITEURS'!I33=\"\",\"\",'INFORMATIONS COMPETITEURS'!I33),\"\")","v":"GPS Val de Saone"},null,null,50,45,48,null,null,{"$f":"IF('INFORMATIONS COMPETITEURS'!$D$59=\"TABLEAU DE SAISIE NON CONFORME\",\"\",IF(E34=\" \",N(0),IF(SUM(K34:O34)=0,N(0),SUM(K34:O34))))","v":143}]
[null,null,null,{"$f":"'INFORMATIONS COMPETITEURS'!D34","v":26},{"$f":"IF('INFORMATIONS COMPETITEURS'!$D$59=\"TABLEAU DE SAISIE CONFORME\",CONCATENATE('INFORMATIONS COMPETITEURS'!G34,\" \",'INFORMATIONS COMPETITEURS'!E34),\"\")","v":"Henri CALAVIA"},null,null,{"$f":"IF('INFORMATIONS COMPETITEURS'!$D$59=\"TABLEAU DE SAISIE CONFORME\",IF('INFORMATIONS COMPETITEURS'!I34=\"\",\"\",'INFORMATIONS COMPETITEURS'!I34),\"\")","v":"CMCRE"},null,null,95,95,95,null,null,{"$f":"IF('INFORMATIONS COMPETITEURS'!$D$59=\"TABLEAU DE SAISIE NON CONFORME\",\"\",IF(E35=\" \",N(0),IF(SUM(K35:O35)=0,N(0),SUM(K35:O35))))","v":285}]
[null,null,null,{"$f":"'INFORMATIONS COMPETITEURS'!D35","v":27},{"$f":"IF('INFORMATIONS COMPETITEURS'!$D$59=\"TABLEAU DE SAISIE CONFORME\",CONCATENATE('INFORMATIONS COMPETITEURS'!G35,\" \",'INFORMATIONS COMPETITEURS'!E35),\"\")","v":"Batiste JEANIN"},null,null,{"$f":"IF('INFORMATIONS COMPETITEURS'!$D$59=\"TABLEAU DE SAISIE CONFORME\",IF('INFORMATIONS COMPETITEURS'!I35=\"\",\"\",'INFORMATIONS COMPETITEURS'!I35),\"\")","v":"Ecole de pêche Dijon"},null,null,39,38,38,null,null,{"$f":"IF('INFORMATIONS COMPETITEURS'!$D$59=\"TABLEAU DE SAISIE NON CONFORME\",\"\",IF(E36=\" \",N(0),IF(SUM(K36:O36)=0,N(0),SUM(K36:O36))))","v":115}]
[null,null,null,{"$f":"'INFORMATIONS COMPETITEURS'!D36","v":28},{"$f":"IF('INFORMATIONS COMPETITEURS'!$D$59=\"TABLEAU DE SAISIE CONFORME\",CONCATENATE('INFORMATIONS COMPETITEURS'!G36,\" \",'INFORMATIONS COMPETITEURS'!E36),\"\")","v":"Règis CAZARETH"},null,null,{"$f":"IF('INFORMATIONS COMPETITEURS'!$D$59=\"TABLEAU DE SAISIE CONFORME\",IF('INFORMATIONS COMPETITEURS'!I36=\"\",\"\",'INFORMATIONS COMPETITEURS'!I36),\"\")","v":"GPS Décines"},null,null,33,40,41,null,null,{"$f":"IF('INFORMATIONS COMPETITEURS'!$D$59=\"TABLEAU DE SAISIE NON CONFORME\",\"\",IF(E37=\" \",N(0),IF(SUM(K37:O37)=0,N(0),SUM(K37:O37))))","v":114}]
[null,null,null,{"$f":"'INFORMATIONS COMPETITEURS'!D37","v":29},{"$f":"IF('INFORMATIONS COMPETITEURS'!$D$59=\"TABLEAU DE SAISIE CONFORME\",CONCATENATE('INFORMATIONS COMPETITEURS'!G37,\" \",'INFORMATIONS COMPETITEURS'!E37),\"\")","v":"BOUAFFIA DENIL"},null,null,{"$f":"IF('INFORMATIONS COMPETITEURS'!$D$59=\"TABLEAU DE SAISIE CONFORME\",IF('INFORMATIONS COMPETITEURS'!I37=\"\",\"\",'INFORMATIONS COMPETITEURS'!I37),\"\")","v":"GPS"},null,null,0,0,0,null,null,{"$f":"IF('INFORMATIONS COMPETITEURS'!$D$59=\"TABLEAU DE SAISIE NON CONFORME\",\"\",IF(E38=\" \",N(0),IF(SUM(K38:O38)=0,N(0),SUM(K38:O38))))","v":0}]
[null,null,null,{"$f":"'INFORMATIONS COMPETITEURS'!D38","v":30},{"$f":"IF('INFORMATIONS COMPETITEURS'!$D$59=\"TABLEAU DE SAISIE CONFORME\",CONCATENATE('INFORMATIONS COMPETITEURS'!G38,\" \",'INFORMATIONS COMPETITEURS'!E38),\"\")","v":" "},null,null,{"$f":"IF('INFORMATIONS COMPETITEURS'!$D$59=\"TABLEAU DE SAISIE CONFORME\",IF('INFORMATIONS COMPETITEURS'!I38=\"\",\"\",'INFORMATIONS COMPETITEURS'!I38),\"\")","v":""},null,null,null,null,null,null,null,{"$f":"IF('INFORMATIONS COMPETITEURS'!$D$59=\"TABLEAU DE SAISIE NON CONFORME\",\"\",IF(E39=\" \",N(0),IF(SUM(K39:O39)=0,N(0),SUM(K39:O39))))","v":0}]
[null,null,null,{"$f":"'INFORMATIONS COMPETITEURS'!D39","v":31},{"$f":"IF('INFORMATIONS COMPETITEURS'!$D$59=\"TABLEAU DE SAISIE CONFORME\",CONCATENATE('INFORMATIONS COMPETITEURS'!G39,\" \",'INFORMATIONS COMPETITEURS'!E39),\"\")","v":" "},null,null,{"$f":"IF('INFORMATIONS COMPETITEURS'!$D$59=\"TABLEAU DE SAISIE CONFORME\",IF('INFORMATIONS COMPETITEURS'!I39=\"\",\"\",'INFORMATIONS COMPETITEURS'!I39),\"\")","v":""},null,null,null,null,null,null,null,{"$f":"IF('INFORMATIONS COMPETITEURS'!$D$59=\"TABLEAU DE SAISIE NON CONFORME\",\"\",IF(E40=\" \",N(0),IF(SUM(K40:O40)=0,N(0),SUM(K40:O40))))","v":0}]
[null,null,null,{"$f":"'INFORMATIONS COMPETITEURS'!D40","v":32},{"$f":"IF('INFORMATIONS COMPETITEURS'!$D$59=\"TABLEAU DE SAISIE CONFORME\",CONCATENATE('INFORMATIONS COMPETITEURS'!G40,\" \",'INFORMATIONS COMPETITEURS'!E40),\"\")","v":" "},null,null,{"$f":"IF('INFORMATIONS COMPETITEURS'!$D$59=\"TABLEAU DE SAISIE CONFORME\",IF('INFORMATIONS COMPETITEURS'!I40=\"\",\"\",'INFORMATIONS COMPETITEURS'!I40),\"\")","v":""},null,null,null,null,null,null,null,{"$f":"IF('INFORMATIONS COMPETITEURS'!$D$59=\"TABLEAU DE SAISIE NON CONFORME\",\"\",IF(E41=\" \",N(0),IF(SUM(K41:O41)=0,N(0),SUM(K41:O41))))","v":0}]
[null,null,null,{"$f":"'INFORMATIONS COMPETITEURS'!D41","v":33},{"$f":"IF('INFORMATIONS COMPETITEURS'!$D$59=\"TABLEAU DE SAISIE CONFORME\",CONCATENATE('INFORMATIONS COMPETITEURS'!G41,\" \",'INFORMATIONS COMPETITEURS'!E41),\"\")","v":" "},null,null,{"$f":"IF('INFORMATIONS COMPETITEURS'!$D$59=\"TABLEAU DE SAISIE CONFORME\",IF('INFORMATIONS COMPETITEURS'!I41=\"\",\"\",'INFORMATIONS COMPETITEURS'!I41),\"\")","v":""},null,null,null,null,null,null,null,{"$f":"IF('INFORMATIONS COMPETITEURS'!$D$59=\"TABLEAU DE SAISIE NON CONFORME\",\"\",IF(E42=\" \",N(0),IF(SUM(K42:O42)=0,N(0),SUM(K42:O42))))","v":0}]
[null,null,null,{"$f":"'INFORMATIONS COMPETITEURS'!D42","v":34},{"$f":"IF('INFORMATIONS COMPETITEURS'!$D$59=\"TABLEAU DE SAISIE CONFORME\",CONCATENATE('INFORMATIONS COMPETITEURS'!G42,\" \",'INFORMATIONS COMPETITEURS'!E42),\"\")","v":" "},null,null,{"$f":"IF('INFORMATIONS COMPETITEURS'!$D$59=\"TABLEAU DE SAISIE CONFORME\",IF('INFORMATIONS COMPETITEURS'!I42=\"\",\"\",'INFORMATIONS COMPETITEURS'!I42),\"\")","v":""},null,null,null,null,null,null,null,{"$f":"IF('INFORMATIONS COMPETITEURS'!$D$59=\"TABLEAU DE SAISIE NON CONFORME\",\"\",IF(E43=\" \",N(0),IF(SUM(K43:O43)=0,N(0),SUM(K43:O43))))","v":0}]
[null,null,null,{"$f":"'INFORMATIONS COMPETITEURS'!D43","v":35},{"$f":"IF('INFORMATIONS COMPETITEURS'!$D$59=\"TABLEAU DE SAISIE CONFORME\",CONCATENATE('INFORMATIONS COMPETITEURS'!G43,\" \",'INFORMATIONS COMPETITEURS'!E43),\"\")","v":" "},null,null,{"$f":"IF('INFORMATIONS COMPETITEURS'!$D$59=\"TABLEAU DE SAISIE CONFORME\",IF('INFORMATIONS COMPETITEURS'!I43=\"\",\"\",'INFORMATIONS COMPETITEURS'!I43),\"\")","v":""},null,null,null,null,null,null,null,{"$f":"IF('INFORMATIONS COMPETITEURS'!$D$59=\"TABLEAU DE SAISIE NON CONFORME\",\"\",IF(E44=\" \",N(0),IF(SUM(K44:O44)=0,N(0),SUM(K44:O44))))","v":0}]
[null,null,null,{"$f":"'INFORMATIONS COMPETITEURS'!D44","v":36},{"$f":"IF('INFORMATIONS COMPETITEURS'!$D$59=\"TABLEAU DE SAISIE CONFORME\",CONCATENATE('INFORMATIONS COMPETITEURS'!G44,\" \",'INFORMATIONS COMPETITEURS'!E44),\"\")","v":" "},null,null,{"$f":"IF('INFORMATIONS COMPETITEURS'!$D$59=\"TABLEAU DE SAISIE CONFORME\",IF('INFORMATIONS COMPETITEURS'!I44=\"\",\"\",'INFORMATIONS COMPETITEURS'!I44),\"\")","v":""},null,null,null,null,null,null,null,{"$f":"IF('INFORMATIONS COMPETITEURS'!$D$59=\"TABLEAU DE SAISIE NON CONFORME\",\"\",IF(E45=\" \",N(0),IF(SUM(K45:O45)=0,N(0),SUM(K45:O45))))","v":0}]
[null,null,null,{"$f":"'INFORMATIONS COMPETITEURS'!D45","v":37},{"$f":"IF('INFORMATIONS COMPETITEURS'!$D$59=\"TABLEAU DE SAISIE CONFORME\",CONCATENATE('INFORMATIONS COMPETITEURS'!G45,\" \",'INFORMATIONS COMPETITEURS'!E45),\"\")","v":" "},null,null,{"$f":"IF('INFORMATIONS COMPETITEURS'!$D$59=\"TABLEAU DE SAISIE CONFORME\",IF('INFORMATIONS COMPETITEURS'!I45=\"\",\"\",'INFORMATIONS COMPETITEURS'!I45),\"\")","v":""},null,null,null,null,null,null,null,{"$f":"IF('INFORMATIONS COMPETITEURS'!$D$59=\"TABLEAU DE SAISIE NON CONFORME\",\"\",IF(E46=\" \",N(0),IF(SUM(K46:O46)=0,N(0),SUM(K46:O46))))","v":0}]
[null,null,null,{"$f":"'INFORMATIONS COMPETITEURS'!D46","v":38},{"$f":"IF('INFORMATIONS COMPETITEURS'!$D$59=\"TABLEAU DE SAISIE CONFORME\",CONCATENATE('INFORMATIONS COMPETITEURS'!G46,\" \",'INFORMATIONS COMPETITEURS'!E46),\"\")","v":" "},null,null,{"$f":"IF('INFORMATIONS COMPETITEURS'!$D$59=\"TABLEAU DE SAISIE CONFORME\",IF('INFORMATIONS COMPETITEURS'!I46=\"\",\"\",'INFORMATIONS COMPETITEURS'!I46),\"\")","v":""},null,null,null,null,null,null,null,{"$f":"IF('INFORMATIONS COMPETITEURS'!$D$59=\"TABLEAU DE SAISIE NON CONFORME\",\"\",IF(E47=\" \",N(0),IF(SUM(K47:O47)=0,N(0),SUM(K47:O47))))","v":0}]
[null,null,null,{"$f":"'INFORMATIONS COMPETITEURS'!D47","v":39},{"$f":"IF('INFORMATIONS COMPETITEURS'!$D$59=\"TABLEAU DE SAISIE CONFORME\",CONCATENATE('INFORMATIONS COMPETITEURS'!G47,\" \",'INFORMATIONS COMPETITEURS'!E47),\"\")","v":" "},null,null,{"$f":"IF('INFORMATIONS COMPETITEURS'!$D$59=\"TABLEAU DE SAISIE CONFORME\",IF('INFORMATIONS COMPETITEURS'!I47=\"\",\"\",'INFORMATIONS COMPETITEURS'!I47),\"\")","v":""},null,null,null,null,null,null,null,{"$f":"IF('INFORMATIONS COMPETITEURS'!$D$59=\"TABLEAU DE SAISIE NON CONFORME\",\"\",IF(E48=\" \",N(0),IF(SUM(K48:O48)=0,N(0),SUM(K48:O48))))","v":0}]
[null,null,null,{"$f":"'INFORMATIONS COMPETITEURS'!D48","v":40},{"$f":"IF('INFORMATIONS COMPETITEURS'!$D$59=\"TABLEAU DE SAISIE CONFORME\",CONCATENATE('INFORMATIONS COMPETITEURS'!G48,\" \",'INFORMATIONS COMPETITEURS'!E48),\"\")","v":" "},null,null,{"$f":"IF('INFORMATIONS COMPETITEURS'!$D$59=\"TABLEAU DE SAISIE CONFORME\",IF('INFORMATIONS COMPETITEURS'!I48=\"\",\"\",'INFORMATIONS COMPETITEURS'!I48),\"\")","v":""},null,null,null,null,null,null,null,{"$f":"IF('INFORMATIONS COMPETITEURS'!$D$59=\"TABLEAU DE SAISIE NON CONFORME\",\"\",IF(E49=\" \",N(0),IF(SUM(K49:O49)=0,N(0),SUM(K49:O49))))","v":0}]
[null,null,null,{"$f":"'INFORMATIONS COMPETITEURS'!D49","v":41},{"$f":"IF('INFORMATIONS COMPETITEURS'!$D$59=\"TABLEAU DE SAISIE CONFORME\",CONCATENATE('INFORMATIONS COMPETITEURS'!G49,\" \",'INFORMATIONS COMPETITEURS'!E49),\"\")","v":" "},null,null,{"$f":"IF('INFORMATIONS COMPETITEURS'!$D$59=\"TABLEAU DE SAISIE CONFORME\",IF('INFORMATIONS COMPETITEURS'!I49=\"\",\"\",'INFORMATIONS COMPETITEURS'!I49),\"\")","v":""},null,null,null,null,null,null,null,{"$f":"IF('INFORMATIONS COMPETITEURS'!$D$59=\"TABLEAU DE SAISIE NON CONFORME\",\"\",IF(E50=\" \",N(0),IF(SUM(K50:O50)=0,N(0),SUM(K50:O50))))","v":0}]
[null,null,null,{"$f":"'INFORMATIONS COMPETITEURS'!D50","v":42},{"$f":"IF('INFORMATIONS COMPETITEURS'!$D$59=\"TABLEAU DE SAISIE CONFORME\",CONCATENATE('INFORMATIONS COMPETITEURS'!G50,\" \",'INFORMATIONS COMPETITEURS'!E50),\"\")","v":" "},null,null,{"$f":"IF('INFORMATIONS COMPETITEURS'!$D$59=\"TABLEAU DE SAISIE CONFORME\",IF('INFORMATIONS COMPETITEURS'!I50=\"\",\"\",'INFORMATIONS COMPETITEURS'!I50),\"\")","v":""},null,null,null,null,null,null,null,{"$f":"IF('INFORMATIONS COMPETITEURS'!$D$59=\"TABLEAU DE SAISIE NON CONFORME\",\"\",IF(E51=\" \",N(0),IF(SUM(K51:O51)=0,N(0),SUM(K51:O51))))","v":0}]
[null,null,null,{"$f":"'INFORMATIONS COMPETITEURS'!D51","v":43},{"$f":"IF('INFORMATIONS COMPETITEURS'!$D$59=\"TABLEAU DE SAISIE CONFORME\",CONCATENATE('INFORMATIONS COMPETITEURS'!G51,\" \",'INFORMATIONS COMPETITEURS'!E51),\"\")","v":" "},null,null,{"$f":"IF('INFORMATIONS COMPETITEURS'!$D$59=\"TABLEAU DE SAISIE CONFORME\",IF('INFORMATIONS COMPETITEURS'!I51=\"\",\"\",'INFORMATIONS COMPETITEURS'!I51),\"\")","v":""},null,null,null,null,null,null,null,{"$f":"IF('INFORMATIONS COMPETITEURS'!$D$59=\"TABLEAU DE SAISIE NON CONFORME\",\"\",IF(E52=\" \",N(0),IF(SUM(K52:O52)=0,N(0),SUM(K52:O52))))","v":0}]
[null,null,null,{"$f":"'INFORMATIONS COMPETITEURS'!D52","v":44},{"$f":"IF('INFORMATIONS COMPETITEURS'!$D$59=\"TABLEAU DE SAISIE CONFORME\",CONCATENATE('INFORMATIONS COMPETITEURS'!G52,\" \",'INFORMATIONS COMPETITEURS'!E52),\"\")","v":" "},null,null,{"$f":"IF('INFORMATIONS COMPETITEURS'!$D$59=\"TABLEAU DE SAISIE CONFORME\",IF('INFORMATIONS COMPETITEURS'!I52=\"\",\"\",'INFORMATIONS COMPETITEURS'!I52),\"\")","v":""},null,null,null,null,null,null,null,{"$f":"IF('INFORMATIONS COMPETITEURS'!$D$59=\"TABLEAU DE SAISIE NON CONFORME\",\"\",IF(E53=\" \",N(0),IF(SUM(K53:O53)=0,N(0),SUM(K53:O53))))","v":0}]
[null,null,null,{"$f":"'INFORMATIONS COMPETITEURS'!D53","v":45},{"$f":"IF('INFORMATIONS COMPETITEURS'!$D$59=\"TABLEAU DE SAISIE CONFORME\",CONCATENATE('INFORMATIONS COMPETITEURS'!G53,\" \",'INFORMATIONS COMPETITEURS'!E53),\"\")","v":" "},null,null,{"$f":"IF('INFORMATIONS COMPETITEURS'!$D$59=\"TABLEAU DE SAISIE CONFORME\",IF('INFORMATIONS COMPETITEURS'!I53=\"\",\"\",'INFORMATIONS COMPETITEURS'!I53),\"\")","v":""},null,null,null,null,null,null,null,{"$f":"IF('INFORMATIONS COMPETITEURS'!$D$59=\"TABLEAU DE SAISIE NON CONFORME\",\"\",IF(E54=\" \",N(0),IF(SUM(K54:O54)=0,N(0),SUM(K54:O54))))","v":0}]
[null,null,null,{"$f":"'INFORMATIONS COMPETITEURS'!D54","v":46},{"$f":"IF('INFORMATIONS COMPETITEURS'!$D$59=\"TABLEAU DE SAISIE CONFORME\",CONCATENATE('INFORMATIONS COMPETITEURS'!G54,\" \",'INFORMATIONS COMPETITEURS'!E54),\"\")","v":" "},null,null,{"$f":"IF('INFORMATIONS COMPETITEURS'!$D$59=\"TABLEAU DE SAISIE CONFORME\",IF('INFORMATIONS COMPETITEURS'!I54=\"\",\"\",'INFORMATIONS COMPETITEURS'!I54),\"\")","v":""},null,null,null,null,null,null,null,{"$f":"IF('INFORMATIONS COMPETITEURS'!$D$59=\"TABLEAU DE SAISIE NON CONFORME\",\"\",IF(E55=\" \",N(0),IF(SUM(K55:O55)=0,N(0),SUM(K55:O55))))","v":0}]
[null,null,null,{"$f":"'INFORMATIONS COMPETITEURS'!D55","v":47},{"$f":"IF('INFORMATIONS COMPETITEURS'!$D$59=\"TABLEAU DE SAISIE CONFORME\",CONCATENATE('INFORMATIONS COMPETITEURS'!G55,\" \",'INFORMATIONS COMPETITEURS'!E55),\"\")","v":" "},null,null,{"$f":"IF('INFORMATIONS COMPETITEURS'!$D$59=\"TABLEAU DE SAISIE CONFORME\",IF('INFORMATIONS COMPETITEURS'!I55=\"\",\"\",'INFORMATIONS COMPETITEURS'!I55),\"\")","v":""},null,null,null,null,null,null,null,{"$f":"IF('INFORMATIONS COMPETITEURS'!$D$59=\"TABLEAU DE SAISIE NON CONFORME\",\"\",IF(E56=\" \",N(0),IF(SUM(K56:O56)=0,N(0),SUM(K56:O56))))","v":0}]
[null,null,null,{"$f":"'INFORMATIONS COMPETITEURS'!D56","v":48},{"$f":"IF('INFORMATIONS COMPETITEURS'!$D$59=\"TABLEAU DE SAISIE CONFORME\",CONCATENATE('INFORMATIONS COMPETITEURS'!G56,\" \",'INFORMATIONS COMPETITEURS'!E56),\"\")","v":" "},null,null,{"$f":"IF('INFORMATIONS COMPETITEURS'!$D$59=\"TABLEAU DE SAISIE CONFORME\",IF('INFORMATIONS COMPETITEURS'!I56=\"\",\"\",'INFORMATIONS COMPETITEURS'!I56),\"\")","v":""},null,null,null,null,null,null,null,{"$f":"IF('INFORMATIONS COMPETITEURS'!$D$59=\"TABLEAU DE SAISIE NON CONFORME\",\"\",IF(E57=\" \",N(0),IF(SUM(K57:O57)=0,N(0),SUM(K57:O57))))","v":0}]
[null,null,null,{"$f":"'INFORMATIONS COMPETITEURS'!D57","v":49},{"$f":"IF('INFORMATIONS COMPETITEURS'!$D$59=\"TABLEAU DE SAISIE CONFORME\",CONCATENATE('INFORMATIONS COMPETITEURS'!G57,\" \",'INFORMATIONS COMPETITEURS'!E57),\"\")","v":" "},null,null,{"$f":"IF('INFORMATIONS COMPETITEURS'!$D$59=\"TABLEAU DE SAISIE CONFORME\",IF('INFORMATIONS COMPETITEURS'!I57=\"\",\"\",'INFORMATIONS COMPETITEURS'!I57),\"\")","v":""},null,null,null,null,null,null,null,{"$f":"IF('INFORMATIONS COMPETITEURS'!$D$59=\"TABLEAU DE SAISIE NON CONFORME\",\"\",IF(E58=\" \",N(0),IF(SUM(K58:O58)=0,N(0),SUM(K58:O58))))","v":0}]
[null,null,null,{"$f":"'INFORMATIONS COMPETITEURS'!D58","v":50},{"$f":"IF('INFORMATIONS COMPETITEURS'!$D$59=\"TABLEAU DE SAISIE CONFORME\",CONCATENATE('INFORMATIONS COMPETITEURS'!G58,\" \",'INFORMATIONS COMPETITEURS'!E58),\"\")","v":" "},null,null,{"$f":"IF('INFORMATIONS COMPETITEURS'!$D$59=\"TABLEAU DE SAISIE CONFORME\",IF('INFORMATIONS COMPETITEURS'!I58=\"\",\"\",'INFORMATIONS COMPETITEURS'!I58),\"\")","v":""},null,null,null,null,null,null,null,{"$f":"IF('INFORMATIONS COMPETITEURS'!$D$59=\"TABLEAU DE SAISIE NON CONFORME\",\"\",IF(E59=\" \",N(0),IF(SUM(K59:O59)=0,N(0),SUM(K59:O59))))","v":0}]

{"sheet":"MOUCHE N°2","index":3,"n_rows":59,"n_cols":16,"rows_kept":59,"cut":false,"hidden":false,"merged":[[52,7,52,9],[45,7,45,9],[46,7,46,9],[47,7,47,9],[48,7,48,9],[57,7,57,9],[58,7,58,9],[5,7,8,9],[53,7,53,9],[54,7,54,9],[55,7,55,9],[56,7,56,9],[49,7,49,9],[50,7,50,9],[51,7,51,9],[40,7,40,9],[41,7,41,9],[34,7,34,9],[35,7,35,9],[36,7,36,9],[37,7,37,9],[42,7,42,9],[43,7,43,9],[44,7,44,9],[31,7,31,9],[32,7,32,9],[33,7,33,9],[26,7,26,9],[27,7,27,9],[28,7,28,9],[29,7,29,9],[38,7,38,9],[39,7,39,9],[22,7,22,9],[23,7,23,9],[24,7,24,9],[25,7,25,9],[18,7,18,9],[19,7,19,9],[20,7,20,9],[21,7,21,9],[30,7,30,9],[2,3,4,15],[9,4,9,6],[10,4,10,6],[11,4,11,6],[5,15,8,15],[5,4,8,6],[53,4,53,6],[51,4,51,6],[32,4,32,6],[36,4,36,6],[25,4,25,6],[26,4,26,6],[47,4,47,6],[48,4,48,6],[49,4,49,6],[50,4,50,6],[43,4,43,6],[20,4,20,6],[21,4,21,6],[22,4,22,6],[15,4,15,6],[16,4,16,6],[17,4,17,6],[18,4,18,6],[57,4,57,6],[58,4,58,6],[56,4,56,6],[55,4,55,6],[37,4,37,6],[38,4,38,6],[39,4,39,6],[40,4,40,6],[5,3,8,3],[46,4,46,6],[12,4,12,6],[13,4,13,6],[14,4,14,6],[45,4,45,6],[41,4,41,6],[33,4,33,6],[23,4,23,6],[54,4,54,6],[52,4,52,6],[44,4,44,6],[19,4,19,6],[5,10,6,14],[34,4,34,6],[35,4,35,6],[42,4,42,6],[24,4,24,6],[27,4,27,6],[28,4,28,6],[29,4,29,6],[30,4,30,6],[31,4,31,6],[7,10,8,10],[7,11,8,11],[7,12,8,12],[7,14,8,14],[9,7,9,9],[7,13,8,13],[14,7,14,9],[15,7,15,9],[16,7,16,9],[17,7,17,9],[10,7,10,9],[11,7,11,9],[12,7,12,9],[13,7,13,9]]}
[]
[]
[null,null,null,"SAISIE DES RESULTATS - MOUCHE N°2"]
[]
[]
[null,null,null,"N° de plaquette","Compétiteur",null,null,"Club",null,null,"RESULTATS DES JUGES",null,null,null,null,"POINTS MOUCHES"]
[]
[null,null,null,null,null,null,null,null,null,null,"Juge N°1","Juge N°2","Juge N°3","Juge N°4","Juge N°5"]
[]
[null,null,null,{"$f":"'INFORMATIONS COMPETITEURS'!D9","v":1},{"$f":"IF('INFORMATIONS COMPETITEURS'!$D$59=\"TABLEAU DE SAISIE CONFORME\",CONCATENATE('INFORMATIONS COMPETITEURS'!G9,\" \",'INFORMATIONS COMPETITEURS'!E9),\"\")","v":"Claude CAMPILLO"},null,null,{"$f":"IF('INFORMATIONS COMPETITEURS'!$D$59=\"TABLEAU DE SAISIE CONFORME\",IF('INFORMATIONS COMPETITEURS'!I9=\"\",\"\",'INFORMATIONS COMPETITEURS'!I9),\"\")","v":"CML"},null,null,50,52,50,null,null,{"$f":"IF('INFORMATIONS COMPETITEURS'!$D$59=\"TABLEAU DE SAISIE NON CONFORME\",\"\",IF(E10=\" \",N(0),IF(SUM(K10:O10)=0,N(0),SUM(K10:O10))))","v":152}]
[null,null,null,{"$f":"'INFORMATIONS COMPETITEURS'!D10","v":2},{"$f":"IF('INFORMATIONS COMPETITEURS'!$D$59=\"TABLEAU DE SAISIE CONFORME\",CONCATENATE('INFORMATIONS COMPETITEURS'!G10,\" \",'INFORMATIONS COMPETITEURS'!E10),\"\")","v":"Didier DIEGO"},null,null,{"$f":"IF('INFORMATIONS COMPETITEURS'!$D$59=\"TABLEAU DE SAISIE CONFORME\",IF('INFORMATIONS COMPETITEURS'!I10=\"\",\"\",'INFORMATIONS COMPETITEURS'!I10),\"\")","v":"GPD Pays d'Oc"},null,null,75,75,73,null,null,{"$f":"IF('INFORMATIONS COMPETITEURS'!$D$59=\"TABLEAU DE SAISIE NON CONFORME\",\"\",IF(E11=\" \",N(0),IF(SUM(K11:O11)=0,N(0),SUM(K11:O11))))","v":223}]
[null,null,null,{"$f":"'INFORMATIONS COMPETITEURS'!D11","v":3},{"$f":"IF('INFORMATIONS COMPETITEURS'!$D$59=\"TABLEAU DE SAISIE CONFORME\",CONCATENATE('INFORMATIONS COMPETITEURS'!G11,\" \",'INFORMATIONS COMPETITEURS'!E11),\"\")","v":"Samuel CREPILLON"},null,null,{"$f":"IF('INFORMATIONS COMPETITEURS'!$D$59=\"TABLEAU DE SAISIE CONFORME\",IF('INFORMATIONS COMPETITEURS'!I11=\"\",\"\",'INFORMATIONS COMPETITEURS'!I11),\"\")","v":"GPS Nièvre Morvan"},null,null,38,42,40,null,null,{"$f":"IF('INFORMATIONS COMPETITEURS'!$D$59=\"TABLEAU DE SAISIE NON CONFORME\",\"\",IF(E12=\" \",N(0),IF(SUM(K12:O12)=0,N(0),SUM(K12:O12))))","v":120}]
[null,null,null,{"$f":"'INFORMATIONS COMPETITEURS'!D12","v":4},{"$f":"IF('INFORMATIONS COMPETITEURS'!$D$59=\"TABLEAU DE SAISIE CONFORME\",CONCATENATE('INFORMATIONS COMPETITEURS'!G12,\" \",'INFORMATIONS COMPETITEURS'!E12),\"\")","v":"Valentin BIBENT"},null,null,{"$f":"IF('INFORMATIONS COMPETITEURS'!$D$59=\"TABLEAU DE SAISIE CONFORME\",IF('INFORMATIONS COMPETITEURS'!I12=\"\",\"\",'INFORMATIONS COMPETITEURS'!I12),\"\")","v":"CML"},null,null,65,65,62,null,null,{"$f":"IF('INFORMATIONS COMPETITEURS'!$D$59=\"TABLEAU DE SAISIE NON CONFORME\",\"\",IF(E13=\" \",N(0),IF(SUM(K13:O13)=0,N(0),SUM(K13:O13))))","v":192}]
[null,null,null,{"$f":"'INFORMATIONS COMPETITEURS'!D13","v":5},{"$f":"IF('INFORMATIONS COMPETITEURS'!$D$59=\"TABLEAU DE SAISIE CONFORME\",CONCATENATE('INFORMATIONS COMPETITEURS'!G13,\" \",'INFORMATIONS COMPETITEURS'!E13),\"\")","v":"Nathalie ALBERGE"},null,null,{"$f":"IF('INFORMATIONS COMPETITEURS'!$D$59=\"TABLEAU DE SAISIE CONFORME\",IF('INFORMATIONS COMPETITEURS'!I13=\"\",\"\",'INFORMATIONS COMPETITEURS'!I13),\"\")","v":"CM Pays d'Oc"},null,null,58,58,53,null,null,{"$f":"IF('INFORMATIONS COMPETITEURS'!$D$59=\"TABLEAU DE SAISIE NON CONFORME\",\"\",IF(E14=\" \",N(0),IF(SUM(K14:O14)=0,N(0),SUM(K14:O14))))","v":169}]
[null,null,null,{"$f":"'INFORMATIONS COMPETITEURS'!D14","v":6},{"$f":"IF('INFORMATIONS COMPETITEURS'!$D$59=\"TABLEAU DE SAISIE CONFORME\",CONCATENATE('INFORMATIONS COMPETITEURS'!G14,\" \",'INFORMATIONS COMPETITEURS'!E14),\"\")","v":"Jean-Luc GAULON"},null,null,{"$f":"IF('INFORMATIONS COMPETITEURS'!$D$59=\"TABLEAU DE SAISIE CONFORME\",IF('INFORMATIONS COMPETITEURS'!I14=\"\",\"\",'INFORMATIONS COMPETITEURS'!I14),\"\")","v":"CMCRE"},null,null,20,35,41,null,null,{"$f":"IF('INFORMATIONS COMPETITEURS'!$D$59=\"TABLEAU DE SAISIE NON CONFORME\",\"\",IF(E15=\" \",N(0),IF(SUM(K15:O15)=0,N(0),SUM(K15:O15))))","v":96}]
[null,null,null,{"$f":"'INFORMATIONS COMPETITEURS'!D15","v":7},{"$f":"IF('INFORMATIONS COMPETITEURS'!$D$59=\"TABLEAU DE SAISIE CONFORME\",CONCATENATE('INFORMATIONS COMPETITEURS'!G15,\" \",'INFORMATIONS COMPETITEURS'!E15),\"\")","v":"Jérôme VILLE"},null,null,{"$f":"IF('INFORMATIONS COMPETITEURS'!$D$59=\"TABLEAU DE SAISIE CONFORME\",IF('INFORMATIONS COMPETITEURS'!I15=\"\",\"\",'INFORMATIONS COMPETITEURS'!I15),\"\")","v":"GPS Lyon Centre"},null,null,63,63,61,null,null,{"$f":"IF('INFORMATIONS COMPETITEURS'!$D$59=\"TABLEAU DE SAISIE NON CONFORME\",\"\",IF(E16=\" \",N(0),IF(SUM(K16:O16)=0,N(0),SUM(K16:O16))))","v":187}]
[null,null,null,{"$f":"'INFORMATIONS COMPETITEURS'!D16","v":8},{"$f":"IF('INFORMATIONS COMPETITEURS'!$D$59=\"TABLEAU DE SAISIE CONFORME\",CONCATENATE('INFORMATIONS COMPETITEURS'!G16,\" \",'INFORMATIONS COMPETITEURS'!E16),\"\")","v":"Edgard RICHARD"},null,null,{"$f":"IF('INFORMATIONS COMPETITEURS'!$D$59=\"TABLEAU DE SAISIE CONFORME\",IF('INFORMATIONS COMPETITEURS'!I16=\"\",\"\",'INFORMATIONS COMPETITEURS'!I16),\"\")","v":"Ecole de pêche Dijon"},null,null,30,40,45,null,null,{"$f":"IF('INFORMATIONS COMPETITEURS'!$D$59=\"TABLEAU DE SAISIE NON CONFORME\",\"\",IF(E17=\" \",N(0),IF(SUM(K17:O17)=0,N(0),SUM(K17:O17))))","v":115}]
[null,null,null,{"$f":"'INFORMATIONS COMPETITEURS'!D17","v":9},{"$f":"IF('INFORMATIONS COMPETITEURS'!$D$59=\"TABLEAU DE SAISIE CONFORME\",CONCATENATE('INFORMATIONS COMPETITEURS'!G17,\" \",'INFORMATIONS COMPETITEURS'!E17),\"\")","v":"Solène Le Bourhis  Beyer"},null,null,{"$f":"IF('INFORMATIONS COMPETITEURS'!$D$59=\"TABLEAU DE SAISIE CONFORME\",IF('INFORMATIONS COMPETITEURS'!I17=\"\",\"\",'INFORMATIONS COMPETITEURS'!I17),\"\")","v":"CM Arzano"},null,null,60,51,49,null,null,{"$f":"IF('INFORMATIONS COMPETITEURS'!$D$59=\"TABLEAU DE SAISIE NON CONFORME\",\"\",IF(E18=\" \",N(0),IF(SUM(K18:O18)=0,N(0),SUM(K18:O18))))","v":160}]
[null,null,null,{"$f":"'INFORMATIONS COMPETITEURS'!D18","v":10},{"$f":"IF('INFORMATIONS COMPETITEURS'!$D$59=\"TABLEAU DE SAISIE CONFORME\",CONCATENATE('INFORMATIONS COMPETITEURS'!G18,\" \",'INFORMATIONS COMPETITEURS'!E18),\"\")","v":"Guy MASSON"},null,null,{"$f":"IF('INFORMATIONS COMPETITEURS'!$D$59=\"TABLEAU DE SAISIE CONFORME\",IF('INFORMATIONS COMPETITEURS'!I18=\"\",\"\",'INFORMATIONS COMPETITEURS'!I18),\"\")","v":"GPS Lyon Centre"},null,null,28,29,38,null,null,{"$f":"IF('INFORMATIONS COMPETITEURS'!$D$59=\"TABLEAU DE SAISIE NON CONFORME\",\"\",IF(E19=\" \",N(0),IF(SUM(K19:O19)=0,N(0),SUM(K19:O19))))","v":95}]
[null,null,null,{"$f":"'INFORMATIONS COMPETITEURS'!D19","v":11},{"$f":"IF('INFORMATIONS COMPETITEURS'!$D$59=\"TABLEAU DE SAISIE CONFORME\",CONCATENATE('INFORMATIONS COMPETITEURS'!G19,\" \",'INFORMATIONS COMPETITEURS'!E19),\"\")","v":"Gerard COMMARET"},null,null,{"$f":"IF('INFORMATIONS COMPETITEURS'!$D$59=\"TABLEAU DE SAISIE CONFORME\",IF('INFORMATIONS COMPETITEURS'!I19=\"\",\"\",'INFORMATIONS COMPETITEURS'!I19),\"\")","v":"GPS Val de Saone"},null,null,30,31,30,null,null,{"$f":"IF('INFORMATIONS COMPETITEURS'!$D$59=\"TABLEAU DE SAISIE NON CONFORME\",\"\",IF(E20=\" \",N(0),IF(SUM(K20:O20)=0,N(0),SUM(K20:O20))))","v":91}]
[null,null,null,{"$f":"'INFORMATIONS COMPETITEURS'!D20","v":12},{"$f":"IF('INFORMATIONS COMPETITEURS'!$D$59=\"TABLEAU DE SAISIE CONFORME\",CONCATENATE('INFORMATIONS COMPETITEURS'!G20,\" \",'INFORMATIONS COMPETITEURS'!E20),\"\")","v":"Stéphane PONCET"},null,null,{"$f":"IF('INFORMATIONS COMPETITEURS'!$D$59=\"TABLEAU DE SAISIE CONFORME\",IF('INFORMATIONS COMPETITEURS'!I20=\"\",\"\",'INFORMATIONS COMPETITEURS'!I20),\"\")","v":"GPS Bresse Remiremont"},null,null,58,52,52,null,null,{"$f":"IF('INFORMATIONS COMPETITEURS'!$D$59=\"TABLEAU DE SAISIE NON CONFORME\",\"\",IF(E21=\" \",N(0),IF(SUM(K21:O21)=0,N(0),SUM(K21:O21))))","v":162}]
[null,null,null,{"$f":"'INFORMATIONS COMPETITEURS'!D21","v":13},{"$f":"IF('INFORMATIONS COMPETITEURS'!$D$59=\"TABLEAU DE SAISIE CONFORME\",CONCATENATE('INFORMATIONS COMPETITEURS'!G21,\" \",'INFORMATIONS COMPETITEURS'!E21),\"\")","v":"Didier CHETAUD"},null,null,{"$f":"IF('INFORMATIONS COMPETITEURS'!$D$59=\"TABLEAU DE SAISIE CONFORME\",IF('INFORMATIONS COMPETITEURS'!I21=\"\",\"\",'INFORMATIONS COMPETITEURS'!I21),\"\")","v":"GPS Val de Saone"},null,null,80,80,88,null,null,{"$f":"IF('INFORMATIONS COMPETITEURS'!$D$59=\"TABLEAU DE SAISIE NON CONFORME\",\"\",IF(E22=\" \",N(0),IF(SUM(K22:O22)=0,N(0),SUM(K22:O22))))","v":248}]
[null,null,null,{"$f":"'INFORMATIONS COMPETITEURS'!D22","v":14},{"$f":"IF('INFORMATIONS COMPETITEURS'!$D$59=\"TABLEAU DE SAISIE CONFORME\",CONCATENATE('INFORMATIONS COMPETITEURS'!G22,\" \",'INFORMATIONS COMPETITEURS'!E22),\"\")","v":"Eric GIAMPRETI"},null,null,{"$f":"IF('INFORMATIONS COMPETITEURS'!$D$59=\"TABLEAU DE SAISIE CONFORME\",IF('INFORMATIONS COMPETITEURS'!I22=\"\",\"\",'INFORMATIONS COMPETITEURS'!I22),\"\")","v":"GPS Lyon Centre"},null,null,78,77,75,null,null,{"$f":"IF('INFORMATIONS COMPETITEURS'!$D$59=\"TABLEAU DE SAISIE NON CONFORME\",\"\",IF(E23=\" \",N(0),IF(SUM(K23:O23)=0,N(0),SUM(K23:O23))))","v":230}]
[null,null,null,{"$f":"'INFORMATIONS COMPETITEURS'!D23","v":15},{"$f":"IF('INFORMATIONS COMPETITEURS'!$D$59=\"TABLEAU DE SAISIE CONFORME\",CONCATENATE('INFORMATIONS COMPETITEURS'!G23,\" \",'INFORMATIONS COMPETITEURS'!E23),\"\")","v":"Frédéric EVENNOU"},null,null,{"$f":"IF('INFORMATIONS COMPETITEURS'!$D$59=\"TABLEAU DE SAISIE CONFORME\",IF('INFORMATIONS COMPETITEURS'!I23=\"\",\"\",'INFORMATIONS COMPETITEURS'!I23),\"\")","v":"GPS Lyon Centre"},null,null,24,24,30,null,null,{"$f":"IF('INFORMATIONS COMPETITEURS'!$D$59=\"TABLEAU DE SAISIE NON CONFORME\",\"\",IF(E24=\" \",N(0),IF(SUM(K24:O24)=0,N(0),SUM(K24:O24))))","v":78}]
[null,null,null,{"$f":"'INFORMATIONS COMPETITEURS'!D24","v":16},{"$f":"IF('INFORMATIONS COMPETITEURS'!$D$59=\"TABLEAU DE SAISIE CONFORME\",CONCATENATE('INFORMATIONS COMPETITEURS'!G24,\" \",'INFORMATIONS COMPETITEURS'!E24),\"\")","v":"Bernard FAIVRE"},null,null,{"$f":"IF('INFORMATIONS COMPETITEURS'!$D$59=\"TABLEAU DE SAISIE CONFORME\",IF('INFORMATIONS COMPETITEURS'!I24=\"\",\"\",'INFORMATIONS COMPETITEURS'!I24),\"\")","v":"GPS Pays d'Oc"},null,null,50,52,48,null,null,{"$f":"IF('INFORMATIONS COMPETITEURS'!$D$59=\"TABLEAU DE SAISIE NON CONFORME\",\"\",IF(E25=\" \",N(0),IF(SUM(K25:O25)=0,N(0),SUM(K25:O25))))","v":150}]
[null,null,null,{"$f":"'INFORMATIONS COMPETITEURS'!D25","v":17},{"$f":"IF('INFORMATIONS COMPETITEURS'!$D$59=\"TABLEAU DE SAISIE CONFORME\",CONCATENATE('INFORMATIONS COMPETITEURS'!G25,\" \",'INFORMATIONS COMPETITEURS'!E25),\"\")","v":"Bernard Rémi"},null,null,{"$f":"IF('INFORMATIONS COMPETITEURS'!$D$59=\"TABLEAU DE SAISIE CONFORME\",IF('INFORMATIONS COMPETITEURS'!I25=\"\",\"\",'INFORMATIONS COMPETITEURS'!I25),\"\")","v":"Ecole de pêche Dijon"},null,null,0,0,0,null,null,{"$f":"IF('INFORMATIONS COMPETITEURS'!$D$59=\"TABLEAU DE SAISIE NON CONFORME\",\"\",IF(E26=\" \",N(0),IF(SUM(K26:O26)=0,N(0),SUM(K26:O26))))","v":0}]
[null,null,null,{"$f":"'INFORMATIONS COMPETITEURS'!D26","v":18},{"$f":"IF('INFORMATIONS COMPETITEURS'!$D$59=\"TABLEAU DE SAISIE CONFORME\",CONCATENATE('INFORMATIONS COMPETITEURS'!G26,\" \",'INFORMATIONS COMPETITEURS'!E26),\"\")","v":"Denis FAUVELLIERE"},null,null,{"$f":"IF('INFORMATIONS COMPETITEURS'!$D$59=\"TABLEAU DE SAISIE CONFORME\",IF('INFORMATIONS COMPETITEURS'!I26=\"\",\"\",'INFORMATIONS COMPETITEURS'!I26),\"\")","v":"CM Plaisir"},null,null,50,54,51,null,null,{"$f":"IF('INFORMATIONS COMPETITEURS'!$D$59=\"TABLEAU DE SAISIE NON CONFORME\",\"\",IF(E27=\" \",N(0),IF(SUM(K27:O27)=0,N(0),SUM(K27:O27))))","v":155}]
[null,null,null,{"$f":"'INFORMATIONS COMPETITEURS'!D27","v":19},{"$f":"IF('INFORMATIONS COMPETITEURS'!$D$59=\"TABLEAU DE SAISIE CONFORME\",CONCATENATE('INFORMATIONS COMPETITEURS'!G27,\" \",'INFORMATIONS COMPETITEURS'!E27),\"\")","v":"Lionel GOMINET"},null,null,{"$f":"IF('INFORMATIONS COMPETITEURS'!$D$59=\"TABLEAU DE SAISIE CONFORME\",IF('INFORMATIONS COMPETITEURS'!I27=\"\",\"\",'INFORMATIONS COMPETITEURS'!I27),\"\")","v":"GPS Pays d'Oc"},null,null,92,91,85,null,null,{"$f":"IF('INFORMATIONS COMPETITEURS'!$D$59=\"TABLEAU DE SAISIE NON CONFORME\",\"\",IF(E28=\" \",N(0),IF(SUM(K28:O28)=0,N(0),SUM(K28:O28))))","v":268}]
[null,null,null,{"$f":"'INFORMATIONS COMPETITEURS'!D28","v":20},{"$f":"IF('INFORMATIONS COMPETITEURS'!$D$59=\"TABLEAU DE SAISIE CONFORME\",CONCATENATE('INFORMATIONS COMPETITEURS'!G28,\" \",'INFORMATIONS COMPETITEURS'!E28),\"\")","v":"HAMZA MAACH"},null,null,{"$f":"IF('INFORMATIONS COMPETITEURS'!$D$59=\"TABLEAU DE SAISIE CONFORME\",IF('INFORMATIONS COMPETITEURS'!I28=\"\",\"\",'INFORMATIONS COMPETITEURS'!I28),\"\")","v":"Ecole de pêche Dijon"},null,null,25,30,30,null,null,{"$f":"IF('INFORMATIONS COMPETITEURS'!$D$59=\"TABLEAU DE SAISIE NON CONFORME\",\"\",IF(E29=\" \",N(0),IF(SUM(K29:O29)=0,N(0),SUM(K29:O29))))","v":85}]
[null,null,null,{"$f":"'INFORMATIONS COMPETITEURS'!D29","v":21},{"$f":"IF('INFORMATIONS COMPETITEURS'!$D$59=\"TABLEAU DE SAISIE CONFORME\",CONCATENATE('INFORMATIONS COMPETITEURS'!G29,\" \",'INFORMATIONS COMPETITEURS'!E29),\"\")","v":"Dimitri DEZOTHEZ"},null,null,{"$f":"IF('INFORMATIONS COMPETITEURS'!$D$59=\"TABLEAU DE SAISIE CONFORME\",IF('INFORMATIONS COMPETITEURS'!I29=\"\",\"\",'INFORMATIONS COMPETITEURS'!I29),\"\")","v":"Club Mouche du gévaudan"},null,null,55,60,60,null,null,{"$f":"IF('INFORMATIONS COMPETITEURS'!$D$59=\"TABLEAU DE SAISIE NON CONFORME\",\"\",IF(E30=\" \",N(0),IF(SUM(K30:O30)=0,N(0),SUM(K30:O30))))","v":175}]
[null,null,null,{"$f":"'INFORMATIONS COMPETITEURS'!D30","v":22},{"$f":"IF('INFORMATIONS COMPETITEURS'!$D$59=\"TABLEAU DE SAISIE CONFORME\",CONCATENATE('INFORMATIONS COMPETITEURS'!G30,\" \",'INFORMATIONS COMPETITEURS'!E30),\"\")","v":"Dominique BRULEY"},null,null,{"$f":"IF('INFORMATIONS COMPETITEURS'!$D$59=\"TABLEAU DE SAISIE CONFORME\",IF('INFORMATIONS COMPETITEURS'!I30=\"\",\"\",'INFORMATIONS COMPETITEURS'!I30),\"\")","v":"GPS Val de Saone"},null,null,20,25,33,null,null,{"$f":"IF('INFORMATIONS COMPETITEURS'!$D$59=\"TABLEAU DE SAISIE NON CONFORME\",\"\",IF(E31=\" \",N(0),IF(SUM(K31:O31)=0,N(0),SUM(K31:O31))))","v":78}]
[null,null,null,{"$f":"'INFORMATIONS COMPETITEURS'!D31","v":23},{"$f":"IF('INFORMATIONS COMPETITEURS'!$D$59=\"TABLEAU DE SAISIE CONFORME\",CONCATENATE('INFORMATIONS COMPETITEURS'!G31,\" \",'INFORMATIONS COMPETITEURS'!E31),\"\")","v":"Christophe MARTIN"},null,null,{"$f":"IF('INFORMATIONS COMPETITEURS'!$D$59=\"TABLEAU DE SAISIE CONFORME\",IF('INFORMATIONS COMPETITEURS'!I31=\"\",\"\",'INFORMATIONS COMPETITEURS'!I31),\"\")","v":"CM Plaisir"},null,null,45,41,40,null,null,{"$f":"IF('INFORMATIONS COMPETITEURS'!$D$59=\"TABLEAU DE SAISIE NON CONFORME\",\"\",IF(E32=\" \",N(0),IF(SUM(K32:O32)=0,N(0),SUM(K32:O32))))","v":126}]
[null,null,null,{"$f":"'INFORMATIONS COMPETITEURS'!D32","v":24},{"$f":"IF('INFORMATIONS COMPETITEURS'!$D$59=\"TABLEAU DE SAISIE CONFORME\",CONCATENATE('INFORMATIONS COMPETITEURS'!G32,\" \",'INFORMATIONS COMPETITEURS'!E32),\"\")","v":"Gérard VILLA"},null,null,{"$f":"IF('INFORMATIONS COMPETITEURS'!$D$59=\"TABLEAU DE SAISIE CONFORME\",IF('INFORMATIONS COMPETITEURS'!I32=\"\",\"\",'INFORMATIONS COMPETITEURS'!I32),\"\")","v":"GPS Pays d'Oc"},null,null,85,87,80,null,null,{"$f":"IF('INFORMATIONS COMPETITEURS'!$D$59=\"TABLEAU DE SAISIE NON CONFORME\",\"\",IF(E33=\" \",N(0),IF(SUM(K33:O33)=0,N(0),SUM(K33:O33))))","v":252}]
[null,null,null,{"$f":"'INFORMATIONS COMPETITEURS'!D33","v":25},{"$f":"IF('INFORMATIONS COMPETITEURS'!$D$59=\"TABLEAU DE SAISIE CONFORME\",CONCATENATE('INFORMATIONS COMPETITEURS'!G33,\" \",'INFORMATIONS COMPETITEURS'!E33),\"\")","v":"patrick JACQUOT"},null,null,{"$f":"IF('INFORMATIONS COMPETITEURS'!$D$59=\"TABLEAU DE SAISIE CONFORME\",IF('INFORMATIONS COMPETITEURS'!I33=\"\",\"\",'INFORMATIONS COMPETITEURS'!I33),\"\")","v":"GPS Val de Saone"},null,null,30,26,35,null,null,{"$f":"IF('INFORMATIONS COMPETITEURS'!$D$59=\"TABLEAU DE SAISIE NON CONFORME\",\"\",IF(E34=\" \",N(0),IF(SUM(K34:O34)=0,N(0),SUM(K34:O34))))","v":91}]
[null,null,null,{"$f":"'INFORMATIONS COMPETITEURS'!D34","v":26},{"$f":"IF('INFORMATIONS COMPETITEURS'!$D$59=\"TABLEAU DE SAISIE CONFORME\",CONCATENATE('INFORMATIONS COMPETITEURS'!G34,\" \",'INFORMATIONS COMPETITEURS'!E34),\"\")","v":"Henri CALAVIA"},null,null,{"$f":"IF('INFORMATIONS COMPETITEURS'!$D$59=\"TABLEAU DE SAISIE CONFORME\",IF('INFORMATIONS COMPETITEURS'!I34=\"\",\"\",'INFORMATIONS COMPETITEURS'!I34),\"\")","v":"CMCRE"},null,null,95,95,90,null,null,{"$f":"IF('INFORMATIONS COMPETITEURS'!$D$59=\"TABLEAU DE SAISIE NON CONFORME\",\"\",IF(E35=\" \",N(0),IF(SUM(K35:O35)=0,N(0),SUM(K35:O35))))","v":280}]
[null,null,null,{"$f":"'INFORMATIONS COMPETITEURS'!D35","v":27},{"$f":"IF('INFORMATIONS COMPETITEURS'!$D$59=\"TABLEAU DE SAISIE CONFORME\",CONCATENATE('INFORMATIONS COMPETITEURS'!G35,\" \",'INFORMATIONS COMPETITEURS'!E35),\"\")","v":"Batiste JEANIN"},null,null,{"$f":"IF('INFORMATIONS COMPETITEURS'!$D$59=\"TABLEAU DE SAISIE CONFORME\",IF('INFORMATIONS COMPETITEURS'!I35=\"\",\"\",'INFORMATIONS COMPETITEURS'!I35),\"\")","v":"Ecole de pêche Dijon"},null,null,52,52,51,null,null,{"$f":"IF('INFORMATIONS COMPETITEURS'!$D$59=\"TABLEAU DE SAISIE NON CONFORME\",\"\",IF(E36=\" \",N(0),IF(SUM(K36:O36)=0,N(0),SUM(K36:O36))))","v":155}]
[null,null,null,{"$f":"'INFORMATIONS COMPETITEURS'!D36","v":28},{"$f":"IF('INFORMATIONS COMPETITEURS'!$D$59=\"TABLEAU DE SAISIE CONFORME\",CONCATENATE('INFORMATIONS COMPETITEURS'!G36,\" \",'INFORMATIONS COMPETITEURS'!E36),\"\")","v":"Règis CAZARETH"},null,null,{"$f":"IF('INFORMATIONS COMPETITEURS'!$D$59=\"TABLEAU DE SAISIE CONFORME\",IF('INFORMATIONS COMPETITEURS'!I36=\"\",\"\",'INFORMATIONS COMPETITEURS'!I36),\"\")","v":"GPS Décines"},null,null,74,77,72,null,null,{"$f":"IF('INFORMATIONS COMPETITEURS'!$D$59=\"TABLEAU DE SAISIE NON CONFORME\",\"\",IF(E37=\" \",N(0),IF(SUM(K37:O37)=0,N(0),SUM(K37:O37))))","v":223}]
[null,null,null,{"$f":"'INFORMATIONS COMPETITEURS'!D37","v":29},{"$f":"IF('INFORMATIONS COMPETITEURS'!$D$59=\"TABLEAU DE SAISIE CONFORME\",CONCATENATE('INFORMATIONS COMPETITEURS'!G37,\" \",'INFORMATIONS COMPETITEURS'!E37),\"\")","v":"BOUAFFIA DENIL"},null,null,{"$f":"IF('INFORMATIONS COMPETITEURS'!$D$59=\"TABLEAU DE SAISIE CONFORME\",IF('INFORMATIONS COMPETITEURS'!I37=\"\",\"\",'INFORMATIONS COMPETITEURS'!I37),\"\")","v":"GPS"},null,null,0,0,0,null,null,{"$f":"IF('INFORMATIONS COMPETITEURS'!$D$59=\"TABLEAU DE SAISIE NON CONFORME\",\"\",IF(E38=\" \",N(0),IF(SUM(K38:O38)=0,N(0),SUM(K38:O38))))","v":0}]
[null,null,null,{"$f":"'INFORMATIONS COMPETITEURS'!D38","v":30},{"$f":"IF('INFORMATIONS COMPETITEURS'!$D$59=\"TABLEAU DE SAISIE CONFORME\",CONCATENATE('INFORMATIONS COMPETITEURS'!G38,\" \",'INFORMATIONS COMPETITEURS'!E38),\"\")","v":" "},null,null,{"$f":"IF('INFORMATIONS COMPETITEURS'!$D$59=\"TABLEAU DE SAISIE CONFORME\",IF('INFORMATIONS COMPETITEURS'!I38=\"\",\"\",'INFORMATIONS COMPETITEURS'!I38),\"\")","v":""},null,null,null,null,null,null,null,{"$f":"IF('INFORMATIONS COMPETITEURS'!$D$59=\"TABLEAU DE SAISIE NON CONFORME\",\"\",IF(E39=\" \",N(0),IF(SUM(K39:O39)=0,N(0),SUM(K39:O39))))","v":0}]
[null,null,null,{"$f":"'INFORMATIONS COMPETITEURS'!D39","v":31},{"$f":"IF('INFORMATIONS COMPETITEURS'!$D$59=\"TABLEAU DE SAISIE CONFORME\",CONCATENATE('INFORMATIONS COMPETITEURS'!G39,\" \",'INFORMATIONS COMPETITEURS'!E39),\"\")","v":" "},null,null,{"$f":"IF('INFORMATIONS COMPETITEURS'!$D$59=\"TABLEAU DE SAISIE CONFORME\",IF('INFORMATIONS COMPETITEURS'!I39=\"\",\"\",'INFORMATIONS COMPETITEURS'!I39),\"\")","v":""},null,null,null,null,null,null,null,{"$f":"IF('INFORMATIONS COMPETITEURS'!$D$59=\"TABLEAU DE SAISIE NON CONFORME\",\"\",IF(E40=\" \",N(0),IF(SUM(K40:O40)=0,N(0),SUM(K40:O40))))","v":0}]
[null,null,null,{"$f":"'INFORMATIONS COMPETITEURS'!D40","v":32},{"$f":"IF('INFORMATIONS COMPETITEURS'!$D$59=\"TABLEAU DE SAISIE CONFORME\",CONCATENATE('INFORMATIONS COMPETITEURS'!G40,\" \",'INFORMATIONS COMPETITEURS'!E40),\"\")","v":" "},null,null,{"$f":"IF('INFORMATIONS COMPETITEURS'!$D$59=\"TABLEAU DE SAISIE CONFORME\",IF('INFORMATIONS COMPETITEURS'!I40=\"\",\"\",'INFORMATIONS COMPETITEURS'!I40),\"\")","v":""},null,null,null,null,null,null,null,{"$f":"IF('INFORMATIONS COMPETITEURS'!$D$59=\"TABLEAU DE SAISIE NON CONFORME\",\"\",IF(E41=\" \",N(0),IF(SUM(K41:O41)=0,N(0),SUM(K41:O41))))","v":0}]
[null,null,null,{"$f":"'INFORMATIONS COMPETITEURS'!D41","v":33},{"$f":"IF('INFORMATIONS COMPETITEURS'!$D$59=\"TABLEAU DE SAISIE CONFORME\",CONCATENATE('INFORMATIONS COMPETITEURS'!G41,\" \",'INFORMATIONS COMPETITEURS'!E41),\"\")","v":" "},null,null,{"$f":"IF('INFORMATIONS COMPETITEURS'!$D$59=\"TABLEAU DE SAISIE CONFORME\",IF('INFORMATIONS COMPETITEURS'!I41=\"\",\"\",'INFORMATIONS COMPETITEURS'!I41),\"\")","v":""},null,null,null,null,null,null,null,{"$f":"IF('INFORMATIONS COMPETITEURS'!$D$59=\"TABLEAU DE SAISIE NON CONFORME\",\"\",IF(E42=\" \",N(0),IF(SUM(K42:O42)=0,N(0),SUM(K42:O42))))","v":0}]
[null,null,null,{"$f":"'INFORMATIONS COMPETITEURS'!D42","v":34},{"$f":"IF('INFORMATIONS COMPETITEURS'!$D$59=\"TABLEAU DE SAISIE CONFORME\",CONCATENATE('INFORMATIONS COMPETITEURS'!G42,\" \",'INFORMATIONS COMPETITEURS'!E42),\"\")","v":" "},null,null,{"$f":"IF('INFORMATIONS COMPETITEURS'!$D$59=\"TABLEAU DE SAISIE CONFORME\",IF('INFORMATIONS COMPETITEURS'!I42=\"\",\"\",'INFORMATIONS COMPETITEURS'!I42),\"\")","v":""},null,null,null,null,null,null,null,{"$f":"IF('INFORMATIONS COMPETITEURS'!$D$59=\"TABLEAU DE SAISIE NON CONFORME\",\"\",IF(E43=\" \",N(0),IF(SUM(K43:O43)=0,N(0),SUM(K43:O43))))","v":0}]
[null,null,null,{"$f":"'INFORMATIONS COMPETITEURS'!D43","v":35},{"$f":"IF('INFORMATIONS COMPETITEURS'!$D$59=\"TABLEAU DE SAISIE CONFORME\",CONCATENATE('INFORMATIONS COMPETITEURS'!G43,\" \",'INFORMATIONS COMPETITEURS'!E43),\"\")","v":" "},null,null,{"$f":"IF('INFORMATIONS COMPETITEURS'!$D$59=\"TABLEAU DE SAISIE CONFORME\",IF('INFORMATIONS COMPETITEURS'!I43=\"\",\"\",'INFORMATIONS COMPETITEURS'!I43),\"\")","v":""},null,null,null,null,null,null,null,{"$f":"IF('INFORMATIONS COMPETITEURS'!$D$59=\"TABLEAU DE SAISIE NON CONFORME\",\"\",IF(E44=\" \",N(0),IF(SUM(K44:O44)=0,N(0),SUM(K44:O44))))","v":0}]
[null,null,null,{"$f":"'INFORMATIONS COMPETITEURS'!D44","v":36},{"$f":"IF('INFORMATIONS COMPETITEURS'!$D$59=\"TABLEAU DE SAISIE CONFORME\",CONCATENATE('INFORMATIONS COMPETITEURS'!G44,\" \",'INFORMATIONS COMPETITEURS'!E44),\"\")","v":" "},null,null,{"$f":"IF('INFORMATIONS COMPETITEURS'!$D$59=\"TABLEAU DE SAISIE CONFORME\",IF('INFORMATIONS COMPETITEURS'!I44=\"\",\"\",'INFORMATIONS COMPETITEURS'!I44),\"\")","v":""},null,null,null,null,null,null,null,{"$f":"IF('INFORMATIONS COMPETITEURS'!$D$59=\"TABLEAU DE SAISIE NON CONFORME\",\"\",IF(E45=\" \",N(0),IF(SUM(K45:O45)=0,N(0),SUM(K45:O45))))","v":0}]
[null,null,null,{"$f":"'INFORMATIONS COMPETITEURS'!D45","v":37},{"$f":"IF('INFORMATIONS COMPETITEURS'!$D$59=\"TABLEAU DE SAISIE CONFORME\",CONCATENATE('INFORMATIONS COMPETITEURS'!G45,\" \",'INFORMATIONS COMPETITEURS'!E45),\"\")","v":" "},null,null,{"$f":"IF('INFORMATIONS COMPETITEURS'!$D$59=\"TABLEAU DE SAISIE CONFORME\",IF('INFORMATIONS COMPETITEURS'!I45=\"\",\"\",'INFORMATIONS COMPETITEURS'!I45),\"\")","v":""},null,null,null,null,null,null,null,{"$f":"IF('INFORMATIONS COMPETITEURS'!$D$59=\"TABLEAU DE SAISIE NON CONFORME\",\"\",IF(E46=\" \",N(0),IF(SUM(K46:O46)=0,N(0),SUM(K46:O46))))","v":0}]
[null,null,null,{"$f":"'INFORMATIONS COMPETITEURS'!D46","v":38},{"$f":"IF('INFORMATIONS COMPETITEURS'!$D$59=\"TABLEAU DE SAISIE CONFORME\",CONCATENATE('INFORMATIONS COMPETITEURS'!G46,\" \",'INFORMATIONS COMPETITEURS'!E46),\"\")","v":" "},null,null,{"$f":"IF('INFORMATIONS COMPETITEURS'!$D$59=\"TABLEAU DE SAISIE CONFORME\",IF('INFORMATIONS COMPETITEURS'!I46=\"\",\"\",'INFORMATIONS COMPETITEURS'!I46),\"\")","v":""},null,null,null,null,null,null,null,{"$f":"IF('INFORMATIONS COMPETITEURS'!$D$59=\"TABLEAU DE SAISIE NON CONFORME\",\"\",IF(E47=\" \",N(0),IF(SUM(K47:O47)=0,N(0),SUM(K47:O47))))","v":0}]
[null,null,null,{"$f":"'INFORMATIONS COMPETITEURS'!D47","v":39},{"$f":"IF('INFORMATIONS COMPETITEURS'!$D$59=\"TABLEAU DE SAISIE CONFORME\",CONCATENATE('INFORMATIONS COMPETITEURS'!G47,\" \",'INFORMATIONS COMPETITEURS'!E47),\"\")","v":" "},null,null,{"$f":"IF('INFORMATIONS COMPETITEURS'!$D$59=\"TABLEAU DE SAISIE CONFORME\",IF('INFORMATIONS COMPETITEURS'!I47=\"\",\"\",'INFORMATIONS COMPETITEURS'!I47),\"\")","v":""},null,null,null,null,null,null,null,{"$f":"IF('INFORMATIONS COMPETITEURS'!$D$59=\"TABLEAU DE SAISIE NON CONFORME\",\"\",IF(E48=\" \",N(0),IF(SUM(K48:O48)=0,N(0),SUM(K48:O48))))","v":0}]
[null,null,null,{"$f":"'INFORMATIONS COMPETITEURS'!D48","v":40},{"$f":"IF('INFORMATIONS COMPETITEURS'!$D$59=\"TABLEAU DE SAISIE CONFORME\",CONCATENATE('INFORMATIONS COMPETITEURS'!G48,\" \",'INFORMATIONS COMPETITEURS'!E48),\"\")","v":" "},null,null,{"$f":"IF('INFORMATIONS COMPETITEURS'!$D$59=\"TABLEAU DE SAISIE CONFORME\",IF('INFORMATIONS COMPETITEURS'!I48=\"\",\"\",'INFORMATIONS COMPETITEURS'!I48),\"\")","v":""},null,null,null,null,null,null,null,{"$f":"IF('INFORMATIONS COMPETITEURS'!$D$59=\"TABLEAU DE SAISIE NON CONFORME\",\"\",IF(E49=\" \",N(0),IF(SUM(K49:O49)=0,N(0),SUM(K49:O49))))","v":0}]
[null,null,null,{"$f":"'INFORMATIONS COMPETITEURS'!D49","v":41},{"$f":"IF('INFORMATIONS COMPETITEURS'!$D$59=\"TABLEAU DE SAISIE CONFORME\",CONCATENATE('INFORMATIONS COMPETITEURS'!G49,\" \",'INFORMATIONS COMPETITEURS'!E49),\"\")","v":" "},null,null,{"$f":"IF('INFORMATIONS COMPETITEURS'!$D$59=\"TABLEAU DE SAISIE CONFORME\",IF('INFORMATIONS COMPETITEURS'!I49=\"\",\"\",'INFORMATIONS COMPETITEURS'!I49),\"\")","v":""},null,null,null,null,null,null,null,{"$f":"IF('INFORMATIONS COMPETITEURS'!$D$59=\"TABLEAU DE SAISIE NON CONFORME\",\"\",IF(E50=\" \",N(0),IF(SUM(K50:O50)=0,N(0),SUM(K50:O50))))","v":0}]
[null,null,null,{"$f":"'INFORMATIONS COMPETITEURS'!D50","v":42},{"$f":"IF('INFORMATIONS COMPETITEURS'!$D$59=\"TABLEAU DE SAISIE CONFORME\",CONCATENATE('INFORMATIONS COMPETITEURS'!G50,\" \",'INFORMATIONS COMPETITEURS'!E50),\"\")","v":" "},null,null,{"$f":"IF('INFORMATIONS COMPETITEURS'!$D$59=\"TABLEAU DE SAISIE CONFORME\",IF('INFORMATIONS COMPETITEURS'!I50=\"\",\"\",'INFORMATIONS COMPETITEURS'!I50),\"\")","v":""},null,null,null,null,null,null,null,{"$f":"IF('INFORMATIONS COMPETITEURS'!$D$59=\"TABLEAU DE SAISIE NON CONFORME\",\"\",IF(E51=\" \",N(0),IF(SUM(K51:O51)=0,N(0),SUM(K51:O51))))","v":0}]
[null,null,null,{"$f":"'INFORMATIONS COMPETITEURS'!D51","v":43},{"$f":"IF('INFORMATIONS COMPETITEURS'!$D$59=\"TABLEAU DE SAISIE CONFORME\",CONCATENATE('INFORMATIONS COMPETITEURS'!G51,\" \",'INFORMATIONS COMPETITEURS'!E51),\"\")","v":" "},null,null,{"$f":"IF('INFORMATIONS COMPETITEURS'!$D$59=\"TABLEAU DE SAISIE CONFORME\",IF('INFORMATIONS COMPETITEURS'!I51=\"\",\"\",'INFORMATIONS COMPETITEURS'!I51),\"\")","v":""},null,null,null,null,null,null,null,{"$f":"IF('INFORMATIONS COMPETITEURS'!$D$59=\"TABLEAU DE SAISIE NON CONFORME\",\"\",IF(E52=\" \",N(0),IF(SUM(K52:O52)=0,N(0),SUM(K52:O52))))","v":0}]
[null,null,null,{"$f":"'INFORMATIONS COMPETITEURS'!D52","v":44},{"$f":"IF('INFORMATIONS COMPETITEURS'!$D$59=\"TABLEAU DE SAISIE CONFORME\",CONCATENATE('INFORMATIONS COMPETITEURS'!G52,\" \",'INFORMATIONS COMPETITEURS'!E52),\"\")","v":" "},null,null,{"$f":"IF('INFORMATIONS COMPETITEURS'!$D$59=\"TABLEAU DE SAISIE CONFORME\",IF('INFORMATIONS COMPETITEURS'!I52=\"\",\"\",'INFORMATIONS COMPETITEURS'!I52),\"\")","v":""},null,null,null,null,null,null,null,{"$f":"IF('INFORMATIONS COMPETITEURS'!$D$59=\"TABLEAU DE SAISIE NON CONFORME\",\"\",IF(E53=\" \",N(0),IF(SUM(K53:O53)=0,N(0),SUM(K53:O53))))","v":0}]
[null,null,null,{"$f":"'INFORMATIONS COMPETITEURS'!D53","v":45},{"$f":"IF('INFORMATIONS COMPETITEURS'!$D$59=\"TABLEAU DE SAISIE CONFORME\",CONCATENATE('INFORMATIONS COMPETITEURS'!G53,\" \",'INFORMATIONS COMPETITEURS'!E53),\"\")","v":" "},null,null,{"$f":"IF('INFORMATIONS COMPETITEURS'!$D$59=\"TABLEAU DE SAISIE CONFORME\",IF('INFORMATIONS COMPETITEURS'!I53=\"\",\"\",'INFORMATIONS COMPETITEURS'!I53),\"\")","v":""},null,null,null,null,null,null,null,{"$f":"IF('INFORMATIONS COMPETITEURS'!$D$59=\"TABLEAU DE SAISIE NON CONFORME\",\"\",IF(E54=\" \",N(0),IF(SUM(K54:O54)=0,N(0),SUM(K54:O54))))","v":0}]
[null,null,null,{"$f":"'INFORMATIONS COMPETITEURS'!D54","v":46},{"$f":"IF('INFORMATIONS COMPETITEURS'!$D$59=\"TABLEAU DE SAISIE CONFORME\",CONCATENATE('INFORMATIONS COMPETITEURS'!G54,\" \",'INFORMATIONS COMPETITEURS'!E54),\"\")","v":" "},null,null,{"$f":"IF('INFORMATIONS COMPETITEURS'!$D$59=\"TABLEAU DE SAISIE CONFORME\",IF('INFORMATIONS COMPETITEURS'!I54=\"\",\"\",'INFORMATIONS COMPETITEURS'!I54),\"\")","v":""},null,null,null,null,null,null,null,{"$f":"IF('INFORMATIONS COMPETITEURS'!$D$59=\"TABLEAU DE SAISIE NON CONFORME\",\"\",IF(E55=\" \",N(0),IF(SUM(K55:O55)=0,N(0),SUM(K55:O55))))","v":0}]
[null,null,null,{"$f":"'INFORMATIONS COMPETITEURS'!D55","v":47},{"$f":"IF('INFORMATIONS COMPETITEURS'!$D$59=\"TABLEAU DE SAISIE CONFORME\",CONCATENATE('INFORMATIONS COMPETITEURS'!G55,\" \",'INFORMATIONS COMPETITEURS'!E55),\"\")","v":" "},null,null,{"$f":"IF('INFORMATIONS COMPETITEURS'!$D$59=\"TABLEAU DE SAISIE CONFORME\",IF('INFORMATIONS COMPETITEURS'!I55=\"\",\"\",'INFORMATIONS COMPETITEURS'!I55),\"\")","v":""},null,null,null,null,null,null,null,{"$f":"IF('INFORMATIONS COMPETITEURS'!$D$59=\"TABLEAU DE SAISIE NON CONFORME\",\"\",IF(E56=\" \",N(0),IF(SUM(K56:O56)=0,N(0),SUM(K56:O56))))","v":0}]
[null,null,null,{"$f":"'INFORMATIONS COMPETITEURS'!D56","v":48},{"$f":"IF('INFORMATIONS COMPETITEURS'!$D$59=\"TABLEAU DE SAISIE CONFORME\",CONCATENATE('INFORMATIONS COMPETITEURS'!G56,\" \",'INFORMATIONS COMPETITEURS'!E56),\"\")","v":" "},null,null,{"$f":"IF('INFORMATIONS COMPETITEURS'!$D$59=\"TABLEAU DE SAISIE CONFORME\",IF('INFORMATIONS COMPETITEURS'!I56=\"\",\"\",'INFORMATIONS COMPETITEURS'!I56),\"\")","v":""},null,null,null,null,null,null,null,{"$f":"IF('INFORMATIONS COMPETITEURS'!$D$59=\"TABLEAU DE SAISIE NON CONFORME\",\"\",IF(E57=\" \",N(0),IF(SUM(K57:O57)=0,N(0),SUM(K57:O57))))","v":0}]
[null,null,null,{"$f":"'INFORMATIONS COMPETITEURS'!D57","v":49},{"$f":"IF('INFORMATIONS COMPETITEURS'!$D$59=\"TABLEAU DE SAISIE CONFORME\",CONCATENATE('INFORMATIONS COMPETITEURS'!G57,\" \",'INFORMATIONS COMPETITEURS'!E57),\"\")","v":" "},null,null,{"$f":"IF('INFORMATIONS COMPETITEURS'!$D$59=\"TABLEAU DE SAISIE CONFORME\",IF('INFORMATIONS COMPETITEURS'!I57=\"\",\"\",'INFORMATIONS COMPETITEURS'!I57),\"\")","v":""},null,null,null,null,null,null,null,{"$f":"IF('INFORMATIONS COMPETITEURS'!$D$59=\"TABLEAU DE SAISIE NON CONFORME\",\"\",IF(E58=\" \",N(0),IF(SUM(K58:O58)=0,N(0),SUM(K58:O58))))","v":0}]
[null,null,null,{"$f":"'INFORMATIONS COMPETITEURS'!D58","v":50},{"$f":"IF('INFORMATIONS COMPETITEURS'!$D$59=\"TABLEAU DE SAISIE CONFORME\",CONCATENATE('INFORMATIONS COMPETITEURS'!G58,\" \",'INFORMATIONS COMPETITEURS'!E58),\"\")","v":" "},null,null,{"$f":"IF('INFORMATIONS COMPETITEURS'!$D$59=\"TABLEAU DE SAISIE CONFORME\",IF('INFORMATIONS COMPETITEURS'!I58=\"\",\"\",'INFORMATIONS COMPETITEURS'!I58),\"\")","v":""},null,null,null,null,null,null,null,{"$f":"IF('INFORMATIONS COMPETITEURS'!$D$59=\"TABLEAU DE SAISIE NON CONFORME\",\"\",IF(E59=\" \",N(0),IF(SUM(K59:O59)=0,N(0),SUM(K59:O59))))","v":0}]

{"sheet":"MOUCHE N°3","index":4,"n_rows":59,"n_cols":16,"rows_kept":59,"cut":false,"hidden":false,"merged":[[53,7,53,9],[58,7,58,9],[54,7,54,9],[55,7,55,9],[56,7,56,9],[57,7,57,9],[48,7,48,9],[49,7,49,9],[50,7,50,9],[51,7,51,9],[44,7,44,9],[45,7,45,9],[46,7,46,9],[47,7,47,9],[52,7,52,9],[35,7,35,9],[28,7,28,9],[29,7,29,9],[30,7,30,9],[31,7,31,9],[40,7,40,9],[41,7,41,9],[42,7,42,9],[43,7,43,9],[36,7,36,9],[37,7,37,9],[38,7,38,9],[39,7,39,9],[32,7,32,9],[33,7,33,9],[34,7,34,9],[57,4,57,6],[58,4,58,6],[2,3,4,15],[9,4,9,6],[10,4,10,6],[11,4,11,6],[56,4,56,6],[12,4,12,6],[13,4,13,6],[14,4,14,6],[16,7,16,9],[17,7,17,9],[18,7,18,9],[19,7,19,9],[12,7,12,9],[13,7,13,9],[14,7,14,9],[15,7,15,9],[24,7,24,9],[25,7,25,9],[26,7,26,9],[27,7,27,9],[20,7,20,9],[21,7,21,9],[32,4,32,6],[33,4,33,6],[55,4,55,6],[48,4,48,6],[49,4,49,6],[50,4,50,6],[51,4,51,6],[53,4,53,6],[54,4,54,6],[52,4,52,6],[44,4,44,6],[45,4,45,6],[46,4,46,6],[47,4,47,6],[35,4,35,6],[42,4,42,6],[43,4,43,6],[36,4,36,6],[37,4,37,6],[38,4,38,6],[39,4,39,6],[40,4,40,6],[41,4,41,6],[34,4,34,6],[30,4,30,6],[31,4,31,6],[7,14,8,14],[5,10,6,14],[5,15,8,15],[7,13,8,13],[9,7,9,9],[24,4,24,6],[25,4,25,6],[26,4,26,6],[19,4,19,6],[20,4,20,6],[21,4,21,6],[22,4,22,6],[10,7,10,9],[23,7,23,9],[11,7,11,9],[23,4,23,6],[15,4,15,6],[16,4,16,6],[17,4,17,6],[18,4,18,6],[22,7,22,9],[5,3,8,3],[7,10,8,10],[7,11,8,11],[7,12,8,12],[5,4,8,6],[5,7,8,9],[27,4,27,6],[28,4,28,6],[29,4,29,6]]}
[]
[]
[null,null,null,"SAISIE DES RESULTATS - MOUCHE N°3"]
[]
[]
[null,null,null,"N° de plaquette","Compétiteur",null,null,"Club",null,null,"RESULTATS DES JUGES",null,null,null,null,"POINTS MOUCHES"]
[]
[null,null,null,null,null,null,null,null,null,null,"Juge N°1","Juge N°2","Juge N°3","Juge N°4","Juge N°5"]
[]
[null,null,null,{"$f":"'INFORMATIONS COMPETITEURS'!D9","v":1},{"$f":"IF('INFORMATIONS COMPETITEURS'!$D$59=\"TABLEAU DE SAISIE CONFORME\",CONCATENATE('INFORMATIONS COMPETITEURS'!G9,\" \",'INFORMATIONS COMPETITEURS'!E9),\"\")","v":"Claude CAMPILLO"},null,null,{"$f":"IF('INFORMATIONS COMPETITEURS'!$D$59=\"TABLEAU DE SAISIE CONFORME\",IF('INFORMATIONS COMPETITEURS'!I9=\"\",\"\",'INFORMATIONS COMPETITEURS'!I9),\"\")","v":"CML"},null,null,61,58,53,null,null,{"$f":"IF('INFORMATIONS COMPETITEURS'!$D$59=\"TABLEAU DE SAISIE NON CONFORME\",\"\",IF(E10=\" \",N(0),IF(SUM(K10:O10)=0,N(0),SUM(K10:O10))))","v":172}]
[null,null,null,{"$f":"'INFORMATIONS COMPETITEURS'!D10","v":2},{"$f":"IF('INFORMATIONS COMPETITEURS'!$D$59=\"TABLEAU DE SAISIE CONFORME\",CONCATENATE('INFORMATIONS COMPETITEURS'!G10,\" \",'INFORMATIONS COMPETITEURS'!E10),\"\")","v":"Didier DIEGO"},null,null,{"$f":"IF('INFORMATIONS COMPETITEURS'!$D$59=\"TABLEAU DE SAISIE CONFORME\",IF('INFORMATIONS COMPETITEURS'!I10=\"\",\"\",'INFORMATIONS COMPETITEURS'!I10),\"\")","v":"GPD Pays d'Oc"},null,null,75,72,68,null,null,{"$f":"IF('INFORMATIONS COMPETITEURS'!$D$59=\"TABLEAU DE SAISIE NON CONFORME\",\"\",IF(E11=\" \",N(0),IF(SUM(K11:O11)=0,N(0),SUM(K11:O11))))","v":215}]
[null,null,null,{"$f":"'INFORMATIONS COMPETITEURS'!D11","v":3},{"$f":"IF('INFORMATIONS COMPETITEURS'!$D$59=\"TABLEAU DE SAISIE CONFORME\",CONCATENATE('INFORMATIONS COMPETITEURS'!G11,\" \",'INFORMATIONS COMPETITEURS'!E11),\"\")","v":"Samuel CREPILLON"},null,null,{"$f":"IF('INFORMATIONS COMPETITEURS'!$D$59=\"TABLEAU DE SAISIE CONFORME\",IF('INFORMATIONS COMPETITEURS'!I11=\"\",\"\",'INFORMATIONS COMPETITEURS'!I11),\"\")","v":"GPS Nièvre Morvan"},null,null,48,48,46,null,null,{"$f":"IF('INFORMATIONS COMPETITEURS'!$D$59=\"TABLEAU DE SAISIE NON CONFORME\",\"\",IF(E12=\" \",N(0),IF(SUM(K12:O12)=0,N(0),SUM(K12:O12))))","v":142}]
[null,null,null,{"$f":"'INFORMATIONS COMPETITEURS'!D12","v":4},{"$f":"IF('INFORMATIONS COMPETITEURS'!$D$59=\"TABLEAU DE SAISIE CONFORME\",CONCATENATE('INFORMATIONS COMPETITEURS'!G12,\" \",'INFORMATIONS COMPETITEURS'!E12),\"\")","v":"Valentin BIBENT"},null,null,{"$f":"IF('INFORMATIONS COMPETITEURS'!$D$59=\"TABLEAU DE SAISIE CONFORME\",IF('INFORMATIONS COMPETITEURS'!I12=\"\",\"\",'INFORMATIONS COMPETITEURS'!I12),\"\")","v":"CML"},null,null,53,50,48,null,null,{"$f":"IF('INFORMATIONS COMPETITEURS'!$D$59=\"TABLEAU DE SAISIE NON CONFORME\",\"\",IF(E13=\" \",N(0),IF(SUM(K13:O13)=0,N(0),SUM(K13:O13))))","v":151}]
[null,null,null,{"$f":"'INFORMATIONS COMPETITEURS'!D13","v":5},{"$f":"IF('INFORMATIONS COMPETITEURS'!$D$59=\"TABLEAU DE SAISIE CONFORME\",CONCATENATE('INFORMATIONS COMPETITEURS'!G13,\" \",'INFORMATIONS COMPETITEURS'!E13),\"\")","v":"Nathalie ALBERGE"},null,null,{"$f":"IF('INFORMATIONS COMPETITEURS'!$D$59=\"TABLEAU DE SAISIE CONFORME\",IF('INFORMATIONS COMPETITEURS'!I13=\"\",\"\",'INFORMATIONS COMPETITEURS'!I13),\"\")","v":"CM Pays d'Oc"},null,null,60,60,57,null,null,{"$f":"IF('INFORMATIONS COMPETITEURS'!$D$59=\"TABLEAU DE SAISIE NON CONFORME\",\"\",IF(E14=\" \",N(0),IF(SUM(K14:O14)=0,N(0),SUM(K14:O14))))","v":177}]
[null,null,null,{"$f":"'INFORMATIONS COMPETITEURS'!D14","v":6},{"$f":"IF('INFORMATIONS COMPETITEURS'!$D$59=\"TABLEAU DE SAISIE CONFORME\",CONCATENATE('INFORMATIONS COMPETITEURS'!G14,\" \",'INFORMATIONS COMPETITEURS'!E14),\"\")","v":"Jean-Luc GAULON"},null,null,{"$f":"IF('INFORMATIONS COMPETITEURS'!$D$59=\"TABLEAU DE SAISIE CONFORME\",IF('INFORMATIONS COMPETITEURS'!I14=\"\",\"\",'INFORMATIONS COMPETITEURS'!I14),\"\")","v":"CMCRE"},null,null,73,77,72,null,null,{"$f":"IF('INFORMATIONS COMPETITEURS'!$D$59=\"TABLEAU DE SAISIE NON CONFORME\",\"\",IF(E15=\" \",N(0),IF(SUM(K15:O15)=0,N(0),SUM(K15:O15))))","v":222}]
[null,null,null,{"$f":"'INFORMATIONS COMPETITEURS'!D15","v":7},{"$f":"IF('INFORMATIONS COMPETITEURS'!$D$59=\"TABLEAU DE SAISIE CONFORME\",CONCATENATE('INFORMATIONS COMPETITEURS'!G15,\" \",'INFORMATIONS COMPETITEURS'!E15),\"\")","v":"Jérôme VILLE"},null,null,{"$f":"IF('INFORMATIONS COMPETITEURS'!$D$59=\"TABLEAU DE SAISIE CONFORME\",IF('INFORMATIONS COMPETITEURS'!I15=\"\",\"\",'INFORMATIONS COMPETITEURS'!I15),\"\")","v":"GPS Lyon Centre"},null,null,57,52,48,null,null,{"$f":"IF('INFORMATIONS COMPETITEURS'!$D$59=\"TABLEAU DE SAISIE NON CONFORME\",\"\",IF(E16=\" \",N(0),IF(SUM(K16:O16)=0,N(0),SUM(K16:O16))))","v":157}]
[null,null,null,{"$f":"'INFORMATIONS COMPETITEURS'!D16","v":8},{"$f":"IF('INFORMATIONS COMPETITEURS'!$D$59=\"TABLEAU DE SAISIE CONFORME\",CONCATENATE('INFORMATIONS COMPETITEURS'!G16,\" \",'INFORMATIONS COMPETITEURS'!E16),\"\")","v":"Edgard RICHARD"},null,null,{"$f":"IF('INFORMATIONS COMPETITEURS'!$D$59=\"TABLEAU DE SAISIE CONFORME\",IF('INFORMATIONS COMPETITEURS'!I16=\"\",\"\",'INFORMATIONS COMPETITEURS'!I16),\"\")","v":"Ecole de pêche Dijon"},null,null,42,47,43,null,null,{"$f":"IF('INFORMATIONS COMPETITEURS'!$D$59=\"TABLEAU DE SAISIE NON CONFORME\",\"\",IF(E17=\" \",N(0),IF(SUM(K17:O17)=0,N(0),SUM(K17:O17))))","v":132}]
[null,null,null,{"$f":"'INFORMATIONS COMPETITEURS'!D17","v":9},{"$f":"IF('INFORMATIONS COMPETITEURS'!$D$59=\"TABLEAU DE SAISIE CONFORME\",CONCATENATE('INFORMATIONS COMPETITEURS'!G17,\" \",'INFORMATIONS COMPETITEURS'!E17),\"\")","v":"Solène Le Bourhis  Beyer"},null,null,{"$f":"IF('INFORMATIONS COMPETITEURS'!$D$59=\"TABLEAU DE SAISIE CONFORME\",IF('INFORMATIONS COMPETITEURS'!I17=\"\",\"\",'INFORMATIONS COMPETITEURS'!I17),\"\")","v":"CM Arzano"},null,null,50,50,46,null,null,{"$f":"IF('INFORMATIONS COMPETITEURS'!$D$59=\"TABLEAU DE SAISIE NON CONFORME\",\"\",IF(E18=\" \",N(0),IF(SUM(K18:O18)=0,N(0),SUM(K18:O18))))","v":146}]
[null,null,null,{"$f":"'INFORMATIONS COMPETITEURS'!D18","v":10},{"$f":"IF('INFORMATIONS COMPETITEURS'!$D$59=\"TABLEAU DE SAISIE CONFORME\",CONCATENATE('INFORMATIONS COMPETITEURS'!G18,\" \",'INFORMATIONS COMPETITEURS'!E18),\"\")","v":"Guy MASSON"},null,null,{"$f":"IF('INFORMATIONS COMPETITEURS'!$D$59=\"TABLEAU DE SAISIE CONFORME\",IF('INFORMATIONS COMPETITEURS'!I18=\"\",\"\",'INFORMATIONS COMPETITEURS'!I18),\"\")","v":"GPS Lyon Centre"},null,null,52,47,54,null,null,{"$f":"IF('INFORMATIONS COMPETITEURS'!$D$59=\"TABLEAU DE SAISIE NON CONFORME\",\"\",IF(E19=\" \",N(0),IF(SUM(K19:O19)=0,N(0),SUM(K19:O19))))","v":153}]
[null,null,null,{"$f":"'INFORMATIONS COMPETITEURS'!D19","v":11},{"$f":"IF('INFORMATIONS COMPETITEURS'!$D$59=\"TABLEAU DE SAISIE CONFORME\",CONCATENATE('INFORMATIONS COMPETITEURS'!G19,\" \",'INFORMATIONS COMPETITEURS'!E19),\"\")","v":"Gerard COMMARET"},null,null,{"$f":"IF('INFORMATIONS COMPETITEURS'!$D$59=\"TABLEAU DE SAISIE CONFORME\",IF('INFORMATIONS COMPETITEURS'!I19=\"\",\"\",'INFORMATIONS COMPETITEURS'!I19),\"\")","v":"GPS Val de Saone"},null,null,15,20,20,null,null,{"$f":"IF('INFORMATIONS COMPETITEURS'!$D$59=\"TABLEAU DE SAISIE NON CONFORME\",\"\",IF(E20=\" \",N(0),IF(SUM(K20:O20)=0,N(0),SUM(K20:O20))))","v":55}]
[null,null,null,{"$f":"'INFORMATIONS COMPETITEURS'!D20","v":12},{"$f":"IF('INFORMATIONS COMPETITEURS'!$D$59=\"TABLEAU DE SAISIE CONFORME\",CONCATENATE('INFORMATIONS COMPETITEURS'!G20,\" \",'INFORMATIONS COMPETITEURS'!E20),\"\")","v":"Stéphane PONCET"},null,null,{"$f":"IF('INFORMATIONS COMPETITEURS'!$D$59=\"TABLEAU DE SAISIE CONFORME\",IF('INFORMATIONS COMPETITEURS'!I20=\"\",\"\",'INFORMATIONS COMPETITEURS'!I20),\"\")","v":"GPS Bresse Remiremont"},null,null,80,81,77,null,null,{"$f":"IF('INFORMATIONS COMPETITEURS'!$D$59=\"TABLEAU DE SAISIE NON CONFORME\",\"\",IF(E21=\" \",N(0),IF(SUM(K21:O21)=0,N(0),SUM(K21:O21))))","v":238}]
[null,null,null,{"$f":"'INFORMATIONS COMPETITEURS'!D21","v":13},{"$f":"IF('INFORMATIONS COMPETITEURS'!$D$59=\"TABLEAU DE SAISIE CONFORME\",CONCATENATE('INFORMATIONS COMPETITEURS'!G21,\" \",'INFORMATIONS COMPETITEURS'!E21),\"\")","v":"Didier CHETAUD"},null,null,{"$f":"IF('INFORMATIONS COMPETITEURS'!$D$59=\"TABLEAU DE SAISIE CONFORME\",IF('INFORMATIONS COMPETITEURS'!I21=\"\",\"\",'INFORMATIONS COMPETITEURS'!I21),\"\")","v":"GPS Val de Saone"},null,null,97,97,98,null,null,{"$f":"IF('INFORMATIONS COMPETITEURS'!$D$59=\"TABLEAU DE SAISIE NON CONFORME\",\"\",IF(E22=\" \",N(0),IF(SUM(K22:O22)=0,N(0),SUM(K22:O22))))","v":292}]
[null,null,null,{"$f":"'INFORMATIONS COMPETITEURS'!D22","v":14},{"$f":"IF('INFORMATIONS COMPETITEURS'!$D$59=\"TABLEAU DE SAISIE CONFORME\",CONCATENATE('INFORMATIONS COMPETITEURS'!G22,\" \",'INFORMATIONS COMPETITEURS'!E22),\"\")","v":"Eric GIAMPRETI"},null,null,{"$f":"IF('INFORMATIONS COMPETITEURS'!$D$59=\"TABLEAU DE SAISIE CONFORME\",IF('INFORMATIONS COMPETITEURS'!I22=\"\",\"\",'INFORMATIONS COMPETITEURS'!I22),\"\")","v":"GPS Lyon Centre"},null,null,33,35,38,null,null,{"$f":"IF('INFORMATIONS COMPETITEURS'!$D$59=\"TABLEAU DE SAISIE NON CONFORME\",\"\",IF(E23=\" \",N(0),IF(SUM(K23:O23)=0,N(0),SUM(K23:O23))))","v":106}]
[null,null,null,{"$f":"'INFORMATIONS COMPETITEURS'!D23","v":15},{"$f":"IF('INFORMATIONS COMPETITEURS'!$D$59=\"TABLEAU DE SAISIE CONFORME\",CONCATENATE('INFORMATIONS COMPETITEURS'!G23,\" \",'INFORMATIONS COMPETITEURS'!E23),\"\")","v":"Frédéric EVENNOU"},null,null,{"$f":"IF('INFORMATIONS COMPETITEURS'!$D$59=\"TABLEAU DE SAISIE CONFORME\",IF('INFORMATIONS COMPETITEURS'!I23=\"\",\"\",'INFORMATIONS COMPETITEURS'!I23),\"\")","v":"GPS Lyon Centre"},null,null,51,48,44,null,null,{"$f":"IF('INFORMATIONS COMPETITEURS'!$D$59=\"TABLEAU DE SAISIE NON CONFORME\",\"\",IF(E24=\" \",N(0),IF(SUM(K24:O24)=0,N(0),SUM(K24:O24))))","v":143}]
[null,null,null,{"$f":"'INFORMATIONS COMPETITEURS'!D24","v":16},{"$f":"IF('INFORMATIONS COMPETITEURS'!$D$59=\"TABLEAU DE SAISIE CONFORME\",CONCATENATE('INFORMATIONS COMPETITEURS'!G24,\" \",'INFORMATIONS COMPETITEURS'!E24),\"\")","v":"Bernard FAIVRE"},null,null,{"$f":"IF('INFORMATIONS COMPETITEURS'!$D$59=\"TABLEAU DE SAISIE CONFORME\",IF('INFORMATIONS COMPETITEURS'!I24=\"\",\"\",'INFORMATIONS COMPETITEURS'!I24),\"\")","v":"GPS Pays d'Oc"},null,null,45,42,38,null,null,{"$f":"IF('INFORMATIONS COMPETITEURS'!$D$59=\"TABLEAU DE SAISIE NON CONFORME\",\"\",IF(E25=\" \",N(0),IF(SUM(K25:O25)=0,N(0),SUM(K25:O25))))","v":125}]
[null,null,null,{"$f":"'INFORMATIONS COMPETITEURS'!D25","v":17},{"$f":"IF('INFORMATIONS COMPETITEURS'!$D$59=\"TABLEAU DE SAISIE CONFORME\",CONCATENATE('INFORMATIONS COMPETITEURS'!G25,\" \",'INFORMATIONS COMPETITEURS'!E25),\"\")","v":"Bernard Rémi"},null,null,{"$f":"IF('INFORMATIONS COMPETITEURS'!$D$59=\"TABLEAU DE SAISIE CONFORME\",IF('INFORMATIONS COMPETITEURS'!I25=\"\",\"\",'INFORMATIONS COMPETITEURS'!I25),\"\")","v":"Ecole de pêche Dijon"},null,null,0,0,0,null,null,{"$f":"IF('INFORMATIONS COMPETITEURS'!$D$59=\"TABLEAU DE SAISIE NON CONFORME\",\"\",IF(E26=\" \",N(0),IF(SUM(K26:O26)=0,N(0),SUM(K26:O26))))","v":0}]
[null,null,null,{"$f":"'INFORMATIONS COMPETITEURS'!D26","v":18},{"$f":"IF('INFORMATIONS COMPETITEURS'!$D$59=\"TABLEAU DE SAISIE CONFORME\",CONCATENATE('INFORMATIONS COMPETITEURS'!G26,\" \",'INFORMATIONS COMPETITEURS'!E26),\"\")","v":"Denis FAUVELLIERE"},null,null,{"$f":"IF('INFORMATIONS COMPETITEURS'!$D$59=\"TABLEAU DE SAISIE CONFORME\",IF('INFORMATIONS COMPETITEURS'!I26=\"\",\"\",'INFORMATIONS COMPETITEURS'!I26),\"\")","v":"CM Plaisir"},null,null,52,51,49,null,null,{"$f":"IF('INFORMATIONS COMPETITEURS'!$D$59=\"TABLEAU DE SAISIE NON CONFORME\",\"\",IF(E27=\" \",N(0),IF(SUM(K27:O27)=0,N(0),SUM(K27:O27))))","v":152}]
[null,null,null,{"$f":"'INFORMATIONS COMPETITEURS'!D27","v":19},{"$f":"IF('INFORMATIONS COMPETITEURS'!$D$59=\"TABLEAU DE SAISIE CONFORME\",CONCATENATE('INFORMATIONS COMPETITEURS'!G27,\" \",'INFORMATIONS COMPETITEURS'!E27),\"\")","v":"Lionel GOMINET"},null,null,{"$f":"IF('INFORMATIONS COMPETITEURS'!$D$59=\"TABLEAU DE SAISIE CONFORME\",IF('INFORMATIONS COMPETITEURS'!I27=\"\",\"\",'INFORMATIONS COMPETITEURS'!I27),\"\")","v":"GPS Pays d'Oc"},null,null,55,63,57,null,null,{"$f":"IF('INFORMATIONS COMPETITEURS'!$D$59=\"TABLEAU DE SAISIE NON CONFORME\",\"\",IF(E28=\" \",N(0),IF(SUM(K28:O28)=0,N(0),SUM(K28:O28))))","v":175}]
[null,null,null,{"$f":"'INFORMATIONS COMPETITEURS'!D28","v":20},{"$f":"IF('INFORMATIONS COMPETITEURS'!$D$59=\"TABLEAU DE SAISIE CONFORME\",CONCATENATE('INFORMATIONS COMPETITEURS'!G28,\" \",'INFORMATIONS COMPETITEURS'!E28),\"\")","v":"HAMZA MAACH"},null,null,{"$f":"IF('INFORMATIONS COMPETITEURS'!$D$59=\"TABLEAU DE SAISIE CONFORME\",IF('INFORMATIONS COMPETITEURS'!I28=\"\",\"\",'INFORMATIONS COMPETITEURS'!I28),\"\")","v":"Ecole de pêche Dijon"},null,null,23,25,31,null,null,{"$f":"IF('INFORMATIONS COMPETITEURS'!$D$59=\"TABLEAU DE SAISIE NON CONFORME\",\"\",IF(E29=\" \",N(0),IF(SUM(K29:O29)=0,N(0),SUM(K29:O29))))","v":79}]
[null,null,null,{"$f":"'INFORMATIONS COMPETITEURS'!D29","v":21},{"$f":"IF('INFORMATIONS COMPETITEURS'!$D$59=\"TABLEAU DE SAISIE CONFORME\",CONCATENATE('INFORMATIONS COMPETITEURS'!G29,\" \",'INFORMATIONS COMPETITEURS'!E29),\"\")","v":"Dimitri DEZOTHEZ"},null,null,{"$f":"IF('INFORMATIONS COMPETITEURS'!$D$59=\"TABLEAU DE SAISIE CONFORME\",IF('INFORMATIONS COMPETITEURS'!I29=\"\",\"\",'INFORMATIONS COMPETITEURS'!I29),\"\")","v":"Club Mouche du gévaudan"},null,null,59,58,56,null,null,{"$f":"IF('INFORMATIONS COMPETITEURS'!$D$59=\"TABLEAU DE SAISIE NON CONFORME\",\"\",IF(E30=\" \",N(0),IF(SUM(K30:O30)=0,N(0),SUM(K30:O30))))","v":173}]
[null,null,null,{"$f":"'INFORMATIONS COMPETITEURS'!D30","v":22},{"$f":"IF('INFORMATIONS COMPETITEURS'!$D$59=\"TABLEAU DE SAISIE CONFORME\",CONCATENATE('INFORMATIONS COMPETITEURS'!G30,\" \",'INFORMATIONS COMPETITEURS'!E30),\"\")","v":"Dominique BRULEY"},null,null,{"$f":"IF('INFORMATIONS COMPETITEURS'!$D$59=\"TABLEAU DE SAISIE CONFORME\",IF('INFORMATIONS COMPETITEURS'!I30=\"\",\"\",'INFORMATIONS COMPETITEURS'!I30),\"\")","v":"GPS Val de Saone"},null,null,43,41,45,null,null,{"$f":"IF('INFORMATIONS COMPETITEURS'!$D$59=\"TABLEAU DE SAISIE NON CONFORME\",\"\",IF(E31=\" \",N(0),IF(SUM(K31:O31)=0,N(0),SUM(K31:O31))))","v":129}]
[null,null,null,{"$f":"'INFORMATIONS COMPETITEURS'!D31","v":23},{"$f":"IF('INFORMATIONS COMPETITEURS'!$D$59=\"TABLEAU DE SAISIE CONFORME\",CONCATENATE('INFORMATIONS COMPETITEURS'!G31,\" \",'INFORMATIONS COMPETITEURS'!E31),\"\")","v":"Christophe MARTIN"},null,null,{"$f":"IF('INFORMATIONS COMPETITEURS'!$D$59=\"TABLEAU DE SAISIE CONFORME\",IF('INFORMATIONS COMPETITEURS'!I31=\"\",\"\",'INFORMATIONS COMPETITEURS'!I31),\"\")","v":"CM Plaisir"},null,null,42,45,40,null,null,{"$f":"IF('INFORMATIONS COMPETITEURS'!$D$59=\"TABLEAU DE SAISIE NON CONFORME\",\"\",IF(E32=\" \",N(0),IF(SUM(K32:O32)=0,N(0),SUM(K32:O32))))","v":127}]
[null,null,null,{"$f":"'INFORMATIONS COMPETITEURS'!D32","v":24},{"$f":"IF('INFORMATIONS COMPETITEURS'!$D$59=\"TABLEAU DE SAISIE CONFORME\",CONCATENATE('INFORMATIONS COMPETITEURS'!G32,\" \",'INFORMATIONS COMPETITEURS'!E32),\"\")","v":"Gérard VILLA"},null,null,{"$f":"IF('INFORMATIONS COMPETITEURS'!$D$59=\"TABLEAU DE SAISIE CONFORME\",IF('INFORMATIONS COMPETITEURS'!I32=\"\",\"\",'INFORMATIONS COMPETITEURS'!I32),\"\")","v":"GPS Pays d'Oc"},null,null,54,52,51,null,null,{"$f":"IF('INFORMATIONS COMPETITEURS'!$D$59=\"TABLEAU DE SAISIE NON CONFORME\",\"\",IF(E33=\" \",N(0),IF(SUM(K33:O33)=0,N(0),SUM(K33:O33))))","v":157}]
[null,null,null,{"$f":"'INFORMATIONS COMPETITEURS'!D33","v":25},{"$f":"IF('INFORMATIONS COMPETITEURS'!$D$59=\"TABLEAU DE SAISIE CONFORME\",CONCATENATE('INFORMATIONS COMPETITEURS'!G33,\" \",'INFORMATIONS COMPETITEURS'!E33),\"\")","v":"patrick JACQUOT"},null,null,{"$f":"IF('INFORMATIONS COMPETITEURS'!$D$59=\"TABLEAU DE SAISIE CONFORME\",IF('INFORMATIONS COMPETITEURS'!I33=\"\",\"\",'INFORMATIONS COMPETITEURS'!I33),\"\")","v":"GPS Val de Saone"},null,null,48,48,53,null,null,{"$f":"IF('INFORMATIONS COMPETITEURS'!$D$59=\"TABLEAU DE SAISIE NON CONFORME\",\"\",IF(E34=\" \",N(0),IF(SUM(K34:O34)=0,N(0),SUM(K34:O34))))","v":149}]
[null,null,null,{"$f":"'INFORMATIONS COMPETITEURS'!D34","v":26},{"$f":"IF('INFORMATIONS COMPETITEURS'!$D$59=\"TABLEAU DE SAISIE CONFORME\",CONCATENATE('INFORMATIONS COMPETITEURS'!G34,\" \",'INFORMATIONS COMPETITEURS'!E34),\"\")","v":"Henri CALAVIA"},null,null,{"$f":"IF('INFORMATIONS COMPETITEURS'!$D$59=\"TABLEAU DE SAISIE CONFORME\",IF('INFORMATIONS COMPETITEURS'!I34=\"\",\"\",'INFORMATIONS COMPETITEURS'!I34),\"\")","v":"CMCRE"},null,null,92,93,93,null,null,{"$f":"IF('INFORMATIONS COMPETITEURS'!$D$59=\"TABLEAU DE SAISIE NON CONFORME\",\"\",IF(E35=\" \",N(0),IF(SUM(K35:O35)=0,N(0),SUM(K35:O35))))","v":278}]
[null,null,null,{"$f":"'INFORMATIONS COMPETITEURS'!D35","v":27},{"$f":"IF('INFORMATIONS COMPETITEURS'!$D$59=\"TABLEAU DE SAISIE CONFORME\",CONCATENATE('INFORMATIONS COMPETITEURS'!G35,\" \",'INFORMATIONS COMPETITEURS'!E35),\"\")","v":"Batiste JEANIN"},null,null,{"$f":"IF('INFORMATIONS COMPETITEURS'!$D$59=\"TABLEAU DE SAISIE CONFORME\",IF('INFORMATIONS COMPETITEURS'!I35=\"\",\"\",'INFORMATIONS COMPETITEURS'!I35),\"\")","v":"Ecole de pêche Dijon"},null,null,38,38,30,null,null,{"$f":"IF('INFORMATIONS COMPETITEURS'!$D$59=\"TABLEAU DE SAISIE NON CONFORME\",\"\",IF(E36=\" \",N(0),IF(SUM(K36:O36)=0,N(0),SUM(K36:O36))))","v":106}]
[null,null,null,{"$f":"'INFORMATIONS COMPETITEURS'!D36","v":28},{"$f":"IF('INFORMATIONS COMPETITEURS'!$D$59=\"TABLEAU DE SAISIE CONFORME\",CONCATENATE('INFORMATIONS COMPETITEURS'!G36,\" \",'INFORMATIONS COMPETITEURS'!E36),\"\")","v":"Règis CAZARETH"},null,null,{"$f":"IF('INFORMATIONS COMPETITEURS'!$D$59=\"TABLEAU DE SAISIE CONFORME\",IF('INFORMATIONS COMPETITEURS'!I36=\"\",\"\",'INFORMATIONS COMPETITEURS'!I36),\"\")","v":"GPS Décines"},null,null,52,44,42,null,null,{"$f":"IF('INFORMATIONS COMPETITEURS'!$D$59=\"TABLEAU DE SAISIE NON CONFORME\",\"\",IF(E37=\" \",N(0),IF(SUM(K37:O37)=0,N(0),SUM(K37:O37))))","v":138}]
[null,null,null,{"$f":"'INFORMATIONS COMPETITEURS'!D37","v":29},{"$f":"IF('INFORMATIONS COMPETITEURS'!$D$59=\"TABLEAU DE SAISIE CONFORME\",CONCATENATE('INFORMATIONS COMPETITEURS'!G37,\" \",'INFORMATIONS COMPETITEURS'!E37),\"\")","v":"BOUAFFIA DENIL"},null,null,{"$f":"IF('INFORMATIONS COMPETITEURS'!$D$59=\"TABLEAU DE SAISIE CONFORME\",IF('INFORMATIONS COMPETITEURS'!I37=\"\",\"\",'INFORMATIONS COMPETITEURS'!I37),\"\")","v":"GPS"},null,null,0,0,0,null,null,{"$f":"IF('INFORMATIONS COMPETITEURS'!$D$59=\"TABLEAU DE SAISIE NON CONFORME\",\"\",IF(E38=\" \",N(0),IF(SUM(K38:O38)=0,N(0),SUM(K38:O38))))","v":0}]
[null,null,null,{"$f":"'INFORMATIONS COMPETITEURS'!D38","v":30},{"$f":"IF('INFORMATIONS COMPETITEURS'!$D$59=\"TABLEAU DE SAISIE CONFORME\",CONCATENATE('INFORMATIONS COMPETITEURS'!G38,\" \",'INFORMATIONS COMPETITEURS'!E38),\"\")","v":" "},null,null,{"$f":"IF('INFORMATIONS COMPETITEURS'!$D$59=\"TABLEAU DE SAISIE CONFORME\",IF('INFORMATIONS COMPETITEURS'!I38=\"\",\"\",'INFORMATIONS COMPETITEURS'!I38),\"\")","v":""},null,null,null,null,null,null,null,{"$f":"IF('INFORMATIONS COMPETITEURS'!$D$59=\"TABLEAU DE SAISIE NON CONFORME\",\"\",IF(E39=\" \",N(0),IF(SUM(K39:O39)=0,N(0),SUM(K39:O39))))","v":0}]
[null,null,null,{"$f":"'INFORMATIONS COMPETITEURS'!D39","v":31},{"$f":"IF('INFORMATIONS COMPETITEURS'!$D$59=\"TABLEAU DE SAISIE CONFORME\",CONCATENATE('INFORMATIONS COMPETITEURS'!G39,\" \",'INFORMATIONS COMPETITEURS'!E39),\"\")","v":" "},null,null,{"$f":"IF('INFORMATIONS COMPETITEURS'!$D$59=\"TABLEAU DE SAISIE CONFORME\",IF('INFORMATIONS COMPETITEURS'!I39=\"\",\"\",'INFORMATIONS COMPETITEURS'!I39),\"\")","v":""},null,null,null,null,null,null,null,{"$f":"IF('INFORMATIONS COMPETITEURS'!$D$59=\"TABLEAU DE SAISIE NON CONFORME\",\"\",IF(E40=\" \",N(0),IF(SUM(K40:O40)=0,N(0),SUM(K40:O40))))","v":0}]
[null,null,null,{"$f":"'INFORMATIONS COMPETITEURS'!D40","v":32},{"$f":"IF('INFORMATIONS COMPETITEURS'!$D$59=\"TABLEAU DE SAISIE CONFORME\",CONCATENATE('INFORMATIONS COMPETITEURS'!G40,\" \",'INFORMATIONS COMPETITEURS'!E40),\"\")","v":" "},null,null,{"$f":"IF('INFORMATIONS COMPETITEURS'!$D$59=\"TABLEAU DE SAISIE CONFORME\",IF('INFORMATIONS COMPETITEURS'!I40=\"\",\"\",'INFORMATIONS COMPETITEURS'!I40),\"\")","v":""},null,null,null,null,null,null,null,{"$f":"IF('INFORMATIONS COMPETITEURS'!$D$59=\"TABLEAU DE SAISIE NON CONFORME\",\"\",IF(E41=\" \",N(0),IF(SUM(K41:O41)=0,N(0),SUM(K41:O41))))","v":0}]
[null,null,null,{"$f":"'INFORMATIONS COMPETITEURS'!D41","v":33},{"$f":"IF('INFORMATIONS COMPETITEURS'!$D$59=\"TABLEAU DE SAISIE CONFORME\",CONCATENATE('INFORMATIONS COMPETITEURS'!G41,\" \",'INFORMATIONS COMPETITEURS'!E41),\"\")","v":" "},null,null,{"$f":"IF('INFORMATIONS COMPETITEURS'!$D$59=\"TABLEAU DE SAISIE CONFORME\",IF('INFORMATIONS COMPETITEURS'!I41=\"\",\"\",'INFORMATIONS COMPETITEURS'!I41),\"\")","v":""},null,null,null,null,null,null,null,{"$f":"IF('INFORMATIONS COMPETITEURS'!$D$59=\"TABLEAU DE SAISIE NON CONFORME\",\"\",IF(E42=\" \",N(0),IF(SUM(K42:O42)=0,N(0),SUM(K42:O42))))","v":0}]
[null,null,null,{"$f":"'INFORMATIONS COMPETITEURS'!D42","v":34},{"$f":"IF('INFORMATIONS COMPETITEURS'!$D$59=\"TABLEAU DE SAISIE CONFORME\",CONCATENATE('INFORMATIONS COMPETITEURS'!G42,\" \",'INFORMATIONS COMPETITEURS'!E42),\"\")","v":" "},null,null,{"$f":"IF('INFORMATIONS COMPETITEURS'!$D$59=\"TABLEAU DE SAISIE CONFORME\",IF('INFORMATIONS COMPETITEURS'!I42=\"\",\"\",'INFORMATIONS COMPETITEURS'!I42),\"\")","v":""},null,null,null,null,null,null,null,{"$f":"IF('INFORMATIONS COMPETITEURS'!$D$59=\"TABLEAU DE SAISIE NON CONFORME\",\"\",IF(E43=\" \",N(0),IF(SUM(K43:O43)=0,N(0),SUM(K43:O43))))","v":0}]
[null,null,null,{"$f":"'INFORMATIONS COMPETITEURS'!D43","v":35},{"$f":"IF('INFORMATIONS COMPETITEURS'!$D$59=\"TABLEAU DE SAISIE CONFORME\",CONCATENATE('INFORMATIONS COMPETITEURS'!G43,\" \",'INFORMATIONS COMPETITEURS'!E43),\"\")","v":" "},null,null,{"$f":"IF('INFORMATIONS COMPETITEURS'!$D$59=\"TABLEAU DE SAISIE CONFORME\",IF('INFORMATIONS COMPETITEURS'!I43=\"\",\"\",'INFORMATIONS COMPETITEURS'!I43),\"\")","v":""},null,null,null,null,null,null,null,{"$f":"IF('INFORMATIONS COMPETITEURS'!$D$59=\"TABLEAU DE SAISIE NON CONFORME\",\"\",IF(E44=\" \",N(0),IF(SUM(K44:O44)=0,N(0),SUM(K44:O44))))","v":0}]
[null,null,null,{"$f":"'INFORMATIONS COMPETITEURS'!D44","v":36},{"$f":"IF('INFORMATIONS COMPETITEURS'!$D$59=\"TABLEAU DE SAISIE CONFORME\",CONCATENATE('INFORMATIONS COMPETITEURS'!G44,\" \",'INFORMATIONS COMPETITEURS'!E44),\"\")","v":" "},null,null,{"$f":"IF('INFORMATIONS COMPETITEURS'!$D$59=\"TABLEAU DE SAISIE CONFORME\",IF('INFORMATIONS COMPETITEURS'!I44=\"\",\"\",'INFORMATIONS COMPETITEURS'!I44),\"\")","v":""},null,null,null,null,null,null,null,{"$f":"IF('INFORMATIONS COMPETITEURS'!$D$59=\"TABLEAU DE SAISIE NON CONFORME\",\"\",IF(E45=\" \",N(0),IF(SUM(K45:O45)=0,N(0),SUM(K45:O45))))","v":0}]
[null,null,null,{"$f":"'INFORMATIONS COMPETITEURS'!D45","v":37},{"$f":"IF('INFORMATIONS COMPETITEURS'!$D$59=\"TABLEAU DE SAISIE CONFORME\",CONCATENATE('INFORMATIONS COMPETITEURS'!G45,\" \",'INFORMATIONS COMPETITEURS'!E45),\"\")","v":" "},null,null,{"$f":"IF('INFORMATIONS COMPETITEURS'!$D$59=\"TABLEAU DE SAISIE CONFORME\",IF('INFORMATIONS COMPETITEURS'!I45=\"\",\"\",'INFORMATIONS COMPETITEURS'!I45),\"\")","v":""},null,null,null,null,null,null,null,{"$f":"IF('INFORMATIONS COMPETITEURS'!$D$59=\"TABLEAU DE SAISIE NON CONFORME\",\"\",IF(E46=\" \",N(0),IF(SUM(K46:O46)=0,N(0),SUM(K46:O46))))","v":0}]
[null,null,null,{"$f":"'INFORMATIONS COMPETITEURS'!D46","v":38},{"$f":"IF('INFORMATIONS COMPETITEURS'!$D$59=\"TABLEAU DE SAISIE CONFORME\",CONCATENATE('INFORMATIONS COMPETITEURS'!G46,\" \",'INFORMATIONS COMPETITEURS'!E46),\"\")","v":" "},null,null,{"$f":"IF('INFORMATIONS COMPETITEURS'!$D$59=\"TABLEAU DE SAISIE CONFORME\",IF('INFORMATIONS COMPETITEURS'!I46=\"\",\"\",'INFORMATIONS COMPETITEURS'!I46),\"\")","v":""},null,null,null,null,null,null,null,{"$f":"IF('INFORMATIONS COMPETITEURS'!$D$59=\"TABLEAU DE SAISIE NON CONFORME\",\"\",IF(E47=\" \",N(0),IF(SUM(K47:O47)=0,N(0),SUM(K47:O47))))","v":0}]
[null,null,null,{"$f":"'INFORMATIONS COMPETITEURS'!D47","v":39},{"$f":"IF('INFORMATIONS COMPETITEURS'!$D$59=\"TABLEAU DE SAISIE CONFORME\",CONCATENATE('INFORMATIONS COMPETITEURS'!G47,\" \",'INFORMATIONS COMPETITEURS'!E47),\"\")","v":" "},null,null,{"$f":"IF('INFORMATIONS COMPETITEURS'!$D$59=\"TABLEAU DE SAISIE CONFORME\",IF('INFORMATIONS COMPETITEURS'!I47=\"\",\"\",'INFORMATIONS COMPETITEURS'!I47),\"\")","v":""},null,null,null,null,null,null,null,{"$f":"IF('INFORMATIONS COMPETITEURS'!$D$59=\"TABLEAU DE SAISIE NON CONFORME\",\"\",IF(E48=\" \",N(0),IF(SUM(K48:O48)=0,N(0),SUM(K48:O48))))","v":0}]
[null,null,null,{"$f":"'INFORMATIONS COMPETITEURS'!D48","v":40},{"$f":"IF('INFORMATIONS COMPETITEURS'!$D$59=\"TABLEAU DE SAISIE CONFORME\",CONCATENATE('INFORMATIONS COMPETITEURS'!G48,\" \",'INFORMATIONS COMPETITEURS'!E48),\"\")","v":" "},null,null,{"$f":"IF('INFORMATIONS COMPETITEURS'!$D$59=\"TABLEAU DE SAISIE CONFORME\",IF('INFORMATIONS COMPETITEURS'!I48=\"\",\"\",'INFORMATIONS COMPETITEURS'!I48),\"\")","v":""},null,null,null,null,null,null,null,{"$f":"IF('INFORMATIONS COMPETITEURS'!$D$59=\"TABLEAU DE SAISIE NON CONFORME\",\"\",IF(E49=\" \",N(0),IF(SUM(K49:O49)=0,N(0),SUM(K49:O49))))","v":0}]
[null,null,null,{"$f":"'INFORMATIONS COMPETITEURS'!D49","v":41},{"$f":"IF('INFORMATIONS COMPETITEURS'!$D$59=\"TABLEAU DE SAISIE CONFORME\",CONCATENATE('INFORMATIONS COMPETITEURS'!G49,\" \",'INFORMATIONS COMPETITEURS'!E49),\"\")","v":" "},null,null,{"$f":"IF('INFORMATIONS COMPETITEURS'!$D$59=\"TABLEAU DE SAISIE CONFORME\",IF('INFORMATIONS COMPETITEURS'!I49=\"\",\"\",'INFORMATIONS COMPETITEURS'!I49),\"\")","v":""},null,null,null,null,null,null,null,{"$f":"IF('INFORMATIONS COMPETITEURS'!$D$59=\"TABLEAU DE SAISIE NON CONFORME\",\"\",IF(E50=\" \",N(0),IF(SUM(K50:O50)=0,N(0),SUM(K50:O50))))","v":0}]
[null,null,null,{"$f":"'INFORMATIONS COMPETITEURS'!D50","v":42},{"$f":"IF('INFORMATIONS COMPETITEURS'!$D$59=\"TABLEAU DE SAISIE CONFORME\",CONCATENATE('INFORMATIONS COMPETITEURS'!G50,\" \",'INFORMATIONS COMPETITEURS'!E50),\"\")","v":" "},null,null,{"$f":"IF('INFORMATIONS COMPETITEURS'!$D$59=\"TABLEAU DE SAISIE CONFORME\",IF('INFORMATIONS COMPETITEURS'!I50=\"\",\"\",'INFORMATIONS COMPETITEURS'!I50),\"\")","v":""},null,null,null,null,null,null,null,{"$f":"IF('INFORMATIONS COMPETITEURS'!$D$59=\"TABLEAU DE SAISIE NON CONFORME\",\"\",IF(E51=\" \",N(0),IF(SUM(K51:O51)=0,N(0),SUM(K51:O51))))","v":0}]
[null,null,null,{"$f":"'INFORMATIONS COMPETITEURS'!D51","v":43},{"$f":"IF('INFORMATIONS COMPETITEURS'!$D$59=\"TABLEAU DE SAISIE CONFORME\",CONCATENATE('INFORMATIONS COMPETITEURS'!G51,\" \",'INFORMATIONS COMPETITEURS'!E51),\"\")","v":" "},null,null,{"$f":"IF('INFORMATIONS COMPETITEURS'!$D$59=\"TABLEAU DE SAISIE CONFORME\",IF('INFORMATIONS COMPETITEURS'!I51=\"\",\"\",'INFORMATIONS COMPETITEURS'!I51),\"\")","v":""},null,null,null,null,null,null,null,{"$f":"IF('INFORMATIONS COMPETITEURS'!$D$59=\"TABLEAU DE SAISIE NON CONFORME\",\"\",IF(E52=\" \",N(0),IF(SUM(K52:O52)=0,N(0),SUM(K52:O52))))","v":0}]
[null,null,null,{"$f":"'INFORMATIONS COMPETITEURS'!D52","v":44},{"$f":"IF('INFORMATIONS COMPETITEURS'!$D$59=\"TABLEAU DE SAISIE CONFORME\",CONCATENATE('INFORMATIONS COMPETITEURS'!G52,\" \",'INFORMATIONS COMPETITEURS'!E52),\"\")","v":" "},null,null,{"$f":"IF('INFORMATIONS COMPETITEURS'!$D$59=\"TABLEAU DE SAISIE CONFORME\",IF('INFORMATIONS COMPETITEURS'!I52=\"\",\"\",'INFORMATIONS COMPETITEURS'!I52),\"\")","v":""},null,null,null,null,null,null,null,{"$f":"IF('INFORMATIONS COMPETITEURS'!$D$59=\"TABLEAU DE SAISIE NON CONFORME\",\"\",IF(E53=\" \",N(0),IF(SUM(K53:O53)=0,N(0),SUM(K53:O53))))","v":0}]
[null,null,null,{"$f":"'INFORMATIONS COMPETITEURS'!D53","v":45},{"$f":"IF('INFORMATIONS COMPETITEURS'!$D$59=\"TABLEAU DE SAISIE CONFORME\",CONCATENATE('INFORMATIONS COMPETITEURS'!G53,\" \",'INFORMATIONS COMPETITEURS'!E53),\"\")","v":" "},null,null,{"$f":"IF('INFORMATIONS COMPETITEURS'!$D$59=\"TABLEAU DE SAISIE CONFORME\",IF('INFORMATIONS COMPETITEURS'!I53=\"\",\"\",'INFORMATIONS COMPETITEURS'!I53),\"\")","v":""},null,null,null,null,null,null,null,{"$f":"IF('INFORMATIONS COMPETITEURS'!$D$59=\"TABLEAU DE SAISIE NON CONFORME\",\"\",IF(E54=\" \",N(0),IF(SUM(K54:O54)=0,N(0),SUM(K54:O54))))","v":0}]
[null,null,null,{"$f":"'INFORMATIONS COMPETITEURS'!D54","v":46},{"$f":"IF('INFORMATIONS COMPETITEURS'!$D$59=\"TABLEAU DE SAISIE CONFORME\",CONCATENATE('INFORMATIONS COMPETITEURS'!G54,\" \",'INFORMATIONS COMPETITEURS'!E54),\"\")","v":" "},null,null,{"$f":"IF('INFORMATIONS COMPETITEURS'!$D$59=\"TABLEAU DE SAISIE CONFORME\",IF('INFORMATIONS COMPETITEURS'!I54=\"\",\"\",'INFORMATIONS COMPETITEURS'!I54),\"\")","v":""},null,null,null,null,null,null,null,{"$f":"IF('INFORMATIONS COMPETITEURS'!$D$59=\"TABLEAU DE SAISIE NON CONFORME\",\"\",IF(E55=\" \",N(0),IF(SUM(K55:O55)=0,N(0),SUM(K55:O55))))","v":0}]
[null,null,null,{"$f":"'INFORMATIONS COMPETITEURS'!D55","v":47},{"$f":"IF('INFORMATIONS COMPETITEURS'!$D$59=\"TABLEAU DE SAISIE CONFORME\",CONCATENATE('INFORMATIONS COMPETITEURS'!G55,\" \",'INFORMATIONS COMPETITEURS'!E55),\"\")","v":" "},null,null,{"$f":"IF('INFORMATIONS COMPETITEURS'!$D$59=\"TABLEAU DE SAISIE CONFORME\",IF('INFORMATIONS COMPETITEURS'!I55=\"\",\"\",'INFORMATIONS COMPETITEURS'!I55),\"\")","v":""},null,null,null,null,null,null,null,{"$f":"IF('INFORMATIONS COMPETITEURS'!$D$59=\"TABLEAU DE SAISIE NON CONFORME\",\"\",IF(E56=\" \",N(0),IF(SUM(K56:O56)=0,N(0),SUM(K56:O56))))","v":0}]
[null,null,null,{"$f":"'INFORMATIONS COMPETITEURS'!D56","v":48},{"$f":"IF('INFORMATIONS COMPETITEURS'!$D$59=\"TABLEAU DE SAISIE CONFORME\",CONCATENATE('INFORMATIONS COMPETITEURS'!G56,\" \",'INFORMATIONS COMPETITEURS'!E56),\"\")","v":" "},null,null,{"$f":"IF('INFORMATIONS COMPETITEURS'!$D$59=\"TABLEAU DE SAISIE CONFORME\",IF('INFORMATIONS COMPETITEURS'!I56=\"\",\"\",'INFORMATIONS COMPETITEURS'!I56),\"\")","v":""},null,null,null,null,null,null,null,{"$f":"IF('INFORMATIONS COMPETITEURS'!$D$59=\"TABLEAU DE SAISIE NON CONFORME\",\"\",IF(E57=\" \",N(0),IF(SUM(K57:O57)=0,N(0),SUM(K57:O57))))","v":0}]
[null,null,null,{"$f":"'INFORMATIONS COMPETITEURS'!D57","v":49},{"$f":"IF('INFORMATIONS COMPETITEURS'!$D$59=\"TABLEAU DE SAISIE CONFORME\",CONCATENATE('INFORMATIONS COMPETITEURS'!G57,\" \",'INFORMATIONS COMPETITEURS'!E57),\"\")","v":" "},null,null,{"$f":"IF('INFORMATIONS COMPETITEURS'!$D$59=\"TABLEAU DE SAISIE CONFORME\",IF('INFORMATIONS COMPETITEURS'!I57=\"\",\"\",'INFORMATIONS COMPETITEURS'!I57),\"\")","v":""},null,null,null,null,null,null,null,{"$f":"IF('INFORMATIONS COMPETITEURS'!$D$59=\"TABLEAU DE SAISIE NON CONFORME\",\"\",IF(E58=\" \",N(0),IF(SUM(K58:O58)=0,N(0),SUM(K58:O58))))","v":0}]
[null,null,null,{"$f":"'INFORMATIONS COMPETITEURS'!D58","v":50},{"$f":"IF('INFORMATIONS COMPETITEURS'!$D$59=\"TABLEAU DE SAISIE CONFORME\",CONCATENATE('INFORMATIONS COMPETITEURS'!G58,\" \",'INFORMATIONS COMPETITEURS'!E58),\"\")","v":" "},null,null,{"$f":"IF('INFORMATIONS COMPETITEURS'!$D$59=\"TABLEAU DE SAISIE CONFORME\",IF('INFORMATIONS COMPETITEURS'!I58=\"\",\"\",'INFORMATIONS COMPETITEURS'!I58),\"\")","v":""},null,null,null,null,null,null,null,{"$f":"IF('INFORMATIONS COMPETITEURS'!$D$59=\"TABLEAU DE SAISIE NON CONFORME\",\"\",IF(E59=\" \",N(0),IF(SUM(K59:O59)=0,N(0),SUM(K59:O59))))","v":0}]

{"sheet":"MOUCHE N°4","index":5,"n_rows":59,"n_cols":16,"rows_kept":59,"cut":false,"hidden":false,"merged":[[58,7,58,9],[52,7,52,9],[53,7,53,9],[54,7,54,9],[55,7,55,9],[49,7,49,9],[50,7,50,9],[51,7,51,9],[56,7,56,9],[45,7,45,9],[46,7,46,9],[47,7,47,9],[48,7,48,9],[57,7,57,9],[36,7,36,9],[29,7,29,9],[30,7,30,9],[31,7,31,9],[32,7,32,9],[41,7,41,9],[42,7,42,9],[43,7,43,9],[44,7,44,9],[37,7,37,9],[38,7,38,9],[39,7,39,9],[40,7,40,9],[27,7,27,9],[28,7,28,9],[21,7,21,9],[22,7,22,9],[23,7,23,9],[24,7,24,9],[33,7,33,9],[34,7,34,9],[35,7,35,9],[18,7,18,9],[19,7,19,9],[20,7,20,9],[13,7,13,9],[14,7,14,9],[15,7,15,9],[16,7,16,9],[25,7,25,9],[26,7,26,9],[2,3,4,15],[9,4,9,6],[10,4,10,6],[11,4,11,6],[5,15,8,15],[5,4,8,6],[30,4,30,6],[31,4,31,6],[32,4,32,6],[20,4,20,6],[21,4,21,6],[22,4,22,6],[23,4,23,6],[24,4,24,6],[27,4,27,6],[28,4,28,6],[29,4,29,6],[7,14,8,14],[5,7,8,9],[7,13,8,13],[25,4,25,6],[26,4,26,6],[15,4,15,6],[16,4,16,6],[5,3,8,3],[7,10,8,10],[5,10,6,14],[46,4,46,6],[12,4,12,6],[13,4,13,6],[14,4,14,6],[45,4,45,6],[41,4,41,6],[44,4,44,6],[33,4,33,6],[39,4,39,6],[36,4,36,6],[40,4,40,6],[17,4,17,6],[18,4,18,6],[19,4,19,6],[9,7,9,9],[10,7,10,9],[11,7,11,9],[12,7,12,9],[7,11,8,11],[7,12,8,12],[17,7,17,9],[57,4,57,6],[58,4,58,6],[56,4,56,6],[55,4,55,6],[34,4,34,6],[35,4,35,6],[42,4,42,6],[43,4,43,6],[37,4,37,6],[38,4,38,6],[53,4,53,6],[50,4,50,6],[54,4,54,6],[52,4,52,6],[47,4,47,6],[48,4,48,6],[49,4,49,6],[51,4,51,6]]}
[]
[]
[null,null,null,"SAISIE DES RESULTATS - MOUCHE N°4"]
[]
[]
[null,null,null,"N° de plaquette","Compétiteur",null,null,"Club",null,null,"RESULTATS DES JUGES",null,null,null,null,"POINTS MOUCHES"]
[]
[null,null,null,null,null,null,null,null,null,null,"Juge N°1","Juge N°2","Juge N°3","Juge N°4","Juge N°5"]
[]
[null,null,null,{"$f":"'INFORMATIONS COMPETITEURS'!D9","v":1},{"$f":"IF('INFORMATIONS COMPETITEURS'!$D$59=\"TABLEAU DE SAISIE CONFORME\",CONCATENATE('INFORMATIONS COMPETITEURS'!G9,\" \",'INFORMATIONS COMPETITEURS'!E9),\"\")","v":"Claude CAMPILLO"},null,null,{"$f":"IF('INFORMATIONS COMPETITEURS'!$D$59=\"TABLEAU DE SAISIE CONFORME\",IF('INFORMATIONS COMPETITEURS'!I9=\"\",\"\",'INFORMATIONS COMPETITEURS'!I9),\"\")","v":"CML"},null,null,70,65,58,null,null,{"$f":"IF('INFORMATIONS COMPETITEURS'!$D$59=\"TABLEAU DE SAISIE NON CONFORME\",\"\",IF(E10=\" \",N(0),IF(SUM(K10:O10)=0,N(0),SUM(K10:O10))))","v":193}]
[null,null,null,{"$f":"'INFORMATIONS COMPETITEURS'!D10","v":2},{"$f":"IF('INFORMATIONS COMPETITEURS'!$D$59=\"TABLEAU DE SAISIE CONFORME\",CONCATENATE('INFORMATIONS COMPETITEURS'!G10,\" \",'INFORMATIONS COMPETITEURS'!E10),\"\")","v":"Didier DIEGO"},null,null,{"$f":"IF('INFORMATIONS COMPETITEURS'!$D$59=\"TABLEAU DE SAISIE CONFORME\",IF('INFORMATIONS COMPETITEURS'!I10=\"\",\"\",'INFORMATIONS COMPETITEURS'!I10),\"\")","v":"GPD Pays d'Oc"},null,null,60,55,55,null,null,{"$f":"IF('INFORMATIONS COMPETITEURS'!$D$59=\"TABLEAU DE SAISIE NON CONFORME\",\"\",IF(E11=\" \",N(0),IF(SUM(K11:O11)=0,N(0),SUM(K11:O11))))","v":170}]
[null,null,null,{"$f":"'INFORMATIONS COMPETITEURS'!D11","v":3},{"$f":"IF('INFORMATIONS COMPETITEURS'!$D$59=\"TABLEAU DE SAISIE CONFORME\",CONCATENATE('INFORMATIONS COMPETITEURS'!G11,\" \",'INFORMATIONS COMPETITEURS'!E11),\"\")","v":"Samuel CREPILLON"},null,null,{"$f":"IF('INFORMATIONS COMPETITEURS'!$D$59=\"TABLEAU DE SAISIE CONFORME\",IF('INFORMATIONS COMPETITEURS'!I11=\"\",\"\",'INFORMATIONS COMPETITEURS'!I11),\"\")","v":"GPS Nièvre Morvan"},null,null,92,91,87,null,null,{"$f":"IF('INFORMATIONS COMPETITEURS'!$D$59=\"TABLEAU DE SAISIE NON CONFORME\",\"\",IF(E12=\" \",N(0),IF(SUM(K12:O12)=0,N(0),SUM(K12:O12))))","v":270}]
[null,null,null,{"$f":"'INFORMATIONS COMPETITEURS'!D12","v":4},{"$f":"IF('INFORMATIONS COMPETITEURS'!$D$59=\"TABLEAU DE SAISIE CONFORME\",CONCATENATE('INFORMATIONS COMPETITEURS'!G12,\" \",'INFORMATIONS COMPETITEURS'!E12),\"\")","v":"Valentin BIBENT"},null,null,{"$f":"IF('INFORMATIONS COMPETITEURS'!$D$59=\"TABLEAU DE SAISIE CONFORME\",IF('INFORMATIONS COMPETITEURS'!I12=\"\",\"\",'INFORMATIONS COMPETITEURS'!I12),\"\")","v":"CML"},null,null,41,42,41,null,null,{"$f":"IF('INFORMATIONS COMPETITEURS'!$D$59=\"TABLEAU DE SAISIE NON CONFORME\",\"\",IF(E13=\" \",N(0),IF(SUM(K13:O13)=0,N(0),SUM(K13:O13))))","v":124}]
[null,null,null,{"$f":"'INFORMATIONS COMPETITEURS'!D13","v":5},{"$f":"IF('INFORMATIONS COMPETITEURS'!$D$59=\"TABLEAU DE SAISIE CONFORME\",CONCATENATE('INFORMATIONS COMPETITEURS'!G13,\" \",'INFORMATIONS COMPETITEURS'!E13),\"\")","v":"Nathalie ALBERGE"},null,null,{"$f":"IF('INFORMATIONS COMPETITEURS'!$D$59=\"TABLEAU DE SAISIE CONFORME\",IF('INFORMATIONS COMPETITEURS'!I13=\"\",\"\",'INFORMATIONS COMPETITEURS'!I13),\"\")","v":"CM Pays d'Oc"},null,null,30,45,48,null,null,{"$f":"IF('INFORMATIONS COMPETITEURS'!$D$59=\"TABLEAU DE SAISIE NON CONFORME\",\"\",IF(E14=\" \",N(0),IF(SUM(K14:O14)=0,N(0),SUM(K14:O14))))","v":123}]
[null,null,null,{"$f":"'INFORMATIONS COMPETITEURS'!D14","v":6},{"$f":"IF('INFORMATIONS COMPETITEURS'!$D$59=\"TABLEAU DE SAISIE CONFORME\",CONCATENATE('INFORMATIONS COMPETITEURS'!G14,\" \",'INFORMATIONS COMPETITEURS'!E14),\"\")","v":"Jean-Luc GAULON"},null,null,{"$f":"IF('INFORMATIONS COMPETITEURS'!$D$59=\"TABLEAU DE SAISIE CONFORME\",IF('INFORMATIONS COMPETITEURS'!I14=\"\",\"\",'INFORMATIONS COMPETITEURS'!I14),\"\")","v":"CMCRE"},null,null,80,81,75,null,null,{"$f":"IF('INFORMATIONS COMPETITEURS'!$D$59=\"TABLEAU DE SAISIE NON CONFORME\",\"\",IF(E15=\" \",N(0),IF(SUM(K15:O15)=0,N(0),SUM(K15:O15))))","v":236}]
[null,null,null,{"$f":"'INFORMATIONS COMPETITEURS'!D15","v":7},{"$f":"IF('INFORMATIONS COMPETITEURS'!$D$59=\"TABLEAU DE SAISIE CONFORME\",CONCATENATE('INFORMATIONS COMPETITEURS'!G15,\" \",'INFORMATIONS COMPETITEURS'!E15),\"\")","v":"Jérôme VILLE"},null,null,{"$f":"IF('INFORMATIONS COMPETITEURS'!$D$59=\"TABLEAU DE SAISIE CONFORME\",IF('INFORMATIONS COMPETITEURS'!I15=\"\",\"\",'INFORMATIONS COMPETITEURS'!I15),\"\")","v":"GPS Lyon Centre"},null,null,71,75,71,null,null,{"$f":"IF('INFORMATIONS COMPETITEURS'!$D$59=\"TABLEAU DE SAISIE NON CONFORME\",\"\",IF(E16=\" \",N(0),IF(SUM(K16:O16)=0,N(0),SUM(K16:O16))))","v":217}]
[null,null,null,{"$f":"'INFORMATIONS COMPETITEURS'!D16","v":8},{"$f":"IF('INFORMATIONS COMPETITEURS'!$D$59=\"TABLEAU DE SAISIE CONFORME\",CONCATENATE('INFORMATIONS COMPETITEURS'!G16,\" \",'INFORMATIONS COMPETITEURS'!E16),\"\")","v":"Edgard RICHARD"},null,null,{"$f":"IF('INFORMATIONS COMPETITEURS'!$D$59=\"TABLEAU DE SAISIE CONFORME\",IF('INFORMATIONS COMPETITEURS'!I16=\"\",\"\",'INFORMATIONS COMPETITEURS'!I16),\"\")","v":"Ecole de pêche Dijon"},null,null,40,45,45,null,null,{"$f":"IF('INFORMATIONS COMPETITEURS'!$D$59=\"TABLEAU DE SAISIE NON CONFORME\",\"\",IF(E17=\" \",N(0),IF(SUM(K17:O17)=0,N(0),SUM(K17:O17))))","v":130}]
[null,null,null,{"$f":"'INFORMATIONS COMPETITEURS'!D17","v":9},{"$f":"IF('INFORMATIONS COMPETITEURS'!$D$59=\"TABLEAU DE SAISIE CONFORME\",CONCATENATE('INFORMATIONS COMPETITEURS'!G17,\" \",'INFORMATIONS COMPETITEURS'!E17),\"\")","v":"Solène Le Bourhis  Beyer"},null,null,{"$f":"IF('INFORMATIONS COMPETITEURS'!$D$59=\"TABLEAU DE SAISIE CONFORME\",IF('INFORMATIONS COMPETITEURS'!I17=\"\",\"\",'INFORMATIONS COMPETITEURS'!I17),\"\")","v":"CM Arzano"},null,null,54,51,48,null,null,{"$f":"IF('INFORMATIONS COMPETITEURS'!$D$59=\"TABLEAU DE SAISIE NON CONFORME\",\"\",IF(E18=\" \",N(0),IF(SUM(K18:O18)=0,N(0),SUM(K18:O18))))","v":153}]
[null,null,null,{"$f":"'INFORMATIONS COMPETITEURS'!D18","v":10},{"$f":"IF('INFORMATIONS COMPETITEURS'!$D$59=\"TABLEAU DE SAISIE CONFORME\",CONCATENATE('INFORMATIONS COMPETITEURS'!G18,\" \",'INFORMATIONS COMPETITEURS'!E18),\"\")","v":"Guy MASSON"},null,null,{"$f":"IF('INFORMATIONS COMPETITEURS'!$D$59=\"TABLEAU DE SAISIE CONFORME\",IF('INFORMATIONS COMPETITEURS'!I18=\"\",\"\",'INFORMATIONS COMPETITEURS'!I18),\"\")","v":"GPS Lyon Centre"},null,null,63,65,63,null,null,{"$f":"IF('INFORMATIONS COMPETITEURS'!$D$59=\"TABLEAU DE SAISIE NON CONFORME\",\"\",IF(E19=\" \",N(0),IF(SUM(K19:O19)=0,N(0),SUM(K19:O19))))","v":191}]
[null,null,null,{"$f":"'INFORMATIONS COMPETITEURS'!D19","v":11},{"$f":"IF('INFORMATIONS COMPETITEURS'!$D$59=\"TABLEAU DE SAISIE CONFORME\",CONCATENATE('INFORMATIONS COMPETITEURS'!G19,\" \",'INFORMATIONS COMPETITEURS'!E19),\"\")","v":"Gerard COMMARET"},null,null,{"$f":"IF('INFORMATIONS COMPETITEURS'!$D$59=\"TABLEAU DE SAISIE CONFORME\",IF('INFORMATIONS COMPETITEURS'!I19=\"\",\"\",'INFORMATIONS COMPETITEURS'!I19),\"\")","v":"GPS Val de Saone"},null,null,25,30,30,null,null,{"$f":"IF('INFORMATIONS COMPETITEURS'!$D$59=\"TABLEAU DE SAISIE NON CONFORME\",\"\",IF(E20=\" \",N(0),IF(SUM(K20:O20)=0,N(0),SUM(K20:O20))))","v":85}]
[null,null,null,{"$f":"'INFORMATIONS COMPETITEURS'!D20","v":12},{"$f":"IF('INFORMATIONS COMPETITEURS'!$D$59=\"TABLEAU DE SAISIE CONFORME\",CONCATENATE('INFORMATIONS COMPETITEURS'!G20,\" \",'INFORMATIONS COMPETITEURS'!E20),\"\")","v":"Stéphane PONCET"},null,null,{"$f":"IF('INFORMATIONS COMPETITEURS'!$D$59=\"TABLEAU DE SAISIE CONFORME\",IF('INFORMATIONS COMPETITEURS'!I20=\"\",\"\",'INFORMATIONS COMPETITEURS'!I20),\"\")","v":"GPS Bresse Remiremont"},null,null,61,62,59,null,null,{"$f":"IF('INFORMATIONS COMPETITEURS'!$D$59=\"TABLEAU DE SAISIE NON CONFORME\",\"\",IF(E21=\" \",N(0),IF(SUM(K21:O21)=0,N(0),SUM(K21:O21))))","v":182}]
[null,null,null,{"$f":"'INFORMATIONS COMPETITEURS'!D21","v":13},{"$f":"IF('INFORMATIONS COMPETITEURS'!$D$59=\"TABLEAU DE SAISIE CONFORME\",CONCATENATE('INFORMATIONS COMPETITEURS'!G21,\" \",'INFORMATIONS COMPETITEURS'!E21),\"\")","v":"Didier CHETAUD"},null,null,{"$f":"IF('INFORMATIONS COMPETITEURS'!$D$59=\"TABLEAU DE SAISIE CONFORME\",IF('INFORMATIONS COMPETITEURS'!I21=\"\",\"\",'INFORMATIONS COMPETITEURS'!I21),\"\")","v":"GPS Val de Saone"},null,null,98,98,98,null,null,{"$f":"IF('INFORMATIONS COMPETITEURS'!$D$59=\"TABLEAU DE SAISIE NON CONFORME\",\"\",IF(E22=\" \",N(0),IF(SUM(K22:O22)=0,N(0),SUM(K22:O22))))","v":294}]
[null,null,null,{"$f":"'INFORMATIONS COMPETITEURS'!D22","v":14},{"$f":"IF('INFORMATIONS COMPETITEURS'!$D$59=\"TABLEAU DE SAISIE CONFORME\",CONCATENATE('INFORMATIONS COMPETITEURS'!G22,\" \",'INFORMATIONS COMPETITEURS'!E22),\"\")","v":"Eric GIAMPRETI"},null,null,{"$f":"IF('INFORMATIONS COMPETITEURS'!$D$59=\"TABLEAU DE SAISIE CONFORME\",IF('INFORMATIONS COMPETITEURS'!I22=\"\",\"\",'INFORMATIONS COMPETITEURS'!I22),\"\")","v":"GPS Lyon Centre"},null,null,92,92,88,null,null,{"$f":"IF('INFORMATIONS COMPETITEURS'!$D$59=\"TABLEAU DE SAISIE NON CONFORME\",\"\",IF(E23=\" \",N(0),IF(SUM(K23:O23)=0,N(0),SUM(K23:O23))))","v":272}]
[null,null,null,{"$f":"'INFORMATIONS COMPETITEURS'!D23","v":15},{"$f":"IF('INFORMATIONS COMPETITEURS'!$D$59=\"TABLEAU DE SAISIE CONFORME\",CONCATENATE('INFORMATIONS COMPETITEURS'!G23,\" \",'INFORMATIONS COMPETITEURS'!E23),\"\")","v":"Frédéric EVENNOU"},null,null,{"$f":"IF('INFORMATIONS COMPETITEURS'!$D$59=\"TABLEAU DE SAISIE CONFORME\",IF('INFORMATIONS COMPETITEURS'!I23=\"\",\"\",'INFORMATIONS COMPETITEURS'!I23),\"\")","v":"GPS Lyon Centre"},null,null,77,77,72,null,null,{"$f":"IF('INFORMATIONS COMPETITEURS'!$D$59=\"TABLEAU DE SAISIE NON CONFORME\",\"\",IF(E24=\" \",N(0),IF(SUM(K24:O24)=0,N(0),SUM(K24:O24))))","v":226}]
[null,null,null,{"$f":"'INFORMATIONS COMPETITEURS'!D24","v":16},{"$f":"IF('INFORMATIONS COMPETITEURS'!$D$59=\"TABLEAU DE SAISIE CONFORME\",CONCATENATE('INFORMATIONS COMPETITEURS'!G24,\" \",'INFORMATIONS COMPETITEURS'!E24),\"\")","v":"Bernard FAIVRE"},null,null,{"$f":"IF('INFORMATIONS COMPETITEURS'!$D$59=\"TABLEAU DE SAISIE CONFORME\",IF('INFORMATIONS COMPETITEURS'!I24=\"\",\"\",'INFORMATIONS COMPETITEURS'!I24),\"\")","v":"GPS Pays d'Oc"},null,null,84,84,78,null,null,{"$f":"IF('INFORMATIONS COMPETITEURS'!$D$59=\"TABLEAU DE SAISIE NON CONFORME\",\"\",IF(E25=\" \",N(0),IF(SUM(K25:O25)=0,N(0),SUM(K25:O25))))","v":246}]
[null,null,null,{"$f":"'INFORMATIONS COMPETITEURS'!D25","v":17},{"$f":"IF('INFORMATIONS COMPETITEURS'!$D$59=\"TABLEAU DE SAISIE CONFORME\",CONCATENATE('INFORMATIONS COMPETITEURS'!G25,\" \",'INFORMATIONS COMPETITEURS'!E25),\"\")","v":"Bernard Rémi"},null,null,{"$f":"IF('INFORMATIONS COMPETITEURS'!$D$59=\"TABLEAU DE SAISIE CONFORME\",IF('INFORMATIONS COMPETITEURS'!I25=\"\",\"\",'INFORMATIONS COMPETITEURS'!I25),\"\")","v":"Ecole de pêche Dijon"},null,null,0,0,0,null,null,{"$f":"IF('INFORMATIONS COMPETITEURS'!$D$59=\"TABLEAU DE SAISIE NON CONFORME\",\"\",IF(E26=\" \",N(0),IF(SUM(K26:O26)=0,N(0),SUM(K26:O26))))","v":0}]
[null,null,null,{"$f":"'INFORMATIONS COMPETITEURS'!D26","v":18},{"$f":"IF('INFORMATIONS COMPETITEURS'!$D$59=\"TABLEAU DE SAISIE CONFORME\",CONCATENATE('INFORMATIONS COMPETITEURS'!G26,\" \",'INFORMATIONS COMPETITEURS'!E26),\"\")","v":"Denis FAUVELLIERE"},null,null,{"$f":"IF('INFORMATIONS COMPETITEURS'!$D$59=\"TABLEAU DE SAISIE CONFORME\",IF('INFORMATIONS COMPETITEURS'!I26=\"\",\"\",'INFORMATIONS COMPETITEURS'!I26),\"\")","v":"CM Plaisir"},null,null,41,47,40,null,null,{"$f":"IF('INFORMATIONS COMPETITEURS'!$D$59=\"TABLEAU DE SAISIE NON CONFORME\",\"\",IF(E27=\" \",N(0),IF(SUM(K27:O27)=0,N(0),SUM(K27:O27))))","v":128}]
[null,null,null,{"$f":"'INFORMATIONS COMPETITEURS'!D27","v":19},{"$f":"IF('INFORMATIONS COMPETITEURS'!$D$59=\"TABLEAU DE SAISIE CONFORME\",CONCATENATE('INFORMATIONS COMPETITEURS'!G27,\" \",'INFORMATIONS COMPETITEURS'!E27),\"\")","v":"Lionel GOMINET"},null,null,{"$f":"IF('INFORMATIONS COMPETITEURS'!$D$59=\"TABLEAU DE SAISIE CONFORME\",IF('INFORMATIONS COMPETITEURS'!I27=\"\",\"\",'INFORMATIONS COMPETITEURS'!I27),\"\")","v":"GPS Pays d'Oc"},null,null,42,35,37,null,null,{"$f":"IF('INFORMATIONS COMPETITEURS'!$D$59=\"TABLEAU DE SAISIE NON CONFORME\",\"\",IF(E28=\" \",N(0),IF(SUM(K28:O28)=0,N(0),SUM(K28:O28))))","v":114}]
[null,null,null,{"$f":"'INFORMATIONS COMPETITEURS'!D28","v":20},{"$f":"IF('INFORMATIONS COMPETITEURS'!$D$59=\"TABLEAU DE SAISIE CONFORME\",CONCATENATE('INFORMATIONS COMPETITEURS'!G28,\" \",'INFORMATIONS COMPETITEURS'!E28),\"\")","v":"HAMZA MAACH"},null,null,{"$f":"IF('INFORMATIONS COMPETITEURS'!$D$59=\"TABLEAU DE SAISIE CONFORME\",IF('INFORMATIONS COMPETITEURS'!I28=\"\",\"\",'INFORMATIONS COMPETITEURS'!I28),\"\")","v":"Ecole de pêche Dijon"},null,null,50,50,50,null,null,{"$f":"IF('INFORMATIONS COMPETITEURS'!$D$59=\"TABLEAU DE SAISIE NON CONFORME\",\"\",IF(E29=\" \",N(0),IF(SUM(K29:O29)=0,N(0),SUM(K29:O29))))","v":150}]
[null,null,null,{"$f":"'INFORMATIONS COMPETITEURS'!D29","v":21},{"$f":"IF('INFORMATIONS COMPETITEURS'!$D$59=\"TABLEAU DE SAISIE CONFORME\",CONCATENATE('INFORMATIONS COMPETITEURS'!G29,\" \",'INFORMATIONS COMPETITEURS'!E29),\"\")","v":"Dimitri DEZOTHEZ"},null,null,{"$f":"IF('INFORMATIONS COMPETITEURS'!$D$59=\"TABLEAU DE SAISIE CONFORME\",IF('INFORMATIONS COMPETITEURS'!I29=\"\",\"\",'INFORMATIONS COMPETITEURS'!I29),\"\")","v":"Club Mouche du gévaudan"},null,null,62,58,53,null,null,{"$f":"IF('INFORMATIONS COMPETITEURS'!$D$59=\"TABLEAU DE SAISIE NON CONFORME\",\"\",IF(E30=\" \",N(0),IF(SUM(K30:O30)=0,N(0),SUM(K30:O30))))","v":173}]
[null,null,null,{"$f":"'INFORMATIONS COMPETITEURS'!D30","v":22},{"$f":"IF('INFORMATIONS COMPETITEURS'!$D$59=\"TABLEAU DE SAISIE CONFORME\",CONCATENATE('INFORMATIONS COMPETITEURS'!G30,\" \",'INFORMATIONS COMPETITEURS'!E30),\"\")","v":"Dominique BRULEY"},null,null,{"$f":"IF('INFORMATIONS COMPETITEURS'!$D$59=\"TABLEAU DE SAISIE CONFORME\",IF('INFORMATIONS COMPETITEURS'!I30=\"\",\"\",'INFORMATIONS COMPETITEURS'!I30),\"\")","v":"GPS Val de Saone"},null,null,52,52,57,null,null,{"$f":"IF('INFORMATIONS COMPETITEURS'!$D$59=\"TABLEAU DE SAISIE NON CONFORME\",\"\",IF(E31=\" \",N(0),IF(SUM(K31:O31)=0,N(0),SUM(K31:O31))))","v":161}]
[null,null,null,{"$f":"'INFORMATIONS COMPETITEURS'!D31","v":23},{"$f":"IF('INFORMATIONS COMPETITEURS'!$D$59=\"TABLEAU DE SAISIE CONFORME\",CONCATENATE('INFORMATIONS COMPETITEURS'!G31,\" \",'INFORMATIONS COMPETITEURS'!E31),\"\")","v":"Christophe MARTIN"},null,null,{"$f":"IF('INFORMATIONS COMPETITEURS'!$D$59=\"TABLEAU DE SAISIE CONFORME\",IF('INFORMATIONS COMPETITEURS'!I31=\"\",\"\",'INFORMATIONS COMPETITEURS'!I31),\"\")","v":"CM Plaisir"},null,null,55,55,50,null,null,{"$f":"IF('INFORMATIONS COMPETITEURS'!$D$59=\"TABLEAU DE SAISIE NON CONFORME\",\"\",IF(E32=\" \",N(0),IF(SUM(K32:O32)=0,N(0),SUM(K32:O32))))","v":160}]
[null,null,null,{"$f":"'INFORMATIONS COMPETITEURS'!D32","v":24},{"$f":"IF('INFORMATIONS COMPETITEURS'!$D$59=\"TABLEAU DE SAISIE CONFORME\",CONCATENATE('INFORMATIONS COMPETITEURS'!G32,\" \",'INFORMATIONS COMPETITEURS'!E32),\"\")","v":"Gérard VILLA"},null,null,{"$f":"IF('INFORMATIONS COMPETITEURS'!$D$59=\"TABLEAU DE SAISIE CONFORME\",IF('INFORMATIONS COMPETITEURS'!I32=\"\",\"\",'INFORMATIONS COMPETITEURS'!I32),\"\")","v":"GPS Pays d'Oc"},null,null,56,59,55,null,null,{"$f":"IF('INFORMATIONS COMPETITEURS'!$D$59=\"TABLEAU DE SAISIE NON CONFORME\",\"\",IF(E33=\" \",N(0),IF(SUM(K33:O33)=0,N(0),SUM(K33:O33))))","v":170}]
[null,null,null,{"$f":"'INFORMATIONS COMPETITEURS'!D33","v":25},{"$f":"IF('INFORMATIONS COMPETITEURS'!$D$59=\"TABLEAU DE SAISIE CONFORME\",CONCATENATE('INFORMATIONS COMPETITEURS'!G33,\" \",'INFORMATIONS COMPETITEURS'!E33),\"\")","v":"patrick JACQUOT"},null,null,{"$f":"IF('INFORMATIONS COMPETITEURS'!$D$59=\"TABLEAU DE SAISIE CONFORME\",IF('INFORMATIONS COMPETITEURS'!I33=\"\",\"\",'INFORMATIONS COMPETITEURS'!I33),\"\")","v":"GPS Val de Saone"},null,null,94,96,96,null,null,{"$f":"IF('INFORMATIONS COMPETITEURS'!$D$59=\"TABLEAU DE SAISIE NON CONFORME\",\"\",IF(E34=\" \",N(0),IF(SUM(K34:O34)=0,N(0),SUM(K34:O34))))","v":286}]
[null,null,null,{"$f":"'INFORMATIONS COMPETITEURS'!D34","v":26},{"$f":"IF('INFORMATIONS COMPETITEURS'!$D$59=\"TABLEAU DE SAISIE CONFORME\",CONCATENATE('INFORMATIONS COMPETITEURS'!G34,\" \",'INFORMATIONS COMPETITEURS'!E34),\"\")","v":"Henri CALAVIA"},null,null,{"$f":"IF('INFORMATIONS COMPETITEURS'!$D$59=\"TABLEAU DE SAISIE CONFORME\",IF('INFORMATIONS COMPETITEURS'!I34=\"\",\"\",'INFORMATIONS COMPETITEURS'!I34),\"\")","v":"CMCRE"},null,null,98,98,98,null,null,{"$f":"IF('INFORMATIONS COMPETITEURS'!$D$59=\"TABLEAU DE SAISIE NON CONFORME\",\"\",IF(E35=\" \",N(0),IF(SUM(K35:O35)=0,N(0),SUM(K35:O35))))","v":294}]
[null,null,null,{"$f":"'INFORMATIONS COMPETITEURS'!D35","v":27},{"$f":"IF('INFORMATIONS COMPETITEURS'!$D$59=\"TABLEAU DE SAISIE CONFORME\",CONCATENATE('INFORMATIONS COMPETITEURS'!G35,\" \",'INFORMATIONS COMPETITEURS'!E35),\"\")","v":"Batiste JEANIN"},null,null,{"$f":"IF('INFORMATIONS COMPETITEURS'!$D$59=\"TABLEAU DE SAISIE CONFORME\",IF('INFORMATIONS COMPETITEURS'!I35=\"\",\"\",'INFORMATIONS COMPETITEURS'!I35),\"\")","v":"Ecole de pêche Dijon"},null,null,42,48,45,null,null,{"$f":"IF('INFORMATIONS COMPETITEURS'!$D$59=\"TABLEAU DE SAISIE NON CONFORME\",\"\",IF(E36=\" \",N(0),IF(SUM(K36:O36)=0,N(0),SUM(K36:O36))))","v":135}]
[null,null,null,{"$f":"'INFORMATIONS COMPETITEURS'!D36","v":28},{"$f":"IF('INFORMATIONS COMPETITEURS'!$D$59=\"TABLEAU DE SAISIE CONFORME\",CONCATENATE('INFORMATIONS COMPETITEURS'!G36,\" \",'INFORMATIONS COMPETITEURS'!E36),\"\")","v":"Règis CAZARETH"},null,null,{"$f":"IF('INFORMATIONS COMPETITEURS'!$D$59=\"TABLEAU DE SAISIE CONFORME\",IF('INFORMATIONS COMPETITEURS'!I36=\"\",\"\",'INFORMATIONS COMPETITEURS'!I36),\"\")","v":"GPS Décines"},null,null,94,95,91,null,null,{"$f":"IF('INFORMATIONS COMPETITEURS'!$D$59=\"TABLEAU DE SAISIE NON CONFORME\",\"\",IF(E37=\" \",N(0),IF(SUM(K37:O37)=0,N(0),SUM(K37:O37))))","v":280}]
[null,null,null,{"$f":"'INFORMATIONS COMPETITEURS'!D37","v":29},{"$f":"IF('INFORMATIONS COMPETITEURS'!$D$59=\"TABLEAU DE SAISIE CONFORME\",CONCATENATE('INFORMATIONS COMPETITEURS'!G37,\" \",'INFORMATIONS COMPETITEURS'!E37),\"\")","v":"BOUAFFIA DENIL"},null,null,{"$f":"IF('INFORMATIONS COMPETITEURS'!$D$59=\"TABLEAU DE SAISIE CONFORME\",IF('INFORMATIONS COMPETITEURS'!I37=\"\",\"\",'INFORMATIONS COMPETITEURS'!I37),\"\")","v":"GPS"},null,null,0,0,0,null,null,{"$f":"IF('INFORMATIONS COMPETITEURS'!$D$59=\"TABLEAU DE SAISIE NON CONFORME\",\"\",IF(E38=\" \",N(0),IF(SUM(K38:O38)=0,N(0),SUM(K38:O38))))","v":0}]
[null,null,null,{"$f":"'INFORMATIONS COMPETITEURS'!D38","v":30},{"$f":"IF('INFORMATIONS COMPETITEURS'!$D$59=\"TABLEAU DE SAISIE CONFORME\",CONCATENATE('INFORMATIONS COMPETITEURS'!G38,\" \",'INFORMATIONS COMPETITEURS'!E38),\"\")","v":" "},null,null,{"$f":"IF('INFORMATIONS COMPETITEURS'!$D$59=\"TABLEAU DE SAISIE CONFORME\",IF('INFORMATIONS COMPETITEURS'!I38=\"\",\"\",'INFORMATIONS COMPETITEURS'!I38),\"\")","v":""},null,null,null,null,null,null,null,{"$f":"IF('INFORMATIONS COMPETITEURS'!$D$59=\"TABLEAU DE SAISIE NON CONFORME\",\"\",IF(E39=\" \",N(0),IF(SUM(K39:O39)=0,N(0),SUM(K39:O39))))","v":0}]
[null,null,null,{"$f":"'INFORMATIONS COMPETITEURS'!D39","v":31},{"$f":"IF('INFORMATIONS COMPETITEURS'!$D$59=\"TABLEAU DE SAISIE CONFORME\",CONCATENATE('INFORMATIONS COMPETITEURS'!G39,\" \",'INFORMATIONS COMPETITEURS'!E39),\"\")","v":" "},null,null,{"$f":"IF('INFORMATIONS COMPETITEURS'!$D$59=\"TABLEAU DE SAISIE CONFORME\",IF('INFORMATIONS COMPETITEURS'!I39=\"\",\"\",'INFORMATIONS COMPETITEURS'!I39),\"\")","v":""},null,null,null,null,null,null,null,{"$f":"IF('INFORMATIONS COMPETITEURS'!$D$59=\"TABLEAU DE SAISIE NON CONFORME\",\"\",IF(E40=\" \",N(0),IF(SUM(K40:O40)=0,N(0),SUM(K40:O40))))","v":0}]
[null,null,null,{"$f":"'INFORMATIONS COMPETITEURS'!D40","v":32},{"$f":"IF('INFORMATIONS COMPETITEURS'!$D$59=\"TABLEAU DE SAISIE CONFORME\",CONCATENATE('INFORMATIONS COMPETITEURS'!G40,\" \",'INFORMATIONS COMPETITEURS'!E40),\"\")","v":" "},null,null,{"$f":"IF('INFORMATIONS COMPETITEURS'!$D$59=\"TABLEAU DE SAISIE CONFORME\",IF('INFORMATIONS COMPETITEURS'!I40=\"\",\"\",'INFORMATIONS COMPETITEURS'!I40),\"\")","v":""},null,null,null,null,null,null,null,{"$f":"IF('INFORMATIONS COMPETITEURS'!$D$59=\"TABLEAU DE SAISIE NON CONFORME\",\"\",IF(E41=\" \",N(0),IF(SUM(K41:O41)=0,N(0),SUM(K41:O41))))","v":0}]
[null,null,null,{"$f":"'INFORMATIONS COMPETITEURS'!D41","v":33},{"$f":"IF('INFORMATIONS COMPETITEURS'!$D$59=\"TABLEAU DE SAISIE CONFORME\",CONCATENATE('INFORMATIONS COMPETITEURS'!G41,\" \",'INFORMATIONS COMPETITEURS'!E41),\"\")","v":" "},null,null,{"$f":"IF('INFORMATIONS COMPETITEURS'!$D$59=\"TABLEAU DE SAISIE CONFORME\",IF('INFORMATIONS COMPETITEURS'!I41=\"\",\"\",'INFORMATIONS COMPETITEURS'!I41),\"\")","v":""},null,null,null,null,null,null,null,{"$f":"IF('INFORMATIONS COMPETITEURS'!$D$59=\"TABLEAU DE SAISIE NON CONFORME\",\"\",IF(E42=\" \",N(0),IF(SUM(K42:O42)=0,N(0),SUM(K42:O42))))","v":0}]
[null,null,null,{"$f":"'INFORMATIONS COMPETITEURS'!D42","v":34},{"$f":"IF('INFORMATIONS COMPETITEURS'!$D$59=\"TABLEAU DE SAISIE CONFORME\",CONCATENATE('INFORMATIONS COMPETITEURS'!G42,\" \",'INFORMATIONS COMPETITEURS'!E42),\"\")","v":" "},null,null,{"$f":"IF('INFORMATIONS COMPETITEURS'!$D$59=\"TABLEAU DE SAISIE CONFORME\",IF('INFORMATIONS COMPETITEURS'!I42=\"\",\"\",'INFORMATIONS COMPETITEURS'!I42),\"\")","v":""},null,null,null,null,null,null,null,{"$f":"IF('INFORMATIONS COMPETITEURS'!$D$59=\"TABLEAU DE SAISIE NON CONFORME\",\"\",IF(E43=\" \",N(0),IF(SUM(K43:O43)=0,N(0),SUM(K43:O43))))","v":0}]
[null,null,null,{"$f":"'INFORMATIONS COMPETITEURS'!D43","v":35},{"$f":"IF('INFORMATIONS COMPETITEURS'!$D$59=\"TABLEAU DE SAISIE CONFORME\",CONCATENATE('INFORMATIONS COMPETITEURS'!G43,\" \",'INFORMATIONS COMPETITEURS'!E43),\"\")","v":" "},null,null,{"$f":"IF('INFORMATIONS COMPETITEURS'!$D$59=\"TABLEAU DE SAISIE CONFORME\",IF('INFORMATIONS COMPETITEURS'!I43=\"\",\"\",'INFORMATIONS COMPETITEURS'!I43),\"\")","v":""},null,null,null,null,null,null,null,{"$f":"IF('INFORMATIONS COMPETITEURS'!$D$59=\"TABLEAU DE SAISIE NON CONFORME\",\"\",IF(E44=\" \",N(0),IF(SUM(K44:O44)=0,N(0),SUM(K44:O44))))","v":0}]
[null,null,null,{"$f":"'INFORMATIONS COMPETITEURS'!D44","v":36},{"$f":"IF('INFORMATIONS COMPETITEURS'!$D$59=\"TABLEAU DE SAISIE CONFORME\",CONCATENATE('INFORMATIONS COMPETITEURS'!G44,\" \",'INFORMATIONS COMPETITEURS'!E44),\"\")","v":" "},null,null,{"$f":"IF('INFORMATIONS COMPETITEURS'!$D$59=\"TABLEAU DE SAISIE CONFORME\",IF('INFORMATIONS COMPETITEURS'!I44=\"\",\"\",'INFORMATIONS COMPETITEURS'!I44),\"\")","v":""},null,null,null,null,null,null,null,{"$f":"IF('INFORMATIONS COMPETITEURS'!$D$59=\"TABLEAU DE SAISIE NON CONFORME\",\"\",IF(E45=\" \",N(0),IF(SUM(K45:O45)=0,N(0),SUM(K45:O45))))","v":0}]
[null,null,null,{"$f":"'INFORMATIONS COMPETITEURS'!D45","v":37},{"$f":"IF('INFORMATIONS COMPETITEURS'!$D$59=\"TABLEAU DE SAISIE CONFORME\",CONCATENATE('INFORMATIONS COMPETITEURS'!G45,\" \",'INFORMATIONS COMPETITEURS'!E45),\"\")","v":" "},null,null,{"$f":"IF('INFORMATIONS COMPETITEURS'!$D$59=\"TABLEAU DE SAISIE CONFORME\",IF('INFORMATIONS COMPETITEURS'!I45=\"\",\"\",'INFORMATIONS COMPETITEURS'!I45),\"\")","v":""},null,null,null,null,null,null,null,{"$f":"IF('INFORMATIONS COMPETITEURS'!$D$59=\"TABLEAU DE SAISIE NON CONFORME\",\"\",IF(E46=\" \",N(0),IF(SUM(K46:O46)=0,N(0),SUM(K46:O46))))","v":0}]
[null,null,null,{"$f":"'INFORMATIONS COMPETITEURS'!D46","v":38},{"$f":"IF('INFORMATIONS COMPETITEURS'!$D$59=\"TABLEAU DE SAISIE CONFORME\",CONCATENATE('INFORMATIONS COMPETITEURS'!G46,\" \",'INFORMATIONS COMPETITEURS'!E46),\"\")","v":" "},null,null,{"$f":"IF('INFORMATIONS COMPETITEURS'!$D$59=\"TABLEAU DE SAISIE CONFORME\",IF('INFORMATIONS COMPETITEURS'!I46=\"\",\"\",'INFORMATIONS COMPETITEURS'!I46),\"\")","v":""},null,null,null,null,null,null,null,{"$f":"IF('INFORMATIONS COMPETITEURS'!$D$59=\"TABLEAU DE SAISIE NON CONFORME\",\"\",IF(E47=\" \",N(0),IF(SUM(K47:O47)=0,N(0),SUM(K47:O47))))","v":0}]
[null,null,null,{"$f":"'INFORMATIONS COMPETITEURS'!D47","v":39},{"$f":"IF('INFORMATIONS COMPETITEURS'!$D$59=\"TABLEAU DE SAISIE CONFORME\",CONCATENATE('INFORMATIONS COMPETITEURS'!G47,\" \",'INFORMATIONS COMPETITEURS'!E47),\"\")","v":" "},null,null,{"$f":"IF('INFORMATIONS COMPETITEURS'!$D$59=\"TABLEAU DE SAISIE CONFORME\",IF('INFORMATIONS COMPETITEURS'!I47=\"\",\"\",'INFORMATIONS COMPETITEURS'!I47),\"\")","v":""},null,null,null,null,null,null,null,{"$f":"IF('INFORMATIONS COMPETITEURS'!$D$59=\"TABLEAU DE SAISIE NON CONFORME\",\"\",IF(E48=\" \",N(0),IF(SUM(K48:O48)=0,N(0),SUM(K48:O48))))","v":0}]
[null,null,null,{"$f":"'INFORMATIONS COMPETITEURS'!D48","v":40},{"$f":"IF('INFORMATIONS COMPETITEURS'!$D$59=\"TABLEAU DE SAISIE CONFORME\",CONCATENATE('INFORMATIONS COMPETITEURS'!G48,\" \",'INFORMATIONS COMPETITEURS'!E48),\"\")","v":" "},null,null,{"$f":"IF('INFORMATIONS COMPETITEURS'!$D$59=\"TABLEAU DE SAISIE CONFORME\",IF('INFORMATIONS COMPETITEURS'!I48=\"\",\"\",'INFORMATIONS COMPETITEURS'!I48),\"\")","v":""},null,null,null,null,null,null,null,{"$f":"IF('INFORMATIONS COMPETITEURS'!$D$59=\"TABLEAU DE SAISIE NON CONFORME\",\"\",IF(E49=\" \",N(0),IF(SUM(K49:O49)=0,N(0),SUM(K49:O49))))","v":0}]
[null,null,null,{"$f":"'INFORMATIONS COMPETITEURS'!D49","v":41},{"$f":"IF('INFORMATIONS COMPETITEURS'!$D$59=\"TABLEAU DE SAISIE CONFORME\",CONCATENATE('INFORMATIONS COMPETITEURS'!G49,\" \",'INFORMATIONS COMPETITEURS'!E49),\"\")","v":" "},null,null,{"$f":"IF('INFORMATIONS COMPETITEURS'!$D$59=\"TABLEAU DE SAISIE CONFORME\",IF('INFORMATIONS COMPETITEURS'!I49=\"\",\"\",'INFORMATIONS COMPETITEURS'!I49),\"\")","v":""},null,null,null,null,null,null,null,{"$f":"IF('INFORMATIONS COMPETITEURS'!$D$59=\"TABLEAU DE SAISIE NON CONFORME\",\"\",IF(E50=\" \",N(0),IF(SUM(K50:O50)=0,N(0),SUM(K50:O50))))","v":0}]
[null,null,null,{"$f":"'INFORMATIONS COMPETITEURS'!D50","v":42},{"$f":"IF('INFORMATIONS COMPETITEURS'!$D$59=\"TABLEAU DE SAISIE CONFORME\",CONCATENATE('INFORMATIONS COMPETITEURS'!G50,\" \",'INFORMATIONS COMPETITEURS'!E50),\"\")","v":" "},null,null,{"$f":"IF('INFORMATIONS COMPETITEURS'!$D$59=\"TABLEAU DE SAISIE CONFORME\",IF('INFORMATIONS COMPETITEURS'!I50=\"\",\"\",'INFORMATIONS COMPETITEURS'!I50),\"\")","v":""},null,null,null,null,null,null,null,{"$f":"IF('INFORMATIONS COMPETITEURS'!$D$59=\"TABLEAU DE SAISIE NON CONFORME\",\"\",IF(E51=\" \",N(0),IF(SUM(K51:O51)=0,N(0),SUM(K51:O51))))","v":0}]
[null,null,null,{"$f":"'INFORMATIONS COMPETITEURS'!D51","v":43},{"$f":"IF('INFORMATIONS COMPETITEURS'!$D$59=\"TABLEAU DE SAISIE CONFORME\",CONCATENATE('INFORMATIONS COMPETITEURS'!G51,\" \",'INFORMATIONS COMPETITEURS'!E51),\"\")","v":" "},null,null,{"$f":"IF('INFORMATIONS COMPETITEURS'!$D$59=\"TABLEAU DE SAISIE CONFORME\",IF('INFORMATIONS COMPETITEURS'!I51=\"\",\"\",'INFORMATIONS COMPETITEURS'!I51),\"\")","v":""},null,null,null,null,null,null,null,{"$f":"IF('INFORMATIONS COMPETITEURS'!$D$59=\"TABLEAU DE SAISIE NON CONFORME\",\"\",IF(E52=\" \",N(0),IF(SUM(K52:O52)=0,N(0),SUM(K52:O52))))","v":0}]
[null,null,null,{"$f":"'INFORMATIONS COMPETITEURS'!D52","v":44},{"$f":"IF('INFORMATIONS COMPETITEURS'!$D$59=\"TABLEAU DE SAISIE CONFORME\",CONCATENATE('INFORMATIONS COMPETITEURS'!G52,\" \",'INFORMATIONS COMPETITEURS'!E52),\"\")","v":" "},null,null,{"$f":"IF('INFORMATIONS COMPETITEURS'!$D$59=\"TABLEAU DE SAISIE CONFORME\",IF('INFORMATIONS COMPETITEURS'!I52=\"\",\"\",'INFORMATIONS COMPETITEURS'!I52),\"\")","v":""},null,null,null,null,null,null,null,{"$f":"IF('INFORMATIONS COMPETITEURS'!$D$59=\"TABLEAU DE SAISIE NON CONFORME\",\"\",IF(E53=\" \",N(0),IF(SUM(K53:O53)=0,N(0),SUM(K53:O53))))","v":0}]
[null,null,null,{"$f":"'INFORMATIONS COMPETITEURS'!D53","v":45},{"$f":"IF('INFORMATIONS COMPETITEURS'!$D$59=\"TABLEAU DE SAISIE CONFORME\",CONCATENATE('INFORMATIONS COMPETITEURS'!G53,\" \",'INFORMATIONS COMPETITEURS'!E53),\"\")","v":" "},null,null,{"$f":"IF('INFORMATIONS COMPETITEURS'!$D$59=\"TABLEAU DE SAISIE CONFORME\",IF('INFORMATIONS COMPETITEURS'!I53=\"\",\"\",'INFORMATIONS COMPETITEURS'!I53),\"\")","v":""},null,null,null,null,null,null,null,{"$f":"IF('INFORMATIONS COMPETITEURS'!$D$59=\"TABLEAU DE SAISIE NON CONFORME\",\"\",IF(E54=\" \",N(0),IF(SUM(K54:O54)=0,N(0),SUM(K54:O54))))","v":0}]
[null,null,null,{"$f":"'INFORMATIONS COMPETITEURS'!D54","v":46},{"$f":"IF('INFORMATIONS COMPETITEURS'!$D$59=\"TABLEAU DE SAISIE CONFORME\",CONCATENATE('INFORMATIONS COMPETITEURS'!G54,\" \",'INFORMATIONS COMPETITEURS'!E54),\"\")","v":" "},null,null,{"$f":"IF('INFORMATIONS COMPETITEURS'!$D$59=\"TABLEAU DE SAISIE CONFORME\",IF('INFORMATIONS COMPETITEURS'!I54=\"\",\"\",'INFORMATIONS COMPETITEURS'!I54),\"\")","v":""},null,null,null,null,null,null,null,{"$f":"IF('INFORMATIONS COMPETITEURS'!$D$59=\"TABLEAU DE SAISIE NON CONFORME\",\"\",IF(E55=\" \",N(0),IF(SUM(K55:O55)=0,N(0),SUM(K55:O55))))","v":0}]
[null,null,null,{"$f":"'INFORMATIONS COMPETITEURS'!D55","v":47},{"$f":"IF('INFORMATIONS COMPETITEURS'!$D$59=\"TABLEAU DE SAISIE CONFORME\",CONCATENATE('INFORMATIONS COMPETITEURS'!G55,\" \",'INFORMATIONS COMPETITEURS'!E55),\"\")","v":" "},null,null,{"$f":"IF('INFORMATIONS COMPETITEURS'!$D$59=\"TABLEAU DE SAISIE CONFORME\",IF('INFORMATIONS COMPETITEURS'!I55=\"\",\"\",'INFORMATIONS COMPETITEURS'!I55),\"\")","v":""},null,null,null,null,null,null,null,{"$f":"IF('INFORMATIONS COMPETITEURS'!$D$59=\"TABLEAU DE SAISIE NON CONFORME\",\"\",IF(E56=\" \",N(0),IF(SUM(K56:O56)=0,N(0),SUM(K56:O56))))","v":0}]
[null,null,null,{"$f":"'INFORMATIONS COMPETITEURS'!D56","v":48},{"$f":"IF('INFORMATIONS COMPETITEURS'!$D$59=\"TABLEAU DE SAISIE CONFORME\",CONCATENATE('INFORMATIONS COMPETITEURS'!G56,\" \",'INFORMATIONS COMPETITEURS'!E56),\"\")","v":" "},null,null,{"$f":"IF('INFORMATIONS COMPETITEURS'!$D$59=\"TABLEAU DE SAISIE CONFORME\",IF('INFORMATIONS COMPETITEURS'!I56=\"\",\"\",'INFORMATIONS COMPETITEURS'!I56),\"\")","v":""},null,null,null,null,null,null,null,{"$f":"IF('INFORMATIONS COMPETITEURS'!$D$59=\"TABLEAU DE SAISIE NON CONFORME\",\"\",IF(E57=\" \",N(0),IF(SUM(K57:O57)=0,N(0),SUM(K57:O57))))","v":0}]
[null,null,null,{"$f":"'INFORMATIONS COMPETITEURS'!D57","v":49},{"$f":"IF('INFORMATIONS COMPETITEURS'!$D$59=\"TABLEAU DE SAISIE CONFORME\",CONCATENATE('INFORMATIONS COMPETITEURS'!G57,\" \",'INFORMATIONS COMPETITEURS'!E57),\"\")","v":" "},null,null,{"$f":"IF('INFORMATIONS COMPETITEURS'!$D$59=\"TABLEAU DE SAISIE CONFORME\",IF('INFORMATIONS COMPETITEURS'!I57=\"\",\"\",'INFORMATIONS COMPETITEURS'!I57),\"\")","v":""},null,null,null,null,null,null,null,{"$f":"IF('INFORMATIONS COMPETITEURS'!$D$59=\"TABLEAU DE SAISIE NON CONFORME\",\"\",IF(E58=\" \",N(0),IF(SUM(K58:O58)=0,N(0),SUM(K58:O58))))","v":0}]
[null,null,null,{"$f":"'INFORMATIONS COMPETITEURS'!D58","v":50},{"$f":"IF('INFORMATIONS COMPETITEURS'!$D$59=\"TABLEAU DE SAISIE CONFORME\",CONCATENATE('INFORMATIONS COMPETITEURS'!G58,\" \",'INFORMATIONS COMPETITEURS'!E58),\"\")","v":" "},null,null,{"$f":"IF('INFORMATIONS COMPETITEURS'!$D$59=\"TABLEAU DE SAISIE CONFORME\",IF('INFORMATIONS COMPETITEURS'!I58=\"\",\"\",'INFORMATIONS COMPETITEURS'!I58),\"\")","v":""},null,null,null,null,null,null,null,{"$f":"IF('INFORMATIONS COMPETITEURS'!$D$59=\"TABLEAU DE SAISIE NON CONFORME\",\"\",IF(E59=\" \",N(0),IF(SUM(K59:O59)=0,N(0),SUM(K59:O59))))","v":0}]

{"sheet":"RESULTATS","index":6,"n_rows":120,"n_cols":209,"rows_kept":120,"cut":false,"hidden":false,"merged":[[4,152,4,153],[5,150,5,151],[5,152,5,153],[6,150,6,151],[6,152,6,153],[9,150,12,150],[9,151,12,153],[9,154,12,156],[9,157,12,157],[9,116,12,117],[9,118,12,119],[9,120,12,121],[9,122,12,123],[9,124,12,124],[9,160,12,161],[9,162,12,163],[9,164,12,165],[9,166,12,166],[3,108,3,109],[3,110,3,111],[3,112,8,122],[4,108,4,109],[4,110,4,111],[5,108,5,109],[5,110,5,111],[6,108,6,109],[6,110,6,111],[3,150,3,151],[3,152,3,153],[3,154,8,164],[4,150,4,151],[9,158,12,159],[9,187,12,187],[73,36,73,37],[74,36,74,37],[81,36,81,37],[3,87,3,88],[3,89,3,90],[3,91,8,101],[4,87,4,88],[4,89,4,90],[5,87,5,88],[5,89,5,90],[6,87,6,88],[6,89,6,90],[9,87,12,87],[9,88,12,90],[9,91,12,93],[9,94,12,94],[9,95,12,96],[9,97,12,98],[3,171,3,172],[3,173,3,174],[3,175,8,185],[4,171,4,172],[4,173,4,174],[5,171,5,172],[5,173,5,174],[6,171,6,172],[6,173,6,174],[71,36,71,37],[72,36,72,37],[9,206,12,207],[9,208,12,208],[9,53,12,54],[9,55,12,56],[9,57,12,58],[9,59,12,60],[9,82,12,82],[9,129,12,129],[9,143,12,144],[9,145,12,145],[9,171,12,171],[9,172,12,174],[9,175,12,177],[9,178,12,178],[9,179,12,180],[9,181,12,182],[9,183,12,184],[9,185,12,186],[9,99,12,100],[9,101,12,102],[9,103,12,103],[9,108,12,108],[4,129,4,130],[4,131,4,132],[5,129,5,130],[5,131,5,132],[6,129,6,130],[6,131,6,132],[9,137,12,138],[9,139,12,140],[9,141,12,142],[9,7,12,9],[9,28,12,30],[9,45,12,45],[9,61,12,61],[9,46,12,48],[70,36,70,37],[9,2,10,2],[9,31,12,31],[9,34,12,35],[9,36,12,37],[9,19,12,19],[9,24,12,24],[9,25,12,27],[9,32,12,33],[9,11,12,12],[9,13,12,14],[9,3,12,3],[9,4,12,6],[9,10,12,10],[9,15,12,16],[9,17,12,18],[9,38,12,39],[9,204,12,205],[9,192,12,192],[9,193,12,195],[9,196,12,198],[9,199,12,199],[9,40,12,40],[9,52,12,52],[9,80,12,81],[9,200,12,201],[9,202,12,203],[9,49,12,51],[9,78,12,79],[9,66,12,66],[9,67,12,69],[9,70,12,72],[9,73,12,73],[9,74,12,75],[9,76,12,77],[9,130,12,132],[9,133,12,135],[9,136,12,136],[9,109,12,111],[9,112,12,114],[9,115,12,115],[3,194,3,195],[3,196,8,206],[4,192,4,193],[4,194,4,195],[5,192,5,193],[5,194,5,195],[6,192,6,193],[6,194,6,195],[3,3,3,4],[4,3,4,4],[5,3,5,4],[3,5,3,6],[4,5,4,6],[5,5,5,6],[3,24,3,25],[3,26,3,27],[6,5,6,6],[4,24,4,25],[5,24,5,25],[6,24,6,25],[4,26,4,27],[6,3,6,4],[3,45,3,46],[3,47,3,48],[3,7,8,16],[3,28,8,38],[5,26,5,27],[6,26,6,27],[5,45,5,46],[5,47,5,48],[6,45,6,46],[6,47,6,48],[3,192,3,193],[3,49,8,59],[4,45,4,46],[4,47,4,48],[3,66,3,67],[3,68,3,69],[3,70,8,80],[4,66,4,67],[4,68,4,69],[5,66,5,67],[5,68,5,69],[6,66,6,67],[6,68,6,69],[3,129,3,130],[3,131,3,132],[3,133,8,143],[93,36,93,37],[75,36,75,37],[76,36,76,37],[77,36,77,37],[88,36,88,37],[89,36,89,37],[90,36,90,37],[91,36,91,37],[92,36,92,37],[78,36,78,37],[82,36,82,37],[83,36,83,37],[84,36,84,37]]}
[]
[]
[]
[null,null,null,{"$f":"IF(F4=\"\",\"\",\"Club organisateur :\")","v":"Club organisateur :"},null,{"$f":"IF('INFORMATIONS GENERALES'!G16=\"\",\"\",'INFORMATIONS GENERALES'!G16)","v":"Commission Mouche FFPS"},null,"SYNTHESE DES RESULTATS",null,null,null,null,null,null,null,null,null,null,null,null,null,null,null,null,{"$f":"IF(AA4=\"\",\"\",\"Club organisateur :\")","v":"Club organisateur :"},null,{"$f":"IF('INFORMATIONS GENERALES'!G16=\"\",\"\",'INFORMATIONS GENERALES'!G16)","v":"Commission Mouche FFPS"},null,"CLASSEMENT GENERAL TOUTES CATEGORIES",null,null,null,null,null,null,null,null,null,null,null,null,null,null,null,null,{"$f":"IF(AV4=\"\",\"\",\"Club organisateur :\")","v":"Club organisateur :"},null,{"$f":"IF('INFORMATIONS GENERALES'!G16=\"\",\"\",'INFORMATIONS GENERALES'!G16)","v":"Commission Mouche FFPS"},null,"CLASSEMENT CATEGORIE SENIOR",null,null,null,null,null,null,null,null,null,null,null,null,null,null,null,null,{"$f":"IF(BQ4=\"\",\"\",\"Club organisateur :\")","v":"Club organisateur :"},null,{"$f":"IF('INFORMATIONS GENERALES'!G16=\"\",\"\",'INFORMATIONS GENERALES'!G16)","v":"Commission Mouche FFPS"},null,"CLASSEMENT CATEGORIE JUNIOR",null,null,null,null,null,null,null,null,null,null,null,null,null,null,null,null,{"$f":"IF(BQ4=\"\",\"\",\"Club organisateur :\")","v":"Club organisateur :"},null,{"$f":"IF('INFORMATIONS GENERALES'!G16=\"\",\"\",'INFORMATIONS GENERALES'!G16)","v":"Commission Mouche FFPS"},null,"CLASSEMENT CATEGORIE CADET",null,null,null,null,null,null,null,null,null,null,null,null,null,null,null,null,{"$f":"IF(BQ4=\"\",\"\",\"Club organisateur :\")","v":"Club organisateur :"},null,{"$f":"IF('INFORMATIONS GENERALES'!G16=\"\",\"\",'INFORMATIONS GENERALES'!G16)","v":"Commission Mouche FFPS"},null,"CLASSEMENT CATEGORIE MINIME",null,null,null,null,null,null,null,null,null,null,null,null,null,null,null,null,{"$f":"IF(BQ4=\"\",\"\",\"Club organisateur :\")","v":"Club organisateur :"},null,{"$f":"IF('INFORMATIONS GENERALES'!G16=\"\",\"\",'INFORMATIONS GENERALES'!G16)","v":"Commission Mouche FFPS"},null,"CLASSEMENT CATEGORIE BENJAMIN",null,null,null,null,null,null,null,null,null,null,null,null,null,null,null,null,{"$f":"IF(BQ4=\"\",\"\",\"Club organisateur :\")","v":"Club organisateur :"},null,{"$f":"IF('INFORMATIONS GENERALES'!G16=\"\",\"\",'INFORMATIONS GENERALES'!G16)","v":"Commission Mouche FFPS"},null,"CLASSEMENT CATEGORIE DECOUVERTE",null,null,null,null,null,null,null,null,null,null,null,null,null,null,null,null,{"$f":"IF(BQ4=\"\",\"\",\"Club organisateur :\")","v":"Club organisateur :"},null,{"$f":"IF('INFORMATIONS GENERALES'!G16=\"\",\"\",'INFORMATIONS GENERALES'!G16)","v":"Commission Mouche FFPS"},null,"CLASSEMENT CATEGORIE HANDISPORT",null,null,null,null,null,null,null,null,null,null,null,null,null,null,null,null,{"$f":"IF(GM4=\"\",\"\",\"Club organisateur :\")","v":"Club organisateur :"},null,{"$f":"IF('INFORMATIONS GENERALES'!G16=\"\",\"\",'INFORMATIONS GENERALES'!G16)","v":"Commission Mouche FFPS"},null,"CLASSEMENT CATEGORIE FEMININE"]
[null,null,null,{"$f":"IF(F5=\"\",\"\",\"Type d'épreuve :\")","v":"Type d'épreuve :"},null,{"$f":"IF('INFORMATIONS GENERALES'!G19=\"\",\"\",'INFORMATIONS GENERALES'!G19)","v":"Finale CDF 2016"},null,null,null,null,null,null,null,null,null,null,null,null,null,null,null,null,null,null,{"$f":"IF(AA5=\"\",\"\",\"Type d'épreuve :\")","v":"Type d'épreuve :"},null,{"$f":"IF('INFORMATIONS GENERALES'!G19=\"\",\"\",'INFORMATIONS GENERALES'!G19)","v":"Finale CDF 2016"},null,null,null,null,null,null,null,null,null,null,null,null,null,null,null,null,null,null,{"$f":"IF(AV5=\"\",\"\",\"Type d'épreuve :\")","v":"Type d'épreuve :"},null,{"$f":"IF('INFORMATIONS GENERALES'!G19=\"\",\"\",'INFORMATIONS GENERALES'!G19)","v":"Finale CDF 2016"},null,null,null,null,null,null,null,null,null,null,null,null,null,null,null,null,null,null,{"$f":"IF(BQ5=\"\",\"\",\"Type d'épreuve :\")","v":"Type d'épreuve :"},null,{"$f":"IF('INFORMATIONS GENERALES'!G19=\"\",\"\",'INFORMATIONS GENERALES'!G19)","v":"Finale CDF 2016"},null,null,null,null,null,null,null,null,null,null,null,null,null,null,null,null,null,null,{"$f":"IF(BQ5=\"\",\"\",\"Type d'épreuve :\")","v":"Type d'épreuve :"},null,{"$f":"IF('INFORMATIONS GENERALES'!G19=\"\",\"\",'INFORMATIONS GENERALES'!G19)","v":"Finale CDF 2016"},null,null,null,null,null,null,null,null,null,null,null,null,null,null,null,null,null,null,{"$f":"IF(BQ5=\"\",\"\",\"Type d'épreuve :\")","v":"Type d'épreuve :"},null,{"$f":"IF('INFORMATIONS GENERALES'!G19=\"\",\"\",'INFORMATIONS GENERALES'!G19)","v":"Finale CDF 2016"},null,null,null,null,null,null,null,null,null,null,null,null,null,null,null,null,null,null,{"$f":"IF(BQ5=\"\",\"\",\"Type d'épreuve :\")","v":"Type d'épreuve :"},null,{"$f":"IF('INFORMATIONS GENERALES'!G19=\"\",\"\",'INFORMATIONS GENERALES'!G19)","v":"Finale CDF 2016"},null,null,null,null,null,null,null,null,null,null,null,null,null,null,null,null,null,null,{"$f":"IF(BQ5=\"\",\"\",\"Type d'épreuve :\")","v":"Type d'épreuve :"},null,{"$f":"IF('INFORMATIONS GENERALES'!G19=\"\",\"\",'INFORMATIONS GENERALES'!G19)","v":"Finale CDF 2016"},null,null,null,null,null,null,null,null,null,null,null,null,null,null,null,null,null,null,{"$f":"IF(BQ5=\"\",\"\",\"Type d'épreuve :\")","v":"Type d'épreuve :"},null,{"$f":"IF('INFORMATIONS GENERALES'!G19=\"\",\"\",'INFORMATIONS GENERALES'!G19)","v":"Finale CDF 2016"},null,null,null,null,null,null,null,null,null,null,null,null,null,null,null,null,null,null,{"$f":"IF(GM5=\"\",\"\",\"Type d'épreuve :\")","v":"Type d'épreuve :"},null,{"$f":"IF('INFORMATIONS GENERALES'!G19=\"\",\"\",'INFORMATIONS GENERALES'!G19)","v":"Finale CDF 2016"}]
[null,null,null,{"$f":"IF(F6=\"\",\"\",\"Lieu :\")","v":"Lieu :"},null,{"$f":"IF('INFORMATIONS GENERALES'!Q16=\"\",\"\",'INFORMATIONS GENERALES'!Q16)","v":"28ème CNPL Clermont Ferrand"},null,null,null,null,null,null,null,null,null,null,null,null,null,null,null,null,null,null,{"$f":"IF(AA6=\"\",\"\",\"Lieu :\")","v":"Lieu :"},null,{"$f":"IF('INFORMATIONS GENERALES'!Q16=\"\",\"\",'INFORMATIONS GENERALES'!Q16)","v":"28ème CNPL Clermont Ferrand"},null,null,null,null,null,null,null,null,null,null,null,null,null,null,null,null,null,null,{"$f":"IF(AV6=\"\",\"\",\"Lieu :\")","v":"Lieu :"},null,{"$f":"IF('INFORMATIONS GENERALES'!Q16=\"\",\"\",'INFORMATIONS GENERALES'!Q16)","v":"28ème CNPL Clermont Ferrand"},null,null,null,null,null,null,null,null,null,null,null,null,null,null,null,null,null,null,{"$f":"IF(BQ6=\"\",\"\",\"Lieu :\")","v":"Lieu :"},null,{"$f":"IF('INFORMATIONS GENERALES'!Q16=\"\",\"\",'INFORMATIONS GENERALES'!Q16)","v":"28ème CNPL Clermont Ferrand"},null,null,null,null,null,null,null,null,null,null,null,null,null,null,null,null,null,null,{"$f":"IF(BQ6=\"\",\"\",\"Lieu :\")","v":"Lieu :"},null,{"$f":"IF('INFORMATIONS GENERALES'!Q16=\"\",\"\",'INFORMATIONS GENERALES'!Q16)","v":"28ème CNPL Clermont Ferrand"},null,null,null,null,null,null,null,null,null,null,null,null,null,null,null,null,null,null,{"$f":"IF(BQ6=\"\",\"\",\"Lieu :\")","v":"Lieu :"},null,{"$f":"IF('INFORMATIONS GENERALES'!Q16=\"\",\"\",'INFORMATIONS GENERALES'!Q16)","v":"28ème CNPL Clermont Ferrand"},null,null,null,null,null,null,null,null,null,null,null,null,null,null,null,null,null,null,{"$f":"IF(BQ6=\"\",\"\",\"Lieu :\")","v":"Lieu :"},null,{"$f":"IF('INFORMATIONS GENERALES'!Q16=\"\",\"\",'INFORMATIONS GENERALES'!Q16)","v":"28ème CNPL Clermont Ferrand"},null,null,null,null,null,null,null,null,null,null,null,null,null,null,null,null,null,null,{"$f":"IF(BQ6=\"\",\"\",\"Lieu :\")","v":"Lieu :"},null,{"$f":"IF('INFORMATIONS GENERALES'!Q16=\"\",\"\",'INFORMATIONS GENERALES'!Q16)","v":"28ème CNPL Clermont Ferrand"},null,null,null,null,null,null,null,null,null,null,null,null,null,null,null,null,null,null,{"$f":"IF(BQ6=\"\",\"\",\"Lieu :\")","v":"Lieu :"},null,{"$f":"IF('INFORMATIONS GENERALES'!Q16=\"\",\"\",'INFORMATIONS GENERALES'!Q16)","v":"28ème CNPL Clermont Ferrand"},null,null,null,null,null,null,null,null,null,null,null,null,null,null,null,null,null,null,{"$f":"IF(GM6=\"\",\"\",\"Lieu :\")","v":"Lieu :"},null,{"$f":"IF('INFORMATIONS GENERALES'!Q16=\"\",\"\",'INFORMATIONS GENERALES'!Q16)","v":"28ème CNPL Clermont Ferrand"}]
[null,null,null,{"$f":"IF(F7=\"\",\"\",\"Date :\")","v":"Date :"},null,{"$f":"IF('INFORMATIONS GENERALES'!G22=\"\",\"\",'INFORMATIONS GENERALES'!G22)","v":"2017-01-14"},null,null,null,null,null,null,null,null,null,null,null,null,null,null,null,null,null,null,{"$f":"IF(AA7=\"\",\"\",\"Date :\")","v":"Date :"},null,{"$f":"IF('INFORMATIONS GENERALES'!G22=\"\",\"\",'INFORMATIONS GENERALES'!G22)","v":"2017-01-14"},null,null,null,null,null,null,null,null,null,null,null,null,null,null,null,null,null,null,{"$f":"IF(AV7=\"\",\"\",\"Date :\")","v":"Date :"},null,{"$f":"IF('INFORMATIONS GENERALES'!G22=\"\",\"\",'INFORMATIONS GENERALES'!G22)","v":"2017-01-14"},null,null,null,null,null,null,null,null,null,null,null,null,null,null,null,null,null,null,{"$f":"IF(BQ7=\"\",\"\",\"Date :\")","v":"Date :"},null,{"$f":"IF('INFORMATIONS GENERALES'!G22=\"\",\"\",'INFORMATIONS GENERALES'!G22)","v":"2017-01-14"},null,null,null,null,null,null,null,null,null,null,null,null,null,null,null,null,null,null,{"$f":"IF(BQ7=\"\",\"\",\"Date :\")","v":"Date :"},null,{"$f":"IF('INFORMATIONS GENERALES'!G22=\"\",\"\",'INFORMATIONS GENERALES'!G22)","v":"2017-01-14"},null,null,null,null,null,null,null,null,null,null,null,null,null,null,null,null,null,null,{"$f":"IF(BQ7=\"\",\"\",\"Date :\")","v":"Date :"},null,{"$f":"IF('INFORMATIONS GENERALES'!G22=\"\",\"\",'INFORMATIONS GENERALES'!G22)","v":"2017-01-14"},null,null,null,null,null,null,null,null,null,null,null,null,null,null,null,null,null,null,{"$f":"IF(BQ7=\"\",\"\",\"Date :\")","v":"Date :"},null,{"$f":"IF('INFORMATIONS GENERALES'!G22=\"\",\"\",'INFORMATIONS GENERALES'!G22)","v":"2017-01-14"},null,null,null,null,null,null,null,null,null,null,null,null,null,null,null,null,null,null,{"$f":"IF(BQ7=\"\",\"\",\"Date :\")","v":"Date :"},null,{"$f":"IF('INFORMATIONS GENERALES'!G22=\"\",\"\",'INFORMATIONS GENERALES'!G22)","v":"2017-01-14"},null,null,null,null,null,null,null,null,null,null,null,null,null,null,null,null,null,null,{"$f":"IF(BQ7=\"\",\"\",\"Date :\")","v":"Date :"},null,{"$f":"IF('INFORMATIONS GENERALES'!G22=\"\",\"\",'INFORMATIONS GENERALES'!G22)","v":"2017-01-14"},null,null,null,null,null,null,null,null,null,null,null,null,null,null,null,null,null,null,{"$f":"IF(GM7=\"\",\"\",\"Date :\")","v":"Date :"},null,{"$f":"IF('INFORMATIONS GENERALES'!G22=\"\",\"\",'INFORMATIONS GENERALES'!G22)","v":"2017-01-14"}]
[]
[]
[null,null,null,"N° de plaquette","Compétiteur",null,null,"Club",null,null,"Catégorie","POINTS MOUCHE N°1",null,"POINTS MOUCHE N°2",null,"POINTS MOUCHE N°3",null,"POINTS MOUCHE N°4",null,"TOTAL POINTS MOUCHES",null,null,null,null,"N° de plaquette","Compétiteur",null,null,"Club",null,null,"Catégorie","POINTS MOUCHE N°1",null,"POINTS MOUCHE N°2",null,"POINTS MOUCHE N°3",null,"POINTS MOUCHE N°4",null,"TOTAL POINTS MOUCHES",null,null,null,null,"N° de plaquette","Compétiteur",null,null,"Club",null,null,"Catégorie","POINTS MOUCHE N°1",null,"POINTS MOUCHE N°2",null,"POINTS MOUCHE N°3",null,"POINTS MOUCHE N°4",null,"TOTAL POINTS MOUCHES",null,null,null,null,"N° de plaquette","Compétiteur",null,null,"Club",null,null,"Catégorie","POINTS MOUCHE N°1",null,"POINTS MOUCHE N°2",null,"POINTS MOUCHE N°3",null,"POINTS MOUCHE N°4",null,"TOTAL POINTS MOUCHES",null,null,null,null,"N° de plaquette","Compétiteur",null,null,"Club",null,null,"Catégorie","POINTS MOUCHE N°1",null,"POINTS MOUCHE N°2",null,"POINTS MOUCHE N°3",null,"POINTS MOUCHE N°4",null,"TOTAL POINTS MOUCHES",null,null,null,null,"N° de plaquette","Compétiteur",null,null,"Club",null,null,"Catégorie","POINTS MOUCHE N°1",null,"POINTS MOUCHE N°2",null,"POINTS MOUCHE N°3",null,"POINTS MOUCHE N°4",null,"TOTAL POINTS MOUCHES",null,null,null,null,"N° de plaquette","Compétiteur",null,null,"Club",null,null,"Catégorie","POINTS MOUCHE N°1",null,"POINTS MOUCHE N°2",null,"POINTS MOUCHE N°3",null,"POINTS MOUCHE N°4",null,"TOTAL POINTS MOUCHES",null,null,null,null,"N° de plaquette","Compétiteur",null,null,"Club",null,null,"Catégorie","POINTS MOUCHE N°1",null,"POINTS MOUCHE N°2",null,"POINTS MOUCHE N°3",null,"POINTS MOUCHE N°4",null,"TOTAL POINTS MOUCHES",null,null,null,null,"N° de plaquette","Compétiteur",null,null,"Club",null,null,"Catégorie","POINTS MOUCHE N°1",null,"POINTS MOUCHE N°2",null,"POINTS MOUCHE N°3",null,"POINTS MOUCHE N°4",null,"TOTAL POINTS MOUCHES",null,null,null,null,"N° de plaquette","Compétiteur",null,null,"Club",null,null,"Catégorie","POINTS MOUCHE N°1",null,"POINTS MOUCHE N°2",null,"POINTS MOUCHE N°3",null,"POINTS MOUCHE N°4",null,"TOTAL POINTS MOUCHES"]
[]
[]
[]
[null,null,null,{"$f":"'INFORMATIONS COMPETITEURS'!D9","v":1},{"$f":"IF('INFORMATIONS COMPETITEURS'!$D$59=\"TABLEAU DE SAISIE CONFORME\",CONCATENATE('INFORMATIONS COMPETITEURS'!G9,\" \",'INFORMATIONS COMPETITEURS'!E9),\"\")","v":"Claude CAMPILLO"},null,null,{"$f":"IF('INFORMATIONS COMPETITEURS'!$D$59=\"TABLEAU DE SAISIE CONFORME\",IF('INFORMATIONS COMPETITEURS'!I9=\"\",\"\",'INFORMATIONS COMPETITEURS'!I9),\"\")","v":"CML"},null,null,{"$f":"IF('INFORMATIONS COMPETITEURS'!$D$59=\"TABLEAU DE SAISIE CONFORME\",IF(COUNTBLANK('INFORMATIONS COMPETITEURS'!L9)=1,\"\",'INFORMATIONS COMPETITEURS'!L9),\"\")","v":"Sénior"},{"$f":"IF('INFORMATIONS COMPETITEURS'!$D$59=\"TABLEAU DE SAISIE NON CONFORME\",\"\",IF(OR(E14=\"\",H14=\"\",K14=\"\"),N(0),'MOUCHE N°1'!P10))","v":169},null,{"$f":"IF('INFORMATIONS COMPETITEURS'!$D$59=\"TABLEAU DE SAISIE NON CONFORME\",\"\",IF(OR(E14=\"\",H14=\"\",K14=\"\"),N(0),'MOUCHE N°2'!P10))","v":152},null,{"$f":"IF('INFORMATIONS COMPETITEURS'!$D$59=\"TABLEAU DE SAISIE NON CONFORME\",\"\",IF(OR(E14=\"\",H14=\"\",K14=\"\"),N(0),'MOUCHE N°3'!P10))","v":172},null,{"$f":"IF('INFORMATIONS COMPETITEURS'!$D$59=\"TABLEAU DE SAISIE NON CONFORME\",\"\",IF(OR(E14=\"\",H14=\"\",K14=\"\"),N(0),'MOUCHE N°4'!P10))","v":193},null,{"$f":"IF('INFORMATIONS COMPETITEURS'!$D$59=\"TABLEAU DE SAISIE NON CONFORME\",\"\",IF(E14=\" \",N(0),IF(COUNT(L14,N14,P14,R14)>0,SUM(L14,N14,P14,R14),N(0))))","v":686},null,null,null,{"$f":"IF(Y14=\"\",\"\",1)","v":1},{"$f":"IF(AO14=\"\",\"\",IF(AND(AO14=0,Z14=\" \"),\"\",IF(ISNA(MATCH(Z14,$E$14:$E$63,0)),\"\",MATCH(Z14,$E$14:$E$63,0))))","v":26},"Henri CALAVIA",null,null,"CMCRE",null,null,"Sénior",285,null,280,null,278,null,294,null,1137,null,null,null,{"$f":"IF(AT14=\"\",\"\",1)","v":1},{"$f":"IF(BJ14=\"\",\"\",IF(AND(BJ14=0,AU14=\" \"),\"\",IF(ISNA(MATCH(AU14,$E$14:$E$63,0)),\"\",MATCH(AU14,$E$14:$E$63,0))))","v":26},"Henri CALAVIA",null,null,"CMCRE",null,null,"Sénior",285,null,280,null,278,null,294,null,1137,null,null,null,{"$f":"IF(BO14=\"\",\"\",1)","v":""},{"$f":"IF(CE14=\"\",\"\",IF(AND(CE14=0,BP14=\" \"),\"\",IF(ISNA(MATCH(BP14,$E$14:$E$63,0)),\"\",MATCH(BP14,$E$14:$E$63,0))))","v":""},null,null,null,null,null,null,null,null,null,null,null,null,null,null,null,null,null,null,null,{"$f":"IF(CJ14=\"\",\"\",1)","v":1},{"$f":"IF(CZ14=\"\",\"\",IF(AND(CZ14=0,CK14=\" \"),\"\",IF(ISNA(MATCH(CK14,$E$14:$E$63,0)),\"\",MATCH(CK14,$E$14:$E$63,0))))","v":27},"Batiste JEANIN",null,null,"Ecole de pêche Dijon",null,null,"Cadet",115,null,155,null,106,null,135,null,511,null,null,null,{"$f":"IF(DE14=\"\",\"\",1)","v":1},{"$f":"IF(DU14=\"\",\"\",IF(AND(DU14=0,DF14=\" \"),\"\",IF(ISNA(MATCH(DF14,$E$14:$E$63,0)),\"\",MATCH(DF14,$E$14:$E$63,0))))","v":21},"Dimitri DEZOTHEZ",null,null,"Club Mouche du gévaudan",null,null,"Minime",262,null,175,null,173,null,173,null,783,null,null,null,{"$f":"IF(DZ14=\"\",\"\",1)","v":1},{"$f":"IF(EP14=\"\",\"\",IF(AND(EP14=0,EA14=\" \"),\"\",IF(ISNA(MATCH(EA14,$E$14:$E$63,0)),\"\",MATCH(EA14,$E$14:$E$63,0))))","v":20},"HAMZA MAACH",null,null,"Ecole de pêche Dijon",null,null,"Benjamin",92,null,85,null,79,null,150,null,406,null,null,null,{"$f":"IF(EU14=\"\",\"\",1)","v":""},{"$f":"IF(FK14=\"\",\"\",IF(AND(FK14=0,EV14=\" \"),\"\",IF(ISNA(MATCH(EV14,$E$14:$E$63,0)),\"\",MATCH(EV14,$E$14:$E$63,0))))","v":""},null,null,null,null,null,null,null,null,null,null,null,null,null,null,null,null,null,null,null,{"$f":"IF(FP14=\"\",\"\",1)","v":1},{"$f":"IF(GF14=\"\",\"\",IF(AND(GF14=0,FQ14=\" \"),\"\",IF(ISNA(MATCH(FQ14,$E$14:$E$63,0)),\"\",MATCH(FQ14,$E$14:$E$63,0))))","v":11},"Gerard COMMARET",null,null,"GPS Val de Saone",null,null,"Handisport",79,null,91,null,55,null,85,null,310,null,null,null,{"$f":"IF(GK14=\"\",\"\",1)","v":1},{"$f":"IF(HA14=\"\",\"\",IF(AND(HA14=0,GL14=\" \"),\"\",IF(ISNA(MATCH(GL14,$E$14:$E$63,0)),\"\",MATCH(GL14,$E$14:$E$63,0))))","v":5},"Nathalie ALBERGE",null,null,"CM Pays d'Oc",null,null,"Féminine",182,null,169,null,177,null,123,null,651]
[null,null,null,{"$f":"'INFORMATIONS COMPETITEURS'!D10","v":2},{"$f":"IF('INFORMATIONS COMPETITEURS'!$D$59=\"TABLEAU DE SAISIE CONFORME\",CONCATENATE('INFORMATIONS COMPETITEURS'!G10,\" \",'INFORMATIONS COMPETITEURS'!E10),\"\")","v":"Didier DIEGO"},null,null,{"$f":"IF('INFORMATIONS COMPETITEURS'!$D$59=\"TABLEAU DE SAISIE CONFORME\",IF('INFORMATIONS COMPETITEURS'!I10=\"\",\"\",'INFORMATIONS COMPETITEURS'!I10),\"\")","v":"GPD Pays d'Oc"},null,null,{"$f":"IF('INFORMATIONS COMPETITEURS'!$D$59=\"TABLEAU DE SAISIE CONFORME\",IF(COUNTBLANK('INFORMATIONS COMPETITEURS'!L10)=1,\"\",'INFORMATIONS COMPETITEURS'!L10),\"\")","v":"Sénior"},{"$f":"IF('INFORMATIONS COMPETITEURS'!$D$59=\"TABLEAU DE SAISIE NON CONFORME\",\"\",IF(OR(E15=\"\",H15=\"\",K15=\"\"),N(0),'MOUCHE N°1'!P11))","v":252},null,{"$f":"IF('INFORMATIONS COMPETITEURS'!$D$59=\"TABLEAU DE SAISIE NON CONFORME\",\"\",IF(OR(E15=\"\",H15=\"\",K15=\"\"),N(0),'MOUCHE N°2'!P11))","v":223},null,{"$f":"IF('INFORMATIONS COMPETITEURS'!$D$59=\"TABLEAU DE SAISIE NON CONFORME\",\"\",IF(OR(E15=\"\",H15=\"\",K15=\"\"),N(0),'MOUCHE N°3'!P11))","v":215},null,{"$f":"IF('INFORMATIONS COMPETITEURS'!$D$59=\"TABLEAU DE SAISIE NON CONFORME\",\"\",IF(OR(E15=\"\",H15=\"\",K15=\"\"),N(0),'MOUCHE N°4'!P11))","v":170},null,{"$f":"IF('INFORMATIONS COMPETITEURS'!$D$59=\"TABLEAU DE SAISIE NON CONFORME\",\"\",IF(E15=\" \",N(0),IF(COUNT(L15,N15,P15,R15)>0,SUM(L15,N15,P15,R15),N(0))))","v":860},null,null,null,{"$f":"IF(Y15=\"\",\"\",IF(ISERROR(IF(AND(AG15=AG14,AI15=AI14,AO15=AO14),X14,X14+1)),\"\",IF(AND(AG15=AG14,AI15=AI14,AO15=AO14),X14,X14+1)))","v":2},{"$f":"IF(AO15=\"\",\"\",IF(AND(AO15=0,Z15=\" \"),\"\",IF(ISNA(MATCH(Z15,$E$14:$E$63,0)),\"\",MATCH(Z15,$E$14:$E$63,0))))","v":13},"Didier CHETAUD",null,null,"GPS Val de Saone",null,null,"Sénior",248,null,248,null,292,null,294,null,1082,null,null,null,{"$f":"IF(AT15=\"\",\"\",IF(ISERROR(IF(AND(BB15=BB14,BD15=BD14,BJ15=BJ14),AS14,AS14+1)),\"\",IF(AND(BB15=BB14,BD15=BD14,BJ15=BJ14),AS14,AS14+1)))","v":2},{"$f":"IF(BJ15=\"\",\"\",IF(AND(BJ15=0,AU15=\" \"),\"\",IF(ISNA(MATCH(AU15,$E$14:$E$63,0)),\"\",MATCH(AU15,$E$14:$E$63,0))))","v":13},"Didier CHETAUD",null,null,"GPS Val de Saone",null,null,"Sénior",248,null,248,null,292,null,294,null,1082,null,null,null,{"$f":"IF(BO15=\"\",\"\",IF(ISERROR(IF(AND(BW15=BW14,BY15=BY14,CE15=CE14),BN14,BN14+1)),\"\",IF(AND(BW15=BW14,BY15=BY14,CE15=CE14),BN14,BN14+1)))","v":""},{"$f":"IF(CE15=\"\",\"\",IF(AND(CE15=0,BP15=\" \"),\"\",IF(ISNA(MATCH(BP15,$E$14:$E$63,0)),\"\",MATCH(BP15,$E$14:$E$63,0))))","v":""},null,null,null,null,null,null,null,null,null,null,null,null,null,null,null,null,null,null,null,{"$f":"IF(CJ15=\"\",\"\",IF(ISERROR(IF(AND(CR15=CR14,CT15=CT14,CZ15=CZ14),CI14,CI14+1)),\"\",IF(AND(CR15=CR14,CT15=CT14,CZ15=CZ14),CI14,CI14+1)))","v":2},{"$f":"IF(CZ15=\"\",\"\",IF(AND(CZ15=0,CK15=\" \"),\"\",IF(ISNA(MATCH(CK15,$E$14:$E$63,0)),\"\",MATCH(CK15,$E$14:$E$63,0))))","v":8},"Edgard RICHARD",null,null,"Ecole de pêche Dijon",null,null,"Cadet",95,null,115,null,132,null,130,null,472,null,null,null,{"$f":"IF(DE15=\"\",\"\",IF(ISERROR(IF(AND(DM15=DM14,DO15=DO14,DU15=DU14),DD14,DD14+1)),\"\",IF(AND(DM15=DM14,DO15=DO14,DU15=DU14),DD14,DD14+1)))","v":2},{"$f":"IF(DU15=\"\",\"\",IF(AND(DU15=0,DF15=\" \"),\"\",IF(ISNA(MATCH(DF15,$E$14:$E$63,0)),\"\",MATCH(DF15,$E$14:$E$63,0))))","v":4},"Valentin BIBENT",null,null,"CML",null,null,"Minime",65,null,192,null,151,null,124,null,532,null,null,null,{"$f":"IF(DZ15=\"\",\"\",IF(ISERROR(IF(AND(EH15=EH14,EJ15=EJ14,EP15=EP14),DY14,DY14+1)),\"\",IF(AND(EH15=EH14,EJ15=EJ14,EP15=EP14),DY14,DY14+1)))","v":2},{"$f":"IF(EP15=\"\",\"\",IF(AND(EP15=0,EA15=\" \"),\"\",IF(ISNA(MATCH(EA15,$E$14:$E$63,0)),\"\",MATCH(EA15,$E$14:$E$63,0))))","v":17},"Bernard Rémi",null,null,"Ecole de pêche Dijon",null,null,"Benjamin",0,null,0,null,0,null,0,null,0,null,null,null,{"$f":"IF(EU15=\"\",\"\",IF(ISERROR(IF(AND(FC15=FC14,FE15=FE14,FK15=FK14),ET14,ET14+1)),\"\",IF(AND(FC15=FC14,FE15=FE14,FK15=FK14),ET14,ET14+1)))","v":""},{"$f":"IF(FK15=\"\",\"\",IF(AND(FK15=0,EV15=\" \"),\"\",IF(ISNA(MATCH(EV15,$E$14:$E$63,0)),\"\",MATCH(EV15,$E$14:$E$63,0))))","v":""},null,null,null,null,null,null,null,null,null,null,null,null,null,null,null,null,null,null,null,{"$f":"IF(FP15=\"\",\"\",IF(ISERROR(IF(AND(FX15=FX14,FZ15=FZ14,GF15=GF14),FO14,FO14+1)),\"\",IF(AND(FX15=FX14,FZ15=FZ14,GF15=GF14),FO14,FO14+1)))","v":""},{"$f":"IF(GF15=\"\",\"\",IF(AND(GF15=0,FQ15=\" \"),\"\",IF(ISNA(MATCH(FQ15,$E$14:$E$63,0)),\"\",MATCH(FQ15,$E$14:$E$63,0))))","v":""},null,null,null,null,null,null,null,null,null,null,null,null,null,null,null,null,null,null,null,{"$f":"IF(GK15=\"\",\"\",IF(ISERROR(IF(AND(GS15=GS14,GU15=GU14,HA15=HA14),GJ14,GJ14+1)),\"\",IF(AND(GS15=GS14,GU15=GU14,HA15=HA14),GJ14,GJ14+1)))","v":2},{"$f":"IF(HA15=\"\",\"\",IF(AND(HA15=0,GL15=\" \"),\"\",IF(ISNA(MATCH(GL15,$E$14:$E$63,0)),\"\",MATCH(GL15,$E$14:$E$63,0))))","v":9},"Solène Le Bourhis  Beyer",null,null,"CM Arzano",null,null,"Féminine",180,null,160,null,146,null,153,null,639]
[null,null,null,{"$f":"'INFORMATIONS COMPETITEURS'!D11","v":3},{"$f":"IF('INFORMATIONS COMPETITEURS'!$D$59=\"TABLEAU DE SAISIE CONFORME\",CONCATENATE('INFORMATIONS COMPETITEURS'!G11,\" \",'INFORMATIONS COMPETITEURS'!E11),\"\")","v":"Samuel CREPILLON"},null,null,{"$f":"IF('INFORMATIONS COMPETITEURS'!$D$59=\"TABLEAU DE SAISIE CONFORME\",IF('INFORMATIONS COMPETITEURS'!I11=\"\",\"\",'INFORMATIONS COMPETITEURS'!I11),\"\")","v":"GPS Nièvre Morvan"},null,null,{"$f":"IF('INFORMATIONS COMPETITEURS'!$D$59=\"TABLEAU DE SAISIE CONFORME\",IF(COUNTBLANK('INFORMATIONS COMPETITEURS'!L11)=1,\"\",'INFORMATIONS COMPETITEURS'!L11),\"\")","v":"Sénior"},{"$f":"IF('INFORMATIONS COMPETITEURS'!$D$59=\"TABLEAU DE SAISIE NON CONFORME\",\"\",IF(OR(E16=\"\",H16=\"\",K16=\"\"),N(0),'MOUCHE N°1'!P12))","v":120},null,{"$f":"IF('INFORMATIONS COMPETITEURS'!$D$59=\"TABLEAU DE SAISIE NON CONFORME\",\"\",IF(OR(E16=\"\",H16=\"\",K16=\"\"),N(0),'MOUCHE N°2'!P12))","v":120},null,{"$f":"IF('INFORMATIONS COMPETITEURS'!$D$59=\"TABLEAU DE SAISIE NON CONFORME\",\"\",IF(OR(E16=\"\",H16=\"\",K16=\"\"),N(0),'MOUCHE N°3'!P12))","v":142},null,{"$f":"IF('INFORMATIONS COMPETITEURS'!$D$59=\"TABLEAU DE SAISIE NON CONFORME\",\"\",IF(OR(E16=\"\",H16=\"\",K16=\"\"),N(0),'MOUCHE N°4'!P12))","v":270},null,{"$f":"IF('INFORMATIONS COMPETITEURS'!$D$59=\"TABLEAU DE SAISIE NON CONFORME\",\"\",IF(E16=\" \",N(0),IF(COUNT(L16,N16,P16,R16)>0,SUM(L16,N16,P16,R16),N(0))))","v":652},null,null,null,{"$f":"IF(Y16=\"\",\"\",IF(ISERROR(IF(AND(AG16=AG15,AI16=AI15,AO16=AO15),X15,X15+1)),\"\",IF(AND(AG16=AG15,AI16=AI15,AO16=AO15),X15,X15+1)))","v":3},{"$f":"IF(AO16=\"\",\"\",IF(AND(AO16=0,Z16=\" \"),\"\",IF(ISNA(MATCH(Z16,$E$14:$E$63,0)),\"\",MATCH(Z16,$E$14:$E$63,0))))","v":2},"Didier DIEGO",null,null,"GPD Pays d'Oc",null,null,"Sénior",252,null,223,null,215,null,170,null,860,null,null,null,{"$f":"IF(AT16=\"\",\"\",IF(ISERROR(IF(AND(BB16=BB15,BD16=BD15,BJ16=BJ15),AS15,AS15+1)),\"\",IF(AND(BB16=BB15,BD16=BD15,BJ16=BJ15),AS15,AS15+1)))","v":3},{"$f":"IF(BJ16=\"\",\"\",IF(AND(BJ16=0,AU16=\" \"),\"\",IF(ISNA(MATCH(AU16,$E$14:$E$63,0)),\"\",MATCH(AU16,$E$14:$E$63,0))))","v":2},"Didier DIEGO",null,null,"GPD Pays d'Oc",null,null,"Sénior",252,null,223,null,215,null,170,null,860,null,null,null,{"$f":"IF(BO16=\"\",\"\",IF(ISERROR(IF(AND(BW16=BW15,BY16=BY15,CE16=CE15),BN15,BN15+1)),\"\",IF(AND(BW16=BW15,BY16=BY15,CE16=CE15),BN15,BN15+1)))","v":""},{"$f":"IF(CE16=\"\",\"\",IF(AND(CE16=0,BP16=\" \"),\"\",IF(ISNA(MATCH(BP16,$E$14:$E$63,0)),\"\",MATCH(BP16,$E$14:$E$63,0))))","v":""},null,null,null,null,null,null,null,null,null,null,null,null,null,null,null,null,null,null,null,{"$f":"IF(CJ16=\"\",\"\",IF(ISERROR(IF(AND(CR16=CR15,CT16=CT15,CZ16=CZ15),CI15,CI15+1)),\"\",IF(AND(CR16=CR15,CT16=CT15,CZ16=CZ15),CI15,CI15+1)))","v":""},{"$f":"IF(CZ16=\"\",\"\",IF(AND(CZ16=0,CK16=\" \"),\"\",IF(ISNA(MATCH(CK16,$E$14:$E$63,0)),\"\",MATCH(CK16,$E$14:$E$63,0))))","v":""},null,null,null,null,null,null,null,null,null,null,null,null,null,null,null,null,null,null,null,{"$f":"IF(DE16=\"\",\"\",IF(ISERROR(IF(AND(DM16=DM15,DO16=DO15,DU16=DU15),DD15,DD15+1)),\"\",IF(AND(DM16=DM15,DO16=DO15,DU16=DU15),DD15,DD15+1)))","v":3},{"$f":"IF(DU16=\"\",\"\",IF(AND(DU16=0,DF16=\" \"),\"\",IF(ISNA(MATCH(DF16,$E$14:$E$63,0)),\"\",MATCH(DF16,$E$14:$E$63,0))))","v":29},"BOUAFFIA DENIL",null,null,"GPS",null,null,"Minime",0,null,0,null,0,null,0,null,0,null,null,null,{"$f":"IF(DZ16=\"\",\"\",IF(ISERROR(IF(AND(EH16=EH15,EJ16=EJ15,EP16=EP15),DY15,DY15+1)),\"\",IF(AND(EH16=EH15,EJ16=EJ15,EP16=EP15),DY15,DY15+1)))","v":""},{"$f":"IF(EP16=\"\",\"\",IF(AND(EP16=0,EA16=\" \"),\"\",IF(ISNA(MATCH(EA16,$E$14:$E$63,0)),\"\",MATCH(EA16,$E$14:$E$63,0))))","v":""},null,null,null,null,null,null,null,null,null,null,null,null,null,null,null,null,null,null,null,{"$f":"IF(EU16=\"\",\"\",IF(ISERROR(IF(AND(FC16=FC15,FE16=FE15,FK16=FK15),ET15,ET15+1)),\"\",IF(AND(FC16=FC15,FE16=FE15,FK16=FK15),ET15,ET15+1)))","v":""},{"$f":"IF(FK16=\"\",\"\",IF(AND(FK16=0,EV16=\" \"),\"\",IF(ISNA(MATCH(EV16,$E$14:$E$63,0)),\"\",MATCH(EV16,$E$14:$E$63,0))))","v":""},null,null,null,null,null,null,null,null,null,null,null,null,null,null,null,null,null,null,null,{"$f":"IF(FP16=\"\",\"\",IF(ISERROR(IF(AND(FX16=FX15,FZ16=FZ15,GF16=GF15),FO15,FO15+1)),\"\",IF(AND(FX16=FX15,FZ16=FZ15,GF16=GF15),FO15,FO15+1)))","v":""},{"$f":"IF(GF16=\"\",\"\",IF(AND(GF16=0,FQ16=\" \"),\"\",IF(ISNA(MATCH(FQ16,$E$14:$E$63,0)),\"\",MATCH(FQ16,$E$14:$E$63,0))))","v":""},null,null,null,null,null,null,null,null,null,null,null,null,null,null,null,null,null,null,null,{"$f":"IF(GK16=\"\",\"\",IF(ISERROR(IF(AND(GS16=GS15,GU16=GU15,HA16=HA15),GJ15,GJ15+1)),\"\",IF(AND(GS16=GS15,GU16=GU15,HA16=HA15),GJ15,GJ15+1)))","v":""},{"$f":"IF(HA16=\"\",\"\",IF(AND(HA16=0,GL16=\" \"),\"\",IF(ISNA(MATCH(GL16,$E$14:$E$63,0)),\"\",MATCH(GL16,$E$14:$E$63,0))))","v":""}]
[null,null,null,{"$f":"'INFORMATIONS COMPETITEURS'!D12","v":4},{"$f":"IF('INFORMATIONS COMPETITEURS'!$D$59=\"TABLEAU DE SAISIE CONFORME\",CONCATENATE('INFORMATIONS COMPETITEURS'!G12,\" \",'INFORMATIONS COMPETITEURS'!E12),\"\")","v":"Valentin BIBENT"},null,null,{"$f":"IF('INFORMATIONS COMPETITEURS'!$D$59=\"TABLEAU DE SAISIE CONFORME\",IF('INFORMATIONS COMPETITEURS'!I12=\"\",\"\",'INFORMATIONS COMPETITEURS'!I12),\"\")","v":"CML"},null,null,{"$f":"IF('INFORMATIONS COMPETITEURS'!$D$59=\"TABLEAU DE SAISIE CONFORME\",IF(COUNTBLANK('INFORMATIONS COMPETITEURS'!L12)=1,\"\",'INFORMATIONS COMPETITEURS'!L12),\"\")","v":"Minime"},{"$f":"IF('INFORMATIONS COMPETITEURS'!$D$59=\"TABLEAU DE SAISIE NON CONFORME\",\"\",IF(OR(E17=\"\",H17=\"\",K17=\"\"),N(0),'MOUCHE N°1'!P13))","v":65},null,{"$f":"IF('INFORMATIONS COMPETITEURS'!$D$59=\"TABLEAU DE SAISIE NON CONFORME\",\"\",IF(OR(E17=\"\",H17=\"\",K17=\"\"),N(0),'MOUCHE N°2'!P13))","v":192},null,{"$f":"IF('INFORMATIONS COMPETITEURS'!$D$59=\"TABLEAU DE SAISIE NON CONFORME\",\"\",IF(OR(E17=\"\",H17=\"\",K17=\"\"),N(0),'MOUCHE N°3'!P13))","v":151},null,{"$f":"IF('INFORMATIONS COMPETITEURS'!$D$59=\"TABLEAU DE SAISIE NON CONFORME\",\"\",IF(OR(E17=\"\",H17=\"\",K17=\"\"),N(0),'MOUCHE N°4'!P13))","v":124},null,{"$f":"IF('INFORMATIONS COMPETITEURS'!$D$59=\"TABLEAU DE SAISIE NON CONFORME\",\"\",IF(E17=\" \",N(0),IF(COUNT(L17,N17,P17,R17)>0,SUM(L17,N17,P17,R17),N(0))))","v":532},null,null,null,4,{"$f":"IF(AO17=\"\",\"\",IF(AND(AO17=0,Z17=\" \"),\"\",IF(ISNA(MATCH(Z17,$E$14:$E$63,0)),\"\",MATCH(Z17,$E$14:$E$63,0))))","v":12},"Stéphane PONCET",null,null,"GPS Bresse Remiremont",null,null,"Sénior",244,null,162,null,238,null,182,null,826,null,null,null,{"$f":"IF(AT17=\"\",\"\",IF(ISERROR(IF(AND(BB17=BB16,BD17=BD16,BJ17=BJ16),AS16,AS16+1)),\"\",IF(AND(BB17=BB16,BD17=BD16,BJ17=BJ16),AS16,AS16+1)))","v":4},{"$f":"IF(BJ17=\"\",\"\",IF(AND(BJ17=0,AU17=\" \"),\"\",IF(ISNA(MATCH(AU17,$E$14:$E$63,0)),\"\",MATCH(AU17,$E$14:$E$63,0))))","v":12},"Stéphane PONCET",null,null,"GPS Bresse Remiremont",null,null,"Sénior",244,null,162,null,238,null,182,null,826,null,null,null,{"$f":"IF(BO17=\"\",\"\",IF(ISERROR(IF(AND(BW17=BW16,BY17=BY16,CE17=CE16),BN16,BN16+1)),\"\",IF(AND(BW17=BW16,BY17=BY16,CE17=CE16),BN16,BN16+1)))","v":""},{"$f":"IF(CE17=\"\",\"\",IF(AND(CE17=0,BP17=\" \"),\"\",IF(ISNA(MATCH(BP17,$E$14:$E$63,0)),\"\",MATCH(BP17,$E$14:$E$63,0))))","v":""},null,null,null,null,null,null,null,null,null,null,null,null,null,null,null,null,null,null,null,{"$f":"IF(CJ17=\"\",\"\",IF(ISERROR(IF(AND(CR17=CR16,CT17=CT16,CZ17=CZ16),CI16,CI16+1)),\"\",IF(AND(CR17=CR16,CT17=CT16,CZ17=CZ16),CI16,CI16+1)))","v":""},{"$f":"IF(CZ17=\"\",\"\",IF(AND(CZ17=0,CK17=\" \"),\"\",IF(ISNA(MATCH(CK17,$E$14:$E$63,0)),\"\",MATCH(CK17,$E$14:$E$63,0))))","v":""},null,null,null,null,null,null,null,null,null,null,null,null,null,null,null,null,null,null,null,{"$f":"IF(DE17=\"\",\"\",IF(ISERROR(IF(AND(DM17=DM16,DO17=DO16,DU17=DU16),DD16,DD16+1)),\"\",IF(AND(DM17=DM16,DO17=DO16,DU17=DU16),DD16,DD16+1)))","v":""},{"$f":"IF(DU17=\"\",\"\",IF(AND(DU17=0,DF17=\" \"),\"\",IF(ISNA(MATCH(DF17,$E$14:$E$63,0)),\"\",MATCH(DF17,$E$14:$E$63,0))))","v":""},null,null,null,null,null,null,null,null,null,null,null,null,null,null,null,null,null,null,null,{"$f":"IF(DZ17=\"\",\"\",IF(ISERROR(IF(AND(EH17=EH16,EJ17=EJ16,EP17=EP16),DY16,DY16+1)),\"\",IF(AND(EH17=EH16,EJ17=EJ16,EP17=EP16),DY16,DY16+1)))","v":""},{"$f":"IF(EP17=\"\",\"\",IF(AND(EP17=0,EA17=\" \"),\"\",IF(ISNA(MATCH(EA17,$E$14:$E$63,0)),\"\",MATCH(EA17,$E$14:$E$63,0))))","v":""},null,null,null,null,null,null,null,null,null,null,null,null,null,null,null,null,null,null,null,{"$f":"IF(EU17=\"\",\"\",IF(ISERROR(IF(AND(FC17=FC16,FE17=FE16,FK17=FK16),ET16,ET16+1)),\"\",IF(AND(FC17=FC16,FE17=FE16,FK17=FK16),ET16,ET16+1)))","v":""},{"$f":"IF(FK17=\"\",\"\",IF(AND(FK17=0,EV17=\" \"),\"\",IF(ISNA(MATCH(EV17,$E$14:$E$63,0)),\"\",MATCH(EV17,$E$14:$E$63,0))))","v":""},null,null,null,null,null,null,null,null,null,null,null,null,null,null,null,null,null,null,null,{"$f":"IF(FP17=\"\",\"\",IF(ISERROR(IF(AND(FX17=FX16,FZ17=FZ16,GF17=GF16),FO16,FO16+1)),\"\",IF(AND(FX17=FX16,FZ17=FZ16,GF17=GF16),FO16,FO16+1)))","v":""},{"$f":"IF(GF17=\"\",\"\",IF(AND(GF17=0,FQ17=\" \"),\"\",IF(ISNA(MATCH(FQ17,$E$14:$E$63,0)),\"\",MATCH(FQ17,$E$14:$E$63,0))))","v":""},null,null,null,null,null,null,null,null,null,null,null,null,null,null,null,null,null,null,null,{"$f":"IF(GK17=\"\",\"\",IF(ISERROR(IF(AND(GS17=GS16,GU17=GU16,HA17=HA16),GJ16,GJ16+1)),\"\",IF(AND(GS17=GS16,GU17=GU16,HA17=HA16),GJ16,GJ16+1)))","v":""},{"$f":"IF(HA17=\"\",\"\",IF(AND(HA17=0,GL17=\" \"),\"\",IF(ISNA(MATCH(GL17,$E$14:$E$63,0)),\"\",MATCH(GL17,$E$14:$E$63,0))))","v":""}]
[null,null,null,{"$f":"'INFORMATIONS COMPETITEURS'!D13","v":5},{"$f":"IF('INFORMATIONS COMPETITEURS'!$D$59=\"TABLEAU DE SAISIE CONFORME\",CONCATENATE('INFORMATIONS COMPETITEURS'!G13,\" \",'INFORMATIONS COMPETITEURS'!E13),\"\")","v":"Nathalie ALBERGE"},null,null,{"$f":"IF('INFORMATIONS COMPETITEURS'!$D$59=\"TABLEAU DE SAISIE CONFORME\",IF('INFORMATIONS COMPETITEURS'!I13=\"\",\"\",'INFORMATIONS COMPETITEURS'!I13),\"\")","v":"CM Pays d'Oc"},null,null,{"$f":"IF('INFORMATIONS COMPETITEURS'!$D$59=\"TABLEAU DE SAISIE CONFORME\",IF(COUNTBLANK('INFORMATIONS COMPETITEURS'!L13)=1,\"\",'INFORMATIONS COMPETITEURS'!L13),\"\")","v":"Féminine"},{"$f":"IF('INFORMATIONS COMPETITEURS'!$D$59=\"TABLEAU DE SAISIE NON CONFORME\",\"\",IF(OR(E18=\"\",H18=\"\",K18=\"\"),N(0),'MOUCHE N°1'!P14))","v":182},null,{"$f":"IF('INFORMATIONS COMPETITEURS'!$D$59=\"TABLEAU DE SAISIE NON CONFORME\",\"\",IF(OR(E18=\"\",H18=\"\",K18=\"\"),N(0),'MOUCHE N°2'!P14))","v":169},null,{"$f":"IF('INFORMATIONS COMPETITEURS'!$D$59=\"TABLEAU DE SAISIE NON CONFORME\",\"\",IF(OR(E18=\"\",H18=\"\",K18=\"\"),N(0),'MOUCHE N°3'!P14))","v":177},null,{"$f":"IF('INFORMATIONS COMPETITEURS'!$D$59=\"TABLEAU DE SAISIE NON CONFORME\",\"\",IF(OR(E18=\"\",H18=\"\",K18=\"\"),N(0),'MOUCHE N°4'!P14))","v":123},null,{"$f":"IF('INFORMATIONS COMPETITEURS'!$D$59=\"TABLEAU DE SAISIE NON CONFORME\",\"\",IF(E18=\" \",N(0),IF(COUNT(L18,N18,P18,R18)>0,SUM(L18,N18,P18,R18),N(0))))","v":651},null,null,null,{"$f":"IF(Y18=\"\",\"\",IF(ISERROR(IF(AND(AG18=AG17,AI18=AI17,AO18=AO17),X17,X17+1)),\"\",IF(AND(AG18=AG17,AI18=AI17,AO18=AO17),X17,X17+1)))","v":5},{"$f":"IF(AO18=\"\",\"\",IF(AND(AO18=0,Z18=\" \"),\"\",IF(ISNA(MATCH(Z18,$E$14:$E$63,0)),\"\",MATCH(Z18,$E$14:$E$63,0))))","v":14},"Eric GIAMPRETI",null,null,"GPS Lyon Centre",null,null,"Sénior",212,null,230,null,106,null,272,null,820,null,null,null,{"$f":"IF(AT18=\"\",\"\",IF(ISERROR(IF(AND(BB18=BB17,BD18=BD17,BJ18=BJ17),AS17,AS17+1)),\"\",IF(AND(BB18=BB17,BD18=BD17,BJ18=BJ17),AS17,AS17+1)))","v":5},{"$f":"IF(BJ18=\"\",\"\",IF(AND(BJ18=0,AU18=\" \"),\"\",IF(ISNA(MATCH(AU18,$E$14:$E$63,0)),\"\",MATCH(AU18,$E$14:$E$63,0))))","v":14},"Eric GIAMPRETI",null,null,"GPS Lyon Centre",null,null,"Sénior",212,null,230,null,106,null,272,null,820,null,null,null,{"$f":"IF(BO18=\"\",\"\",IF(ISERROR(IF(AND(BW18=BW17,BY18=BY17,CE18=CE17),BN17,BN17+1)),\"\",IF(AND(BW18=BW17,BY18=BY17,CE18=CE17),BN17,BN17+1)))","v":""},{"$f":"IF(CE18=\"\",\"\",IF(AND(CE18=0,BP18=\" \"),\"\",IF(ISNA(MATCH(BP18,$E$14:$E$63,0)),\"\",MATCH(BP18,$E$14:$E$63,0))))","v":""},null,null,null,null,null,null,null,null,null,null,null,null,null,null,null,null,null,null,null,{"$f":"IF(CJ18=\"\",\"\",IF(ISERROR(IF(AND(CR18=CR17,CT18=CT17,CZ18=CZ17),CI17,CI17+1)),\"\",IF(AND(CR18=CR17,CT18=CT17,CZ18=CZ17),CI17,CI17+1)))","v":""},{"$f":"IF(CZ18=\"\",\"\",IF(AND(CZ18=0,CK18=\" \"),\"\",IF(ISNA(MATCH(CK18,$E$14:$E$63,0)),\"\",MATCH(CK18,$E$14:$E$63,0))))","v":""},null,null,null,null,null,null,null,null,null,null,null,null,null,null,null,null,null,null,null,{"$f":"IF(DE18=\"\",\"\",IF(ISERROR(IF(AND(DM18=DM17,DO18=DO17,DU18=DU17),DD17,DD17+1)),\"\",IF(AND(DM18=DM17,DO18=DO17,DU18=DU17),DD17,DD17+1)))","v":""},{"$f":"IF(DU18=\"\",\"\",IF(AND(DU18=0,DF18=\" \"),\"\",IF(ISNA(MATCH(DF18,$E$14:$E$63,0)),\"\",MATCH(DF18,$E$14:$E$63,0))))","v":""},null,null,null,null,null,null,null,null,null,null,null,null,null,null,null,null,null,null,null,{"$f":"IF(DZ18=\"\",\"\",IF(ISERROR(IF(AND(EH18=EH17,EJ18=EJ17,EP18=EP17),DY17,DY17+1)),\"\",IF(AND(EH18=EH17,EJ18=EJ17,EP18=EP17),DY17,DY17+1)))","v":""},{"$f":"IF(EP18=\"\",\"\",IF(AND(EP18=0,EA18=\" \"),\"\",IF(ISNA(MATCH(EA18,$E$14:$E$63,0)),\"\",MATCH(EA18,$E$14:$E$63,0))))","v":""},null,null,null,null,null,null,null,null,null,null,null,null,null,null,null,null,null,null,null,{"$f":"IF(EU18=\"\",\"\",IF(ISERROR(IF(AND(FC18=FC17,FE18=FE17,FK18=FK17),ET17,ET17+1)),\"\",IF(AND(FC18=FC17,FE18=FE17,FK18=FK17),ET17,ET17+1)))","v":""},{"$f":"IF(FK18=\"\",\"\",IF(AND(FK18=0,EV18=\" \"),\"\",IF(ISNA(MATCH(EV18,$E$14:$E$63,0)),\"\",MATCH(EV18,$E$14:$E$63,0))))","v":""},null,null,null,null,null,null,null,null,null,null,null,null,null,null,null,null,null,null,null,{"$f":"IF(FP18=\"\",\"\",IF(ISERROR(IF(AND(FX18=FX17,FZ18=FZ17,GF18=GF17),FO17,FO17+1)),\"\",IF(AND(FX18=FX17,FZ18=FZ17,GF18=GF17),FO17,FO17+1)))","v":""},{"$f":"IF(GF18=\"\",\"\",IF(AND(GF18=0,FQ18=\" \"),\"\",IF(ISNA(MATCH(FQ18,$E$14:$E$63,0)),\"\",MATCH(FQ18,$E$14:$E$63,0))))","v":""},null,null,null,null,null,null,null,null,null,null,null,null,null,null,null,null,null,null,null,{"$f":"IF(GK18=\"\",\"\",IF(ISERROR(IF(AND(GS18=GS17,GU18=GU17,HA18=HA17),GJ17,GJ17+1)),\"\",IF(AND(GS18=GS17,GU18=GU17,HA18=HA17),GJ17,GJ17+1)))","v":""},{"$f":"IF(HA18=\"\",\"\",IF(AND(HA18=0,GL18=\" \"),\"\",IF(ISNA(MATCH(GL18,$E$14:$E$63,0)),\"\",MATCH(GL18,$E$14:$E$63,0))))","v":""}]
[null,null,null,{"$f":"'INFORMATIONS COMPETITEURS'!D14","v":6},{"$f":"IF('INFORMATIONS COMPETITEURS'!$D$59=\"TABLEAU DE SAISIE CONFORME\",CONCATENATE('INFORMATIONS COMPETITEURS'!G14,\" \",'INFORMATIONS COMPETITEURS'!E14),\"\")","v":"Jean-Luc GAULON"},null,null,{"$f":"IF('INFORMATIONS COMPETITEURS'!$D$59=\"TABLEAU DE SAISIE CONFORME\",IF('INFORMATIONS COMPETITEURS'!I14=\"\",\"\",'INFORMATIONS COMPETITEURS'!I14),\"\")","v":"CMCRE"},null,null,{"$f":"IF('INFORMATIONS COMPETITEURS'!$D$59=\"TABLEAU DE SAISIE CONFORME\",IF(COUNTBLANK('INFORMATIONS COMPETITEURS'!L14)=1,\"\",'INFORMATIONS COMPETITEURS'!L14),\"\")","v":"Sénior"},{"$f":"IF('INFORMATIONS COMPETITEURS'!$D$59=\"TABLEAU DE SAISIE NON CONFORME\",\"\",IF(OR(E19=\"\",H19=\"\",K19=\"\"),N(0),'MOUCHE N°1'!P15))","v":112},null,{"$f":"IF('INFORMATIONS COMPETITEURS'!$D$59=\"TABLEAU DE SAISIE NON CONFORME\",\"\",IF(OR(E19=\"\",H19=\"\",K19=\"\"),N(0),'MOUCHE N°2'!P15))","v":96},null,{"$f":"IF('INFORMATIONS COMPETITEURS'!$D$59=\"TABLEAU DE SAISIE NON CONFORME\",\"\",IF(OR(E19=\"\",H19=\"\",K19=\"\"),N(0),'MOUCHE N°3'!P15))","v":222},null,{"$f":"IF('INFORMATIONS COMPETITEURS'!$D$59=\"TABLEAU DE SAISIE NON CONFORME\",\"\",IF(OR(E19=\"\",H19=\"\",K19=\"\"),N(0),'MOUCHE N°4'!P15))","v":236},null,{"$f":"IF('INFORMATIONS COMPETITEURS'!$D$59=\"TABLEAU DE SAISIE NON CONFORME\",\"\",IF(E19=\" \",N(0),IF(COUNT(L19,N19,P19,R19)>0,SUM(L19,N19,P19,R19),N(0))))","v":666},null,null,null,6,24,"Gérard VILLA",null,null,"GPS Pays d'Oc",null,null,"Sénior",229,null,252,null,157,null,170,null,808,null,null,null,{"$f":"IF(AT19=\"\",\"\",IF(ISERROR(IF(AND(BB19=BB18,BD19=BD18,BJ19=BJ18),AS18,AS18+1)),\"\",IF(AND(BB19=BB18,BD19=BD18,BJ19=BJ18),AS18,AS18+1)))","v":6},24,"Gérard VILLA",null,null,"GPS Pays d'Oc",null,null,"Sénior",229,null,252,null,157,null,170,null,808,null,null,null,{"$f":"IF(BO19=\"\",\"\",IF(ISERROR(IF(AND(BW19=BW18,BY19=BY18,CE19=CE18),BN18,BN18+1)),\"\",IF(AND(BW19=BW18,BY19=BY18,CE19=CE18),BN18,BN18+1)))","v":""},"",null,null,null,null,null,null,null,null,null,null,null,null,null,null,null,null,null,null,null,{"$f":"IF(CJ19=\"\",\"\",IF(ISERROR(IF(AND(CR19=CR18,CT19=CT18,CZ19=CZ18),CI18,CI18+1)),\"\",IF(AND(CR19=CR18,CT19=CT18,CZ19=CZ18),CI18,CI18+1)))","v":""},"",null,null,null,null,null,null,null,null,null,null,null,null,null,null,null,null,null,null,null,{"$f":"IF(DE19=\"\",\"\",IF(ISERROR(IF(AND(DM19=DM18,DO19=DO18,DU19=DU18),DD18,DD18+1)),\"\",IF(AND(DM19=DM18,DO19=DO18,DU19=DU18),DD18,DD18+1)))","v":""},"",null,null,null,null,null,null,null,null,null,null,null,null,null,null,null,null,null,null,null,{"$f":"IF(DZ19=\"\",\"\",IF(ISERROR(IF(AND(EH19=EH18,EJ19=EJ18,EP19=EP18),DY18,DY18+1)),\"\",IF(AND(EH19=EH18,EJ19=EJ18,EP19=EP18),DY18,DY18+1)))","v":""},"",null,null,null,null,null,null,null,null,null,null,null,null,null,null,null,null,null,null,null,{"$f":"IF(EU19=\"\",\"\",IF(ISERROR(IF(AND(FC19=FC18,FE19=FE18,FK19=FK18),ET18,ET18+1)),\"\",IF(AND(FC19=FC18,FE19=FE18,FK19=FK18),ET18,ET18+1)))","v":""},"",null,null,null,null,null,null,null,null,null,null,null,null,null,null,null,null,null,null,null,{"$f":"IF(FP19=\"\",\"\",IF(ISERROR(IF(AND(FX19=FX18,FZ19=FZ18,GF19=GF18),FO18,FO18+1)),\"\",IF(AND(FX19=FX18,FZ19=FZ18,GF19=GF18),FO18,FO18+1)))","v":""},"",null,null,null,null,null,null,null,null,null,null,null,null,null,null,null,null,null,null,null,{"$f":"IF(GK19=\"\",\"\",IF(ISERROR(IF(AND(GS19=GS18,GU19=GU18,HA19=HA18),GJ18,GJ18+1)),\"\",IF(AND(GS19=GS18,GU19=GU18,HA19=HA18),GJ18,GJ18+1)))","v":""},""]
[null,null,null,{"$f":"'INFORMATIONS COMPETITEURS'!D15","v":7},{"$f":"IF('INFORMATIONS COMPETITEURS'!$D$59=\"TABLEAU DE SAISIE CONFORME\",CONCATENATE('INFORMATIONS COMPETITEURS'!G15,\" \",'INFORMATIONS COMPETITEURS'!E15),\"\")","v":"Jérôme VILLE"},null,null,{"$f":"IF('INFORMATIONS COMPETITEURS'!$D$59=\"TABLEAU DE SAISIE CONFORME\",IF('INFORMATIONS COMPETITEURS'!I15=\"\",\"\",'INFORMATIONS COMPETITEURS'!I15),\"\")","v":"GPS Lyon Centre"},null,null,{"$f":"IF('INFORMATIONS COMPETITEURS'!$D$59=\"TABLEAU DE SAISIE CONFORME\",IF(COUNTBLANK('INFORMATIONS COMPETITEURS'!L15)=1,\"\",'INFORMATIONS COMPETITEURS'!L15),\"\")","v":"Sénior"},{"$f":"IF('INFORMATIONS COMPETITEURS'!$D$59=\"TABLEAU DE SAISIE NON CONFORME\",\"\",IF(OR(E20=\"\",H20=\"\",K20=\"\"),N(0),'MOUCHE N°1'!P16))","v":176},null,{"$f":"IF('INFORMATIONS COMPETITEURS'!$D$59=\"TABLEAU DE SAISIE NON CONFORME\",\"\",IF(OR(E20=\"\",H20=\"\",K20=\"\"),N(0),'MOUCHE N°2'!P16))","v":187},null,{"$f":"IF('INFORMATIONS COMPETITEURS'!$D$59=\"TABLEAU DE SAISIE NON CONFORME\",\"\",IF(OR(E20=\"\",H20=\"\",K20=\"\"),N(0),'MOUCHE N°3'!P16))","v":157},null,{"$f":"IF('INFORMATIONS COMPETITEURS'!$D$59=\"TABLEAU DE SAISIE NON CONFORME\",\"\",IF(OR(E20=\"\",H20=\"\",K20=\"\"),N(0),'MOUCHE N°4'!P16))","v":217},null,{"$f":"IF('INFORMATIONS COMPETITEURS'!$D$59=\"TABLEAU DE SAISIE NON CONFORME\",\"\",IF(E20=\" \",N(0),IF(COUNT(L20,N20,P20,R20)>0,SUM(L20,N20,P20,R20),N(0))))","v":737},null,null,null,7,21,"Dimitri DEZOTHEZ",null,null,"Club Mouche du gévaudan",null,null,"Minime",262,null,175,null,173,null,173,null,783,null,null,null,7,28,"Règis CAZARETH",null,null,"GPS Décines",null,null,"Sénior",114,null,223,null,138,null,280,null,755,null,null,null,"","",null,null,null,null,null,null,null,null,null,null,null,null,null,null,null,null,null,null,null,"","",null,null,null,null,null,null,null,null,null,null,null,null,null,null,null,null,null,null,null,"","",null,null,null,null,null,null,null,null,null,null,null,null,null,null,null,null,null,null,null,"","",null,null,null,null,null,null,null,null,null,null,null,null,null,null,null,null,null,null,null,"","",null,null,null,null,null,null,null,null,null,null,null,null,null,null,null,null,null,null,null,"","",null,null,null,null,null,null,null,null,null,null,null,null,null,null,null,null,null,null,null,"",""]
[null,null,null,{"$f":"'INFORMATIONS COMPETITEURS'!D16","v":8},{"$f":"IF('INFORMATIONS COMPETITEURS'!$D$59=\"TABLEAU DE SAISIE CONFORME\",CONCATENATE('INFORMATIONS COMPETITEURS'!G16,\" \",'INFORMATIONS COMPETITEURS'!E16),\"\")","v":"Edgard RICHARD"},null,null,{"$f":"IF('INFORMATIONS COMPETITEURS'!$D$59=\"TABLEAU DE SAISIE CONFORME\",IF('INFORMATIONS COMPETITEURS'!I16=\"\",\"\",'INFORMATIONS COMPETITEURS'!I16),\"\")","v":"Ecole de pêche Dijon"},null,null,{"$f":"IF('INFORMATIONS COMPETITEURS'!$D$59=\"TABLEAU DE SAISIE CONFORME\",IF(COUNTBLANK('INFORMATIONS COMPETITEURS'!L16)=1,\"\",'INFORMATIONS COMPETITEURS'!L16),\"\")","v":"Cadet"},{"$f":"IF('INFORMATIONS COMPETITEURS'!$D$59=\"TABLEAU DE SAISIE NON CONFORME\",\"\",IF(OR(E21=\"\",H21=\"\",K21=\"\"),N(0),'MOUCHE N°1'!P17))","v":95},null,{"$f":"IF('INFORMATIONS COMPETITEURS'!$D$59=\"TABLEAU DE SAISIE NON CONFORME\",\"\",IF(OR(E21=\"\",H21=\"\",K21=\"\"),N(0),'MOUCHE N°2'!P17))","v":115},null,{"$f":"IF('INFORMATIONS COMPETITEURS'!$D$59=\"TABLEAU DE SAISIE NON CONFORME\",\"\",IF(OR(E21=\"\",H21=\"\",K21=\"\"),N(0),'MOUCHE N°3'!P17))","v":132},null,{"$f":"IF('INFORMATIONS COMPETITEURS'!$D$59=\"TABLEAU DE SAISIE NON CONFORME\",\"\",IF(OR(E21=\"\",H21=\"\",K21=\"\"),N(0),'MOUCHE N°4'!P17))","v":130},null,{"$f":"IF('INFORMATIONS COMPETITEURS'!$D$59=\"TABLEAU DE SAISIE NON CONFORME\",\"\",IF(E21=\" \",N(0),IF(COUNT(L21,N21,P21,R21)>0,SUM(L21,N21,P21,R21),N(0))))","v":472},null,null,null,8,28,"Règis CAZARETH",null,null,"GPS Décines",null,null,"Sénior",114,null,223,null,138,null,280,null,755,null,null,null,8,16,"Bernard FAIVRE",null,null,"GPS Pays d'Oc",null,null,"Sénior",230,null,150,null,125,null,246,null,751,null,null,null,"","",null,null,null,null,null,null,null,null,null,null,null,null,null,null,null,null,null,null,null,"","",null,null,null,null,null,null,null,null,null,null,null,null,null,null,null,null,null,null,null,"","",null,null,null,null,null,null,null,null,null,null,null,null,null,null,null,null,null,null,null,"","",null,null,null,null,null,null,null,null,null,null,null,null,null,null,null,null,null,null,null,"","",null,null,null,null,null,null,null,null,null,null,null,null,null,null,null,null,null,null,null,"","",null,null,null,null,null,null,null,null,null,null,null,null,null,null,null,null,null,null,null,"",""]
[null,null,null,{"$f":"'INFORMATIONS COMPETITEURS'!D17","v":9},{"$f":"IF('INFORMATIONS COMPETITEURS'!$D$59=\"TABLEAU DE SAISIE CONFORME\",CONCATENATE('INFORMATIONS COMPETITEURS'!G17,\" \",'INFORMATIONS COMPETITEURS'!E17),\"\")","v":"Solène Le Bourhis  Beyer"},null,null,{"$f":"IF('INFORMATIONS COMPETITEURS'!$D$59=\"TABLEAU DE SAISIE CONFORME\",IF('INFORMATIONS COMPETITEURS'!I17=\"\",\"\",'INFORMATIONS COMPETITEURS'!I17),\"\")","v":"CM Arzano"},null,null,{"$f":"IF('INFORMATIONS COMPETITEURS'!$D$59=\"TABLEAU DE SAISIE CONFORME\",IF(COUNTBLANK('INFORMATIONS COMPETITEURS'!L17)=1,\"\",'INFORMATIONS COMPETITEURS'!L17),\"\")","v":"Féminine"},{"$f":"IF('INFORMATIONS COMPETITEURS'!$D$59=\"TABLEAU DE SAISIE NON CONFORME\",\"\",IF(OR(E22=\"\",H22=\"\",K22=\"\"),N(0),'MOUCHE N°1'!P18))","v":180},null,{"$f":"IF('INFORMATIONS COMPETITEURS'!$D$59=\"TABLEAU DE SAISIE NON CONFORME\",\"\",IF(OR(E22=\"\",H22=\"\",K22=\"\"),N(0),'MOUCHE N°2'!P18))","v":160},null,{"$f":"IF('INFORMATIONS COMPETITEURS'!$D$59=\"TABLEAU DE SAISIE NON CONFORME\",\"\",IF(OR(E22=\"\",H22=\"\",K22=\"\"),N(0),'MOUCHE N°3'!P18))","v":146},null,{"$f":"IF('INFORMATIONS COMPETITEURS'!$D$59=\"TABLEAU DE SAISIE NON CONFORME\",\"\",IF(OR(E22=\"\",H22=\"\",K22=\"\"),N(0),'MOUCHE N°4'!P18))","v":153},null,{"$f":"IF('INFORMATIONS COMPETITEURS'!$D$59=\"TABLEAU DE SAISIE NON CONFORME\",\"\",IF(E22=\" \",N(0),IF(COUNT(L22,N22,P22,R22)>0,SUM(L22,N22,P22,R22),N(0))))","v":639},null,null,null,9,16,"Bernard FAIVRE",null,null,"GPS Pays d'Oc",null,null,"Sénior",230,null,150,null,125,null,246,null,751,null,null,null,9,7,"Jérôme VILLE",null,null,"GPS Lyon Centre",null,null,"Sénior",176,null,187,null,157,null,217,null,737,null,null,null,"","",null,null,null,null,null,null,null,null,null,null,null,null,null,null,null,null,null,null,null,"","",null,null,null,null,null,null,null,null,null,null,null,null,null,null,null,null,null,null,null,"","",null,null,null,null,null,null,null,null,null,null,null,null,null,null,null,null,null,null,null,"","",null,null,null,null,null,null,null,null,null,null,null,null,null,null,null,null,null,null,null,"","",null,null,null,null,null,null,null,null,null,null,null,null,null,null,null,null,null,null,null,"","",null,null,null,null,null,null,null,null,null,null,null,null,null,null,null,null,null,null,null,"",""]
[null,null,null,{"$f":"'INFORMATIONS COMPETITEURS'!D18","v":10},{"$f":"IF('INFORMATIONS COMPETITEURS'!$D$59=\"TABLEAU DE SAISIE CONFORME\",CONCATENATE('INFORMATIONS COMPETITEURS'!G18,\" \",'INFORMATIONS COMPETITEURS'!E18),\"\")","v":"Guy MASSON"},null,null,{"$f":"IF('INFORMATIONS COMPETITEURS'!$D$59=\"TABLEAU DE SAISIE CONFORME\",IF('INFORMATIONS COMPETITEURS'!I18=\"\",\"\",'INFORMATIONS COMPETITEURS'!I18),\"\")","v":"GPS Lyon Centre"},null,null,{"$f":"IF('INFORMATIONS COMPETITEURS'!$D$59=\"TABLEAU DE SAISIE CONFORME\",IF(COUNTBLANK('INFORMATIONS COMPETITEURS'!L18)=1,\"\",'INFORMATIONS COMPETITEURS'!L18),\"\")","v":"Sénior"},{"$f":"IF('INFORMATIONS COMPETITEURS'!$D$59=\"TABLEAU DE SAISIE NON CONFORME\",\"\",IF(OR(E23=\"\",H23=\"\",K23=\"\"),N(0),'MOUCHE N°1'!P19))","v":250},null,{"$f":"IF('INFORMATIONS COMPETITEURS'!$D$59=\"TABLEAU DE SAISIE NON CONFORME\",\"\",IF(OR(E23=\"\",H23=\"\",K23=\"\"),N(0),'MOUCHE N°2'!P19))","v":95},null,{"$f":"IF('INFORMATIONS COMPETITEURS'!$D$59=\"TABLEAU DE SAISIE NON CONFORME\",\"\",IF(OR(E23=\"\",H23=\"\",K23=\"\"),N(0),'MOUCHE N°3'!P19))","v":153},null,{"$f":"IF('INFORMATIONS COMPETITEURS'!$D$59=\"TABLEAU DE SAISIE NON CONFORME\",\"\",IF(OR(E23=\"\",H23=\"\",K23=\"\"),N(0),'MOUCHE N°4'!P19))","v":191},null,{"$f":"IF('INFORMATIONS COMPETITEURS'!$D$59=\"TABLEAU DE SAISIE NON CONFORME\",\"\",IF(E23=\" \",N(0),IF(COUNT(L23,N23,P23,R23)>0,SUM(L23,N23,P23,R23),N(0))))","v":689},null,null,null,10,7,"Jérôme VILLE",null,null,"GPS Lyon Centre",null,null,"Sénior",176,null,187,null,157,null,217,null,737,null,null,null,10,19,"Lionel GOMINET",null,null,"GPS Pays d'Oc",null,null,"Sénior",161,null,268,null,175,null,114,null,718,null,null,null,"","",null,null,null,null,null,null,null,null,null,null,null,null,null,null,null,null,null,null,null,"","",null,null,null,null,null,null,null,null,null,null,null,null,null,null,null,null,null,null,null,"","",null,null,null,null,null,null,null,null,null,null,null,null,null,null,null,null,null,null,null,"","",null,null,null,null,null,null,null,null,null,null,null,null,null,null,null,null,null,null,null,"","",null,null,null,null,null,null,null,null,null,null,null,null,null,null,null,null,null,null,null,"","",null,null,null,null,null,null,null,null,null,null,null,null,null,null,null,null,null,null,null,"",""]
[null,null,null,{"$f":"'INFORMATIONS COMPETITEURS'!D19","v":11},{"$f":"IF('INFORMATIONS COMPETITEURS'!$D$59=\"TABLEAU DE SAISIE CONFORME\",CONCATENATE('INFORMATIONS COMPETITEURS'!G19,\" \",'INFORMATIONS COMPETITEURS'!E19),\"\")","v":"Gerard COMMARET"},null,null,{"$f":"IF('INFORMATIONS COMPETITEURS'!$D$59=\"TABLEAU DE SAISIE CONFORME\",IF('INFORMATIONS COMPETITEURS'!I19=\"\",\"\",'INFORMATIONS COMPETITEURS'!I19),\"\")","v":"GPS Val de Saone"},null,null,{"$f":"IF('INFORMATIONS COMPETITEURS'!$D$59=\"TABLEAU DE SAISIE CONFORME\",IF(COUNTBLANK('INFORMATIONS COMPETITEURS'!L19)=1,\"\",'INFORMATIONS COMPETITEURS'!L19),\"\")","v":"Handisport"},{"$f":"IF('INFORMATIONS COMPETITEURS'!$D$59=\"TABLEAU DE SAISIE NON CONFORME\",\"\",IF(OR(E24=\"\",H24=\"\",K24=\"\"),N(0),'MOUCHE N°1'!P20))","v":79},null,{"$f":"IF('INFORMATIONS COMPETITEURS'!$D$59=\"TABLEAU DE SAISIE NON CONFORME\",\"\",IF(OR(E24=\"\",H24=\"\",K24=\"\"),N(0),'MOUCHE N°2'!P20))","v":91},null,{"$f":"IF('INFORMATIONS COMPETITEURS'!$D$59=\"TABLEAU DE SAISIE NON CONFORME\",\"\",IF(OR(E24=\"\",H24=\"\",K24=\"\"),N(0),'MOUCHE N°3'!P20))","v":55},null,{"$f":"IF('INFORMATIONS COMPETITEURS'!$D$59=\"TABLEAU DE SAISIE NON CONFORME\",\"\",IF(OR(E24=\"\",H24=\"\",K24=\"\"),N(0),'MOUCHE N°4'!P20))","v":85},null,{"$f":"IF('INFORMATIONS COMPETITEURS'!$D$59=\"TABLEAU DE SAISIE NON CONFORME\",\"\",IF(E24=\" \",N(0),IF(COUNT(L24,N24,P24,R24)>0,SUM(L24,N24,P24,R24),N(0))))","v":310},null,null,null,11,19,"Lionel GOMINET",null,null,"GPS Pays d'Oc",null,null,"Sénior",161,null,268,null,175,null,114,null,718,null,null,null,11,10,"Guy MASSON",null,null,"GPS Lyon Centre",null,null,"Sénior",250,null,95,null,153,null,191,null,689,null,null,null,"","",null,null,null,null,null,null,null,null,null,null,null,null,null,null,null,null,null,null,null,"","",null,null,null,null,null,null,null,null,null,null,null,null,null,null,null,null,null,null,null,"","",null,null,null,null,null,null,null,null,null,null,null,null,null,null,null,null,null,null,null,"","",null,null,null,null,null,null,null,null,null,null,null,null,null,null,null,null,null,null,null,"","",null,null,null,null,null,null,null,null,null,null,null,null,null,null,null,null,null,null,null,"","",null,null,null,null,null,null,null,null,null,null,null,null,null,null,null,null,null,null,null,"",""]
[null,null,null,{"$f":"'INFORMATIONS COMPETITEURS'!D20","v":12},{"$f":"IF('INFORMATIONS COMPETITEURS'!$D$59=\"TABLEAU DE SAISIE CONFORME\",CONCATENATE('INFORMATIONS COMPETITEURS'!G20,\" \",'INFORMATIONS COMPETITEURS'!E20),\"\")","v":"Stéphane PONCET"},null,null,{"$f":"IF('INFORMATIONS COMPETITEURS'!$D$59=\"TABLEAU DE SAISIE CONFORME\",IF('INFORMATIONS COMPETITEURS'!I20=\"\",\"\",'INFORMATIONS COMPETITEURS'!I20),\"\")","v":"GPS Bresse Remiremont"},null,null,{"$f":"IF('INFORMATIONS COMPETITEURS'!$D$59=\"TABLEAU DE SAISIE CONFORME\",IF(COUNTBLANK('INFORMATIONS COMPETITEURS'!L20)=1,\"\",'INFORMATIONS COMPETITEURS'!L20),\"\")","v":"Sénior"},{"$f":"IF('INFORMATIONS COMPETITEURS'!$D$59=\"TABLEAU DE SAISIE NON CONFORME\",\"\",IF(OR(E25=\"\",H25=\"\",K25=\"\"),N(0),'MOUCHE N°1'!P21))","v":244},null,{"$f":"IF('INFORMATIONS COMPETITEURS'!$D$59=\"TABLEAU DE SAISIE NON CONFORME\",\"\",IF(OR(E25=\"\",H25=\"\",K25=\"\"),N(0),'MOUCHE N°2'!P21))","v":162},null,{"$f":"IF('INFORMATIONS COMPETITEURS'!$D$59=\"TABLEAU DE SAISIE NON CONFORME\",\"\",IF(OR(E25=\"\",H25=\"\",K25=\"\"),N(0),'MOUCHE N°3'!P21))","v":238},null,{"$f":"IF('INFORMATIONS COMPETITEURS'!$D$59=\"TABLEAU DE SAISIE NON CONFORME\",\"\",IF(OR(E25=\"\",H25=\"\",K25=\"\"),N(0),'MOUCHE N°4'!P21))","v":182},null,{"$f":"IF('INFORMATIONS COMPETITEURS'!$D$59=\"TABLEAU DE SAISIE NON CONFORME\",\"\",IF(E25=\" \",N(0),IF(COUNT(L25,N25,P25,R25)>0,SUM(L25,N25,P25,R25),N(0))))","v":826},null,null,null,12,10,"Guy MASSON",null,null,"GPS Lyon Centre",null,null,"Sénior",250,null,95,null,153,null,191,null,689,null,null,null,12,1,"Claude CAMPILLO",null,null,"CML",null,null,"Sénior",169,null,152,null,172,null,193,null,686,null,null,null,"","",null,null,null,null,null,null,null,null,null,null,null,null,null,null,null,null,null,null,null,"","",null,null,null,null,null,null,null,null,null,null,null,null,null,null,null,null,null,null,null,"","",null,null,null,null,null,null,null,null,null,null,null,null,null,null,null,null,null,null,null,"","",null,null,null,null,null,null,null,null,null,null,null,null,null,null,null,null,null,null,null,"","",null,null,null,null,null,null,null,null,null,null,null,null,null,null,null,null,null,null,null,"","",null,null,null,null,null,null,null,null,null,null,null,null,null,null,null,null,null,null,null,"",""]
[null,null,null,{"$f":"'INFORMATIONS COMPETITEURS'!D21","v":13},{"$f":"IF('INFORMATIONS COMPETITEURS'!$D$59=\"TABLEAU DE SAISIE CONFORME\",CONCATENATE('INFORMATIONS COMPETITEURS'!G21,\" \",'INFORMATIONS COMPETITEURS'!E21),\"\")","v":"Didier CHETAUD"},null,null,{"$f":"IF('INFORMATIONS COMPETITEURS'!$D$59=\"TABLEAU DE SAISIE CONFORME\",IF('INFORMATIONS COMPETITEURS'!I21=\"\",\"\",'INFORMATIONS COMPETITEURS'!I21),\"\")","v":"GPS Val de Saone"},null,null,{"$f":"IF('INFORMATIONS COMPETITEURS'!$D$59=\"TABLEAU DE SAISIE CONFORME\",IF(COUNTBLANK('INFORMATIONS COMPETITEURS'!L21)=1,\"\",'INFORMATIONS COMPETITEURS'!L21),\"\")","v":"Sénior"},{"$f":"IF('INFORMATIONS COMPETITEURS'!$D$59=\"TABLEAU DE SAISIE NON CONFORME\",\"\",IF(OR(E26=\"\",H26=\"\",K26=\"\"),N(0),'MOUCHE N°1'!P22))","v":248},null,{"$f":"IF('INFORMATIONS COMPETITEURS'!$D$59=\"TABLEAU DE SAISIE NON CONFORME\",\"\",IF(OR(E26=\"\",H26=\"\",K26=\"\"),N(0),'MOUCHE N°2'!P22))","v":248},null,{"$f":"IF('INFORMATIONS COMPETITEURS'!$D$59=\"TABLEAU DE SAISIE NON CONFORME\",\"\",IF(OR(E26=\"\",H26=\"\",K26=\"\"),N(0),'MOUCHE N°3'!P22))","v":292},null,{"$f":"IF('INFORMATIONS COMPETITEURS'!$D$59=\"TABLEAU DE SAISIE NON CONFORME\",\"\",IF(OR(E26=\"\",H26=\"\",K26=\"\"),N(0),'MOUCHE N°4'!P22))","v":294},null,{"$f":"IF('INFORMATIONS COMPETITEURS'!$D$59=\"TABLEAU DE SAISIE NON CONFORME\",\"\",IF(E26=\" \",N(0),IF(COUNT(L26,N26,P26,R26)>0,SUM(L26,N26,P26,R26),N(0))))","v":1082},null,null,null,13,1,"Claude CAMPILLO",null,null,"CML",null,null,"Sénior",169,null,152,null,172,null,193,null,686,null,null,null,13,25,"patrick JACQUOT",null,null,"GPS Val de Saone",null,null,"Sénior",143,null,91,null,149,null,286,null,669,null,null,null,"","",null,null,null,null,null,null,null,null,null,null,null,null,null,null,null,null,null,null,null,"","",null,null,null,null,null,null,null,null,null,null,null,null,null,null,null,null,null,null,null,"","",null,null,null,null,null,null,null,null,null,null,null,null,null,null,null,null,null,null,null,"","",null,null,null,null,null,null,null,null,null,null,null,null,null,null,null,null,null,null,null,"","",null,null,null,null,null,null,null,null,null,null,null,null,null,null,null,null,null,null,null,"","",null,null,null,null,null,null,null,null,null,null,null,null,null,null,null,null,null,null,null,"",""]
[null,null,null,{"$f":"'INFORMATIONS COMPETITEURS'!D22","v":14},{"$f":"IF('INFORMATIONS COMPETITEURS'!$D$59=\"TABLEAU DE SAISIE CONFORME\",CONCATENATE('INFORMATIONS COMPETITEURS'!G22,\" \",'INFORMATIONS COMPETITEURS'!E22),\"\")","v":"Eric GIAMPRETI"},null,null,{"$f":"IF('INFORMATIONS COMPETITEURS'!$D$59=\"TABLEAU DE SAISIE CONFORME\",IF('INFORMATIONS COMPETITEURS'!I22=\"\",\"\",'INFORMATIONS COMPETITEURS'!I22),\"\")","v":"GPS Lyon Centre"},null,null,{"$f":"IF('INFORMATIONS COMPETITEURS'!$D$59=\"TABLEAU DE SAISIE CONFORME\",IF(COUNTBLANK('INFORMATIONS COMPETITEURS'!L22)=1,\"\",'INFORMATIONS COMPETITEURS'!L22),\"\")","v":"Sénior"},{"$f":"IF('INFORMATIONS COMPETITEURS'!$D$59=\"TABLEAU DE SAISIE NON CONFORME\",\"\",IF(OR(E27=\"\",H27=\"\",K27=\"\"),N(0),'MOUCHE N°1'!P23))","v":212},null,{"$f":"IF('INFORMATIONS COMPETITEURS'!$D$59=\"TABLEAU DE SAISIE NON CONFORME\",\"\",IF(OR(E27=\"\",H27=\"\",K27=\"\"),N(0),'MOUCHE N°2'!P23))","v":230},null,{"$f":"IF('INFORMATIONS COMPETITEURS'!$D$59=\"TABLEAU DE SAISIE NON CONFORME\",\"\",IF(OR(E27=\"\",H27=\"\",K27=\"\"),N(0),'MOUCHE N°3'!P23))","v":106},null,{"$f":"IF('INFORMATIONS COMPETITEURS'!$D$59=\"TABLEAU DE SAISIE NON CONFORME\",\"\",IF(OR(E27=\"\",H27=\"\",K27=\"\"),N(0),'MOUCHE N°4'!P23))","v":272},null,{"$f":"IF('INFORMATIONS COMPETITEURS'!$D$59=\"TABLEAU DE SAISIE NON CONFORME\",\"\",IF(E27=\" \",N(0),IF(COUNT(L27,N27,P27,R27)>0,SUM(L27,N27,P27,R27),N(0))))","v":820},null,null,null,14,25,"patrick JACQUOT",null,null,"GPS Val de Saone",null,null,"Sénior",143,null,91,null,149,null,286,null,669,null,null,null,14,6,"Jean-Luc GAULON",null,null,"CMCRE",null,null,"Sénior",112,null,96,null,222,null,236,null,666,null,null,null,"","",null,null,null,null,null,null,null,null,null,null,null,null,null,null,null,null,null,null,null,"","",null,null,null,null,null,null,null,null,null,null,null,null,null,null,null,null,null,null,null,"","",null,null,null,null,null,null,null,null,null,null,null,null,null,null,null,null,null,null,null,"","",null,null,null,null,null,null,null,null,null,null,null,null,null,null,null,null,null,null,null,"","",null,null,null,null,null,null,null,null,null,null,null,null,null,null,null,null,null,null,null,"","",null,null,null,null,null,null,null,null,null,null,null,null,null,null,null,null,null,null,null,"",""]
[null,null,null,{"$f":"'INFORMATIONS COMPETITEURS'!D23","v":15},{"$f":"IF('INFORMATIONS COMPETITEURS'!$D$59=\"TABLEAU DE SAISIE CONFORME\",CONCATENATE('INFORMATIONS COMPETITEURS'!G23,\" \",'INFORMATIONS COMPETITEURS'!E23),\"\")","v":"Frédéric EVENNOU"},null,null,{"$f":"IF('INFORMATIONS COMPETITEURS'!$D$59=\"TABLEAU DE SAISIE CONFORME\",IF('INFORMATIONS COMPETITEURS'!I23=\"\",\"\",'INFORMATIONS COMPETITEURS'!I23),\"\")","v":"GPS Lyon Centre"},null,null,{"$f":"IF('INFORMATIONS COMPETITEURS'!$D$59=\"TABLEAU DE SAISIE CONFORME\",IF(COUNTBLANK('INFORMATIONS COMPETITEURS'!L23)=1,\"\",'INFORMATIONS COMPETITEURS'!L23),\"\")","v":"Sénior"},{"$f":"IF('INFORMATIONS COMPETITEURS'!$D$59=\"TABLEAU DE SAISIE NON CONFORME\",\"\",IF(OR(E28=\"\",H28=\"\",K28=\"\"),N(0),'MOUCHE N°1'!P24))","v":139},null,{"$f":"IF('INFORMATIONS COMPETITEURS'!$D$59=\"TABLEAU DE SAISIE NON CONFORME\",\"\",IF(OR(E28=\"\",H28=\"\",K28=\"\"),N(0),'MOUCHE N°2'!P24))","v":78},null,{"$f":"IF('INFORMATIONS COMPETITEURS'!$D$59=\"TABLEAU DE SAISIE NON CONFORME\",\"\",IF(OR(E28=\"\",H28=\"\",K28=\"\"),N(0),'MOUCHE N°3'!P24))","v":143},null,{"$f":"IF('INFORMATIONS COMPETITEURS'!$D$59=\"TABLEAU DE SAISIE NON CONFORME\",\"\",IF(OR(E28=\"\",H28=\"\",K28=\"\"),N(0),'MOUCHE N°4'!P24))","v":226},null,{"$f":"IF('INFORMATIONS COMPETITEURS'!$D$59=\"TABLEAU DE SAISIE NON CONFORME\",\"\",IF(E28=\" \",N(0),IF(COUNT(L28,N28,P28,R28)>0,SUM(L28,N28,P28,R28),N(0))))","v":586},null,null,null,15,6,"Jean-Luc GAULON",null,null,"CMCRE",null,null,"Sénior",112,null,96,null,222,null,236,null,666,null,null,null,15,3,"Samuel CREPILLON",null,null,"GPS Nièvre Morvan",null,null,"Sénior",120,null,120,null,142,null,270,null,652,null,null,null,"","",null,null,null,null,null,null,null,null,null,null,null,null,null,null,null,null,null,null,null,"","",null,null,null,null,null,null,null,null,null,null,null,null,null,null,null,null,null,null,null,"","",null,null,null,null,null,null,null,null,null,null,null,null,null,null,null,null,null,null,null,"","",null,null,null,null,null,null,null,null,null,null,null,null,null,null,null,null,null,null,null,"","",null,null,null,null,null,null,null,null,null,null,null,null,null,null,null,null,null,null,null,"","",null,null,null,null,null,null,null,null,null,null,null,null,null,null,null,null,null,null,null,"",""]
[null,null,null,{"$f":"'INFORMATIONS COMPETITEURS'!D24","v":16},{"$f":"IF('INFORMATIONS COMPETITEURS'!$D$59=\"TABLEAU DE SAISIE CONFORME\",CONCATENATE('INFORMATIONS COMPETITEURS'!G24,\" \",'INFORMATIONS COMPETITEURS'!E24),\"\")","v":"Bernard FAIVRE"},null,null,{"$f":"IF('INFORMATIONS COMPETITEURS'!$D$59=\"TABLEAU DE SAISIE CONFORME\",IF('INFORMATIONS COMPETITEURS'!I24=\"\",\"\",'INFORMATIONS COMPETITEURS'!I24),\"\")","v":"GPS Pays d'Oc"},null,null,{"$f":"IF('INFORMATIONS COMPETITEURS'!$D$59=\"TABLEAU DE SAISIE CONFORME\",IF(COUNTBLANK('INFORMATIONS COMPETITEURS'!L24)=1,\"\",'INFORMATIONS COMPETITEURS'!L24),\"\")","v":"Sénior"},{"$f":"IF('INFORMATIONS COMPETITEURS'!$D$59=\"TABLEAU DE SAISIE NON CONFORME\",\"\",IF(OR(E29=\"\",H29=\"\",K29=\"\"),N(0),'MOUCHE N°1'!P25))","v":230},null,{"$f":"IF('INFORMATIONS COMPETITEURS'!$D$59=\"TABLEAU DE SAISIE NON CONFORME\",\"\",IF(OR(E29=\"\",H29=\"\",K29=\"\"),N(0),'MOUCHE N°2'!P25))","v":150},null,{"$f":"IF('INFORMATIONS COMPETITEURS'!$D$59=\"TABLEAU DE SAISIE NON CONFORME\",\"\",IF(OR(E29=\"\",H29=\"\",K29=\"\"),N(0),'MOUCHE N°3'!P25))","v":125},null,{"$f":"IF('INFORMATIONS COMPETITEURS'!$D$59=\"TABLEAU DE SAISIE NON CONFORME\",\"\",IF(OR(E29=\"\",H29=\"\",K29=\"\"),N(0),'MOUCHE N°4'!P25))","v":246},null,{"$f":"IF('INFORMATIONS COMPETITEURS'!$D$59=\"TABLEAU DE SAISIE NON CONFORME\",\"\",IF(E29=\" \",N(0),IF(COUNT(L29,N29,P29,R29)>0,SUM(L29,N29,P29,R29),N(0))))","v":751},null,null,null,16,3,"Samuel CREPILLON",null,null,"GPS Nièvre Morvan",null,null,"Sénior",120,null,120,null,142,null,270,null,652,null,null,null,16,22,"Dominique BRULEY",null,null,"GPS Val de Saone",null,null,"Sénior",276,null,78,null,129,null,161,null,644,null,null,null,"","",null,null,null,null,null,null,null,null,null,null,null,null,null,null,null,null,null,null,null,"","",null,null,null,null,null,null,null,null,null,null,null,null,null,null,null,null,null,null,null,"","",null,null,null,null,null,null,null,null,null,null,null,null,null,null,null,null,null,null,null,"","",null,null,null,null,null,null,null,null,null,null,null,null,null,null,null,null,null,null,null,"","",null,null,null,null,null,null,null,null,null,null,null,null,null,null,null,null,null,null,null,"","",null,null,null,null,null,null,null,null,null,null,null,null,null,null,null,null,null,null,null,"",""]
[null,null,null,{"$f":"'INFORMATIONS COMPETITEURS'!D25","v":17},{"$f":"IF('INFORMATIONS COMPETITEURS'!$D$59=\"TABLEAU DE SAISIE CONFORME\",CONCATENATE('INFORMATIONS COMPETITEURS'!G25,\" \",'INFORMATIONS COMPETITEURS'!E25),\"\")","v":"Bernard Rémi"},null,null,{"$f":"IF('INFORMATIONS COMPETITEURS'!$D$59=\"TABLEAU DE SAISIE CONFORME\",IF('INFORMATIONS COMPETITEURS'!I25=\"\",\"\",'INFORMATIONS COMPETITEURS'!I25),\"\")","v":"Ecole de pêche Dijon"},null,null,{"$f":"IF('INFORMATIONS COMPETITEURS'!$D$59=\"TABLEAU DE SAISIE CONFORME\",IF(COUNTBLANK('INFORMATIONS COMPETITEURS'!L25)=1,\"\",'INFORMATIONS COMPETITEURS'!L25),\"\")","v":"Benjamin"},{"$f":"IF('INFORMATIONS COMPETITEURS'!$D$59=\"TABLEAU DE SAISIE NON CONFORME\",\"\",IF(OR(E30=\"\",H30=\"\",K30=\"\"),N(0),'MOUCHE N°1'!P26))","v":0},null,{"$f":"IF('INFORMATIONS COMPETITEURS'!$D$59=\"TABLEAU DE SAISIE NON CONFORME\",\"\",IF(OR(E30=\"\",H30=\"\",K30=\"\"),N(0),'MOUCHE N°2'!P26))","v":0},null,{"$f":"IF('INFORMATIONS COMPETITEURS'!$D$59=\"TABLEAU DE SAISIE NON CONFORME\",\"\",IF(OR(E30=\"\",H30=\"\",K30=\"\"),N(0),'MOUCHE N°3'!P26))","v":0},null,{"$f":"IF('INFORMATIONS COMPETITEURS'!$D$59=\"TABLEAU DE SAISIE NON CONFORME\",\"\",IF(OR(E30=\"\",H30=\"\",K30=\"\"),N(0),'MOUCHE N°4'!P26))","v":0},null,{"$f":"IF('INFORMATIONS COMPETITEURS'!$D$59=\"TABLEAU DE SAISIE NON CONFORME\",\"\",IF(E30=\" \",N(0),IF(COUNT(L30,N30,P30,R30)>0,SUM(L30,N30,P30,R30),N(0))))","v":0},null,null,null,17,5,"Nathalie ALBERGE",null,null,"CM Pays d'Oc",null,null,"Féminine",182,null,169,null,177,null,123,null,651,null,null,null,17,15,"Frédéric EVENNOU",null,null,"GPS Lyon Centre",null,null,"Sénior",139,null,78,null,143,null,226,null,586,null,null,null,"","",null,null,null,null,null,null,null,null,null,null,null,null,null,null,null,null,null,null,null,"","",null,null,null,null,null,null,null,null,null,null,null,null,null,null,null,null,null,null,null,"","",null,null,null,null,null,null,null,null,null,null,null,null,null,null,null,null,null,null,null,"","",null,null,null,null,null,null,null,null,null,null,null,null,null,null,null,null,null,null,null,"","",null,null,null,null,null,null,null,null,null,null,null,null,null,null,null,null,null,null,null,"","",null,null,null,null,null,null,null,null,null,null,null,null,null,null,null,null,null,null,null,"",""]
[null,null,null,{"$f":"'INFORMATIONS COMPETITEURS'!D26","v":18},{"$f":"IF('INFORMATIONS COMPETITEURS'!$D$59=\"TABLEAU DE SAISIE CONFORME\",CONCATENATE('INFORMATIONS COMPETITEURS'!G26,\" \",'INFORMATIONS COMPETITEURS'!E26),\"\")","v":"Denis FAUVELLIERE"},null,null,{"$f":"IF('INFORMATIONS COMPETITEURS'!$D$59=\"TABLEAU DE SAISIE CONFORME\",IF('INFORMATIONS COMPETITEURS'!I26=\"\",\"\",'INFORMATIONS COMPETITEURS'!I26),\"\")","v":"CM Plaisir"},null,null,{"$f":"IF('INFORMATIONS COMPETITEURS'!$D$59=\"TABLEAU DE SAISIE CONFORME\",IF(COUNTBLANK('INFORMATIONS COMPETITEURS'!L26)=1,\"\",'INFORMATIONS COMPETITEURS'!L26),\"\")","v":"Sénior"},{"$f":"IF('INFORMATIONS COMPETITEURS'!$D$59=\"TABLEAU DE SAISIE NON CONFORME\",\"\",IF(OR(E31=\"\",H31=\"\",K31=\"\"),N(0),'MOUCHE N°1'!P27))","v":124},null,{"$f":"IF('INFORMATIONS COMPETITEURS'!$D$59=\"TABLEAU DE SAISIE NON CONFORME\",\"\",IF(OR(E31=\"\",H31=\"\",K31=\"\"),N(0),'MOUCHE N°2'!P27))","v":155},null,{"$f":"IF('INFORMATIONS COMPETITEURS'!$D$59=\"TABLEAU DE SAISIE NON CONFORME\",\"\",IF(OR(E31=\"\",H31=\"\",K31=\"\"),N(0),'MOUCHE N°3'!P27))","v":152},null,{"$f":"IF('INFORMATIONS COMPETITEURS'!$D$59=\"TABLEAU DE SAISIE NON CONFORME\",\"\",IF(OR(E31=\"\",H31=\"\",K31=\"\"),N(0),'MOUCHE N°4'!P27))","v":128},null,{"$f":"IF('INFORMATIONS COMPETITEURS'!$D$59=\"TABLEAU DE SAISIE NON CONFORME\",\"\",IF(E31=\" \",N(0),IF(COUNT(L31,N31,P31,R31)>0,SUM(L31,N31,P31,R31),N(0))))","v":559},null,null,null,18,22,"Dominique BRULEY",null,null,"GPS Val de Saone",null,null,"Sénior",276,null,78,null,129,null,161,null,644,null,null,null,18,23,"Christophe MARTIN",null,null,"CM Plaisir",null,null,"Sénior",149,null,126,null,127,null,160,null,562,null,null,null,"","",null,null,null,null,null,null,null,null,null,null,null,null,null,null,null,null,null,null,null,"","",null,null,null,null,null,null,null,null,null,null,null,null,null,null,null,null,null,null,null,"","",null,null,null,null,null,null,null,null,null,null,null,null,null,null,null,null,null,null,null,"","",null,null,null,null,null,null,null,null,null,null,null,null,null,null,null,null,null,null,null,"","",null,null,null,null,null,null,null,null,null,null,null,null,null,null,null,null,null,null,null,"","",null,null,null,null,null,null,null,null,null,null,null,null,null,null,null,null,null,null,null,"",""]
[null,null,null,{"$f":"'INFORMATIONS COMPETITEURS'!D27","v":19},{"$f":"IF('INFORMATIONS COMPETITEURS'!$D$59=\"TABLEAU DE SAISIE CONFORME\",CONCATENATE('INFORMATIONS COMPETITEURS'!G27,\" \",'INFORMATIONS COMPETITEURS'!E27),\"\")","v":"Lionel GOMINET"},null,null,{"$f":"IF('INFORMATIONS COMPETITEURS'!$D$59=\"TABLEAU DE SAISIE CONFORME\",IF('INFORMATIONS COMPETITEURS'!I27=\"\",\"\",'INFORMATIONS COMPETITEURS'!I27),\"\")","v":"GPS Pays d'Oc"},null,null,{"$f":"IF('INFORMATIONS COMPETITEURS'!$D$59=\"TABLEAU DE SAISIE CONFORME\",IF(COUNTBLANK('INFORMATIONS COMPETITEURS'!L27)=1,\"\",'INFORMATIONS COMPETITEURS'!L27),\"\")","v":"Sénior"},{"$f":"IF('INFORMATIONS COMPETITEURS'!$D$59=\"TABLEAU DE SAISIE NON CONFORME\",\"\",IF(OR(E32=\"\",H32=\"\",K32=\"\"),N(0),'MOUCHE N°1'!P28))","v":161},null,{"$f":"IF('INFORMATIONS COMPETITEURS'!$D$59=\"TABLEAU DE SAISIE NON CONFORME\",\"\",IF(OR(E32=\"\",H32=\"\",K32=\"\"),N(0),'MOUCHE N°2'!P28))","v":268},null,{"$f":"IF('INFORMATIONS COMPETITEURS'!$D$59=\"TABLEAU DE SAISIE NON CONFORME\",\"\",IF(OR(E32=\"\",H32=\"\",K32=\"\"),N(0),'MOUCHE N°3'!P28))","v":175},null,{"$f":"IF('INFORMATIONS COMPETITEURS'!$D$59=\"TABLEAU DE SAISIE NON CONFORME\",\"\",IF(OR(E32=\"\",H32=\"\",K32=\"\"),N(0),'MOUCHE N°4'!P28))","v":114},null,{"$f":"IF('INFORMATIONS COMPETITEURS'!$D$59=\"TABLEAU DE SAISIE NON CONFORME\",\"\",IF(E32=\" \",N(0),IF(COUNT(L32,N32,P32,R32)>0,SUM(L32,N32,P32,R32),N(0))))","v":718},null,null,null,19,9,"Solène Le Bourhis  Beyer",null,null,"CM Arzano",null,null,"Féminine",180,null,160,null,146,null,153,null,639,null,null,null,19,18,"Denis FAUVELLIERE",null,null,"CM Plaisir",null,null,"Sénior",124,null,155,null,152,null,128,null,559,null,null,null,"","",null,null,null,null,null,null,null,null,null,null,null,null,null,null,null,null,null,null,null,"","",null,null,null,null,null,null,null,null,null,null,null,null,null,null,null,null,null,null,null,"","",null,null,null,null,null,null,null,null,null,null,null,null,null,null,null,null,null,null,null,"","",null,null,null,null,null,null,null,null,null,null,null,null,null,null,null,null,null,null,null,"","",null,null,null,null,null,null,null,null,null,null,null,null,null,null,null,null,null,null,null,"","",null,null,null,null,null,null,null,null,null,null,null,null,null,null,null,null,null,null,null,"",""]
[null,null,null,{"$f":"'INFORMATIONS COMPETITEURS'!D28","v":20},{"$f":"IF('INFORMATIONS COMPETITEURS'!$D$59=\"TABLEAU DE SAISIE CONFORME\",CONCATENATE('INFORMATIONS COMPETITEURS'!G28,\" \",'INFORMATIONS COMPETITEURS'!E28),\"\")","v":"HAMZA MAACH"},null,null,{"$f":"IF('INFORMATIONS COMPETITEURS'!$D$59=\"TABLEAU DE SAISIE CONFORME\",IF('INFORMATIONS COMPETITEURS'!I28=\"\",\"\",'INFORMATIONS COMPETITEURS'!I28),\"\")","v":"Ecole de pêche Dijon"},null,null,{"$f":"IF('INFORMATIONS COMPETITEURS'!$D$59=\"TABLEAU DE SAISIE CONFORME\",IF(COUNTBLANK('INFORMATIONS COMPETITEURS'!L28)=1,\"\",'INFORMATIONS COMPETITEURS'!L28),\"\")","v":"Benjamin"},{"$f":"IF('INFORMATIONS COMPETITEURS'!$D$59=\"TABLEAU DE SAISIE NON CONFORME\",\"\",IF(OR(E33=\"\",H33=\"\",K33=\"\"),N(0),'MOUCHE N°1'!P29))","v":92},null,{"$f":"IF('INFORMATIONS COMPETITEURS'!$D$59=\"TABLEAU DE SAISIE NON CONFORME\",\"\",IF(OR(E33=\"\",H33=\"\",K33=\"\"),N(0),'MOUCHE N°2'!P29))","v":85},null,{"$f":"IF('INFORMATIONS COMPETITEURS'!$D$59=\"TABLEAU DE SAISIE NON CONFORME\",\"\",IF(OR(E33=\"\",H33=\"\",K33=\"\"),N(0),'MOUCHE N°3'!P29))","v":79},null,{"$f":"IF('INFORMATIONS COMPETITEURS'!$D$59=\"TABLEAU DE SAISIE NON CONFORME\",\"\",IF(OR(E33=\"\",H33=\"\",K33=\"\"),N(0),'MOUCHE N°4'!P29))","v":150},null,{"$f":"IF('INFORMATIONS COMPETITEURS'!$D$59=\"TABLEAU DE SAISIE NON CONFORME\",\"\",IF(E33=\" \",N(0),IF(COUNT(L33,N33,P33,R33)>0,SUM(L33,N33,P33,R33),N(0))))","v":406},null,null,null,20,15,"Frédéric EVENNOU",null,null,"GPS Lyon Centre",null,null,"Sénior",139,null,78,null,143,null,226,null,586,null,null,null,"","",null,null,null,null,null,null,null,null,null,null,null,null,null,null,null,null,null,null,null,"","",null,null,null,null,null,null,null,null,null,null,null,null,null,null,null,null,null,null,null,"","",null,null,null,null,null,null,null,null,null,null,null,null,null,null,null,null,null,null,null,"","",null,null,null,null,null,null,null,null,null,null,null,null,null,null,null,null,null,null,null,"","",null,null,null,null,null,null,null,null,null,null,null,null,null,null,null,null,null,null,null,"","",null,null,null,null,null,null,null,null,null,null,null,null,null,null,null,null,null,null,null,"","",null,null,null,null,null,null,null,null,null,null,null,null,null,null,null,null,null,null,null,"",""]
[null,null,null,{"$f":"'INFORMATIONS COMPETITEURS'!D29","v":21},{"$f":"IF('INFORMATIONS COMPETITEURS'!$D$59=\"TABLEAU DE SAISIE CONFORME\",CONCATENATE('INFORMATIONS COMPETITEURS'!G29,\" \",'INFORMATIONS COMPETITEURS'!E29),\"\")","v":"Dimitri DEZOTHEZ"},null,null,{"$f":"IF('INFORMATIONS COMPETITEURS'!$D$59=\"TABLEAU DE SAISIE CONFORME\",IF('INFORMATIONS COMPETITEURS'!I29=\"\",\"\",'INFORMATIONS COMPETITEURS'!I29),\"\")","v":"Club Mouche du gévaudan"},null,null,{"$f":"IF('INFORMATIONS COMPETITEURS'!$D$59=\"TABLEAU DE SAISIE CONFORME\",IF(COUNTBLANK('INFORMATIONS COMPETITEURS'!L29)=1,\"\",'INFORMATIONS COMPETITEURS'!L29),\"\")","v":"Minime"},{"$f":"IF('INFORMATIONS COMPETITEURS'!$D$59=\"TABLEAU DE SAISIE NON CONFORME\",\"\",IF(OR(E34=\"\",H34=\"\",K34=\"\"),N(0),'MOUCHE N°1'!P30))","v":262},null,{"$f":"IF('INFORMATIONS COMPETITEURS'!$D$59=\"TABLEAU DE SAISIE NON CONFORME\",\"\",IF(OR(E34=\"\",H34=\"\",K34=\"\"),N(0),'MOUCHE N°2'!P30))","v":175},null,{"$f":"IF('INFORMATIONS COMPETITEURS'!$D$59=\"TABLEAU DE SAISIE NON CONFORME\",\"\",IF(OR(E34=\"\",H34=\"\",K34=\"\"),N(0),'MOUCHE N°3'!P30))","v":173},null,{"$f":"IF('INFORMATIONS COMPETITEURS'!$D$59=\"TABLEAU DE SAISIE NON CONFORME\",\"\",IF(OR(E34=\"\",H34=\"\",K34=\"\"),N(0),'MOUCHE N°4'!P30))","v":173},null,{"$f":"IF('INFORMATIONS COMPETITEURS'!$D$59=\"TABLEAU DE SAISIE NON CONFORME\",\"\",IF(E34=\" \",N(0),IF(COUNT(L34,N34,P34,R34)>0,SUM(L34,N34,P34,R34),N(0))))","v":783},null,null,null,21,23,"Christophe MARTIN",null,null,"CM Plaisir",null,null,"Sénior",149,null,126,null,127,null,160,null,562,null,null,null,"","",null,null,null,null,null,null,null,null,null,null,null,null,null,null,null,null,null,null,null,"","",null,null,null,null,null,null,null,null,null,null,null,null,null,null,null,null,null,null,null,"","",null,null,null,null,null,null,null,null,null,null,null,null,null,null,null,null,null,null,null,"","",null,null,null,null,null,null,null,null,null,null,null,null,null,null,null,null,null,null,null,"","",null,null,null,null,null,null,null,null,null,null,null,null,null,null,null,null,null,null,null,"","",null,null,null,null,null,null,null,null,null,null,null,null,null,null,null,null,null,null,null,"","",null,null,null,null,null,null,null,null,null,null,null,null,null,null,null,null,null,null,null,"",""]
[null,null,null,{"$f":"'INFORMATIONS COMPETITEURS'!D30","v":22},{"$f":"IF('INFORMATIONS COMPETITEURS'!$D$59=\"TABLEAU DE SAISIE CONFORME\",CONCATENATE('INFORMATIONS COMPETITEURS'!G30,\" \",'INFORMATIONS COMPETITEURS'!E30),\"\")","v":"Dominique BRULEY"},null,null,{"$f":"IF('INFORMATIONS COMPETITEURS'!$D$59=\"TABLEAU DE SAISIE CONFORME\",IF('INFORMATIONS COMPETITEURS'!I30=\"\",\"\",'INFORMATIONS COMPETITEURS'!I30),\"\")","v":"GPS Val de Saone"},null,null,{"$f":"IF('INFORMATIONS COMPETITEURS'!$D$59=\"TABLEAU DE SAISIE CONFORME\",IF(COUNTBLANK('INFORMATIONS COMPETITEURS'!L30)=1,\"\",'INFORMATIONS COMPETITEURS'!L30),\"\")","v":"Sénior"},{"$f":"IF('INFORMATIONS COMPETITEURS'!$D$59=\"TABLEAU DE SAISIE NON CONFORME\",\"\",IF(OR(E35=\"\",H35=\"\",K35=\"\"),N(0),'MOUCHE N°1'!P31))","v":276},null,{"$f":"IF('INFORMATIONS COMPETITEURS'!$D$59=\"TABLEAU DE SAISIE NON CONFORME\",\"\",IF(OR(E35=\"\",H35=\"\",K35=\"\"),N(0),'MOUCHE N°2'!P31))","v":78},null,{"$f":"IF('INFORMATIONS COMPETITEURS'!$D$59=\"TABLEAU DE SAISIE NON CONFORME\",\"\",IF(OR(E35=\"\",H35=\"\",K35=\"\"),N(0),'MOUCHE N°3'!P31))","v":129},null,{"$f":"IF('INFORMATIONS COMPETITEURS'!$D$59=\"TABLEAU DE SAISIE NON CONFORME\",\"\",IF(OR(E35=\"\",H35=\"\",K35=\"\"),N(0),'MOUCHE N°4'!P31))","v":161},null,{"$f":"IF('INFORMATIONS COMPETITEURS'!$D$59=\"TABLEAU DE SAISIE NON CONFORME\",\"\",IF(E35=\" \",N(0),IF(COUNT(L35,N35,P35,R35)>0,SUM(L35,N35,P35,R35),N(0))))","v":644},null,null,null,22,18,"Denis FAUVELLIERE",null,null,"CM Plaisir",null,null,"Sénior",124,null,155,null,152,null,128,null,559,null,null,null,"","",null,null,null,null,null,null,null,null,null,null,null,null,null,null,null,null,null,null,null,"","",null,null,null,null,null,null,null,null,null,null,null,null,null,null,null,null,null,null,null,"","",null,null,null,null,null,null,null,null,null,null,null,null,null,null,null,null,null,null,null,"","",null,null,null,null,null,null,null,null,null,null,null,null,null,null,null,null,null,null,null,"","",null,null,null,null,null,null,null,null,null,null,null,null,null,null,null,null,null,null,null,"","",null,null,null,null,null,null,null,null,null,null,null,null,null,null,null,null,null,null,null,"","",null,null,null,null,null,null,null,null,null,null,null,null,null,null,null,null,null,null,null,"",""]
[null,null,null,{"$f":"'INFORMATIONS COMPETITEURS'!D31","v":23},{"$f":"IF('INFORMATIONS COMPETITEURS'!$D$59=\"TABLEAU DE SAISIE CONFORME\",CONCATENATE('INFORMATIONS COMPETITEURS'!G31,\" \",'INFORMATIONS COMPETITEURS'!E31),\"\")","v":"Christophe MARTIN"},null,null,{"$f":"IF('INFORMATIONS COMPETITEURS'!$D$59=\"TABLEAU DE SAISIE CONFORME\",IF('INFORMATIONS COMPETITEURS'!I31=\"\",\"\",'INFORMATIONS COMPETITEURS'!I31),\"\")","v":"CM Plaisir"},null,null,{"$f":"IF('INFORMATIONS COMPETITEURS'!$D$59=\"TABLEAU DE SAISIE CONFORME\",IF(COUNTBLANK('INFORMATIONS COMPETITEURS'!L31)=1,\"\",'INFORMATIONS COMPETITEURS'!L31),\"\")","v":"Sénior"},{"$f":"IF('INFORMATIONS COMPETITEURS'!$D$59=\"TABLEAU DE SAISIE NON CONFORME\",\"\",IF(OR(E36=\"\",H36=\"\",K36=\"\"),N(0),'MOUCHE N°1'!P32))","v":149},null,{"$f":"IF('INFORMATIONS COMPETITEURS'!$D$59=\"TABLEAU DE SAISIE NON CONFORME\",\"\",IF(OR(E36=\"\",H36=\"\",K36=\"\"),N(0),'MOUCHE N°2'!P32))","v":126},null,{"$f":"IF('INFORMATIONS COMPETITEURS'!$D$59=\"TABLEAU DE SAISIE NON CONFORME\",\"\",IF(OR(E36=\"\",H36=\"\",K36=\"\"),N(0),'MOUCHE N°3'!P32))","v":127},null,{"$f":"IF('INFORMATIONS COMPETITEURS'!$D$59=\"TABLEAU DE SAISIE NON CONFORME\",\"\",IF(OR(E36=\"\",H36=\"\",K36=\"\"),N(0),'MOUCHE N°4'!P32))","v":160},null,{"$f":"IF('INFORMATIONS COMPETITEURS'!$D$59=\"TABLEAU DE SAISIE NON CONFORME\",\"\",IF(E36=\" \",N(0),IF(COUNT(L36,N36,P36,R36)>0,SUM(L36,N36,P36,R36),N(0))))","v":562},null,null,null,23,4,"Valentin BIBENT",null,null,"CML",null,null,"Minime",65,null,192,null,151,null,124,null,532,null,null,null,"","",null,null,null,null,null,null,null,null,null,null,null,null,null,null,null,null,null,null,null,"","",null,null,null,null,null,null,null,null,null,null,null,null,null,null,null,null,null,null,null,"","",null,null,null,null,null,null,null,null,null,null,null,null,null,null,null,null,null,null,null,"","",null,null,null,null,null,null,null,null,null,null,null,null,null,null,null,null,null,null,null,"","",null,null,null,null,null,null,null,null,null,null,null,null,null,null,null,null,null,null,null,"","",null,null,null,null,null,null,null,null,null,null,null,null,null,null,null,null,null,null,null,"","",null,null,null,null,null,null,null,null,null,null,null,null,null,null,null,null,null,null,null,"",""]
[null,null,null,{"$f":"'INFORMATIONS COMPETITEURS'!D32","v":24},{"$f":"IF('INFORMATIONS COMPETITEURS'!$D$59=\"TABLEAU DE SAISIE CONFORME\",CONCATENATE('INFORMATIONS COMPETITEURS'!G32,\" \",'INFORMATIONS COMPETITEURS'!E32),\"\")","v":"Gérard VILLA"},null,null,{"$f":"IF('INFORMATIONS COMPETITEURS'!$D$59=\"TABLEAU DE SAISIE CONFORME\",IF('INFORMATIONS COMPETITEURS'!I32=\"\",\"\",'INFORMATIONS COMPETITEURS'!I32),\"\")","v":"GPS Pays d'Oc"},null,null,{"$f":"IF('INFORMATIONS COMPETITEURS'!$D$59=\"TABLEAU DE SAISIE CONFORME\",IF(COUNTBLANK('INFORMATIONS COMPETITEURS'!L32)=1,\"\",'INFORMATIONS COMPETITEURS'!L32),\"\")","v":"Sénior"},{"$f":"IF('INFORMATIONS COMPETITEURS'!$D$59=\"TABLEAU DE SAISIE NON CONFORME\",\"\",IF(OR(E37=\"\",H37=\"\",K37=\"\"),N(0),'MOUCHE N°1'!P33))","v":229},null,{"$f":"IF('INFORMATIONS COMPETITEURS'!$D$59=\"TABLEAU DE SAISIE NON CONFORME\",\"\",IF(OR(E37=\"\",H37=\"\",K37=\"\"),N(0),'MOUCHE N°2'!P33))","v":252},null,{"$f":"IF('INFORMATIONS COMPETITEURS'!$D$59=\"TABLEAU DE SAISIE NON CONFORME\",\"\",IF(OR(E37=\"\",H37=\"\",K37=\"\"),N(0),'MOUCHE N°3'!P33))","v":157},null,{"$f":"IF('INFORMATIONS COMPETITEURS'!$D$59=\"TABLEAU DE SAISIE NON CONFORME\",\"\",IF(OR(E37=\"\",H37=\"\",K37=\"\"),N(0),'MOUCHE N°4'!P33))","v":170},null,{"$f":"IF('INFORMATIONS COMPETITEURS'!$D$59=\"TABLEAU DE SAISIE NON CONFORME\",\"\",IF(E37=\" \",N(0),IF(COUNT(L37,N37,P37,R37)>0,SUM(L37,N37,P37,R37),N(0))))","v":808},null,null,null,24,27,"Batiste JEANIN",null,null,"Ecole de pêche Dijon",null,null,"Cadet",115,null,155,null,106,null,135,null,511,null,null,null,"","",null,null,null,null,null,null,null,null,null,null,null,null,null,null,null,null,null,null,null,"","",null,null,null,null,null,null,null,null,null,null,null,null,null,null,null,null,null,null,null,"","",null,null,null,null,null,null,null,null,null,null,null,null,null,null,null,null,null,null,null,"","",null,null,null,null,null,null,null,null,null,null,null,null,null,null,null,null,null,null,null,"","",null,null,null,null,null,null,null,null,null,null,null,null,null,null,null,null,null,null,null,"","",null,null,null,null,null,null,null,null,null,null,null,null,null,null,null,null,null,null,null,"","",null,null,null,null,null,null,null,null,null,null,null,null,null,null,null,null,null,null,null,"",""]
[null,null,null,{"$f":"'INFORMATIONS COMPETITEURS'!D33","v":25},{"$f":"IF('INFORMATIONS COMPETITEURS'!$D$59=\"TABLEAU DE SAISIE CONFORME\",CONCATENATE('INFORMATIONS COMPETITEURS'!G33,\" \",'INFORMATIONS COMPETITEURS'!E33),\"\")","v":"patrick JACQUOT"},null,null,{"$f":"IF('INFORMATIONS COMPETITEURS'!$D$59=\"TABLEAU DE SAISIE CONFORME\",IF('INFORMATIONS COMPETITEURS'!I33=\"\",\"\",'INFORMATIONS COMPETITEURS'!I33),\"\")","v":"GPS Val de Saone"},null,null,{"$f":"IF('INFORMATIONS COMPETITEURS'!$D$59=\"TABLEAU DE SAISIE CONFORME\",IF(COUNTBLANK('INFORMATIONS COMPETITEURS'!L33)=1,\"\",'INFORMATIONS COMPETITEURS'!L33),\"\")","v":"Sénior"},{"$f":"IF('INFORMATIONS COMPETITEURS'!$D$59=\"TABLEAU DE SAISIE NON CONFORME\",\"\",IF(OR(E38=\"\",H38=\"\",K38=\"\"),N(0),'MOUCHE N°1'!P34))","v":143},null,{"$f":"IF('INFORMATIONS COMPETITEURS'!$D$59=\"TABLEAU DE SAISIE NON CONFORME\",\"\",IF(OR(E38=\"\",H38=\"\",K38=\"\"),N(0),'MOUCHE N°2'!P34))","v":91},null,{"$f":"IF('INFORMATIONS COMPETITEURS'!$D$59=\"TABLEAU DE SAISIE NON CONFORME\",\"\",IF(OR(E38=\"\",H38=\"\",K38=\"\"),N(0),'MOUCHE N°3'!P34))","v":149},null,{"$f":"IF('INFORMATIONS COMPETITEURS'!$D$59=\"TABLEAU DE SAISIE NON CONFORME\",\"\",IF(OR(E38=\"\",H38=\"\",K38=\"\"),N(0),'MOUCHE N°4'!P34))","v":286},null,{"$f":"IF('INFORMATIONS COMPETITEURS'!$D$59=\"TABLEAU DE SAISIE NON CONFORME\",\"\",IF(E38=\" \",N(0),IF(COUNT(L38,N38,P38,R38)>0,SUM(L38,N38,P38,R38),N(0))))","v":669},null,null,null,25,8,"Edgard RICHARD",null,null,"Ecole de pêche Dijon",null,null,"Cadet",95,null,115,null,132,null,130,null,472,null,null,null,"","",null,null,null,null,null,null,null,null,null,null,null,null,null,null,null,null,null,null,null,"","",null,null,null,null,null,null,null,null,null,null,null,null,null,null,null,null,null,null,null,"","",null,null,null,null,null,null,null,null,null,null,null,null,null,null,null,null,null,null,null,"","",null,null,null,null,null,null,null,null,null,null,null,null,null,null,null,null,null,null,null,"","",null,null,null,null,null,null,null,null,null,null,null,null,null,null,null,null,null,null,null,"","",null,null,null,null,null,null,null,null,null,null,null,null,null,null,null,null,null,null,null,"","",null,null,null,null,null,null,null,null,null,null,null,null,null,null,null,null,null,null,null,"",""]
[null,null,null,{"$f":"'INFORMATIONS COMPETITEURS'!D34","v":26},{"$f":"IF('INFORMATIONS COMPETITEURS'!$D$59=\"TABLEAU DE SAISIE CONFORME\",CONCATENATE('INFORMATIONS COMPETITEURS'!G34,\" \",'INFORMATIONS COMPETITEURS'!E34),\"\")","v":"Henri CALAVIA"},null,null,{"$f":"IF('INFORMATIONS COMPETITEURS'!$D$59=\"TABLEAU DE SAISIE CONFORME\",IF('INFORMATIONS COMPETITEURS'!I34=\"\",\"\",'INFORMATIONS COMPETITEURS'!I34),\"\")","v":"CMCRE"},null,null,{"$f":"IF('INFORMATIONS COMPETITEURS'!$D$59=\"TABLEAU DE SAISIE CONFORME\",IF(COUNTBLANK('INFORMATIONS COMPETITEURS'!L34)=1,\"\",'INFORMATIONS COMPETITEURS'!L34),\"\")","v":"Sénior"},{"$f":"IF('INFORMATIONS COMPETITEURS'!$D$59=\"TABLEAU DE SAISIE NON CONFORME\",\"\",IF(OR(E39=\"\",H39=\"\",K39=\"\"),N(0),'MOUCHE N°1'!P35))","v":285},null,{"$f":"IF('INFORMATIONS COMPETITEURS'!$D$59=\"TABLEAU DE SAISIE NON CONFORME\",\"\",IF(OR(E39=\"\",H39=\"\",K39=\"\"),N(0),'MOUCHE N°2'!P35))","v":280},null,{"$f":"IF('INFORMATIONS COMPETITEURS'!$D$59=\"TABLEAU DE SAISIE NON CONFORME\",\"\",IF(OR(E39=\"\",H39=\"\",K39=\"\"),N(0),'MOUCHE N°3'!P35))","v":278},null,{"$f":"IF('INFORMATIONS COMPETITEURS'!$D$59=\"TABLEAU DE SAISIE NON CONFORME\",\"\",IF(OR(E39=\"\",H39=\"\",K39=\"\"),N(0),'MOUCHE N°4'!P35))","v":294},null,{"$f":"IF('INFORMATIONS COMPETITEURS'!$D$59=\"TABLEAU DE SAISIE NON CONFORME\",\"\",IF(E39=\" \",N(0),IF(COUNT(L39,N39,P39,R39)>0,SUM(L39,N39,P39,R39),N(0))))","v":1137},null,null,null,26,20,"HAMZA MAACH",null,null,"Ecole de pêche Dijon",null,null,"Benjamin",92,null,85,null,79,null,150,null,406,null,null,null,"","",null,null,null,null,null,null,null,null,null,null,null,null,null,null,null,null,null,null,null,"","",null,null,null,null,null,null,null,null,null,null,null,null,null,null,null,null,null,null,null,"","",null,null,null,null,null,null,null,null,null,null,null,null,null,null,null,null,null,null,null,"","",null,null,null,null,null,null,null,null,null,null,null,null,null,null,null,null,null,null,null,"","",null,null,null,null,null,null,null,null,null,null,null,null,null,null,null,null,null,null,null,"","",null,null,null,null,null,null,null,null,null,null,null,null,null,null,null,null,null,null,null,"","",null,null,null,null,null,null,null,null,null,null,null,null,null,null,null,null,null,null,null,"",""]
[null,null,null,{"$f":"'INFORMATIONS COMPETITEURS'!D35","v":27},{"$f":"IF('INFORMATIONS COMPETITEURS'!$D$59=\"TABLEAU DE SAISIE CONFORME\",CONCATENATE('INFORMATIONS COMPETITEURS'!G35,\" \",'INFORMATIONS COMPETITEURS'!E35),\"\")","v":"Batiste JEANIN"},null,null,{"$f":"IF('INFORMATIONS COMPETITEURS'!$D$59=\"TABLEAU DE SAISIE CONFORME\",IF('INFORMATIONS COMPETITEURS'!I35=\"\",\"\",'INFORMATIONS COMPETITEURS'!I35),\"\")","v":"Ecole de pêche Dijon"},null,null,{"$f":"IF('INFORMATIONS COMPETITEURS'!$D$59=\"TABLEAU DE SAISIE CONFORME\",IF(COUNTBLANK('INFORMATIONS COMPETITEURS'!L35)=1,\"\",'INFORMATIONS COMPETITEURS'!L35),\"\")","v":"Cadet"},{"$f":"IF('INFORMATIONS COMPETITEURS'!$D$59=\"TABLEAU DE SAISIE NON CONFORME\",\"\",IF(OR(E40=\"\",H40=\"\",K40=\"\"),N(0),'MOUCHE N°1'!P36))","v":115},null,{"$f":"IF('INFORMATIONS COMPETITEURS'!$D$59=\"TABLEAU DE SAISIE NON CONFORME\",\"\",IF(OR(E40=\"\",H40=\"\",K40=\"\"),N(0),'MOUCHE N°2'!P36))","v":155},null,{"$f":"IF('INFORMATIONS COMPETITEURS'!$D$59=\"TABLEAU DE SAISIE NON CONFORME\",\"\",IF(OR(E40=\"\",H40=\"\",K40=\"\"),N(0),'MOUCHE N°3'!P36))","v":106},null,{"$f":"IF('INFORMATIONS COMPETITEURS'!$D$59=\"TABLEAU DE SAISIE NON CONFORME\",\"\",IF(OR(E40=\"\",H40=\"\",K40=\"\"),N(0),'MOUCHE N°4'!P36))","v":135},null,{"$f":"IF('INFORMATIONS COMPETITEURS'!$D$59=\"TABLEAU DE SAISIE NON CONFORME\",\"\",IF(E40=\" \",N(0),IF(COUNT(L40,N40,P40,R40)>0,SUM(L40,N40,P40,R40),N(0))))","v":511},null,null,null,27,11,"Gerard COMMARET",null,null,"GPS Val de Saone",null,null,"Handisport",79,null,91,null,55,null,85,null,310,null,null,null,"","",null,null,null,null,null,null,null,null,null,null,null,null,null,null,null,null,null,null,null,"","",null,null,null,null,null,null,null,null,null,null,null,null,null,null,null,null,null,null,null,"","",null,null,null,null,null,null,null,null,null,null,null,null,null,null,null,null,null,null,null,"","",null,null,null,null,null,null,null,null,null,null,null,null,null,null,null,null,null,null,null,"","",null,null,null,null,null,null,null,null,null,null,null,null,null,null,null,null,null,null,null,"","",null,null,null,null,null,null,null,null,null,null,null,null,null,null,null,null,null,null,null,"","",null,null,null,null,null,null,null,null,null,null,null,null,null,null,null,null,null,null,null,"",""]
[null,null,null,{"$f":"'INFORMATIONS COMPETITEURS'!D36","v":28},{"$f":"IF('INFORMATIONS COMPETITEURS'!$D$59=\"TABLEAU DE SAISIE CONFORME\",CONCATENATE('INFORMATIONS COMPETITEURS'!G36,\" \",'INFORMATIONS COMPETITEURS'!E36),\"\")","v":"Règis CAZARETH"},null,null,{"$f":"IF('INFORMATIONS COMPETITEURS'!$D$59=\"TABLEAU DE SAISIE CONFORME\",IF('INFORMATIONS COMPETITEURS'!I36=\"\",\"\",'INFORMATIONS COMPETITEURS'!I36),\"\")","v":"GPS Décines"},null,null,{"$f":"IF('INFORMATIONS COMPETITEURS'!$D$59=\"TABLEAU DE SAISIE CONFORME\",IF(COUNTBLANK('INFORMATIONS COMPETITEURS'!L36)=1,\"\",'INFORMATIONS COMPETITEURS'!L36),\"\")","v":"Sénior"},{"$f":"IF('INFORMATIONS COMPETITEURS'!$D$59=\"TABLEAU DE SAISIE NON CONFORME\",\"\",IF(OR(E41=\"\",H41=\"\",K41=\"\"),N(0),'MOUCHE N°1'!P37))","v":114},null,{"$f":"IF('INFORMATIONS COMPETITEURS'!$D$59=\"TABLEAU DE SAISIE NON CONFORME\",\"\",IF(OR(E41=\"\",H41=\"\",K41=\"\"),N(0),'MOUCHE N°2'!P37))","v":223},null,{"$f":"IF('INFORMATIONS COMPETITEURS'!$D$59=\"TABLEAU DE SAISIE NON CONFORME\",\"\",IF(OR(E41=\"\",H41=\"\",K41=\"\"),N(0),'MOUCHE N°3'!P37))","v":138},null,{"$f":"IF('INFORMATIONS COMPETITEURS'!$D$59=\"TABLEAU DE SAISIE NON CONFORME\",\"\",IF(OR(E41=\"\",H41=\"\",K41=\"\"),N(0),'MOUCHE N°4'!P37))","v":280},null,{"$f":"IF('INFORMATIONS COMPETITEURS'!$D$59=\"TABLEAU DE SAISIE NON CONFORME\",\"\",IF(E41=\" \",N(0),IF(COUNT(L41,N41,P41,R41)>0,SUM(L41,N41,P41,R41),N(0))))","v":755},null,null,null,28,17,"Bernard Rémi",null,null,"Ecole de pêche Dijon",null,null,"Benjamin",0,null,0,null,0,null,0,null,0,null,null,null,"","",null,null,null,null,null,null,null,null,null,null,null,null,null,null,null,null,null,null,null,"","",null,null,null,null,null,null,null,null,null,null,null,null,null,null,null,null,null,null,null,"","",null,null,null,null,null,null,null,null,null,null,null,null,null,null,null,null,null,null,null,"","",null,null,null,null,null,null,null,null,null,null,null,null,null,null,null,null,null,null,null,"","",null,null,null,null,null,null,null,null,null,null,null,null,null,null,null,null,null,null,null,"","",null,null,null,null,null,null,null,null,null,null,null,null,null,null,null,null,null,null,null,"","",null,null,null,null,null,null,null,null,null,null,null,null,null,null,null,null,null,null,null,"",""]
[null,null,null,{"$f":"'INFORMATIONS COMPETITEURS'!D37","v":29},{"$f":"IF('INFORMATIONS COMPETITEURS'!$D$59=\"TABLEAU DE SAISIE CONFORME\",CONCATENATE('INFORMATIONS COMPETITEURS'!G37,\" \",'INFORMATIONS COMPETITEURS'!E37),\"\")","v":"BOUAFFIA DENIL"},null,null,{"$f":"IF('INFORMATIONS COMPETITEURS'!$D$59=\"TABLEAU DE SAISIE CONFORME\",IF('INFORMATIONS COMPETITEURS'!I37=\"\",\"\",'INFORMATIONS COMPETITEURS'!I37),\"\")","v":"GPS"},null,null,{"$f":"IF('INFORMATIONS COMPETITEURS'!$D$59=\"TABLEAU DE SAISIE CONFORME\",IF(COUNTBLANK('INFORMATIONS COMPETITEURS'!L37)=1,\"\",'INFORMATIONS COMPETITEURS'!L37),\"\")","v":"Minime"},{"$f":"IF('INFORMATIONS COMPETITEURS'!$D$59=\"TABLEAU DE SAISIE NON CONFORME\",\"\",IF(OR(E42=\"\",H42=\"\",K42=\"\"),N(0),'MOUCHE N°1'!P38))","v":0},null,{"$f":"IF('INFORMATIONS COMPETITEURS'!$D$59=\"TABLEAU DE SAISIE NON CONFORME\",\"\",IF(OR(E42=\"\",H42=\"\",K42=\"\"),N(0),'MOUCHE N°2'!P38))","v":0},null,{"$f":"IF('INFORMATIONS COMPETITEURS'!$D$59=\"TABLEAU DE SAISIE NON CONFORME\",\"\",IF(OR(E42=\"\",H42=\"\",K42=\"\"),N(0),'MOUCHE N°3'!P38))","v":0},null,{"$f":"IF('INFORMATIONS COMPETITEURS'!$D$59=\"TABLEAU DE SAISIE NON CONFORME\",\"\",IF(OR(E42=\"\",H42=\"\",K42=\"\"),N(0),'MOUCHE N°4'!P38))","v":0},null,{"$f":"IF('INFORMATIONS COMPETITEURS'!$D$59=\"TABLEAU DE SAISIE NON CONFORME\",\"\",IF(E42=\" \",N(0),IF(COUNT(L42,N42,P42,R42)>0,SUM(L42,N42,P42,R42),N(0))))","v":0},null,null,null,28,29,"BOUAFFIA DENIL",null,null,"GPS",null,null,"Minime",0,null,0,null,0,null,0,null,0,null,null,null,"","",null,null,null,null,null,null,null,null,null,null,null,null,null,null,null,null,null,null,null,"","",null,null,null,null,null,null,null,null,null,null,null,null,null,null,null,null,null,null,null,"","",null,null,null,null,null,null,null,null,null,null,null,null,null,null,null,null,null,null,null,"","",null,null,null,null,null,null,null,null,null,null,null,null,null,null,null,null,null,null,null,"","",null,null,null,null,null,null,null,null,null,null,null,null,null,null,null,null,null,null,null,"","",null,null,null,null,null,null,null,null,null,null,null,null,null,null,null,null,null,null,null,"","",null,null,null,null,null,null,null,null,null,null,null,null,null,null,null,null,null,null,null,"",""]
[null,null,null,{"$f":"'INFORMATIONS COMPETITEURS'!D38","v":30},{"$f":"IF('INFORMATIONS COMPETITEURS'!$D$59=\"TABLEAU DE SAISIE CONFORME\",CONCATENATE('INFORMATIONS COMPETITEURS'!G38,\" \",'INFORMATIONS COMPETITEURS'!E38),\"\")","v":" "},null,null,{"$f":"IF('INFORMATIONS COMPETITEURS'!$D$59=\"TABLEAU DE SAISIE CONFORME\",IF('INFORMATIONS COMPETITEURS'!I38=\"\",\"\",'INFORMATIONS COMPETITEURS'!I38),\"\")","v":""},null,null,{"$f":"IF('INFORMATIONS COMPETITEURS'!$D$59=\"TABLEAU DE SAISIE CONFORME\",IF(COUNTBLANK('INFORMATIONS COMPETITEURS'!L38)=1,\"\",'INFORMATIONS COMPETITEURS'!L38),\"\")","v":""},{"$f":"IF('INFORMATIONS COMPETITEURS'!$D$59=\"TABLEAU DE SAISIE NON CONFORME\",\"\",IF(OR(E43=\"\",H43=\"\",K43=\"\"),N(0),'MOUCHE N°1'!P39))","v":0},null,{"$f":"IF('INFORMATIONS COMPETITEURS'!$D$59=\"TABLEAU DE SAISIE NON CONFORME\",\"\",IF(OR(E43=\"\",H43=\"\",K43=\"\"),N(0),'MOUCHE N°2'!P39))","v":0},null,{"$f":"IF('INFORMATIONS COMPETITEURS'!$D$59=\"TABLEAU DE SAISIE NON CONFORME\",\"\",IF(OR(E43=\"\",H43=\"\",K43=\"\"),N(0),'MOUCHE N°3'!P39))","v":0},null,{"$f":"IF('INFORMATIONS COMPETITEURS'!$D$59=\"TABLEAU DE SAISIE NON CONFORME\",\"\",IF(OR(E43=\"\",H43=\"\",K43=\"\"),N(0),'MOUCHE N°4'!P39))","v":0},null,{"$f":"IF('INFORMATIONS COMPETITEURS'!$D$59=\"TABLEAU DE SAISIE NON CONFORME\",\"\",IF(E43=\" \",N(0),IF(COUNT(L43,N43,P43,R43)>0,SUM(L43,N43,P43,R43),N(0))))","v":0},null,null,null,"",""," ",null,null,"",null,null,"",0,null,0,null,0,null,0,null,0,null,null,null,"","",null,null,null,null,null,null,null,null,null,null,null,null,null,null,null,null,null,null,null,"","",null,null,null,null,null,null,null,null,null,null,null,null,null,null,null,null,null,null,null,"","",null,null,null,null,null,null,null,null,null,null,null,null,null,null,null,null,null,null,null,"","",null,null,null,null,null,null,null,null,null,null,null,null,null,null,null,null,null,null,null,"","",null,null,null,null,null,null,null,null,null,null,null,null,null,null,null,null,null,null,null,"","",null,null,null,null,null,null,null,null,null,null,null,null,null,null,null,null,null,null,null,"","",null,null,null,null,null,null,null,null,null,null,null,null,null,null,null,null,null,null,null,"",""]
[null,null,null,{"$f":"'INFORMATIONS COMPETITEURS'!D39","v":31},{"$f":"IF('INFORMATIONS COMPETITEURS'!$D$59=\"TABLEAU DE SAISIE CONFORME\",CONCATENATE('INFORMATIONS COMPETITEURS'!G39,\" \",'INFORMATIONS COMPETITEURS'!E39),\"\")","v":" "},null,null,{"$f":"IF('INFORMATIONS COMPETITEURS'!$D$59=\"TABLEAU DE SAISIE CONFORME\",IF('INFORMATIONS COMPETITEURS'!I39=\"\",\"\",'INFORMATIONS COMPETITEURS'!I39),\"\")","v":""},null,null,{"$f":"IF('INFORMATIONS COMPETITEURS'!$D$59=\"TABLEAU DE SAISIE CONFORME\",IF(COUNTBLANK('INFORMATIONS COMPETITEURS'!L39)=1,\"\",'INFORMATIONS COMPETITEURS'!L39),\"\")","v":""},{"$f":"IF('INFORMATIONS COMPETITEURS'!$D$59=\"TABLEAU DE SAISIE NON CONFORME\",\"\",IF(OR(E44=\"\",H44=\"\",K44=\"\"),N(0),'MOUCHE N°1'!P40))","v":0},null,{"$f":"IF('INFORMATIONS COMPETITEURS'!$D$59=\"TABLEAU DE SAISIE NON CONFORME\",\"\",IF(OR(E44=\"\",H44=\"\",K44=\"\"),N(0),'MOUCHE N°2'!P40))","v":0},null,{"$f":"IF('INFORMATIONS COMPETITEURS'!$D$59=\"TABLEAU DE SAISIE NON CONFORME\",\"\",IF(OR(E44=\"\",H44=\"\",K44=\"\"),N(0),'MOUCHE N°3'!P40))","v":0},null,{"$f":"IF('INFORMATIONS COMPETITEURS'!$D$59=\"TABLEAU DE SAISIE NON CONFORME\",\"\",IF(OR(E44=\"\",H44=\"\",K44=\"\"),N(0),'MOUCHE N°4'!P40))","v":0},null,{"$f":"IF('INFORMATIONS COMPETITEURS'!$D$59=\"TABLEAU DE SAISIE NON CONFORME\",\"\",IF(E44=\" \",N(0),IF(COUNT(L44,N44,P44,R44)>0,SUM(L44,N44,P44,R44),N(0))))","v":0},null,null,null,"",""," ",null,null,"",null,null,"",0,null,0,null,0,null,0,null,0,null,null,null,"","",null,null,null,null,null,null,null,null,null,null,null,null,null,null,null,null,null,null,null,"","",null,null,null,null,null,null,null,null,null,null,null,null,null,null,null,null,null,null,null,"","",null,null,null,null,null,null,null,null,null,null,null,null,null,null,null,null,null,null,null,"","",null,null,null,null,null,null,null,null,null,null,null,null,null,null,null,null,null,null,null,"","",null,null,null,null,null,null,null,null,null,null,null,null,null,null,null,null,null,null,null,"","",null,null,null,null,null,null,null,null,null,null,null,null,null,null,null,null,null,null,null,"","",null,null,null,null,null,null,null,null,null,null,null,null,null,null,null,null,null,null,null,"",""]
[null,null,null,{"$f":"'INFORMATIONS COMPETITEURS'!D40","v":32},{"$f":"IF('INFORMATIONS COMPETITEURS'!$D$59=\"TABLEAU DE SAISIE CONFORME\",CONCATENATE('INFORMATIONS COMPETITEURS'!G40,\" \",'INFORMATIONS COMPETITEURS'!E40),\"\")","v":" "},null,null,{"$f":"IF('INFORMATIONS COMPETITEURS'!$D$59=\"TABLEAU DE SAISIE CONFORME\",IF('INFORMATIONS COMPETITEURS'!I40=\"\",\"\",'INFORMATIONS COMPETITEURS'!I40),\"\")","v":""},null,null,{"$f":"IF('INFORMATIONS COMPETITEURS'!$D$59=\"TABLEAU DE SAISIE CONFORME\",IF(COUNTBLANK('INFORMATIONS COMPETITEURS'!L40)=1,\"\",'INFORMATIONS COMPETITEURS'!L40),\"\")","v":""},{"$f":"IF('INFORMATIONS COMPETITEURS'!$D$59=\"TABLEAU DE SAISIE NON CONFORME\",\"\",IF(OR(E45=\"\",H45=\"\",K45=\"\"),N(0),'MOUCHE N°1'!P41))","v":0},null,{"$f":"IF('INFORMATIONS COMPETITEURS'!$D$59=\"TABLEAU DE SAISIE NON CONFORME\",\"\",IF(OR(E45=\"\",H45=\"\",K45=\"\"),N(0),'MOUCHE N°2'!P41))","v":0},null,{"$f":"IF('INFORMATIONS COMPETITEURS'!$D$59=\"TABLEAU DE SAISIE NON CONFORME\",\"\",IF(OR(E45=\"\",H45=\"\",K45=\"\"),N(0),'MOUCHE N°3'!P41))","v":0},null,{"$f":"IF('INFORMATIONS COMPETITEURS'!$D$59=\"TABLEAU DE SAISIE NON CONFORME\",\"\",IF(OR(E45=\"\",H45=\"\",K45=\"\"),N(0),'MOUCHE N°4'!P41))","v":0},null,{"$f":"IF('INFORMATIONS COMPETITEURS'!$D$59=\"TABLEAU DE SAISIE NON CONFORME\",\"\",IF(E45=\" \",N(0),IF(COUNT(L45,N45,P45,R45)>0,SUM(L45,N45,P45,R45),N(0))))","v":0},null,null,null,"",""," ",null,null,"",null,null,"",0,null,0,null,0,null,0,null,0,null,null,null,"","",null,null,null,null,null,null,null,null,null,null,null,null,null,null,null,null,null,null,null,"","",null,null,null,null,null,null,null,null,null,null,null,null,null,null,null,null,null,null,null,"","",null,null,null,null,null,null,null,null,null,null,null,null,null,null,null,null,null,null,null,"","",null,null,null,null,null,null,null,null,null,null,null,null,null,null,null,null,null,null,null,"","",null,null,null,null,null,null,null,null,null,null,null,null,null,null,null,null,null,null,null,"","",null,null,null,null,null,null,null,null,null,null,null,null,null,null,null,null,null,null,null,"","",null,null,null,null,null,null,null,null,null,null,null,null,null,null,null,null,null,null,null,"",""]
[null,null,null,{"$f":"'INFORMATIONS COMPETITEURS'!D41","v":33},{"$f":"IF('INFORMATIONS COMPETITEURS'!$D$59=\"TABLEAU DE SAISIE CONFORME\",CONCATENATE('INFORMATIONS COMPETITEURS'!G41,\" \",'INFORMATIONS COMPETITEURS'!E41),\"\")","v":" "},null,null,{"$f":"IF('INFORMATIONS COMPETITEURS'!$D$59=\"TABLEAU DE SAISIE CONFORME\",IF('INFORMATIONS COMPETITEURS'!I41=\"\",\"\",'INFORMATIONS COMPETITEURS'!I41),\"\")","v":""},null,null,{"$f":"IF('INFORMATIONS COMPETITEURS'!$D$59=\"TABLEAU DE SAISIE CONFORME\",IF(COUNTBLANK('INFORMATIONS COMPETITEURS'!L41)=1,\"\",'INFORMATIONS COMPETITEURS'!L41),\"\")","v":""},{"$f":"IF('INFORMATIONS COMPETITEURS'!$D$59=\"TABLEAU DE SAISIE NON CONFORME\",\"\",IF(OR(E46=\"\",H46=\"\",K46=\"\"),N(0),'MOUCHE N°1'!P42))","v":0},null,{"$f":"IF('INFORMATIONS COMPETITEURS'!$D$59=\"TABLEAU DE SAISIE NON CONFORME\",\"\",IF(OR(E46=\"\",H46=\"\",K46=\"\"),N(0),'MOUCHE N°2'!P42))","v":0},null,{"$f":"IF('INFORMATIONS COMPETITEURS'!$D$59=\"TABLEAU DE SAISIE NON CONFORME\",\"\",IF(OR(E46=\"\",H46=\"\",K46=\"\"),N(0),'MOUCHE N°3'!P42))","v":0},null,{"$f":"IF('INFORMATIONS COMPETITEURS'!$D$59=\"TABLEAU DE SAISIE NON CONFORME\",\"\",IF(OR(E46=\"\",H46=\"\",K46=\"\"),N(0),'MOUCHE N°4'!P42))","v":0},null,{"$f":"IF('INFORMATIONS COMPETITEURS'!$D$59=\"TABLEAU DE SAISIE NON CONFORME\",\"\",IF(E46=\" \",N(0),IF(COUNT(L46,N46,P46,R46)>0,SUM(L46,N46,P46,R46),N(0))))","v":0},null,null,null,"",""," ",null,null,"",null,null,"",0,null,0,null,0,null,0,null,0,null,null,null,"","",null,null,null,null,null,null,null,null,null,null,null,null,null,null,null,null,null,null,null,"","",null,null,null,null,null,null,null,null,null,null,null,null,null,null,null,null,null,null,null,"","",null,null,null,null,null,null,null,null,null,null,null,null,null,null,null,null,null,null,null,"","",null,null,null,null,null,null,null,null,null,null,null,null,null,null,null,null,null,null,null,"","",null,null,null,null,null,null,null,null,null,null,null,null,null,null,null,null,null,null,null,"","",null,null,null,null,null,null,null,null,null,null,null,null,null,null,null,null,null,null,null,"","",null,null,null,null,null,null,null,null,null,null,null,null,null,null,null,null,null,null,null,"",""]
[null,null,null,{"$f":"'INFORMATIONS COMPETITEURS'!D42","v":34},{"$f":"IF('INFORMATIONS COMPETITEURS'!$D$59=\"TABLEAU DE SAISIE CONFORME\",CONCATENATE('INFORMATIONS COMPETITEURS'!G42,\" \",'INFORMATIONS COMPETITEURS'!E42),\"\")","v":" "},null,null,{"$f":"IF('INFORMATIONS COMPETITEURS'!$D$59=\"TABLEAU DE SAISIE CONFORME\",IF('INFORMATIONS COMPETITEURS'!I42=\"\",\"\",'INFORMATIONS COMPETITEURS'!I42),\"\")","v":""},null,null,{"$f":"IF('INFORMATIONS COMPETITEURS'!$D$59=\"TABLEAU DE SAISIE CONFORME\",IF(COUNTBLANK('INFORMATIONS COMPETITEURS'!L42)=1,\"\",'INFORMATIONS COMPETITEURS'!L42),\"\")","v":""},{"$f":"IF('INFORMATIONS COMPETITEURS'!$D$59=\"TABLEAU DE SAISIE NON CONFORME\",\"\",IF(OR(E47=\"\",H47=\"\",K47=\"\"),N(0),'MOUCHE N°1'!P43))","v":0},null,{"$f":"IF('INFORMATIONS COMPETITEURS'!$D$59=\"TABLEAU DE SAISIE NON CONFORME\",\"\",IF(OR(E47=\"\",H47=\"\",K47=\"\"),N(0),'MOUCHE N°2'!P43))","v":0},null,{"$f":"IF('INFORMATIONS COMPETITEURS'!$D$59=\"TABLEAU DE SAISIE NON CONFORME\",\"\",IF(OR(E47=\"\",H47=\"\",K47=\"\"),N(0),'MOUCHE N°3'!P43))","v":0},null,{"$f":"IF('INFORMATIONS COMPETITEURS'!$D$59=\"TABLEAU DE SAISIE NON CONFORME\",\"\",IF(OR(E47=\"\",H47=\"\",K47=\"\"),N(0),'MOUCHE N°4'!P43))","v":0},null,{"$f":"IF('INFORMATIONS COMPETITEURS'!$D$59=\"TABLEAU DE SAISIE NON CONFORME\",\"\",IF(E47=\" \",N(0),IF(COUNT(L47,N47,P47,R47)>0,SUM(L47,N47,P47,R47),N(0))))","v":0},null,null,null,"",""," ",null,null,"",null,null,"",0,null,0,null,0,null,0,null,0,null,null,null,"","",null,null,null,null,null,null,null,null,null,null,null,null,null,null,null,null,null,null,null,"","",null,null,null,null,null,null,null,null,null,null,null,null,null,null,null,null,null,null,null,"","",null,null,null,null,null,null,null,null,null,null,null,null,null,null,null,null,null,null,null,"","",null,null,null,null,null,null,null,null,null,null,null,null,null,null,null,null,null,null,null,"","",null,null,null,null,null,null,null,null,null,null,null,null,null,null,null,null,null,null,null,"","",null,null,null,null,null,null,null,null,null,null,null,null,null,null,null,null,null,null,null,"","",null,null,null,null,null,null,null,null,null,null,null,null,null,null,null,null,null,null,null,"",""]
[null,null,null,{"$f":"'INFORMATIONS COMPETITEURS'!D43","v":35},{"$f":"IF('INFORMATIONS COMPETITEURS'!$D$59=\"TABLEAU DE SAISIE CONFORME\",CONCATENATE('INFORMATIONS COMPETITEURS'!G43,\" \",'INFORMATIONS COMPETITEURS'!E43),\"\")","v":" "},null,null,{"$f":"IF('INFORMATIONS COMPETITEURS'!$D$59=\"TABLEAU DE SAISIE CONFORME\",IF('INFORMATIONS COMPETITEURS'!I43=\"\",\"\",'INFORMATIONS COMPETITEURS'!I43),\"\")","v":""},null,null,{"$f":"IF('INFORMATIONS COMPETITEURS'!$D$59=\"TABLEAU DE SAISIE CONFORME\",IF(COUNTBLANK('INFORMATIONS COMPETITEURS'!L43)=1,\"\",'INFORMATIONS COMPETITEURS'!L43),\"\")","v":""},{"$f":"IF('INFORMATIONS COMPETITEURS'!$D$59=\"TABLEAU DE SAISIE NON CONFORME\",\"\",IF(OR(E48=\"\",H48=\"\",K48=\"\"),N(0),'MOUCHE N°1'!P44))","v":0},null,{"$f":"IF('INFORMATIONS COMPETITEURS'!$D$59=\"TABLEAU DE SAISIE NON CONFORME\",\"\",IF(OR(E48=\"\",H48=\"\",K48=\"\"),N(0),'MOUCHE N°2'!P44))","v":0},null,{"$f":"IF('INFORMATIONS COMPETITEURS'!$D$59=\"TABLEAU DE SAISIE NON CONFORME\",\"\",IF(OR(E48=\"\",H48=\"\",K48=\"\"),N(0),'MOUCHE N°3'!P44))","v":0},null,{"$f":"IF('INFORMATIONS COMPETITEURS'!$D$59=\"TABLEAU DE SAISIE NON CONFORME\",\"\",IF(OR(E48=\"\",H48=\"\",K48=\"\"),N(0),'MOUCHE N°4'!P44))","v":0},null,{"$f":"IF('INFORMATIONS COMPETITEURS'!$D$59=\"TABLEAU DE SAISIE NON CONFORME\",\"\",IF(E48=\" \",N(0),IF(COUNT(L48,N48,P48,R48)>0,SUM(L48,N48,P48,R48),N(0))))","v":0},null,null,null,"",""," ",null,null,"",null,null,"",0,null,0,null,0,null,0,null,0,null,null,null,"","",null,null,null,null,null,null,null,null,null,null,null,null,null,null,null,null,null,null,null,"","",null,null,null,null,null,null,null,null,null,null,null,null,null,null,null,null,null,null,null,"","",null,null,null,null,null,null,null,null,null,null,null,null,null,null,null,null,null,null,null,"","",null,null,null,null,null,null,null,null,null,null,null,null,null,null,null,null,null,null,null,"","",null,null,null,null,null,null,null,null,null,null,null,null,null,null,null,null,null,null,null,"","",null,null,null,null,null,null,null,null,null,null,null,null,null,null,null,null,null,null,null,"","",null,null,null,null,null,null,null,null,null,null,null,null,null,null,null,null,null,null,null,"",""]
[null,null,null,{"$f":"'INFORMATIONS COMPETITEURS'!D44","v":36},{"$f":"IF('INFORMATIONS COMPETITEURS'!$D$59=\"TABLEAU DE SAISIE CONFORME\",CONCATENATE('INFORMATIONS COMPETITEURS'!G44,\" \",'INFORMATIONS COMPETITEURS'!E44),\"\")","v":" "},null,null,{"$f":"IF('INFORMATIONS COMPETITEURS'!$D$59=\"TABLEAU DE SAISIE CONFORME\",IF('INFORMATIONS COMPETITEURS'!I44=\"\",\"\",'INFORMATIONS COMPETITEURS'!I44),\"\")","v":""},null,null,{"$f":"IF('INFORMATIONS COMPETITEURS'!$D$59=\"TABLEAU DE SAISIE CONFORME\",IF(COUNTBLANK('INFORMATIONS COMPETITEURS'!L44)=1,\"\",'INFORMATIONS COMPETITEURS'!L44),\"\")","v":""},{"$f":"IF('INFORMATIONS COMPETITEURS'!$D$59=\"TABLEAU DE SAISIE NON CONFORME\",\"\",IF(OR(E49=\"\",H49=\"\",K49=\"\"),N(0),'MOUCHE N°1'!P45))","v":0},null,{"$f":"IF('INFORMATIONS COMPETITEURS'!$D$59=\"TABLEAU DE SAISIE NON CONFORME\",\"\",IF(OR(E49=\"\",H49=\"\",K49=\"\"),N(0),'MOUCHE N°2'!P45))","v":0},null,{"$f":"IF('INFORMATIONS COMPETITEURS'!$D$59=\"TABLEAU DE SAISIE NON CONFORME\",\"\",IF(OR(E49=\"\",H49=\"\",K49=\"\"),N(0),'MOUCHE N°3'!P45))","v":0},null,{"$f":"IF('INFORMATIONS COMPETITEURS'!$D$59=\"TABLEAU DE SAISIE NON CONFORME\",\"\",IF(OR(E49=\"\",H49=\"\",K49=\"\"),N(0),'MOUCHE N°4'!P45))","v":0},null,{"$f":"IF('INFORMATIONS COMPETITEURS'!$D$59=\"TABLEAU DE SAISIE NON CONFORME\",\"\",IF(E49=\" \",N(0),IF(COUNT(L49,N49,P49,R49)>0,SUM(L49,N49,P49,R49),N(0))))","v":0},null,null,null,"",""," ",null,null,"",null,null,"",0,null,0,null,0,null,0,null,0,null,null,null,"","",null,null,null,null,null,null,null,null,null,null,null,null,null,null,null,null,null,null,null,"","",null,null,null,null,null,null,null,null,null,null,null,null,null,null,null,null,null,null,null,"","",null,null,null,null,null,null,null,null,null,null,null,null,null,null,null,null,null,null,null,"","",null,null,null,null,null,null,null,null,null,null,null,null,null,null,null,null,null,null,null,"","",null,null,null,null,null,null,null,null,null,null,null,null,null,null,null,null,null,null,null,"","",null,null,null,null,null,null,null,null,null,null,null,null,null,null,null,null,null,null,null,"","",null,null,null,null,null,null,null,null,null,null,null,null,null,null,null,null,null,null,null,"",""]
[null,null,null,{"$f":"'INFORMATIONS COMPETITEURS'!D45","v":37},{"$f":"IF('INFORMATIONS COMPETITEURS'!$D$59=\"TABLEAU DE SAISIE CONFORME\",CONCATENATE('INFORMATIONS COMPETITEURS'!G45,\" \",'INFORMATIONS COMPETITEURS'!E45),\"\")","v":" "},null,null,{"$f":"IF('INFORMATIONS COMPETITEURS'!$D$59=\"TABLEAU DE SAISIE CONFORME\",IF('INFORMATIONS COMPETITEURS'!I45=\"\",\"\",'INFORMATIONS COMPETITEURS'!I45),\"\")","v":""},null,null,{"$f":"IF('INFORMATIONS COMPETITEURS'!$D$59=\"TABLEAU DE SAISIE CONFORME\",IF(COUNTBLANK('INFORMATIONS COMPETITEURS'!L45)=1,\"\",'INFORMATIONS COMPETITEURS'!L45),\"\")","v":""},{"$f":"IF('INFORMATIONS COMPETITEURS'!$D$59=\"TABLEAU DE SAISIE NON CONFORME\",\"\",IF(OR(E50=\"\",H50=\"\",K50=\"\"),N(0),'MOUCHE N°1'!P46))","v":0},null,{"$f":"IF('INFORMATIONS COMPETITEURS'!$D$59=\"TABLEAU DE SAISIE NON CONFORME\",\"\",IF(OR(E50=\"\",H50=\"\",K50=\"\"),N(0),'MOUCHE N°2'!P46))","v":0},null,{"$f":"IF('INFORMATIONS COMPETITEURS'!$D$59=\"TABLEAU DE SAISIE NON CONFORME\",\"\",IF(OR(E50=\"\",H50=\"\",K50=\"\"),N(0),'MOUCHE N°3'!P46))","v":0},null,{"$f":"IF('INFORMATIONS COMPETITEURS'!$D$59=\"TABLEAU DE SAISIE NON CONFORME\",\"\",IF(OR(E50=\"\",H50=\"\",K50=\"\"),N(0),'MOUCHE N°4'!P46))","v":0},null,{"$f":"IF('INFORMATIONS COMPETITEURS'!$D$59=\"TABLEAU DE SAISIE NON CONFORME\",\"\",IF(E50=\" \",N(0),IF(COUNT(L50,N50,P50,R50)>0,SUM(L50,N50,P50,R50),N(0))))","v":0},null,null,null,"",""," ",null,null,"",null,null,"",0,null,0,null,0,null,0,null,0,null,null,null,"","",null,null,null,null,null,null,null,null,null,null,null,null,null,null,null,null,null,null,null,"","",null,null,null,null,null,null,null,null,null,null,null,null,null,null,null,null,null,null,null,"","",null,null,null,null,null,null,null,null,null,null,null,null,null,null,null,null,null,null,null,"","",null,null,null,null,null,null,null,null,null,null,null,null,null,null,null,null,null,null,null,"","",null,null,null,null,null,null,null,null,null,null,null,null,null,null,null,null,null,null,null,"","",null,null,null,null,null,null,null,null,null,null,null,null,null,null,null,null,null,null,null,"","",null,null,null,null,null,null,null,null,null,null,null,null,null,null,null,null,null,null,null,"",""]
[null,null,null,{"$f":"'INFORMATIONS COMPETITEURS'!D46","v":38},{"$f":"IF('INFORMATIONS COMPETITEURS'!$D$59=\"TABLEAU DE SAISIE CONFORME\",CONCATENATE('INFORMATIONS COMPETITEURS'!G46,\" \",'INFORMATIONS COMPETITEURS'!E46),\"\")","v":" "},null,null,{"$f":"IF('INFORMATIONS COMPETITEURS'!$D$59=\"TABLEAU DE SAISIE CONFORME\",IF('INFORMATIONS COMPETITEURS'!I46=\"\",\"\",'INFORMATIONS COMPETITEURS'!I46),\"\")","v":""},null,null,{"$f":"IF('INFORMATIONS COMPETITEURS'!$D$59=\"TABLEAU DE SAISIE CONFORME\",IF(COUNTBLANK('INFORMATIONS COMPETITEURS'!L46)=1,\"\",'INFORMATIONS COMPETITEURS'!L46),\"\")","v":""},{"$f":"IF('INFORMATIONS COMPETITEURS'!$D$59=\"TABLEAU DE SAISIE NON CONFORME\",\"\",IF(OR(E51=\"\",H51=\"\",K51=\"\"),N(0),'MOUCHE N°1'!P47))","v":0},null,{"$f":"IF('INFORMATIONS COMPETITEURS'!$D$59=\"TABLEAU DE SAISIE NON CONFORME\",\"\",IF(OR(E51=\"\",H51=\"\",K51=\"\"),N(0),'MOUCHE N°2'!P47))","v":0},null,{"$f":"IF('INFORMATIONS COMPETITEURS'!$D$59=\"TABLEAU DE SAISIE NON CONFORME\",\"\",IF(OR(E51=\"\",H51=\"\",K51=\"\"),N(0),'MOUCHE N°3'!P47))","v":0},null,{"$f":"IF('INFORMATIONS COMPETITEURS'!$D$59=\"TABLEAU DE SAISIE NON CONFORME\",\"\",IF(OR(E51=\"\",H51=\"\",K51=\"\"),N(0),'MOUCHE N°4'!P47))","v":0},null,{"$f":"IF('INFORMATIONS COMPETITEURS'!$D$59=\"TABLEAU DE SAISIE NON CONFORME\",\"\",IF(E51=\" \",N(0),IF(COUNT(L51,N51,P51,R51)>0,SUM(L51,N51,P51,R51),N(0))))","v":0},null,null,null,"",""," ",null,null,"",null,null,"",0,null,0,null,0,null,0,null,0,null,null,null,"","",null,null,null,null,null,null,null,null,null,null,null,null,null,null,null,null,null,null,null,"","",null,null,null,null,null,null,null,null,null,null,null,null,null,null,null,null,null,null,null,"","",null,null,null,null,null,null,null,null,null,null,null,null,null,null,null,null,null,null,null,"","",null,null,null,null,null,null,null,null,null,null,null,null,null,null,null,null,null,null,null,"","",null,null,null,null,null,null,null,null,null,null,null,null,null,null,null,null,null,null,null,"","",null,null,null,null,null,null,null,null,null,null,null,null,null,null,null,null,null,null,null,"","",null,null,null,null,null,null,null,null,null,null,null,null,null,null,null,null,null,null,null,"",""]
[null,null,null,{"$f":"'INFORMATIONS COMPETITEURS'!D47","v":39},{"$f":"IF('INFORMATIONS COMPETITEURS'!$D$59=\"TABLEAU DE SAISIE CONFORME\",CONCATENATE('INFORMATIONS COMPETITEURS'!G47,\" \",'INFORMATIONS COMPETITEURS'!E47),\"\")","v":" "},null,null,{"$f":"IF('INFORMATIONS COMPETITEURS'!$D$59=\"TABLEAU DE SAISIE CONFORME\",IF('INFORMATIONS COMPETITEURS'!I47=\"\",\"\",'INFORMATIONS COMPETITEURS'!I47),\"\")","v":""},null,null,{"$f":"IF('INFORMATIONS COMPETITEURS'!$D$59=\"TABLEAU DE SAISIE CONFORME\",IF(COUNTBLANK('INFORMATIONS COMPETITEURS'!L47)=1,\"\",'INFORMATIONS COMPETITEURS'!L47),\"\")","v":""},{"$f":"IF('INFORMATIONS COMPETITEURS'!$D$59=\"TABLEAU DE SAISIE NON CONFORME\",\"\",IF(OR(E52=\"\",H52=\"\",K52=\"\"),N(0),'MOUCHE N°1'!P48))","v":0},null,{"$f":"IF('INFORMATIONS COMPETITEURS'!$D$59=\"TABLEAU DE SAISIE NON CONFORME\",\"\",IF(OR(E52=\"\",H52=\"\",K52=\"\"),N(0),'MOUCHE N°2'!P48))","v":0},null,{"$f":"IF('INFORMATIONS COMPETITEURS'!$D$59=\"TABLEAU DE SAISIE NON CONFORME\",\"\",IF(OR(E52=\"\",H52=\"\",K52=\"\"),N(0),'MOUCHE N°3'!P48))","v":0},null,{"$f":"IF('INFORMATIONS COMPETITEURS'!$D$59=\"TABLEAU DE SAISIE NON CONFORME\",\"\",IF(OR(E52=\"\",H52=\"\",K52=\"\"),N(0),'MOUCHE N°4'!P48))","v":0},null,{"$f":"IF('INFORMATIONS COMPETITEURS'!$D$59=\"TABLEAU DE SAISIE NON CONFORME\",\"\",IF(E52=\" \",N(0),IF(COUNT(L52,N52,P52,R52)>0,SUM(L52,N52,P52,R52),N(0))))","v":0},null,null,null,"",""," ",null,null,"",null,null,"",0,null,0,null,0,null,0,null,0,null,null,null,"","",null,null,null,null,null,null,null,null,null,null,null,null,null,null,null,null,null,null,null,"","",null,null,null,null,null,null,null,null,null,null,null,null,null,null,null,null,null,null,null,"","",null,null,null,null,null,null,null,null,null,null,null,null,null,null,null,null,null,null,null,"","",null,null,null,null,null,null,null,null,null,null,null,null,null,null,null,null,null,null,null,"","",null,null,null,null,null,null,null,null,null,null,null,null,null,null,null,null,null,null,null,"","",null,null,null,null,null,null,null,null,null,null,null,null,null,null,null,null,null,null,null,"","",null,null,null,null,null,null,null,null,null,null,null,null,null,null,null,null,null,null,null,"",""]
[null,null,null,{"$f":"'INFORMATIONS COMPETITEURS'!D48","v":40},{"$f":"IF('INFORMATIONS COMPETITEURS'!$D$59=\"TABLEAU DE SAISIE CONFORME\",CONCATENATE('INFORMATIONS COMPETITEURS'!G48,\" \",'INFORMATIONS COMPETITEURS'!E48),\"\")","v":" "},null,null,{"$f":"IF('INFORMATIONS COMPETITEURS'!$D$59=\"TABLEAU DE SAISIE CONFORME\",IF('INFORMATIONS COMPETITEURS'!I48=\"\",\"\",'INFORMATIONS COMPETITEURS'!I48),\"\")","v":""},null,null,{"$f":"IF('INFORMATIONS COMPETITEURS'!$D$59=\"TABLEAU DE SAISIE CONFORME\",IF(COUNTBLANK('INFORMATIONS COMPETITEURS'!L48)=1,\"\",'INFORMATIONS COMPETITEURS'!L48),\"\")","v":""},{"$f":"IF('INFORMATIONS COMPETITEURS'!$D$59=\"TABLEAU DE SAISIE NON CONFORME\",\"\",IF(OR(E53=\"\",H53=\"\",K53=\"\"),N(0),'MOUCHE N°1'!P49))","v":0},null,{"$f":"IF('INFORMATIONS COMPETITEURS'!$D$59=\"TABLEAU DE SAISIE NON CONFORME\",\"\",IF(OR(E53=\"\",H53=\"\",K53=\"\"),N(0),'MOUCHE N°2'!P49))","v":0},null,{"$f":"IF('INFORMATIONS COMPETITEURS'!$D$59=\"TABLEAU DE SAISIE NON CONFORME\",\"\",IF(OR(E53=\"\",H53=\"\",K53=\"\"),N(0),'MOUCHE N°3'!P49))","v":0},null,{"$f":"IF('INFORMATIONS COMPETITEURS'!$D$59=\"TABLEAU DE SAISIE NON CONFORME\",\"\",IF(OR(E53=\"\",H53=\"\",K53=\"\"),N(0),'MOUCHE N°4'!P49))","v":0},null,{"$f":"IF('INFORMATIONS COMPETITEURS'!$D$59=\"TABLEAU DE SAISIE NON CONFORME\",\"\",IF(E53=\" \",N(0),IF(COUNT(L53,N53,P53,R53)>0,SUM(L53,N53,P53,R53),N(0))))","v":0},null,null,null,"",""," ",null,null,"",null,null,"",0,null,0,null,0,null,0,null,0,null,null,null,"","",null,null,null,null,null,null,null,null,null,null,null,null,null,null,null,null,null,null,null,"","",null,null,null,null,null,null,null,null,null,null,null,null,null,null,null,null,null,null,null,"","",null,null,null,null,null,null,null,null,null,null,null,null,null,null,null,null,null,null,null,"","",null,null,null,null,null,null,null,null,null,null,null,null,null,null,null,null,null,null,null,"","",null,null,null,null,null,null,null,null,null,null,null,null,null,null,null,null,null,null,null,"","",null,null,null,null,null,null,null,null,null,null,null,null,null,null,null,null,null,null,null,"","",null,null,null,null,null,null,null,null,null,null,null,null,null,null,null,null,null,null,null,"",""]
[null,null,null,{"$f":"'INFORMATIONS COMPETITEURS'!D49","v":41},{"$f":"IF('INFORMATIONS COMPETITEURS'!$D$59=\"TABLEAU DE SAISIE CONFORME\",CONCATENATE('INFORMATIONS COMPETITEURS'!G49,\" \",'INFORMATIONS COMPETITEURS'!E49),\"\")","v":" "},null,null,{"$f":"IF('INFORMATIONS COMPETITEURS'!$D$59=\"TABLEAU DE SAISIE CONFORME\",IF('INFORMATIONS COMPETITEURS'!I49=\"\",\"\",'INFORMATIONS COMPETITEURS'!I49),\"\")","v":""},null,null,{"$f":"IF('INFORMATIONS COMPETITEURS'!$D$59=\"TABLEAU DE SAISIE CONFORME\",IF(COUNTBLANK('INFORMATIONS COMPETITEURS'!L49)=1,\"\",'INFORMATIONS COMPETITEURS'!L49),\"\")","v":""},{"$f":"IF('INFORMATIONS COMPETITEURS'!$D$59=\"TABLEAU DE SAISIE NON CONFORME\",\"\",IF(OR(E54=\"\",H54=\"\",K54=\"\"),N(0),'MOUCHE N°1'!P50))","v":0},null,{"$f":"IF('INFORMATIONS COMPETITEURS'!$D$59=\"TABLEAU DE SAISIE NON CONFORME\",\"\",IF(OR(E54=\"\",H54=\"\",K54=\"\"),N(0),'MOUCHE N°2'!P50))","v":0},null,{"$f":"IF('INFORMATIONS COMPETITEURS'!$D$59=\"TABLEAU DE SAISIE NON CONFORME\",\"\",IF(OR(E54=\"\",H54=\"\",K54=\"\"),N(0),'MOUCHE N°3'!P50))","v":0},null,{"$f":"IF('INFORMATIONS COMPETITEURS'!$D$59=\"TABLEAU DE SAISIE NON CONFORME\",\"\",IF(OR(E54=\"\",H54=\"\",K54=\"\"),N(0),'MOUCHE N°4'!P50))","v":0},null,{"$f":"IF('INFORMATIONS COMPETITEURS'!$D$59=\"TABLEAU DE SAISIE NON CONFORME\",\"\",IF(E54=\" \",N(0),IF(COUNT(L54,N54,P54,R54)>0,SUM(L54,N54,P54,R54),N(0))))","v":0},null,null,null,"",""," ",null,null,"",null,null,"",0,null,0,null,0,null,0,null,0,null,null,null,"","",null,null,null,null,null,null,null,null,null,null,null,null,null,null,null,null,null,null,null,"","",null,null,null,null,null,null,null,null,null,null,null,null,null,null,null,null,null,null,null,"","",null,null,null,null,null,null,null,null,null,null,null,null,null,null,null,null,null,null,null,"","",null,null,null,null,null,null,null,null,null,null,null,null,null,null,null,null,null,null,null,"","",null,null,null,null,null,null,null,null,null,null,null,null,null,null,null,null,null,null,null,"","",null,null,null,null,null,null,null,null,null,null,null,null,null,null,null,null,null,null,null,"","",null,null,null,null,null,null,null,null,null,null,null,null,null,null,null,null,null,null,null,"",""]
[null,null,null,{"$f":"'INFORMATIONS COMPETITEURS'!D50","v":42},{"$f":"IF('INFORMATIONS COMPETITEURS'!$D$59=\"TABLEAU DE SAISIE CONFORME\",CONCATENATE('INFORMATIONS COMPETITEURS'!G50,\" \",'INFORMATIONS COMPETITEURS'!E50),\"\")","v":" "},null,null,{"$f":"IF('INFORMATIONS COMPETITEURS'!$D$59=\"TABLEAU DE SAISIE CONFORME\",IF('INFORMATIONS COMPETITEURS'!I50=\"\",\"\",'INFORMATIONS COMPETITEURS'!I50),\"\")","v":""},null,null,{"$f":"IF('INFORMATIONS COMPETITEURS'!$D$59=\"TABLEAU DE SAISIE CONFORME\",IF(COUNTBLANK('INFORMATIONS COMPETITEURS'!L50)=1,\"\",'INFORMATIONS COMPETITEURS'!L50),\"\")","v":""},{"$f":"IF('INFORMATIONS COMPETITEURS'!$D$59=\"TABLEAU DE SAISIE NON CONFORME\",\"\",IF(OR(E55=\"\",H55=\"\",K55=\"\"),N(0),'MOUCHE N°1'!P51))","v":0},null,{"$f":"IF('INFORMATIONS COMPETITEURS'!$D$59=\"TABLEAU DE SAISIE NON CONFORME\",\"\",IF(OR(E55=\"\",H55=\"\",K55=\"\"),N(0),'MOUCHE N°2'!P51))","v":0},null,{"$f":"IF('INFORMATIONS COMPETITEURS'!$D$59=\"TABLEAU DE SAISIE NON CONFORME\",\"\",IF(OR(E55=\"\",H55=\"\",K55=\"\"),N(0),'MOUCHE N°3'!P51))","v":0},null,{"$f":"IF('INFORMATIONS COMPETITEURS'!$D$59=\"TABLEAU DE SAISIE NON CONFORME\",\"\",IF(OR(E55=\"\",H55=\"\",K55=\"\"),N(0),'MOUCHE N°4'!P51))","v":0},null,{"$f":"IF('INFORMATIONS COMPETITEURS'!$D$59=\"TABLEAU DE SAISIE NON CONFORME\",\"\",IF(E55=\" \",N(0),IF(COUNT(L55,N55,P55,R55)>0,SUM(L55,N55,P55,R55),N(0))))","v":0},null,null,null,"",""," ",null,null,"",null,null,"",0,null,0,null,0,null,0,null,0,null,null,null,"","",null,null,null,null,null,null,null,null,null,null,null,null,null,null,null,null,null,null,null,"","",null,null,null,null,null,null,null,null,null,null,null,null,null,null,null,null,null,null,null,"","",null,null,null,null,null,null,null,null,null,null,null,null,null,null,null,null,null,null,null,"","",null,null,null,null,null,null,null,null,null,null,null,null,null,null,null,null,null,null,null,"","",null,null,null,null,null,null,null,null,null,null,null,null,null,null,null,null,null,null,null,"","",null,null,null,null,null,null,null,null,null,null,null,null,null,null,null,null,null,null,null,"","",null,null,null,null,null,null,null,null,null,null,null,null,null,null,null,null,null,null,null,"",""]
[null,null,null,{"$f":"'INFORMATIONS COMPETITEURS'!D51","v":43},{"$f":"IF('INFORMATIONS COMPETITEURS'!$D$59=\"TABLEAU DE SAISIE CONFORME\",CONCATENATE('INFORMATIONS COMPETITEURS'!G51,\" \",'INFORMATIONS COMPETITEURS'!E51),\"\")","v":" "},null,null,{"$f":"IF('INFORMATIONS COMPETITEURS'!$D$59=\"TABLEAU DE SAISIE CONFORME\",IF('INFORMATIONS COMPETITEURS'!I51=\"\",\"\",'INFORMATIONS COMPETITEURS'!I51),\"\")","v":""},null,null,{"$f":"IF('INFORMATIONS COMPETITEURS'!$D$59=\"TABLEAU DE SAISIE CONFORME\",IF(COUNTBLANK('INFORMATIONS COMPETITEURS'!L51)=1,\"\",'INFORMATIONS COMPETITEURS'!L51),\"\")","v":""},{"$f":"IF('INFORMATIONS COMPETITEURS'!$D$59=\"TABLEAU DE SAISIE NON CONFORME\",\"\",IF(OR(E56=\"\",H56=\"\",K56=\"\"),N(0),'MOUCHE N°1'!P52))","v":0},null,{"$f":"IF('INFORMATIONS COMPETITEURS'!$D$59=\"TABLEAU DE SAISIE NON CONFORME\",\"\",IF(OR(E56=\"\",H56=\"\",K56=\"\"),N(0),'MOUCHE N°2'!P52))","v":0},null,{"$f":"IF('INFORMATIONS COMPETITEURS'!$D$59=\"TABLEAU DE SAISIE NON CONFORME\",\"\",IF(OR(E56=\"\",H56=\"\",K56=\"\"),N(0),'MOUCHE N°3'!P52))","v":0},null,{"$f":"IF('INFORMATIONS COMPETITEURS'!$D$59=\"TABLEAU DE SAISIE NON CONFORME\",\"\",IF(OR(E56=\"\",H56=\"\",K56=\"\"),N(0),'MOUCHE N°4'!P52))","v":0},null,{"$f":"IF('INFORMATIONS COMPETITEURS'!$D$59=\"TABLEAU DE SAISIE NON CONFORME\",\"\",IF(E56=\" \",N(0),IF(COUNT(L56,N56,P56,R56)>0,SUM(L56,N56,P56,R56),N(0))))","v":0},null,null,null,"",""," ",null,null,"",null,null,"",0,null,0,null,0,null,0,null,0,null,null,null,"","",null,null,null,null,null,null,null,null,null,null,null,null,null,null,null,null,null,null,null,"","",null,null,null,null,null,null,null,null,null,null,null,null,null,null,null,null,null,null,null,"","",null,null,null,null,null,null,null,null,null,null,null,null,null,null,null,null,null,null,null,"","",null,null,null,null,null,null,null,null,null,null,null,null,null,null,null,null,null,null,null,"","",null,null,null,null,null,null,null,null,null,null,null,null,null,null,null,null,null,null,null,"","",null,null,null,null,null,null,null,null,null,null,null,null,null,null,null,null,null,null,null,"","",null,null,null,null,null,null,null,null,null,null,null,null,null,null,null,null,null,null,null,"",""]
[null,null,null,{"$f":"'INFORMATIONS COMPETITEURS'!D52","v":44},{"$f":"IF('INFORMATIONS COMPETITEURS'!$D$59=\"TABLEAU DE SAISIE CONFORME\",CONCATENATE('INFORMATIONS COMPETITEURS'!G52,\" \",'INFORMATIONS COMPETITEURS'!E52),\"\")","v":" "},null,null,{"$f":"IF('INFORMATIONS COMPETITEURS'!$D$59=\"TABLEAU DE SAISIE CONFORME\",IF('INFORMATIONS COMPETITEURS'!I52=\"\",\"\",'INFORMATIONS COMPETITEURS'!I52),\"\")","v":""},null,null,{"$f":"IF('INFORMATIONS COMPETITEURS'!$D$59=\"TABLEAU DE SAISIE CONFORME\",IF(COUNTBLANK('INFORMATIONS COMPETITEURS'!L52)=1,\"\",'INFORMATIONS COMPETITEURS'!L52),\"\")","v":""},{"$f":"IF('INFORMATIONS COMPETITEURS'!$D$59=\"TABLEAU DE SAISIE NON CONFORME\",\"\",IF(OR(E57=\"\",H57=\"\",K57=\"\"),N(0),'MOUCHE N°1'!P53))","v":0},null,{"$f":"IF('INFORMATIONS COMPETITEURS'!$D$59=\"TABLEAU DE SAISIE NON CONFORME\",\"\",IF(OR(E57=\"\",H57=\"\",K57=\"\"),N(0),'MOUCHE N°2'!P53))","v":0},null,{"$f":"IF('INFORMATIONS COMPETITEURS'!$D$59=\"TABLEAU DE SAISIE NON CONFORME\",\"\",IF(OR(E57=\"\",H57=\"\",K57=\"\"),N(0),'MOUCHE N°3'!P53))","v":0},null,{"$f":"IF('INFORMATIONS COMPETITEURS'!$D$59=\"TABLEAU DE SAISIE NON CONFORME\",\"\",IF(OR(E57=\"\",H57=\"\",K57=\"\"),N(0),'MOUCHE N°4'!P53))","v":0},null,{"$f":"IF('INFORMATIONS COMPETITEURS'!$D$59=\"TABLEAU DE SAISIE NON CONFORME\",\"\",IF(E57=\" \",N(0),IF(COUNT(L57,N57,P57,R57)>0,SUM(L57,N57,P57,R57),N(0))))","v":0},null,null,null,"",""," ",null,null,"",null,null,"",0,null,0,null,0,null,0,null,0,null,null,null,"","",null,null,null,null,null,null,null,null,null,null,null,null,null,null,null,null,null,null,null,{"$f":"IF(BO57=\"\",\"\",IF(ISERROR(IF(AND(BW57=BW56,BY57=BY56,CE57=CE56),BN56,BN56+1)),\"\",IF(AND(BW57=BW56,BY57=BY56,CE57=CE56),BN56,BN56+1)))","v":""},"",null,null,null,null,null,null,null,null,null,null,null,null,null,null,null,null,null,null,null,{"$f":"IF(CJ57=\"\",\"\",IF(ISERROR(IF(AND(CR57=CR56,CT57=CT56,CZ57=CZ56),CI56,CI56+1)),\"\",IF(AND(CR57=CR56,CT57=CT56,CZ57=CZ56),CI56,CI56+1)))","v":""},"",null,null,null,null,null,null,null,null,null,null,null,null,null,null,null,null,null,null,null,{"$f":"IF(DE57=\"\",\"\",IF(ISERROR(IF(AND(DM57=DM56,DO57=DO56,DU57=DU56),DD56,DD56+1)),\"\",IF(AND(DM57=DM56,DO57=DO56,DU57=DU56),DD56,DD56+1)))","v":""},"",null,null,null,null,null,null,null,null,null,null,null,null,null,null,null,null,null,null,null,{"$f":"IF(DZ57=\"\",\"\",IF(ISERROR(IF(AND(EH57=EH56,EJ57=EJ56,EP57=EP56),DY56,DY56+1)),\"\",IF(AND(EH57=EH56,EJ57=EJ56,EP57=EP56),DY56,DY56+1)))","v":""},"",null,null,null,null,null,null,null,null,null,null,null,null,null,null,null,null,null,null,null,{"$f":"IF(EU57=\"\",\"\",IF(ISERROR(IF(AND(FC57=FC56,FE57=FE56,FK57=FK56),ET56,ET56+1)),\"\",IF(AND(FC57=FC56,FE57=FE56,FK57=FK56),ET56,ET56+1)))","v":""},"",null,null,null,null,null,null,null,null,null,null,null,null,null,null,null,null,null,null,null,{"$f":"IF(FP57=\"\",\"\",IF(ISERROR(IF(AND(FX57=FX56,FZ57=FZ56,GF57=GF56),FO56,FO56+1)),\"\",IF(AND(FX57=FX56,FZ57=FZ56,GF57=GF56),FO56,FO56+1)))","v":""},"",null,null,null,null,null,null,null,null,null,null,null,null,null,null,null,null,null,null,null,"",""]
[null,null,null,{"$f":"'INFORMATIONS COMPETITEURS'!D53","v":45},{"$f":"IF('INFORMATIONS COMPETITEURS'!$D$59=\"TABLEAU DE SAISIE CONFORME\",CONCATENATE('INFORMATIONS COMPETITEURS'!G53,\" \",'INFORMATIONS COMPETITEURS'!E53),\"\")","v":" "},null,null,{"$f":"IF('INFORMATIONS COMPETITEURS'!$D$59=\"TABLEAU DE SAISIE CONFORME\",IF('INFORMATIONS COMPETITEURS'!I53=\"\",\"\",'INFORMATIONS COMPETITEURS'!I53),\"\")","v":""},null,null,{"$f":"IF('INFORMATIONS COMPETITEURS'!$D$59=\"TABLEAU DE SAISIE CONFORME\",IF(COUNTBLANK('INFORMATIONS COMPETITEURS'!L53)=1,\"\",'INFORMATIONS COMPETITEURS'!L53),\"\")","v":""},{"$f":"IF('INFORMATIONS COMPETITEURS'!$D$59=\"TABLEAU DE SAISIE NON CONFORME\",\"\",IF(OR(E58=\"\",H58=\"\",K58=\"\"),N(0),'MOUCHE N°1'!P54))","v":0},null,{"$f":"IF('INFORMATIONS COMPETITEURS'!$D$59=\"TABLEAU DE SAISIE NON CONFORME\",\"\",IF(OR(E58=\"\",H58=\"\",K58=\"\"),N(0),'MOUCHE N°2'!P54))","v":0},null,{"$f":"IF('INFORMATIONS COMPETITEURS'!$D$59=\"TABLEAU DE SAISIE NON CONFORME\",\"\",IF(OR(E58=\"\",H58=\"\",K58=\"\"),N(0),'MOUCHE N°3'!P54))","v":0},null,{"$f":"IF('INFORMATIONS COMPETITEURS'!$D$59=\"TABLEAU DE SAISIE NON CONFORME\",\"\",IF(OR(E58=\"\",H58=\"\",K58=\"\"),N(0),'MOUCHE N°4'!P54))","v":0},null,{"$f":"IF('INFORMATIONS COMPETITEURS'!$D$59=\"TABLEAU DE SAISIE NON CONFORME\",\"\",IF(E58=\" \",N(0),IF(COUNT(L58,N58,P58,R58)>0,SUM(L58,N58,P58,R58),N(0))))","v":0},null,null,null,"",""," ",null,null,"",null,null,"",0,null,0,null,0,null,0,null,0,null,null,null,"","",null,null,null,null,null,null,null,null,null,null,null,null,null,null,null,null,null,null,null,"","",null,null,null,null,null,null,null,null,null,null,null,null,null,null,null,null,null,null,null,{"$f":"IF(CJ58=\"\",\"\",IF(ISERROR(IF(AND(CR58=CR57,CT58=CT57,CZ58=CZ57),CI57,CI57+1)),\"\",IF(AND(CR58=CR57,CT58=CT57,CZ58=CZ57),CI57,CI57+1)))","v":""},"",null,null,null,null,null,null,null,null,null,null,null,null,null,null,null,null,null,null,null,{"$f":"IF(DE58=\"\",\"\",IF(ISERROR(IF(AND(DM58=DM57,DO58=DO57,DU58=DU57),DD57,DD57+1)),\"\",IF(AND(DM58=DM57,DO58=DO57,DU58=DU57),DD57,DD57+1)))","v":""},"",null,null,null,null,null,null,null,null,null,null,null,null,null,null,null,null,null,null,null,{"$f":"IF(DZ58=\"\",\"\",IF(ISERROR(IF(AND(EH58=EH57,EJ58=EJ57,EP58=EP57),DY57,DY57+1)),\"\",IF(AND(EH58=EH57,EJ58=EJ57,EP58=EP57),DY57,DY57+1)))","v":""},"",null,null,null,null,null,null,null,null,null,null,null,null,null,null,null,null,null,null,null,{"$f":"IF(EU58=\"\",\"\",IF(ISERROR(IF(AND(FC58=FC57,FE58=FE57,FK58=FK57),ET57,ET57+1)),\"\",IF(AND(FC58=FC57,FE58=FE57,FK58=FK57),ET57,ET57+1)))","v":""},"",null,null,null,null,null,null,null,null,null,null,null,null,null,null,null,null,null,null,null,{"$f":"IF(FP58=\"\",\"\",IF(ISERROR(IF(AND(FX58=FX57,FZ58=FZ57,GF58=GF57),FO57,FO57+1)),\"\",IF(AND(FX58=FX57,FZ58=FZ57,GF58=GF57),FO57,FO57+1)))","v":""},"",null,null,null,null,null,null,null,null,null,null,null,null,null,null,null,null,null,null,null,{"$f":"IF(GK58=\"\",\"\",IF(ISERROR(IF(AND(GS58=GS57,GU58=GU57,HA58=HA57),GJ57,GJ57+1)),\"\",IF(AND(GS58=GS57,GU58=GU57,HA58=HA57),GJ57,GJ57+1)))","v":""},""]
[null,null,null,{"$f":"'INFORMATIONS COMPETITEURS'!D54","v":46},{"$f":"IF('INFORMATIONS COMPETITEURS'!$D$59=\"TABLEAU DE SAISIE CONFORME\",CONCATENATE('INFORMATIONS COMPETITEURS'!G54,\" \",'INFORMATIONS COMPETITEURS'!E54),\"\")","v":" "},null,null,{"$f":"IF('INFORMATIONS COMPETITEURS'!$D$59=\"TABLEAU DE SAISIE CONFORME\",IF('INFORMATIONS COMPETITEURS'!I54=\"\",\"\",'INFORMATIONS COMPETITEURS'!I54),\"\")","v":""},null,null,{"$f":"IF('INFORMATIONS COMPETITEURS'!$D$59=\"TABLEAU DE SAISIE CONFORME\",IF(COUNTBLANK('INFORMATIONS COMPETITEURS'!L54)=1,\"\",'INFORMATIONS COMPETITEURS'!L54),\"\")","v":""},{"$f":"IF('INFORMATIONS COMPETITEURS'!$D$59=\"TABLEAU DE SAISIE NON CONFORME\",\"\",IF(OR(E59=\"\",H59=\"\",K59=\"\"),N(0),'MOUCHE N°1'!P55))","v":0},null,{"$f":"IF('INFORMATIONS COMPETITEURS'!$D$59=\"TABLEAU DE SAISIE NON CONFORME\",\"\",IF(OR(E59=\"\",H59=\"\",K59=\"\"),N(0),'MOUCHE N°2'!P55))","v":0},null,{"$f":"IF('INFORMATIONS COMPETITEURS'!$D$59=\"TABLEAU DE SAISIE NON CONFORME\",\"\",IF(OR(E59=\"\",H59=\"\",K59=\"\"),N(0),'MOUCHE N°3'!P55))","v":0},null,{"$f":"IF('INFORMATIONS COMPETITEURS'!$D$59=\"TABLEAU DE SAISIE NON CONFORME\",\"\",IF(OR(E59=\"\",H59=\"\",K59=\"\"),N(0),'MOUCHE N°4'!P55))","v":0},null,{"$f":"IF('INFORMATIONS COMPETITEURS'!$D$59=\"TABLEAU DE SAISIE NON CONFORME\",\"\",IF(E59=\" \",N(0),IF(COUNT(L59,N59,P59,R59)>0,SUM(L59,N59,P59,R59),N(0))))","v":0},null,null,null,"",""," ",null,null,"",null,null,"",0,null,0,null,0,null,0,null,0,null,null,null,"","",null,null,null,null,null,null,null,null,null,null,null,null,null,null,null,null,null,null,null,"","",null,null,null,null,null,null,null,null,null,null,null,null,null,null,null,null,null,null,null,"","",null,null,null,null,null,null,null,null,null,null,null,null,null,null,null,null,null,null,null,"","",null,null,null,null,null,null,null,null,null,null,null,null,null,null,null,null,null,null,null,"","",null,null,null,null,null,null,null,null,null,null,null,null,null,null,null,null,null,null,null,"","",null,null,null,null,null,null,null,null,null,null,null,null,null,null,null,null,null,null,null,"","",null,null,null,null,null,null,null,null,null,null,null,null,null,null,null,null,null,null,null,{"$f":"IF(GK59=\"\",\"\",IF(ISERROR(IF(AND(GS59=GS58,GU59=GU58,HA59=HA58),GJ58,GJ58+1)),\"\",IF(AND(GS59=GS58,GU59=GU58,HA59=HA58),GJ58,GJ58+1)))","v":""},""]
[null,null,null,{"$f":"'INFORMATIONS COMPETITEURS'!D55","v":47},{"$f":"IF('INFORMATIONS COMPETITEURS'!$D$59=\"TABLEAU DE SAISIE CONFORME\",CONCATENATE('INFORMATIONS COMPETITEURS'!G55,\" \",'INFORMATIONS COMPETITEURS'!E55),\"\")","v":" "},null,null,{"$f":"IF('INFORMATIONS COMPETITEURS'!$D$59=\"TABLEAU DE SAISIE CONFORME\",IF('INFORMATIONS COMPETITEURS'!I55=\"\",\"\",'INFORMATIONS COMPETITEURS'!I55),\"\")","v":""},null,null,{"$f":"IF('INFORMATIONS COMPETITEURS'!$D$59=\"TABLEAU DE SAISIE CONFORME\",IF(COUNTBLANK('INFORMATIONS COMPETITEURS'!L55)=1,\"\",'INFORMATIONS COMPETITEURS'!L55),\"\")","v":""},{"$f":"IF('INFORMATIONS COMPETITEURS'!$D$59=\"TABLEAU DE SAISIE NON CONFORME\",\"\",IF(OR(E60=\"\",H60=\"\",K60=\"\"),N(0),'MOUCHE N°1'!P56))","v":0},null,{"$f":"IF('INFORMATIONS COMPETITEURS'!$D$59=\"TABLEAU DE SAISIE NON CONFORME\",\"\",IF(OR(E60=\"\",H60=\"\",K60=\"\"),N(0),'MOUCHE N°2'!P56))","v":0},null,{"$f":"IF('INFORMATIONS COMPETITEURS'!$D$59=\"TABLEAU DE SAISIE NON CONFORME\",\"\",IF(OR(E60=\"\",H60=\"\",K60=\"\"),N(0),'MOUCHE N°3'!P56))","v":0},null,{"$f":"IF('INFORMATIONS COMPETITEURS'!$D$59=\"TABLEAU DE SAISIE NON CONFORME\",\"\",IF(OR(E60=\"\",H60=\"\",K60=\"\"),N(0),'MOUCHE N°4'!P56))","v":0},null,{"$f":"IF('INFORMATIONS COMPETITEURS'!$D$59=\"TABLEAU DE SAISIE NON CONFORME\",\"\",IF(E60=\" \",N(0),IF(COUNT(L60,N60,P60,R60)>0,SUM(L60,N60,P60,R60),N(0))))","v":0},null,null,null,"",""," ",null,null,"",null,null,"",0,null,0,null,0,null,0,null,0,null,null,null,"","",null,null,null,null,null,null,null,null,null,null,null,null,null,null,null,null,null,null,null,"","",null,null,null,null,null,null,null,null,null,null,null,null,null,null,null,null,null,null,null,"","",null,null,null,null,null,null,null,null,null,null,null,null,null,null,null,null,null,null,null,"","",null,null,null,null,null,null,null,null,null,null,null,null,null,null,null,null,null,null,null,"","",null,null,null,null,null,null,null,null,null,null,null,null,null,null,null,null,null,null,null,"","",null,null,null,null,null,null,null,null,null,null,null,null,null,null,null,null,null,null,null,"","",null,null,null,null,null,null,null,null,null,null,null,null,null,null,null,null,null,null,null,"",""]
[null,null,null,{"$f":"'INFORMATIONS COMPETITEURS'!D56","v":48},{"$f":"IF('INFORMATIONS COMPETITEURS'!$D$59=\"TABLEAU DE SAISIE CONFORME\",CONCATENATE('INFORMATIONS COMPETITEURS'!G56,\" \",'INFORMATIONS COMPETITEURS'!E56),\"\")","v":" "},null,null,{"$f":"IF('INFORMATIONS COMPETITEURS'!$D$59=\"TABLEAU DE SAISIE CONFORME\",IF('INFORMATIONS COMPETITEURS'!I56=\"\",\"\",'INFORMATIONS COMPETITEURS'!I56),\"\")","v":""},null,null,{"$f":"IF('INFORMATIONS COMPETITEURS'!$D$59=\"TABLEAU DE SAISIE CONFORME\",IF(COUNTBLANK('INFORMATIONS COMPETITEURS'!L56)=1,\"\",'INFORMATIONS COMPETITEURS'!L56),\"\")","v":""},{"$f":"IF('INFORMATIONS COMPETITEURS'!$D$59=\"TABLEAU DE SAISIE NON CONFORME\",\"\",IF(OR(E61=\"\",H61=\"\",K61=\"\"),N(0),'MOUCHE N°1'!P57))","v":0},null,{"$f":"IF('INFORMATIONS COMPETITEURS'!$D$59=\"TABLEAU DE SAISIE NON CONFORME\",\"\",IF(OR(E61=\"\",H61=\"\",K61=\"\"),N(0),'MOUCHE N°2'!P57))","v":0},null,{"$f":"IF('INFORMATIONS COMPETITEURS'!$D$59=\"TABLEAU DE SAISIE NON CONFORME\",\"\",IF(OR(E61=\"\",H61=\"\",K61=\"\"),N(0),'MOUCHE N°3'!P57))","v":0},null,{"$f":"IF('INFORMATIONS COMPETITEURS'!$D$59=\"TABLEAU DE SAISIE NON CONFORME\",\"\",IF(OR(E61=\"\",H61=\"\",K61=\"\"),N(0),'MOUCHE N°4'!P57))","v":0},null,{"$f":"IF('INFORMATIONS COMPETITEURS'!$D$59=\"TABLEAU DE SAISIE NON CONFORME\",\"\",IF(E61=\" \",N(0),IF(COUNT(L61,N61,P61,R61)>0,SUM(L61,N61,P61,R61),N(0))))","v":0},null,null,null,"",""," ",null,null,"",null,null,"",0,null,0,null,0,null,0,null,0,null,null,null,{"$f":"IF(AT61=\"\",\"\",IF(ISERROR(IF(AND(BB61=BB60,BD61=BD60,BJ61=BJ60),AS60,AS60+1)),\"\",IF(AND(BB61=BB60,BD61=BD60,BJ61=BJ60),AS60,AS60+1)))","v":""},"",null,null,null,null,null,null,null,null,null,null,null,null,null,null,null,null,null,null,null,"","",null,null,null,null,null,null,null,null,null,null,null,null,null,null,null,null,null,null,null,"","",null,null,null,null,null,null,null,null,null,null,null,null,null,null,null,null,null,null,null,"","",null,null,null,null,null,null,null,null,null,null,null,null,null,null,null,null,null,null,null,"","",null,null,null,null,null,null,null,null,null,null,null,null,null,null,null,null,null,null,null,"","",null,null,null,null,null,null,null,null,null,null,null,null,null,null,null,null,null,null,null,"","",null,null,null,null,null,null,null,null,null,null,null,null,null,null,null,null,null,null,null,"",""]
[null,null,null,{"$f":"'INFORMATIONS COMPETITEURS'!D57","v":49},{"$f":"IF('INFORMATIONS COMPETITEURS'!$D$59=\"TABLEAU DE SAISIE CONFORME\",CONCATENATE('INFORMATIONS COMPETITEURS'!G57,\" \",'INFORMATIONS COMPETITEURS'!E57),\"\")","v":" "},null,null,{"$f":"IF('INFORMATIONS COMPETITEURS'!$D$59=\"TABLEAU DE SAISIE CONFORME\",IF('INFORMATIONS COMPETITEURS'!I57=\"\",\"\",'INFORMATIONS COMPETITEURS'!I57),\"\")","v":""},null,null,{"$f":"IF('INFORMATIONS COMPETITEURS'!$D$59=\"TABLEAU DE SAISIE CONFORME\",IF(COUNTBLANK('INFORMATIONS COMPETITEURS'!L57)=1,\"\",'INFORMATIONS COMPETITEURS'!L57),\"\")","v":""},{"$f":"IF('INFORMATIONS COMPETITEURS'!$D$59=\"TABLEAU DE SAISIE NON CONFORME\",\"\",IF(OR(E62=\"\",H62=\"\",K62=\"\"),N(0),'MOUCHE N°1'!P58))","v":0},null,{"$f":"IF('INFORMATIONS COMPETITEURS'!$D$59=\"TABLEAU DE SAISIE NON CONFORME\",\"\",IF(OR(E62=\"\",H62=\"\",K62=\"\"),N(0),'MOUCHE N°2'!P58))","v":0},null,{"$f":"IF('INFORMATIONS COMPETITEURS'!$D$59=\"TABLEAU DE SAISIE NON CONFORME\",\"\",IF(OR(E62=\"\",H62=\"\",K62=\"\"),N(0),'MOUCHE N°3'!P58))","v":0},null,{"$f":"IF('INFORMATIONS COMPETITEURS'!$D$59=\"TABLEAU DE SAISIE NON CONFORME\",\"\",IF(OR(E62=\"\",H62=\"\",K62=\"\"),N(0),'MOUCHE N°4'!P58))","v":0},null,{"$f":"IF('INFORMATIONS COMPETITEURS'!$D$59=\"TABLEAU DE SAISIE NON CONFORME\",\"\",IF(E62=\" \",N(0),IF(COUNT(L62,N62,P62,R62)>0,SUM(L62,N62,P62,R62),N(0))))","v":0},null,null,null,"",""," ",null,null,"",null,null,"",0,null,0,null,0,null,0,null,0,null,null,null,"","",null,null,null,null,null,null,null,null,null,null,null,null,null,null,null,null,null,null,null,"","",null,null,null,null,null,null,null,null,null,null,null,null,null,null,null,null,null,null,null,"","",null,null,null,null,null,null,null,null,null,null,null,null,null,null,null,null,null,null,null,"","",null,null,null,null,null,null,null,null,null,null,null,null,null,null,null,null,null,null,null,"","",null,null,null,null,null,null,null,null,null,null,null,null,null,null,null,null,null,null,null,"","",null,null,null,null,null,null,null,null,null,null,null,null,null,null,null,null,null,null,null,"","",null,null,null,null,null,null,null,null,null,null,null,null,null,null,null,null,null,null,null,"",""]
[null,null,null,{"$f":"'INFORMATIONS COMPETITEURS'!D58","v":50},{"$f":"IF('INFORMATIONS COMPETITEURS'!$D$59=\"TABLEAU DE SAISIE CONFORME\",CONCATENATE('INFORMATIONS COMPETITEURS'!G58,\" \",'INFORMATIONS COMPETITEURS'!E58),\"\")","v":" "},null,null,{"$f":"IF('INFORMATIONS COMPETITEURS'!$D$59=\"TABLEAU DE SAISIE CONFORME\",IF('INFORMATIONS COMPETITEURS'!I58=\"\",\"\",'INFORMATIONS COMPETITEURS'!I58),\"\")","v":""},null,null,{"$f":"IF('INFORMATIONS COMPETITEURS'!$D$59=\"TABLEAU DE SAISIE CONFORME\",IF(COUNTBLANK('INFORMATIONS COMPETITEURS'!L58)=1,\"\",'INFORMATIONS COMPETITEURS'!L58),\"\")","v":""},{"$f":"IF('INFORMATIONS COMPETITEURS'!$D$59=\"TABLEAU DE SAISIE NON CONFORME\",\"\",IF(OR(E63=\"\",H63=\"\",K63=\"\"),N(0),'MOUCHE N°1'!P59))","v":0},null,{"$f":"IF('INFORMATIONS COMPETITEURS'!$D$59=\"TABLEAU DE SAISIE NON CONFORME\",\"\",IF(OR(E63=\"\",H63=\"\",K63=\"\"),N(0),'MOUCHE N°2'!P59))","v":0},null,{"$f":"IF('INFORMATIONS COMPETITEURS'!$D$59=\"TABLEAU DE SAISIE NON CONFORME\",\"\",IF(OR(E63=\"\",H63=\"\",K63=\"\"),N(0),'MOUCHE N°3'!P59))","v":0},null,{"$f":"IF('INFORMATIONS COMPETITEURS'!$D$59=\"TABLEAU DE SAISIE NON CONFORME\",\"\",IF(OR(E63=\"\",H63=\"\",K63=\"\"),N(0),'MOUCHE N°4'!P59))","v":0},null,{"$f":"IF('INFORMATIONS COMPETITEURS'!$D$59=\"TABLEAU DE SAISIE NON CONFORME\",\"\",IF(E63=\" \",N(0),IF(COUNT(L63,N63,P63,R63)>0,SUM(L63,N63,P63,R63),N(0))))","v":0},null,null,null,{"$f":"IF(Y63=\"\",\"\",IF(ISERROR(IF(AND(AG63=AG62,AI63=AI62,AO63=AO62),X62,X62+1)),\"\",IF(AND(AG63=AG62,AI63=AI62,AO63=AO62),X62,X62+1)))","v":""},""," ",null,null,"",null,null,"",0,null,0,null,0,null,0,null,0,null,null,null,"","",null,null,null,null,null,null,null,null,null,null,null,null,null,null,null,null,null,null,null,"","",null,null,null,null,null,null,null,null,null,null,null,null,null,null,null,null,null,null,null,"","",null,null,null,null,null,null,null,null,null,null,null,null,null,null,null,null,null,null,null,"","",null,null,null,null,null,null,null,null,null,null,null,null,null,null,null,null,null,null,null,"","",null,null,null,null,null,null,null,null,null,null,null,null,null,null,null,null,null,null,null,"","",null,null,null,null,null,null,null,null,null,null,null,null,null,null,null,null,null,null,null,"","",null,null,null,null,null,null,null,null,null,null,null,null,null,null,null,null,null,null,null,"",""]
[]
[]
[]
[]
[]
[]
[]
[null,null,null,1,null,null,null,null,null,null,null,null,null,null,null,null,null,null,null,null,null,null,null,null,null,null,null,null,null,null,null,1,null,{"$f":"IF('INFORMATIONS COMPETITEURS'!L9=\"\",\"\",'INFORMATIONS COMPETITEURS'!L9)","v":"Sénior"},null,null,"Code info. compétiteurs :",null,{"$f":"IF('INFORMATIONS COMPETITEURS'!D59=\"TABLEAU DE SAISIE CONFORME\",1,0)","v":1}]
[null,null,null,2,null,null,null,null,null,null,null,null,null,null,null,null,null,null,null,null,null,null,null,null,null,null,null,null,null,null,null,2,null,{"$f":"IF('INFORMATIONS COMPETITEURS'!L10=\"\",\"\",'INFORMATIONS COMPETITEURS'!L10)","v":"Sénior"},null,null,"Code Sénior :",null,{"$f":"COUNTIF($AH$71:$AH$120,\"Sénior\")","v":19}]
[null,null,null,3,null,null,null,null,null,null,null,null,null,null,null,null,null,null,null,null,null,null,null,null,null,null,null,null,null,null,null,3,null,{"$f":"IF('INFORMATIONS COMPETITEURS'!L11=\"\",\"\",'INFORMATIONS COMPETITEURS'!L11)","v":"Sénior"},null,null,"Code Junior :",null,{"$f":"COUNTIF($AH$71:$AH$120,\"Junior\")","v":0}]
[null,null,null,4,null,null,null,null,null,null,null,null,null,null,null,null,null,null,null,null,null,null,null,null,null,null,null,null,null,null,null,4,null,{"$f":"IF('INFORMATIONS COMPETITEURS'!L12=\"\",\"\",'INFORMATIONS COMPETITEURS'!L12)","v":"Minime"},null,null,"Code Benjamin :",null,{"$f":"COUNTIF($AH$71:$AH$120,\"Benjamin\")","v":2}]
[null,null,null,5,null,null,null,null,null,null,null,null,null,null,null,null,null,null,null,null,null,null,null,null,null,null,null,null,null,null,null,5,null,{"$f":"IF('INFORMATIONS COMPETITEURS'!L13=\"\",\"\",'INFORMATIONS COMPETITEURS'!L13)","v":"Féminine"},null,null,"Code Autre :",null,{"$f":"COUNTIF($AH$71:$AH$120,\"Handisport\")","v":1}]
[null,null,null,6,null,null,null,null,null,null,null,null,null,null,null,null,null,null,null,null,null,null,null,null,null,null,null,null,null,null,null,6,null,{"$f":"IF('INFORMATIONS COMPETITEURS'!L14=\"\",\"\",'INFORMATIONS COMPETITEURS'!L14)","v":"Sénior"},null,null,"Code Cadet :",null,{"$f":"COUNTIF($AH$71:$AH$120,\"Cadet\")","v":2}]
[null,null,null,7,null,null,null,null,null,null,null,null,null,null,null,null,null,null,null,null,null,null,null,null,null,null,null,null,null,null,null,7,null,{"$f":"IF('INFORMATIONS COMPETITEURS'!L15=\"\",\"\",'INFORMATIONS COMPETITEURS'!L15)","v":"Sénior"},null,null,"Code Minime :",null,{"$f":"COUNTIF($AH$71:$AH$120,\"Minime\")","v":3}]
[null,null,null,8,null,null,null,null,null,null,null,null,null,null,null,null,null,null,null,null,null,null,null,null,null,null,null,null,null,null,null,8,null,{"$f":"IF('INFORMATIONS COMPETITEURS'!L16=\"\",\"\",'INFORMATIONS COMPETITEURS'!L16)","v":"Cadet"},null,null,"Code Découverte :",null,{"$f":"COUNTIF($AH$71:$AH$120,\"Découverte\")","v":0}]
[null,null,null,9,null,null,null,null,null,null,null,null,null,null,null,null,null,null,null,null,null,null,null,null,null,null,null,null,null,null,null,9,null,{"$f":"IF('INFORMATIONS COMPETITEURS'!L17=\"\",\"\",'INFORMATIONS COMPETITEURS'!L17)","v":"Féminine"},null,null,"Code Féminine :",null,{"$f":"COUNTIF($AH$71:$AH$120,\"Féminine\")","v":2}]
[null,null,null,10,null,null,null,null,null,null,null,null,null,null,null,null,null,null,null,null,null,null,null,null,null,null,null,null,null,null,null,10,null,{"$f":"IF('INFORMATIONS COMPETITEURS'!L18=\"\",\"\",'INFORMATIONS COMPETITEURS'!L18)","v":"Sénior"}]
[null,null,null,11,null,null,null,null,null,null,null,null,null,null,null,null,null,null,null,null,null,null,null,null,null,null,null,null,null,null,null,11,null,{"$f":"IF('INFORMATIONS COMPETITEURS'!L19=\"\",\"\",'INFORMATIONS COMPETITEURS'!L19)","v":"Handisport"}]
[null,null,null,12,null,null,null,null,null,null,null,null,null,null,null,null,null,null,null,null,null,null,null,null,null,null,null,null,null,null,null,12,null,{"$f":"IF('INFORMATIONS COMPETITEURS'!L20=\"\",\"\",'INFORMATIONS COMPETITEURS'!L20)","v":"Sénior"}]
[null,null,null,13,null,null,null,null,null,null,null,null,null,null,null,null,null,null,null,null,null,null,null,null,null,null,null,null,null,null,null,13,null,{"$f":"IF('INFORMATIONS COMPETITEURS'!L21=\"\",\"\",'INFORMATIONS COMPETITEURS'!L21)","v":"Sénior"}]
[null,null,null,14,null,null,null,null,null,null,null,null,null,null,null,null,null,null,null,null,null,null,null,null,null,null,null,null,null,null,null,14,null,{"$f":"IF('INFORMATIONS COMPETITEURS'!L22=\"\",\"\",'INFORMATIONS COMPETITEURS'!L22)","v":"Sénior"}]
[null,null,null,15,null,null,null,null,null,null,null,null,null,null,null,null,null,null,null,null,null,null,null,null,null,null,null,null,null,null,null,15,null,{"$f":"IF('INFORMATIONS COMPETITEURS'!L23=\"\",\"\",'INFORMATIONS COMPETITEURS'!L23)","v":"Sénior"}]
[null,null,null,16,null,null,null,null,null,null,null,null,null,null,null,null,null,null,null,null,null,null,null,null,null,null,null,null,null,null,null,16,null,{"$f":"IF('INFORMATIONS COMPETITEURS'!L24=\"\",\"\",'INFORMATIONS COMPETITEURS'!L24)","v":"Sénior"}]
[null,null,null,17,null,null,null,null,null,null,null,null,null,null,null,null,null,null,null,null,null,null,null,null,null,null,null,null,null,null,null,17,null,{"$f":"IF('INFORMATIONS COMPETITEURS'!L25=\"\",\"\",'INFORMATIONS COMPETITEURS'!L25)","v":"Benjamin"}]
[null,null,null,18,null,null,null,null,null,null,null,null,null,null,null,null,null,null,null,null,null,null,null,null,null,null,null,null,null,null,null,18,null,{"$f":"IF('INFORMATIONS COMPETITEURS'!L26=\"\",\"\",'INFORMATIONS COMPETITEURS'!L26)","v":"Sénior"}]
[null,null,null,19,null,null,null,null,null,null,null,null,null,null,null,null,null,null,null,null,null,null,null,null,null,null,null,null,null,null,null,19,null,{"$f":"IF('INFORMATIONS COMPETITEURS'!L27=\"\",\"\",'INFORMATIONS COMPETITEURS'!L27)","v":"Sénior"}]
[null,null,null,20,null,null,null,null,null,null,null,null,null,null,null,null,null,null,null,null,null,null,null,null,null,null,null,null,null,null,null,20,null,{"$f":"IF('INFORMATIONS COMPETITEURS'!L28=\"\",\"\",'INFORMATIONS COMPETITEURS'!L28)","v":"Benjamin"}]
[null,null,null,21,null,null,null,null,null,null,null,null,null,null,null,null,null,null,null,null,null,null,null,null,null,null,null,null,null,null,null,21,null,{"$f":"IF('INFORMATIONS COMPETITEURS'!L29=\"\",\"\",'INFORMATIONS COMPETITEURS'!L29)","v":"Minime"}]
[null,null,null,22,null,null,null,null,null,null,null,null,null,null,null,null,null,null,null,null,null,null,null,null,null,null,null,null,null,null,null,22,null,{"$f":"IF('INFORMATIONS COMPETITEURS'!L30=\"\",\"\",'INFORMATIONS COMPETITEURS'!L30)","v":"Sénior"}]
[null,null,null,23,null,null,null,null,null,null,null,null,null,null,null,null,null,null,null,null,null,null,null,null,null,null,null,null,null,null,null,23,null,{"$f":"IF('INFORMATIONS COMPETITEURS'!L31=\"\",\"\",'INFORMATIONS COMPETITEURS'!L31)","v":"Sénior"}]
[null,null,null,24,null,null,null,null,null,null,null,null,null,null,null,null,null,null,null,null,null,null,null,null,null,null,null,null,null,null,null,24,null,{"$f":"IF('INFORMATIONS COMPETITEURS'!L32=\"\",\"\",'INFORMATIONS COMPETITEURS'!L32)","v":"Sénior"}]
[null,null,null,25,null,null,null,null,null,null,null,null,null,null,null,null,null,null,null,null,null,null,null,null,null,null,null,null,null,null,null,25,null,{"$f":"IF('INFORMATIONS COMPETITEURS'!L33=\"\",\"\",'INFORMATIONS COMPETITEURS'!L33)","v":"Sénior"}]
[null,null,null,26,null,null,null,null,null,null,null,null,null,null,null,null,null,null,null,null,null,null,null,null,null,null,null,null,null,null,null,26,null,{"$f":"IF('INFORMATIONS COMPETITEURS'!L34=\"\",\"\",'INFORMATIONS COMPETITEURS'!L34)","v":"Sénior"}]
[null,null,null,27,null,null,null,null,null,null,null,null,null,null,null,null,null,null,null,null,null,null,null,null,null,null,null,null,null,null,null,27,null,{"$f":"IF('INFORMATIONS COMPETITEURS'!L35=\"\",\"\",'INFORMATIONS COMPETITEURS'!L35)","v":"Cadet"}]
[null,null,null,28,null,null,null,null,null,null,null,null,null,null,null,null,null,null,null,null,null,null,null,null,null,null,null,null,null,null,null,28,null,{"$f":"IF('INFORMATIONS COMPETITEURS'!L36=\"\",\"\",'INFORMATIONS COMPETITEURS'!L36)","v":"Sénior"}]
[null,null,null,29,null,null,null,null,null,null,null,null,null,null,null,null,null,null,null,null,null,null,null,null,null,null,null,null,null,null,null,29,null,{"$f":"IF('INFORMATIONS COMPETITEURS'!L37=\"\",\"\",'INFORMATIONS COMPETITEURS'!L37)","v":"Minime"}]
[null,null,null,30,null,null,null,null,null,null,null,null,null,null,null,null,null,null,null,null,null,null,null,null,null,null,null,null,null,null,null,30,null,{"$f":"IF('INFORMATIONS COMPETITEURS'!L38=\"\",\"\",'INFORMATIONS COMPETITEURS'!L38)","v":""}]
[null,null,null,31,null,null,null,null,null,null,null,null,null,null,null,null,null,null,null,null,null,null,null,null,null,null,null,null,null,null,null,31,null,{"$f":"IF('INFORMATIONS COMPETITEURS'!L39=\"\",\"\",'INFORMATIONS COMPETITEURS'!L39)","v":""}]
[null,null,null,32,null,null,null,null,null,null,null,null,null,null,null,null,null,null,null,null,null,null,null,null,null,null,null,null,null,null,null,32,null,{"$f":"IF('INFORMATIONS COMPETITEURS'!L40=\"\",\"\",'INFORMATIONS COMPETITEURS'!L40)","v":""}]
[null,null,null,33,null,null,null,null,null,null,null,null,null,null,null,null,null,null,null,null,null,null,null,null,null,null,null,null,null,null,null,33,null,{"$f":"IF('INFORMATIONS COMPETITEURS'!L41=\"\",\"\",'INFORMATIONS COMPETITEURS'!L41)","v":""}]
[null,null,null,34,null,null,null,null,null,null,null,null,null,null,null,null,null,null,null,null,null,null,null,null,null,null,null,null,null,null,null,34,null,{"$f":"IF('INFORMATIONS COMPETITEURS'!L42=\"\",\"\",'INFORMATIONS COMPETITEURS'!L42)","v":""}]
[null,null,null,35,null,null,null,null,null,null,null,null,null,null,null,null,null,null,null,null,null,null,null,null,null,null,null,null,null,null,null,35,null,{"$f":"IF('INFORMATIONS COMPETITEURS'!L43=\"\",\"\",'INFORMATIONS COMPETITEURS'!L43)","v":""}]
[null,null,null,36,null,null,null,null,null,null,null,null,null,null,null,null,null,null,null,null,null,null,null,null,null,null,null,null,null,null,null,36,null,{"$f":"IF('INFORMATIONS COMPETITEURS'!L44=\"\",\"\",'INFORMATIONS COMPETITEURS'!L44)","v":""}]
[null,null,null,37,null,null,null,null,null,null,null,null,null,null,null,null,null,null,null,null,null,null,null,null,null,null,null,null,null,null,null,37,null,{"$f":"IF('INFORMATIONS COMPETITEURS'!L45=\"\",\"\",'INFORMATIONS COMPETITEURS'!L45)","v":""}]
[null,null,null,38,null,null,null,null,null,null,null,null,null,null,null,null,null,null,null,null,null,null,null,null,null,null,null,null,null,null,null,38,null,{"$f":"IF('INFORMATIONS COMPETITEURS'!L46=\"\",\"\",'INFORMATIONS COMPETITEURS'!L46)","v":""}]
[null,null,null,39,null,null,null,null,null,null,null,null,null,null,null,null,null,null,null,null,null,null,null,null,null,null,null,null,null,null,null,39,null,{"$f":"IF('INFORMATIONS COMPETITEURS'!L47=\"\",\"\",'INFORMATIONS COMPETITEURS'!L47)","v":""}]
[null,null,null,40,null,null,null,null,null,null,null,null,null,null,null,null,null,null,null,null,null,null,null,null,null,null,null,null,null,null,null,40,null,{"$f":"IF('INFORMATIONS COMPETITEURS'!L48=\"\",\"\",'INFORMATIONS COMPETITEURS'!L48)","v":""}]
[null,null,null,41,null,null,null,null,null,null,null,null,null,null,null,null,null,null,null,null,null,null,null,null,null,null,null,null,null,null,null,41,null,{"$f":"IF('INFORMATIONS COMPETITEURS'!L49=\"\",\"\",'INFORMATIONS COMPETITEURS'!L49)","v":""}]
[null,null,null,42,null,null,null,null,null,null,null,null,null,null,null,null,null,null,null,null,null,null,null,null,null,null,null,null,null,null,null,42,null,{"$f":"IF('INFORMATIONS COMPETITEURS'!L50=\"\",\"\",'INFORMATIONS COMPETITEURS'!L50)","v":""}]
[null,null,null,43,null,null,null,null,null,null,null,null,null,null,null,null,null,null,null,null,null,null,null,null,null,null,null,null,null,null,null,43,null,{"$f":"IF('INFORMATIONS COMPETITEURS'!L51=\"\",\"\",'INFORMATIONS COMPETITEURS'!L51)","v":""}]
[null,null,null,44,null,null,null,null,null,null,null,null,null,null,null,null,null,null,null,null,null,null,null,null,null,null,null,null,null,null,null,44,null,{"$f":"IF('INFORMATIONS COMPETITEURS'!L52=\"\",\"\",'INFORMATIONS COMPETITEURS'!L52)","v":""}]
[null,null,null,45,null,null,null,null,null,null,null,null,null,null,null,null,null,null,null,null,null,null,null,null,null,null,null,null,null,null,null,45,null,{"$f":"IF('INFORMATIONS COMPETITEURS'!L53=\"\",\"\",'INFORMATIONS COMPETITEURS'!L53)","v":""}]
[null,null,null,46,null,null,null,null,null,null,null,null,null,null,null,null,null,null,null,null,null,null,null,null,null,null,null,null,null,null,null,46,null,{"$f":"IF('INFORMATIONS COMPETITEURS'!L54=\"\",\"\",'INFORMATIONS COMPETITEURS'!L54)","v":""}]
[null,null,null,47,null,null,null,null,null,null,null,null,null,null,null,null,null,null,null,null,null,null,null,null,null,null,null,null,null,null,null,47,null,{"$f":"IF('INFORMATIONS COMPETITEURS'!L55=\"\",\"\",'INFORMATIONS COMPETITEURS'!L55)","v":""}]
[null,null,null,48,null,null,null,null,null,null,null,null,null,null,null,null,null,null,null,null,null,null,null,null,null,null,null,null,null,null,null,48,null,{"$f":"IF('INFORMATIONS COMPETITEURS'!L56=\"\",\"\",'INFORMATIONS COMPETITEURS'!L56)","v":""}]
[null,null,null,49,null,null,null,null,null,null,null,null,null,null,null,null,null,null,null,null,null,null,null,null,null,null,null,null,null,null,null,49,null,{"$f":"IF('INFORMATIONS COMPETITEURS'!L57=\"\",\"\",'INFORMATIONS COMPETITEURS'!L57)","v":""}]
[null,null,null,50,null,null,null,null,null,null,null,null,null,null,null,null,null,null,null,null,null,null,null,null,null,null,null,null,null,null,null,50,null,{"$f":"IF('INFORMATIONS COMPETITEURS'!L58=\"\",\"\",'INFORMATIONS COMPETITEURS'!L58)","v":""}]